Workbook

Sheet Start
A1: Last game day
A2: 2023-05-04 | I2: Team Legends
I3: Team 1 | J3: ='Bad Pitches'!D1 -> Bad Pitches
I4: Team 2 | J4: =BCBC!D1 -> BCBC
I5: Team 3 | J5: ='Ghetto Bombers'!D1 -> Ghetto Bombers
I6: Team 4 | J6: ='Hit Squad'!D1 -> Hit Squad
I7: Team 5 | J7: =Sticks!D1 -> Sticks
I8: Team 6 | J8: ='Team 6'!D1 -> Team 6
I9: Team 7 | J9: ='Team 7'!D1 -> 
I10: Team 8 | J10: ='Team 8'!D1 -> 

Sheet Bad Pitches
C1: Team Name | D1: Bad Pitches | I1: Score | J1: 14 | K1: 3 | L1: 19
I2: Opponents Score | J2: 11 | K2: 9 | L2: 16
D3: Wins | F3: =SUM(J6:AA6) -> 2 | I3: W or L | J3: =IF(SUM(J1,J2)=0,"",IF(J1<J2,"L","W")) -> W | K3: L | L3: W | T3: =IF(SUM(T1,T2)=0,"",IF(T1<T2,"L","W")) -> 
D4: Losses | F4: =SUM(J7:AA7) -> 1 | H4: Forfeit | I4: FW or FL
E5: games played excluding Forfeit Wins | J5: =IF(J3="","",IF(J4="FW","",1)) -> 1 | K5: 1 | L5: 1 | Y5: =IF(Y3="","",IF(Y4="FW","",1)) ->  | Z5: =IF(Z3="","",IF(Z4="FW","",1)) ->  | AA5: =IF(AA3="","",IF(AA4="FW","",1)) -> 
H6: =IF(H4="w",1,"") ->  | I6: win | J6: =IF(J3="w",1,"") -> 1 | L6: 1 | Y6: =IF(Y3="w",1,"") ->  | Z6: =IF(Z3="w",1,"") ->  | AA6: =IF(AA3="w",1,"") -> 
H7: =IF(H4="l",1,"") ->  | I7: loss | J7: =IF(J3="l",1,"") ->  | K7: 1 | Y7: =IF(Y3="l",1,"") ->  | Z7: =IF(Z3="l",1,"") ->  | AA7: =IF(AA3="l",1,"") -> 
D8: Games Played Excluding Forfeit Wins | F8: =SUM(J5:AA5) -> 3 | H8: Opponents Team Name | J8: Sticks | K8: BCBC | L8: Ghetto Bombers | N8: No Games | Q8: No Games
D9: League Run Diff | F9: =SUM(J9:AA9) -> 0 | I9: Game Run Diff | J9: =IF(J1="","",J1-J2) -> 3 | K9: -6 | L9: 3 | U9: =IF(U1="","",U1-U2) -> 
D10: Team Batting Avg | F10: =$H$115 -> 0.4385964912 | I10: Game Date | J10: 2023-04-20 | K10: 2023-04-27 | L10: 2023-05-04 | M10: 2023-05-11 | N10: 2023-05-18 | O10: 2023-05-25 | P10: 2023-05-25 | Q10: 2023-06-01 | R10: 2023-06-08 | S10: 2023-06-08
H12: STATS | J12: 1 | K12: 2 | L12: 3 | M12: 4 | N12: 5 | O12: 6 | P12: 7 | Q12: 8 | R12: 9 | S12: 10 | T12: 11 | U12: 12 | V12: 13 | W12: 14 | X12: 15 | Y12: 16 | Z12: 17 | AA12: 18
A13: 1 | B13: =$D$1 -> Bad Pitches | C13: L-Name | D13: Ryan | F13: # of AB's | H13: =SUM(J13:AA13) -> 13 | I13: AB's | J13: 5 | K13: 4 | L13: 4
C14: F-Name | D14: Watt | F14: # of Hits | H14: =SUM(J14:AA14) -> 8 | I14: Hits | J14: 2 | K14: 3 | L14: 3
F15: # of PA | H15: =SUM(J15:AA15) -> 13 | I15: PA | J15: 5 | K15: 4 | L15: 4
D16: m | F16: Avg | H16: =IF(H13=0,"",(H14/H13)) -> 0.6153846154 | I16: Avg | J16: =IF(J13="","",J14/J13) -> 0.4 | K16: 0.75 | L16: 0.75 | T16: =IF(T13="","",T14/T13) -> 
A17: 2 | B17: =$D$1 -> Bad Pitches | C17: L-Name | D17: Tayce | F17: # of AB's | H17: =SUM(J17:AA17) -> 13 | I17: AB's | J17: 5 | K17: 4 | L17: 4
C18: F-Name | D18: Shamo | F18: # of Hits | H18: =SUM(J18:AA18) -> 4 | I18: Hits | J18: 1 | K18: 1 | L18: 2
F19: # of PA | H19: =SUM(J19:AA19) -> 13 | I19: PA | J19: 5 | K19: 4 | L19: 4
D20: f | F20: Avg | H20: =IF(H17=0,"",H18/H17) -> 0.3076923077 | I20: Avg | J20: =IF(J17="","",J18/J17) -> 0.2 | K20: 0.25 | L20: 0.5 | T20: =IF(T17="","",T18/T17) -> 
A21: 3 | B21: =$D$1 -> Bad Pitches | C21: L-Name | D21: Jeff | F21: # of AB's | H21: =SUM(J21:AA21) -> 11 | I21: AB's | J21: 4 | K21: 3 | L21: 4
C22: F-Name | D22: Cagle | F22: # of Hits | H22: =SUM(J22:AA22) -> 6 | I22: Hits | J22: 2 | K22: 2 | L22: 2
F23: # of PA | H23: =SUM(J23:AA23) -> 11 | I23: PA | J23: 4 | K23: 3 | L23: 4
D24: m | F24: Avg | H24: =IF(H21=0,"",H22/H21) -> 0.5454545455 | I24: Avg | J24: =IF(J21="","",J22/J21) -> 0.5 | K24: 0.6666666667 | L24: 0.5 | T24: =IF(T21="","",T22/T21) -> 
A25: 4 | B25: =$D$1 -> Bad Pitches | C25: L-Name | D25: Stephanie | F25: # of AB's | H25: =SUM(J25:AA25) -> 12 | I25: AB's | J25: 4 | K25: 4 | L25: 4
C26: F-Name | D26: Bonham | F26: # of Hits | H26: =SUM(J26:AA26) -> 3 | I26: Hits | J26: 1 | K26: 0 | L26: 2
F27: # of PA | H27: =SUM(J27:AA27) -> 12 | I27: PA | J27: 4 | K27: 4 | L27: 4
D28: f | F28: Avg | H28: =IF(H25=0,"",H26/H25) -> 0.25 | I28: Avg | J28: =IF(J25="","",J26/J25) -> 0.25 | K28: 0 | L28: 0.5 | T28: =IF(T25="","",T26/T25) -> 
A29: 5 | B29: =$D$1 -> Bad Pitches | C29: L-Name | D29: Aaron | F29: # of AB's | H29: =SUM(J29:AA29) -> 11 | I29: AB's | J29: 4 | K29: 3 | L29: 4
C30: F-Name | D30: Montgomery | F30: # of Hits | H30: =SUM(J30:AA30) -> 5 | I30: Hits | J30: 2 | K30: 1 | L30: 2
F31: # of PA | H31: =SUM(J31:AA31) -> 11 | I31: PA | J31: 4 | K31: 3 | L31: 4
D32: m | F32: Avg | H32: =IF(H29=0,"",H30/H29) -> 0.4545454545 | I32: Avg | J32: =IF(J29="","",J30/J29) -> 0.5 | K32: 0.3333333333 | L32: 0.5 | T32: =IF(T29="","",T30/T29) -> 
A33: 6 | B33: =$D$1 -> Bad Pitches | C33: L-Name | D33: Paige | F33: # of AB's | H33: =SUM(J33:AA33) -> 12 | I33: AB's | J33: 4 | K33: 3 | L33: 5
C34: F-Name | D34: Reynolds | F34: # of Hits | H34: =SUM(J34:AA34) -> 4 | I34: Hits | J34: 2 | K34: 0 | L34: 2
F35: # of PA | H35: =SUM(J35:AA35) -> 12 | I35: PA | J35: 4 | K35: 3 | L35: 5
D36: f | F36: Avg | H36: =IF(H33=0,"",H34/H33) -> 0.3333333333 | I36: Avg | J36: =IF(J33="","",J34/J33) -> 0.5 | K36: 0 | L36: 0.4
A37: 7 | B37: =$D$1 -> Bad Pitches | C37: L-Name | D37: Brian | F37: # of AB's | H37: =SUM(J37:AA37) -> 8 | I37: AB's | J37: 4 | L37: 4
C38: F-Name | D38: Godfrey | F38: # of Hits | H38: =SUM(J38:AA38) -> 5 | I38: Hits | J38: 2 | L38: 3
F39: # of PA | H39: =SUM(J39:AA39) -> 8 | I39: PA | J39: 4 | L39: 4
D40: m | F40: Avg | H40: =IF(H37=0,"",H38/H37) -> 0.625 | I40: Avg | J40: =IF(J37="","",J38/J37) -> 0.5 | L40: 0.75 | T40: =IF(T37="","",T38/T37) -> 
A41: 8 | B41: =$D$1 -> Bad Pitches | C41: L-Name | D41: Calliane | F41: # of AB's | H41: =SUM(J41:AA41) -> 8 | I41: AB's | J41: 4 | L41: 4
C42: F-Name | D42: Hodson | F42: # of Hits | H42: =SUM(J42:AA42) -> 7 | I42: Hits | J42: 3 | L42: 4
F43: # of PA | H43: =SUM(J43:AA43) -> 8 | I43: PA | J43: 4 | L43: 4
D44: f | F44: Avg | H44: =IF(H41=0,"",H42/H41) -> 0.875 | I44: Avg | J44: =IF(J41="","",J42/J41) -> 0.75 | L44: 1 | T44: =IF(T41="","",T42/T41) -> 
A45: 9 | B45: =$D$1 -> Bad Pitches | C45: L-Name | D45: Vincente | F45: # of AB's | H45: =SUM(J45:AA45) -> 11 | I45: AB's | J45: 4 | K45: 3 | L45: 4
C46: F-Name | D46: Herrera | F46: # of Hits | H46: =SUM(J46:AA46) -> 6 | I46: Hits | J46: 2 | K46: 1 | L46: 3
F47: # of PA | H47: =SUM(J47:AA47) -> 12 | I47: PA | J47: 4 | K47: 3 | L47: 5
D48: m | F48: Avg | H48: =IF(H45=0,"",H46/H45) -> 0.5454545455 | I48: Avg | J48: =IF(J45="","",J46/J45) -> 0.5 | K48: 0.3333333333 | L48: 0.75 | T48: =IF(T45="","",T46/T45) -> 
A49: 10 | B49: =$D$1 -> Bad Pitches | C49: L-Name | D49: Emma | F49: # of AB's | H49: =SUM(J49:AA49) -> 4 | I49: AB's | J49: 4
C50: F-Name | D50: Larsen | F50: # of Hits | H50: =SUM(J50:AA50) -> 0 | I50: Hits | J50: 0
F51: # of PA | H51: =SUM(J51:AA51) -> 4 | I51: PA | J51: 4
D52: f | F52: Avg | H52: =IF(H49=0,"",H50/H49) -> 0 | I52: Avg | J52: =IF(J49="","",J50/J49) -> 0 | T52: =IF(T49="","",T50/T49) -> 
A53: 11 | B53: =$D$1 -> Bad Pitches | C53: L-Name | D53: Seth | F53: # of AB's | H53: =SUM(J53:AA53) -> 4 | I53: AB's | K53: 4
C54: F-Name | D54: Kaelin | F54: # of Hits | H54: =SUM(J54:AA54) -> 0 | I54: Hits | K54: 0
F55: # of PA | H55: =SUM(J55:AA55) -> 4 | I55: PA | K55: 4
D56: m | F56: Avg | H56: =IF(H53=0,"",H54/H53) -> 0 | I56: Avg | J56: =IF(J53="","",J54/J53) ->  | K56: 0 | T56: =IF(T53="","",T54/T53) -> 
A57: 12 | B57: =$D$1 -> Bad Pitches | C57: L-Name | D57: Sandra | F57: # of AB's | H57: =SUM(J57:AA57) -> 3 | I57: AB's | K57: 3
C58: F-Name | D58: Chavez | F58: # of Hits | H58: =SUM(J58:AA58) -> 1 | I58: Hits | K58: 1
F59: # of PA | H59: =SUM(J59:AA59) -> 3 | I59: PA | K59: 3
D60: f | F60: Avg | H60: =IF(H57=0,"",H58/H57) -> 0.3333333333 | I60: Avg | J60: =IF(J57="","",J58/J57) ->  | K60: 0.3333333333 | T60: =IF(T57="","",T58/T57) -> 
A61: 13 | B61: =$D$1 -> Bad Pitches | C61: B | D61: Britt | F61: # of AB's | H61: =SUM(J61:AA61) -> 4 | I61: AB's | L61: 4
C62: F-Name | D62: Call | F62: # of Hits | H62: =SUM(J62:AA62) -> 1 | I62: Hits | L62: 1
F63: # of PA | H63: =SUM(J63:AA63) -> 4 | I63: PA | L63: 4
D64: f | F64: Avg | H64: =IF(H61=0,"",H62/H61) -> 0.25 | I64: Avg | J64: =IF(J61="","",J62/J61) ->  | L64: 0.25 | T64: =IF(T61="","",T62/T61) -> 
A65: 14 | B65: =$D$1 -> Bad Pitches | C65: L-Name | F65: # of AB's | H65: =SUM(J65:AA65) -> 0 | I65: AB's
C66: F-Name | F66: # of Hits | H66: =SUM(J66:AA66) -> 0 | I66: Hits
F67: # of PA | H67: =SUM(J67:AA67) -> 0 | I67: PA
D68: m | F68: Avg | H68: =IF(H65=0,"",H66/H65) ->  | I68: Avg | J68: =IF(J65="","",J66/J65) ->  | T68: =IF(T65="","",T66/T65) -> 
A69: 15 | B69: =$D$1 -> Bad Pitches | C69: L-Name | F69: # of AB's | H69: =SUM(J69:AA69) -> 0 | I69: AB's
C70: F-Name | F70: # of Hits | H70: =SUM(J70:AA70) -> 0 | I70: Hits
F71: # of PA | H71: =SUM(J71:AA71) -> 0 | I71: PA
D72: f | F72: Avg | H72: =IF(H69=0,"",H70/H69) ->  | I72: Avg | J72: =IF(J69="","",J70/J69) ->  | T72: =IF(T69="","",T70/T69) -> 
A73: 16 | B73: =$D$1 -> Bad Pitches | C73: R | F73: # of AB's | H73: =SUM(J73:AA73) -> 0 | I73: AB's
C74: F-Name | F74: # of Hits | H74: =SUM(J74:AA74) -> 0 | I74: Hits
F75: # of PA | H75: =SUM(J75:AA75) -> 0 | I75: PA
D76: f | F76: Avg | H76: =IF(H73=0,"",H74/H73) ->  | I76: Avg | J76: =IF(J73="","",J74/J73) ->  | T76: =IF(T73="","",T74/T73) -> 
A77: 17 | B77: =$D$1 -> Bad Pitches | C77: L-Name | F77: # of AB's | H77: =SUM(J77:AA77) -> 0 | I77: AB's
C78: F-Name | F78: # of Hits | H78: =SUM(J78:AA78) -> 0 | I78: Hits
F79: # of PA | H79: =SUM(J79:AA79) -> 0 | I79: PA
D80: f | F80: Avg | H80: =IF(H77=0,"",H78/H77) ->  | I80: Avg | J80: =IF(J77="","",J78/J77) ->  | T80: =IF(T77="","",T78/T77) -> 
A81: 18 | B81: =$D$1 -> Bad Pitches | C81: L-Name | F81: # of AB's | H81: =SUM(J81:AA81) -> 0 | I81: AB's
C82: F-Name | F82: # of Hits | H82: =SUM(J82:AA82) -> 0 | I82: Hits
F83: # of PA | H83: =SUM(J83:AA83) -> 0 | I83: PA
D84: m | F84: Avg | H84: =IF(H81=0,"",H82/H81) ->  | I84: Avg | J84: =IF(J81="","",J82/J81) ->  | T84: =IF(T81="","",T82/T81) -> 
A85: 19 | B85: =$D$1 -> Bad Pitches | C85: L-Name | F85: # of AB's | H85: =SUM(J85:AA85) -> 0 | I85: AB's
C86: F-Name | F86: # of Hits | H86: =SUM(J86:AA86) -> 0 | I86: Hits
F87: # of PA | H87: =SUM(J87:AA87) -> 0 | I87: PA
D88: m | F88: Avg | H88: =IF(H85=0,"",H86/H85) ->  | I88: Avg | J88: =IF(J85="","",J86/J85) ->  | T88: =IF(T85="","",T86/T85) -> 
A89: 20 | B89: =$D$1 -> Bad Pitches | C89: L-Name | F89: # of AB's | H89: =SUM(J89:AA89) -> 0 | I89: AB's
C90: F-Name | F90: # of Hits | H90: =SUM(J90:AA90) -> 0 | I90: Hits
F91: # of PA | H91: =SUM(J91:AA91) -> 0 | I91: PA
D92: f | F92: Avg | H92: =IF(H89=0,"",H90/H89) ->  | I92: Avg | J92: =IF(J89="","",J90/J89) ->  | T92: =IF(T89="","",T90/T89) -> 
A93: 21 | B93: =$D$1 -> Bad Pitches | C93: L-Name | F93: # of AB's | H93: =SUM(J93:AA93) -> 0 | I93: AB's
C94: F-Name | F94: # of Hits | H94: =SUM(J94:AA94) -> 0 | I94: Hits
F95: # of PA | H95: =SUM(J95:AA95) -> 0 | I95: PA
D96: f | F96: Avg | H96: =IF(H93=0,"",H94/H93) ->  | I96: Avg | J96: =IF(J93="","",J94/J93) ->  | T96: =IF(T93="","",T94/T93) -> 
A97: 22 | B97: =$D$1 -> Bad Pitches | C97: L-Name | F97: # of AB's | H97: =SUM(J97:AA97) -> 0 | I97: AB's
C98: F-Name | F98: # of Hits | H98: =SUM(J98:AA98) -> 0 | I98: Hits
F99: # of PA | H99: =SUM(J99:AA99) -> 0 | I99: PA
D100: f | F100: Avg | H100: =IF(H97=0,"",H98/H97) ->  | I100: Avg | J100: =IF(J97="","",J98/J97) ->  | T100: =IF(T97="","",T98/T97) -> 
A101: 23 | B101: =$D$1 -> Bad Pitches | C101: L-Name | F101: # of AB's | H101: =SUM(J101:AA101) -> 0 | I101: AB's
C102: F-Name | F102: # of Hits | H102: =SUM(J102:AA102) -> 0 | I102: Hits
F103: # of PA | H103: =SUM(J103:AA103) -> 0 | I103: PA
D104: f | F104: Avg | H104: =IF(H101=0,"",H102/H101) ->  | I104: Avg | J104: =IF(J101="","",J102/J101) ->  | T104: =IF(T101="","",T102/T101) -> 
A105: 24 | B105: =$D$1 -> Bad Pitches | C105: L-Name | F105: # of AB's | H105: =SUM(J105:AA105) -> 0 | I105: AB's
C106: F-Name | F106: # of Hits | H106: =SUM(J106:AA106) -> 0 | I106: Hits
F107: # of PA | H107: =SUM(J107:AA107) -> 0 | I107: PA
D108: f | F108: Avg | H108: =IF(H105=0,"",H106/H105) ->  | I108: Avg | J108: =IF(J105="","",J106/J105) ->  | T108: =IF(T105="","",T106/T105) -> 
A109: 25 | B109: =$D$1 -> Bad Pitches | C109: L-Name | F109: # of AB's | H109: =SUM(J109:AA109) -> 0 | I109: AB's
C110: F-Name | F110: # of Hits | H110: =SUM(J110:AA110) -> 0 | I110: Hits
F111: # of PA | H111: =SUM(J111:AA111) -> 0 | I111: PA
D112: f | F112: Avg | H112: =IF(H109=0,"",H110/H109) ->  | I112: Avg | J112: =IF(J109="","",J110/J109) ->  | T112: =IF(T109="","",T110/T109) -> 
B113: =$D$1 -> Bad Pitches | D113: TEAM | F113: # of AB's | H113: =SUM(J113:AA113) -> 114 | I113: AB's | J113: =IF(SUM(J109,J105,J101,J97,J93,J89,J85,J81,J77,J73,J69,J65,J61,J57,J53,J49,J45,J41,J37,J33,J29,J25,J21,J17,J13)=0,"",SUM(J13,J17,J21,J25,J29,J33,J37,J41,J45,J49,J53,J57,J61,J65,J69,J73,J77,J81,J85,J89,J93,J97,J101,J105,J109)) -> 42 | K113: 31 | L113: 41
D114: Summary | F114: # of Hits | H114: =SUM(J114:AA114) -> 50 | I114: Hits | J114: =IF(SUM(J110,J106,J102,J98,J94,J90,J86,J82,J78,J74,J70,J66,J62,J58,J54,J50,J46,J42,J38,J34,J30,J26,J22,J18,J14)=0,"",SUM(J14,J18,J22,J26,J30,J34,J38,J42,J46,J50,J54,J58,J62,J66,J70,J74,J78,J82,J86,J90,J94,J98,J102,J106,J110)) -> 17 | K114: 9 | L114: 24
F115: Avg | H115: =IF(H113=0,"N/A",H114/H113) -> 0.4385964912 | I115: Avg | J115: =IF(J113="","",J114/J113) -> 0.4047619048 | K115: 0.2903225806 | L115: 0.5853658537 | T115: =IF(T113="","",T114/T113) -> 

Sheet BCBC
C1: Team Name | D1: BCBC | I1: Score | J1: 28 | K1: 9 | L1: 15 | M1: 28
I2: Opponents Score | J2: 17 | K2: 3 | L2: 14 | M2: 11
D3: Wins | F3: =SUM(J6:AA6) -> 4 | I3: W or L | J3: =IF(SUM(J1,J2)=0,"",IF(J1<J2,"L","W")) -> W | K3: W | L3: W | M3: W
D4: Losses | F4: =SUM(J7:AA7) -> 0 | H4: Forfeit | I4: FW or FL
E5: games played excluding Forfeit Wins | J5: =IF(J3="","",IF(J4="FW","",1)) -> 1 | K5: 1 | L5: 1 | M5: 1
H6: =IF(H4="w",1,"") ->  | I6: win | J6: =IF(J3="w",1,"") -> 1 | K6: 1 | L6: 1 | M6: 1
H7: =IF(H4="l",1,"") ->  | I7: loss | J7: =IF(J3="l",1,"") -> 
D8: Games Played Excluding Forfeit Wins | F8: =SUM(J5:AA5) -> 4 | H8: Opponents Team Name | J8: Ghetto Bombers | K8: Bad Pitches | L8: Sticks | M8: Hit Squad | O8: No Games | R8: No Games
D9: League Run Diff | F9: =SUM(J9:AA9) -> 35 | I9: Game Run Diff | J9: =IF(J1="","",J1-J2) -> 11 | K9: 6 | L9: 1 | M9: 17
D10: Team Batting Avg | F10: =$H$115 -> 0.5808383234 | I10: Game Date | J10: 2023-04-20 | K10: 2023-04-27 | L10: 2023-04-27 | M10: 2023-05-04 | N10: 2023-05-11 | O10: 2023-05-18 | P10: 2023-05-25 | Q10: 2023-05-25 | R10: 2023-06-01 | S10: 2023-06-08
H12: STATS | J12: 1 | K12: 2 | L12: 3 | M12: 4 | N12: 5 | O12: 6 | P12: 7 | Q12: 8 | R12: 9 | S12: 10 | T12: 11 | U12: 12 | V12: 13 | W12: 14 | X12: 15 | Y12: 16 | Z12: 17 | AA12: 18
A13: 1 | B13: =$D$1 -> BCBC | C13: L-Name | D13: Jordan | F13: # of AB's | H13: =SUM(J13:AA13) -> 11 | I13: AB's | J13: 5 | K13: 3 | L13: 3
C14: F-Name | D14: Rodgers | F14: # of Hits | H14: =SUM(J14:AA14) -> 7 | I14: Hits | J14: 3 | K14: 2 | L14: 2
F15: # of PA | H15: =SUM(J15:AA15) -> 11 | I15: PA | J15: 5 | K15: 3 | L15: 3
D16: m | F16: Avg | H16: =IF(H13=0,"",(H14/H13)) -> 0.6363636364 | I16: Avg | J16: =IF(J13="","",J14/J13) -> 0.6 | K16: 0.6666666667 | L16: 0.6666666667
A17: 2 | B17: =$D$1 -> BCBC | C17: L-Name | D17: Karen | F17: # of AB's | H17: =SUM(J17:AA17) -> 5 | I17: AB's | J17: 5
C18: F-Name | D18: Springer | F18: # of Hits | H18: =SUM(J18:AA18) -> 2 | I18: Hits | J18: 2
F19: # of PA | H19: =SUM(J19:AA19) -> 5 | I19: PA | J19: 5
D20: f | F20: Avg | H20: =IF(H17=0,"",H18/H17) -> 0.4 | I20: Avg | J20: =IF(J17="","",J18/J17) -> 0.4
A21: 3 | B21: =$D$1 -> BCBC | C21: L-Name | D21: Shane | F21: # of AB's | H21: =SUM(J21:AA21) -> 16 | I21: AB's | J21: 5 | K21: 3 | L21: 3 | M21: 5
C22: F-Name | D22: Singer | F22: # of Hits | H22: =SUM(J22:AA22) -> 12 | I22: Hits | J22: 4 | K22: 1 | L22: 3 | M22: 4
F23: # of PA | H23: =SUM(J23:AA23) -> 16 | I23: PA | J23: 5 | K23: 3 | L23: 3 | M23: 5
D24: m | F24: Avg | H24: =IF(H21=0,"",H22/H21) -> 0.75 | I24: Avg | J24: =IF(J21="","",J22/J21) -> 0.8 | K24: 0.3333333333 | L24: 1 | M24: 0.8
A25: 4 | B25: =$D$1 -> BCBC | C25: L-Name | D25: Maree | F25: # of AB's | H25: =SUM(J25:AA25) -> 16 | I25: AB's | J25: 5 | K25: 3 | L25: 3 | M25: 5
C26: F-Name | D26: Achermann | F26: # of Hits | H26: =SUM(J26:AA26) -> 10 | I26: Hits | J26: 3 | K26: 1 | L26: 3 | M26: 3
F27: # of PA | H27: =SUM(J27:AA27) -> 16 | I27: PA | J27: 5 | K27: 3 | L27: 3 | M27: 5
D28: f | F28: Avg | H28: =IF(H25=0,"",H26/H25) -> 0.625 | I28: Avg | J28: =IF(J25="","",J26/J25) -> 0.6 | K28: 0.3333333333 | L28: 1 | M28: 0.6
A29: 5 | B29: =$D$1 -> BCBC | C29: L-Name | D29: Ben | F29: # of AB's | H29: =SUM(J29:AA29) -> 13 | I29: AB's | J29: 5 | L29: 3 | M29: 5
C30: F-Name | D30: Magnum | F30: # of Hits | H30: =SUM(J30:AA30) -> 9 | I30: Hits | J30: 4 | L30: 2 | M30: 3
F31: # of PA | H31: =SUM(J31:AA31) -> 13 | I31: PA | J31: 5 | L31: 3 | M31: 5
D32: m | F32: Avg | H32: =IF(H29=0,"",H30/H29) -> 0.6923076923 | I32: Avg | J32: =IF(J29="","",J30/J29) -> 0.8 | L32: 0.6666666667 | M32: 0.6
A33: 6 | B33: =$D$1 -> BCBC | C33: L-Name | D33: Sunni | F33: # of AB's | H33: =SUM(J33:AA33) -> 14 | I33: AB's | J33: 5 | K33: 2 | L33: 3 | M33: 4
C34: F-Name | D34: Jackson | F34: # of Hits | H34: =SUM(J34:AA34) -> 8 | I34: Hits | J34: 3 | K34: 1 | L34: 2 | M34: 2
F35: # of PA | H35: =SUM(J35:AA35) -> 15 | I35: PA | J35: 5 | K35: 2 | L35: 3 | M35: 5
D36: f | F36: Avg | H36: =IF(H33=0,"",H34/H33) -> 0.5714285714 | I36: Avg | J36: =IF(J33="","",J34/J33) -> 0.6 | K36: 0.5 | L36: 0.6666666667 | M36: 0.5
A37: 7 | B37: =$D$1 -> BCBC | C37: L-Name | D37: Jeff | F37: # of AB's | H37: =SUM(J37:AA37) -> 13 | I37: AB's | J37: 4 | K37: 2 | L37: 3 | M37: 4
C38: F-Name | D38: Nielsen | F38: # of Hits | H38: =SUM(J38:AA38) -> 4 | I38: Hits | J38: 1 | K38: 1 | L38: 0 | M38: 2
F39: # of PA | H39: =SUM(J39:AA39) -> 15 | I39: PA | J39: 4 | K39: 2 | L39: 3 | M39: 6
D40: m | F40: Avg | H40: =IF(H37=0,"",H38/H37) -> 0.3076923077 | I40: Avg | J40: =IF(J37="","",J38/J37) -> 0.25 | K40: 0.5 | L40: 0 | M40: 0.5
A41: 8 | B41: =$D$1 -> BCBC | C41: L-Name | D41: Casey | F41: # of AB's | H41: =SUM(J41:AA41) -> 10 | I41: AB's | J41: 4 | K41: 3 | L41: 3
C42: F-Name | D42: Velarde | F42: # of Hits | H42: =SUM(J42:AA42) -> 5 | I42: Hits | J42: 2 | K42: 1 | L42: 2
F43: # of PA | H43: =SUM(J43:AA43) -> 10 | I43: PA | J43: 4 | K43: 3 | L43: 3
D44: f | F44: Avg | H44: =IF(H41=0,"",H42/H41) -> 0.5 | I44: Avg | J44: =IF(J41="","",J42/J41) -> 0.5 | K44: 0.3333333333 | L44: 0.6666666667
A45: 9 | B45: =$D$1 -> BCBC | C45: L-Name | D45: Dustin | F45: # of AB's | H45: =SUM(J45:AA45) -> 15 | I45: AB's | J45: 4 | K45: 3 | L45: 3 | M45: 5
C46: F-Name | D46: Hunter | F46: # of Hits | H46: =SUM(J46:AA46) -> 13 | I46: Hits | J46: 4 | K46: 3 | L46: 2 | M46: 4
F47: # of PA | H47: =SUM(J47:AA47) -> 15 | I47: PA | J47: 4 | K47: 3 | L47: 3 | M47: 5
D48: m | F48: Avg | H48: =IF(H45=0,"",H46/H45) -> 0.8666666667 | I48: Avg | J48: =IF(J45="","",J46/J45) -> 1 | K48: 1 | L48: 0.6666666667 | M48: 0.8
A49: 10 | B49: =$D$1 -> BCBC | D49: Robyne | F49: # of AB's | H49: =SUM(J49:AA49) -> 14 | I49: AB's | J49: 4 | K49: 2 | L49: 3 | M49: 5
D50: Oostveen | F50: # of Hits | H50: =SUM(J50:AA50) -> 5 | I50: Hits | J50: 2 | K50: 0 | L50: 0 | M50: 3
F51: # of PA | H51: =SUM(J51:AA51) -> 14 | I51: PA | J51: 4 | K51: 2 | L51: 3 | M51: 5
D52: f | F52: Avg | H52: =IF(H49=0,"",H50/H49) -> 0.3571428571 | I52: Avg | J52: =IF(J49="","",J50/J49) -> 0.5 | K52: 0 | L52: 0 | M52: 0.6
A53: 11 | B53: =$D$1 -> BCBC | C53: L-Name | D53: Jace | F53: # of AB's | H53: =SUM(J53:AA53) -> 10 | I53: AB's | J53: 4 | K53: 3 | L53: 3
C54: F-Name | D54: Rogers | F54: # of Hits | H54: =SUM(J54:AA54) -> 6 | I54: Hits | J54: 2 | K54: 1 | L54: 3
F55: # of PA | H55: =SUM(J55:AA55) -> 10 | I55: PA | J55: 4 | K55: 3 | L55: 3
D56: m | F56: Avg | H56: =IF(H53=0,"",H54/H53) -> 0.6 | I56: Avg | J56: =IF(J53="","",J54/J53) -> 0.5 | K56: 0.3333333333 | L56: 1
A57: 12 | B57: =$D$1 -> BCBC | C57: Ha | D57: Mel | F57: # of AB's | H57: =SUM(J57:AA57) -> 13 | I57: AB's | J57: 4 | K57: 2 | L57: 2 | M57: 5
C58: F-Name | D58: Maile | F58: # of Hits | H58: =SUM(J58:AA58) -> 7 | I58: Hits | J58: 4 | K58: 1 | L58: 0 | M58: 2
F59: # of PA | H59: =SUM(J59:AA59) -> 13 | I59: PA | J59: 4 | K59: 2 | L59: 2 | M59: 5
D60: f | F60: Avg | H60: =IF(H57=0,"",H58/H57) -> 0.5384615385 | I60: Avg | J60: =IF(J57="","",J58/J57) -> 1 | K60: 0.5 | L60: 0 | M60: 0.4
A61: 13 | B61: =$D$1 -> BCBC | C61: L-Name | D61: Scotty | F61: # of AB's | H61: =SUM(J61:AA61) -> 2 | I61: AB's | K61: 2
C62: F-Name | D62: Garfield | F62: # of Hits | H62: =SUM(J62:AA62) -> 1 | I62: Hits | K62: 1
F63: # of PA | H63: =SUM(J63:AA63) -> 2 | I63: PA | K63: 2
D64: m | F64: Avg | H64: =IF(H61=0,"",H62/H61) -> 0.5 | I64: Avg | J64: =IF(J61="","",J62/J61) ->  | K64: 0.5
A65: 14 | B65: =$D$1 -> BCBC | C65: L-Name | D65: Tiffany | F65: # of AB's | H65: =SUM(J65:AA65) -> 11 | I65: AB's | K65: 3 | L65: 3 | M65: 5
C66: F-Name | D66: Morton | F66: # of Hits | H66: =SUM(J66:AA66) -> 4 | I66: Hits | K66: 1 | L66: 2 | M66: 1
F67: # of PA | H67: =SUM(J67:AA67) -> 11 | I67: PA | K67: 3 | L67: 3 | M67: 5
D68: f | F68: Avg | H68: =IF(H65=0,"",H66/H65) -> 0.3636363636 | I68: Avg | J68: =IF(J65="","",J66/J65) ->  | K68: 0.3333333333 | L68: 0.6666666667 | M68: 0.2
A69: 15 | B69: =$D$1 -> BCBC | C69: L-Name | D69: Vinnie | F69: # of AB's | H69: =SUM(J69:AA69) -> 4 | I69: AB's | M69: 4
C70: F-Name | D70: Dilworth | F70: # of Hits | H70: =SUM(J70:AA70) -> 4 | I70: Hits | M70: 4
F71: # of PA | H71: =SUM(J71:AA71) -> 5 | I71: PA | M71: 5
D72: m | F72: Avg | H72: =IF(H69=0,"",H70/H69) -> 1 | I72: Avg | J72: =IF(J69="","",J70/J69) ->  | M72: 1
A73: 16 | B73: =$D$1 -> BCBC | C73: L-Name | F73: # of AB's | H73: =SUM(J73:AA73) -> 0 | I73: AB's
C74: F-Name | F74: # of Hits | H74: =SUM(J74:AA74) -> 0 | I74: Hits
F75: # of PA | H75: =SUM(J75:AA75) -> 0 | I75: PA
D76: f | F76: Avg | H76: =IF(H73=0,"",H74/H73) ->  | I76: Avg | J76: =IF(J73="","",J74/J73) -> 
A77: 17 | B77: =$D$1 -> BCBC | C77: L-Name | F77: # of AB's | H77: =SUM(J77:AA77) -> 0 | I77: AB's
C78: F-Name | F78: # of Hits | H78: =SUM(J78:AA78) -> 0 | I78: Hits
F79: # of PA | H79: =SUM(J79:AA79) -> 0 | I79: PA
D80: m | F80: Avg | H80: =IF(H77=0,"",H78/H77) ->  | I80: Avg | J80: =IF(J77="","",J78/J77) -> 
A81: 18 | B81: =$D$1 -> BCBC | C81: L-Name | F81: # of AB's | H81: =SUM(J81:AA81) -> 0 | I81: AB's
C82: F-Name | F82: # of Hits | H82: =SUM(J82:AA82) -> 0 | I82: Hits
F83: # of PA | H83: =SUM(J83:AA83) -> 0 | I83: PA
D84: f | F84: Avg | H84: =IF(H81=0,"",H82/H81) ->  | I84: Avg | J84: =IF(J81="","",J82/J81) -> 
A85: 19 | B85: =$D$1 -> BCBC | C85: L-Name | F85: # of AB's | H85: =SUM(J85:AA85) -> 0 | I85: AB's
C86: F-Name | F86: # of Hits | H86: =SUM(J86:AA86) -> 0 | I86: Hits
F87: # of PA | H87: =SUM(J87:AA87) -> 0 | I87: PA
D88: m | F88: Avg | H88: =IF(H85=0,"",H86/H85) ->  | I88: Avg | J88: =IF(J85="","",J86/J85) -> 
A89: 20 | B89: =$D$1 -> BCBC | C89: L-Name | F89: # of AB's | H89: =SUM(J89:AA89) -> 0 | I89: AB's
C90: F-Name | F90: # of Hits | H90: =SUM(J90:AA90) -> 0 | I90: Hits
F91: # of PA | H91: =SUM(J91:AA91) -> 0 | I91: PA
D92: f | F92: Avg | H92: =IF(H89=0,"",H90/H89) ->  | I92: Avg | J92: =IF(J89="","",J90/J89) -> 
A93: 21 | B93: =$D$1 -> BCBC | C93: L-Name | F93: # of AB's | H93: =SUM(J93:AA93) -> 0 | I93: AB's
C94: F-Name | F94: # of Hits | H94: =SUM(J94:AA94) -> 0 | I94: Hits
F95: # of PA | H95: =SUM(J95:AA95) -> 0 | I95: PA
D96: m | F96: Avg | H96: =IF(H93=0,"",H94/H93) ->  | I96: Avg | J96: =IF(J93="","",J94/J93) -> 
A97: 22 | B97: =$D$1 -> BCBC | C97: L-Name | F97: # of AB's | H97: =SUM(J97:AA97) -> 0 | I97: AB's
C98: F-Name | F98: # of Hits | H98: =SUM(J98:AA98) -> 0 | I98: Hits
F99: # of PA | H99: =SUM(J99:AA99) -> 0 | I99: PA
D100: f | F100: Avg | H100: =IF(H97=0,"",H98/H97) ->  | I100: Avg | J100: =IF(J97="","",J98/J97) -> 
A101: 23 | B101: =$D$1 -> BCBC | C101: L-Name | F101: # of AB's | H101: =SUM(J101:AA101) -> 0 | I101: AB's
C102: F-Name | F102: # of Hits | H102: =SUM(J102:AA102) -> 0 | I102: Hits
F103: # of PA | H103: =SUM(J103:AA103) -> 0 | I103: PA
D104: m | F104: Avg | H104: =IF(H101=0,"",H102/H101) ->  | I104: Avg | J104: =IF(J101="","",J102/J101) -> 
A105: 24 | B105: =$D$1 -> BCBC | C105: L-Name | F105: # of AB's | H105: =SUM(J105:AA105) -> 0 | I105: AB's
C106: F-Name | F106: # of Hits | H106: =SUM(J106:AA106) -> 0 | I106: Hits
F107: # of PA | H107: =SUM(J107:AA107) -> 0 | I107: PA
D108: f | F108: Avg | H108: =IF(H105=0,"",H106/H105) ->  | I108: Avg | J108: =IF(J105="","",J106/J105) -> 
A109: 25 | B109: =$D$1 -> BCBC | C109: L-Name | F109: # of AB's | H109: =SUM(J109:AA109) -> 0 | I109: AB's
C110: F-Name | F110: # of Hits | H110: =SUM(J110:AA110) -> 0 | I110: Hits
F111: # of PA | H111: =SUM(J111:AA111) -> 0 | I111: PA
D112: m | F112: Avg | H112: =IF(H109=0,"",H110/H109) ->  | I112: Avg | J112: =IF(J109="","",J110/J109) -> 
B113: =$D$1 -> BCBC | D113: TEAM | F113: # of AB's | H113: =SUM(J113:AA113) -> 167 | I113: AB's | J113: =IF(SUM(J109,J105,J101,J97,J93,J89,J85,J81,J77,J73,J69,J65,J61,J57,J53,J49,J45,J41,J37,J33,J29,J25,J21,J17,J13)=0,"",SUM(J13,J17,J21,J25,J29,J33,J37,J41,J45,J49,J53,J57,J61,J65,J69,J73,J77,J81,J85,J89,J93,J97,J101,J105,J109)) -> 54 | K113: 31 | L113: 35 | M113: 47
D114: Summary | F114: # of Hits | H114: =SUM(J114:AA114) -> 97 | I114: Hits | J114: =IF(SUM(J110,J106,J102,J98,J94,J90,J86,J82,J78,J74,J70,J66,J62,J58,J54,J50,J46,J42,J38,J34,J30,J26,J22,J18,J14)=0,"",SUM(J14,J18,J22,J26,J30,J34,J38,J42,J46,J50,J54,J58,J62,J66,J70,J74,J78,J82,J86,J90,J94,J98,J102,J106,J110)) -> 34 | K114: 14 | L114: 21 | M114: 28
F115: Avg | H115: =IF(H113=0,"N/A",H114/H113) -> 0.5808383234 | I115: Avg | J115: =IF(J113="","",J114/J113) -> 0.6296296296 | K115: 0.4516129032 | L115: 0.6 | M115: 0.5957446809

Sheet Ghetto Bombers
C1: Team Name | D1: Ghetto Bombers | I1: Score | J1: 17 | K1: 17 | L1: 14 | M1: 16
I2: Opponents Score | J2: 28 | K2: 2 | L2: 15 | M2: 19
D3: Wins | F3: =SUM(J6:AA6) -> 1 | I3: W or L | J3: =IF(SUM(J1,J2)=0,"",IF(J1<J2,"L","W")) -> L | K3: W | L3: L | M3: L
D4: Losses | F4: =SUM(J7:AA7) -> 3 | H4: Forfeit | I4: FW or FL
E5: games played excluding Forfeit Wins | J5: =IF(J3="","",IF(J4="FW","",1)) -> 1 | K5: 1 | L5: 1 | M5: 1
H6: =IF(H4="w",1,"") ->  | I6: win | J6: =IF(J3="w",1,"") ->  | K6: 1
H7: =IF(H4="l",1,"") ->  | I7: loss | J7: =IF(J3="l",1,"") -> 1 | L7: 1 | M7: 1
D8: Games Played Excluding Forfeit Wins | F8: =SUM(J5:AA5) -> 4 | H8: Opponents Team Name | J8: BCBC | K8: Hit Squad | L8: Sticks | M8: Bad Pitches | O8: No Games | R8: No Games
D9: League Run Diff | F9: =SUM(J9:AA9) -> 0 | I9: Game Run Diff | J9: =IF(J1="","",J1-J2) -> -11 | K9: 15 | L9: -1 | M9: -3
D10: Team Batting Avg | F10: =$H$115 -> 0.5032258065 | I10: Game Date | J10: 2023-04-20 | K10: 2023-04-27 | L10: 2023-05-04 | M10: 2023-05-04 | N10: 2023-05-11 | O10: 2023-05-18 | P10: 2023-05-25 | Q10: 2023-05-25 | R10: 2023-06-01 | S10: 2023-06-08
H12: STATS | J12: 1 | K12: 2 | L12: 3 | M12: 4 | N12: 5 | O12: 6 | P12: 7 | Q12: 8 | R12: 9 | S12: 10 | T12: 11 | U12: 12 | V12: 13 | W12: 14 | X12: 15 | Y12: 16 | Z12: 17 | AA12: 18
A13: 1 | B13: =$D$1 -> Ghetto Bombers | C13: L-Name | D13: Mac | F13: # of AB's | H13: =SUM(J13:AA13) -> 15 | I13: AB's | J13: 4 | K13: 4 | L13: 4 | M13: 3
C14: F-Name | D14: Estrada | F14: # of Hits | H14: =SUM(J14:AA14) -> 12 | I14: Hits | J14: 3 | K14: 4 | L14: 3 | M14: 2
F15: # of PA | H15: =SUM(J15:AA15) -> 15 | I15: PA | J15: 4 | K15: 4 | L15: 4 | M15: 3
D16: m | F16: Avg | H16: =IF(H13=0,"",(H14/H13)) -> 0.8 | I16: Avg | J16: =IF(J13="","",J14/J13) -> 0.75 | K16: 1 | L16: 0.75 | M16: 0.6666666667
A17: 2 | B17: =$D$1 -> Ghetto Bombers | C17: L-Name | D17: Calleigh | F17: # of AB's | H17: =SUM(J17:AA17) -> 8 | I17: AB's | J17: 3 | L17: 2 | M17: 3
C18: F-Name | D18: DeYoung | F18: # of Hits | H18: =SUM(J18:AA18) -> 7 | I18: Hits | J18: 2 | L18: 2 | M18: 3
F19: # of PA | H19: =SUM(J19:AA19) -> 12 | I19: PA | J19: 4 | L19: 4 | M19: 4
D20: f | F20: Avg | H20: =IF(H17=0,"",H18/H17) -> 0.875 | I20: Avg | J20: =IF(J17="","",J18/J17) -> 0.6666666667 | L20: 1 | M20: 1
A21: 3 | B21: =$D$1 -> Ghetto Bombers | C21: L-Name | D21: Chet | F21: # of AB's | H21: =SUM(J21:AA21) -> 16 | I21: AB's | J21: 4 | K21: 4 | L21: 4 | M21: 4
C22: F-Name | D22: Wanlass | F22: # of Hits | H22: =SUM(J22:AA22) -> 11 | I22: Hits | J22: 2 | K22: 3 | L22: 3 | M22: 3
F23: # of PA | H23: =SUM(J23:AA23) -> 16 | I23: PA | J23: 4 | K23: 4 | L23: 4 | M23: 4
D24: m | F24: Avg | H24: =IF(H21=0,"",H22/H21) -> 0.6875 | I24: Avg | J24: =IF(J21="","",J22/J21) -> 0.5 | K24: 0.75 | L24: 0.75 | M24: 0.75
A25: 4 | B25: =$D$1 -> Ghetto Bombers | C25: L-Name | D25: JoJo | F25: # of AB's | H25: =SUM(J25:AA25) -> 16 | I25: AB's | J25: 4 | K25: 4 | L25: 4 | M25: 4
C26: F-Name | D26: Carlson | F26: # of Hits | H26: =SUM(J26:AA26) -> 5 | I26: Hits | J26: 1 | K26: 4 | L26: 0 | M26: 0
F27: # of PA | H27: =SUM(J27:AA27) -> 16 | I27: PA | J27: 4 | K27: 4 | L27: 4 | M27: 4
D28: f | F28: Avg | H28: =IF(H25=0,"",H26/H25) -> 0.3125 | I28: Avg | J28: =IF(J25="","",J26/J25) -> 0.25 | K28: 1 | L28: 0 | M28: 0
A29: 5 | B29: =$D$1 -> Ghetto Bombers | C29: L-Name | D29: Jon | F29: # of AB's | H29: =SUM(J29:AA29) -> 14 | I29: AB's | J29: 4 | K29: 4 | L29: 3 | M29: 3
C30: F-Name | D30: Staley | F30: # of Hits | H30: =SUM(J30:AA30) -> 8 | I30: Hits | J30: 3 | K30: 2 | L30: 2 | M30: 1
F31: # of PA | H31: =SUM(J31:AA31) -> 14 | I31: PA | J31: 4 | K31: 4 | L31: 3 | M31: 3
D32: m | F32: Avg | H32: =IF(H29=0,"",H30/H29) -> 0.5714285714 | I32: Avg | J32: =IF(J29="","",J30/J29) -> 0.75 | K32: 0.5 | L32: 0.6666666667 | M32: 0.3333333333
A33: 6 | B33: =$D$1 -> Ghetto Bombers | C33: L-Name | D33: Angela | F33: # of AB's | H33: =SUM(J33:AA33) -> 10 | I33: AB's | J33: 4 | L33: 3 | M33: 3
C34: F-Name | D34: Ahmadpour | F34: # of Hits | H34: =SUM(J34:AA34) -> 1 | I34: Hits | J34: 0 | L34: 1 | M34: 0
F35: # of PA | H35: =SUM(J35:AA35) -> 10 | I35: PA | J35: 4 | L35: 3 | M35: 3
D36: f | F36: Avg | H36: =IF(H33=0,"",H34/H33) -> 0.1 | I36: Avg | J36: =IF(J33="","",J34/J33) -> 0 | L36: 0.3333333333 | M36: 0
A37: 7 | B37: =$D$1 -> Ghetto Bombers | C37: L-Name | D37: Derek | F37: # of AB's | H37: =SUM(J37:AA37) -> 14 | I37: AB's | J37: 4 | K37: 4 | L37: 3 | M37: 3
C38: F-Name | D38: Smith | F38: # of Hits | H38: =SUM(J38:AA38) -> 6 | I38: Hits | J38: 1 | K38: 1 | L38: 2 | M38: 2
F39: # of PA | H39: =SUM(J39:AA39) -> 14 | I39: PA | J39: 4 | K39: 4 | L39: 3 | M39: 3
D40: m | F40: Avg | H40: =IF(H37=0,"",H38/H37) -> 0.4285714286 | I40: Avg | J40: =IF(J37="","",J38/J37) -> 0.25 | K40: 0.25 | L40: 0.6666666667 | M40: 0.6666666667
A41: 8 | B41: =$D$1 -> Ghetto Bombers | C41: L-Name | D41: Brandi | F41: # of AB's | H41: =SUM(J41:AA41) -> 13 | I41: AB's | J41: 3 | K41: 4 | L41: 3 | M41: 3
C42: F-Name | D42: Hall | F42: # of Hits | H42: =SUM(J42:AA42) -> 6 | I42: Hits | J42: 1 | K42: 3 | L42: 1 | M42: 1
F43: # of PA | H43: =SUM(J43:AA43) -> 13 | I43: PA | J43: 3 | K43: 4 | L43: 3 | M43: 3
D44: f | F44: Avg | H44: =IF(H41=0,"",H42/H41) -> 0.4615384615 | I44: Avg | R44: =IF(R41="","",R42/R41) -> 
A45: 9 | B45: =$D$1 -> Ghetto Bombers | C45: L-Name | D45: Dave | F45: # of AB's | H45: =SUM(J45:AA45) -> 9 | I45: AB's | J45: 1 | K45: 3 | L45: 3 | M45: 2
C46: F-Name | D46: Vu | F46: # of Hits | H46: =SUM(J46:AA46) -> 4 | I46: Hits | J46: 1 | K46: 1 | L46: 1 | M46: 1
F47: # of PA | H47: =SUM(J47:AA47) -> 13 | I47: PA | J47: 3 | K47: 4 | L47: 3 | M47: 3
D48: m | F48: Avg | H48: =IF(H45=0,"",H46/H45) -> 0.4444444444 | I48: Avg | J48: =IF(J45="","",J46/J45) -> 1 | K48: 0.3333333333 | L48: 0.3333333333 | M48: 0.5
A49: 10 | B49: =$D$1 -> Ghetto Bombers | C49: L-Name | D49: Hope | F49: # of AB's | H49: =SUM(J49:AA49) -> 1 | I49: AB's | J49: 1
C50: F-Name | D50: Curtis | F50: # of Hits | H50: =SUM(J50:AA50) -> 0 | I50: Hits | J50: 0
F51: # of PA | H51: =SUM(J51:AA51) -> 3 | I51: PA | J51: 3
D52: f | F52: Avg | H52: =IF(H49=0,"",H50/H49) -> 0 | I52: Avg | J52: =IF(J49="","",J50/J49) -> 0
A53: 11 | B53: =$D$1 -> Ghetto Bombers | C53: L-Name | D53: Tyler | F53: # of AB's | H53: =SUM(J53:AA53) -> 3 | I53: AB's | J53: 3
C54: F-Name | D54: Curtis | F54: # of Hits | H54: =SUM(J54:AA54) -> 2 | I54: Hits | J54: 2
F55: # of PA | H55: =SUM(J55:AA55) -> 3 | I55: PA | J55: 3
D56: m | F56: Avg | H56: =IF(H53=0,"",H54/H53) -> 0.6666666667 | I56: Avg | J56: =IF(J53="","",J54/J53) -> 0.6666666667
A57: 12 | B57: =$D$1 -> Ghetto Bombers | C57: L-Name | D57: Ali | F57: # of AB's | H57: =SUM(J57:AA57) -> 11 | I57: AB's | J57: 3 | K57: 4 | L57: 1 | M57: 3
C58: F-Name | D58: Smith | F58: # of Hits | H58: =SUM(J58:AA58) -> 3 | I58: Hits | J58: 0 | K58: 3 | L58: 0 | M58: 0
F59: # of PA | H59: =SUM(J59:AA59) -> 13 | I59: PA | J59: 3 | K59: 4 | L59: 3 | M59: 3
D60: f | F60: Avg | H60: =IF(H57=0,"",H58/H57) -> 0.2727272727 | I60: Avg | J60: =IF(J57="","",J58/J57) -> 0 | K60: 0.75 | L60: 0 | M60: 0
A61: 13 | B61: =$D$1 -> Ghetto Bombers | C61: L-Name | D61: Ryan | F61: # of AB's | H61: =SUM(J61:AA61) -> 11 | I61: AB's | K61: 4 | L61: 4 | M61: 3
C62: F-Name | D62: Newbold | F62: # of Hits | H62: =SUM(J62:AA62) -> 10 | I62: Hits | K62: 3 | L62: 4 | M62: 3
F63: # of PA | H63: =SUM(J63:AA63) -> 11 | I63: PA | K63: 4 | L63: 4 | M63: 3
D64: m | F64: Avg | H64: =IF(H61=0,"",H62/H61) -> 0.9090909091 | I64: Avg | J64: =IF(J61="","",J62/J61) ->  | K64: 0.75 | L64: 1 | M64: 1
A65: 14 | B65: =$D$1 -> Ghetto Bombers | C65: L-Name | D65: Alllie | F65: # of AB's | H65: =SUM(J65:AA65) -> 4 | I65: AB's | K65: 4
C66: F-Name | D66: Newbold | F66: # of Hits | H66: =SUM(J66:AA66) -> 0 | I66: Hits | K66: 0
F67: # of PA | H67: =SUM(J67:AA67) -> 4 | I67: PA | K67: 4
D68: m | F68: Avg | H68: =IF(H65=0,"",H66/H65) -> 0 | I68: Avg | J68: =IF(J65="","",J66/J65) ->  | K68: 0
A69: 15 | B69: =$D$1 -> Ghetto Bombers | C69: L-Name | D69: Heidi | F69: # of AB's | H69: =SUM(J69:AA69) -> 9 | I69: AB's | K69: 3 | L69: 3 | M69: 3
C70: F-Name | D70: Talor | F70: # of Hits | H70: =SUM(J70:AA70) -> 2 | I70: Hits | K70: 2 | L70: 0 | M70: 0
F71: # of PA | H71: =SUM(J71:AA71) -> 9 | I71: PA | K71: 3 | L71: 3 | M71: 3
D72: f | F72: Avg | H72: =IF(H69=0,"",H70/H69) -> 0.2222222222 | I72: Avg | J72: =IF(J69="","",J70/J69) ->  | K72: 0.6666666667 | L72: 0 | M72: 0
A73: 16 | B73: =$D$1 -> Ghetto Bombers | C73: L-Name | D73: Matt | F73: # of AB's | H73: =SUM(J73:AA73) -> 1 | I73: AB's | M73: 1
C74: F-Name | D74: Newbold | F74: # of Hits | H74: =SUM(J74:AA74) -> 1 | I74: Hits | M74: 1
F75: # of PA | H75: =SUM(J75:AA75) -> 1 | I75: PA | M75: 1
D76: m | F76: Avg | H76: =IF(H73=0,"",H74/H73) -> 1 | I76: Avg | J76: =IF(J73="","",J74/J73) ->  | M76: 1
A77: 17 | B77: =$D$1 -> Ghetto Bombers | C77: L-Name | F77: # of AB's | H77: =SUM(J77:AA77) -> 0 | I77: AB's
C78: F-Name | F78: # of Hits | H78: =SUM(J78:AA78) -> 0 | I78: Hits
F79: # of PA | H79: =SUM(J79:AA79) -> 0 | I79: PA
D80: m | F80: Avg | H80: =IF(H77=0,"",H78/H77) ->  | I80: Avg | J80: =IF(J77="","",J78/J77) -> 
A81: 18 | B81: =$D$1 -> Ghetto Bombers | C81: L-Name | F81: # of AB's | H81: =SUM(J81:AA81) -> 0 | I81: AB's
C82: F-Name | F82: # of Hits | H82: =SUM(J82:AA82) -> 0 | I82: Hits
F83: # of PA | H83: =SUM(J83:AA83) -> 0 | I83: PA
D84: f | F84: Avg | H84: =IF(H81=0,"",H82/H81) ->  | I84: Avg | J84: =IF(J81="","",J82/J81) -> 
A85: 19 | B85: =$D$1 -> Ghetto Bombers | C85: L-Name | F85: # of AB's | H85: =SUM(J85:AA85) -> 0 | I85: AB's
C86: F-Name | F86: # of Hits | H86: =SUM(J86:AA86) -> 0 | I86: Hits
F87: # of PA | H87: =SUM(J87:AA87) -> 0 | I87: PA
D88: m | F88: Avg | H88: =IF(H85=0,"",H86/H85) ->  | I88: Avg | J88: =IF(J85="","",J86/J85) -> 
A89: 20 | B89: =$D$1 -> Ghetto Bombers | C89: L-Name | F89: # of AB's | H89: =SUM(J89:AA89) -> 0 | I89: AB's
C90: F-Name | F90: # of Hits | H90: =SUM(J90:AA90) -> 0 | I90: Hits
F91: # of PA | H91: =SUM(J91:AA91) -> 0 | I91: PA
D92: f | F92: Avg | H92: =IF(H89=0,"",H90/H89) ->  | I92: Avg | J92: =IF(J89="","",J90/J89) -> 
A93: 21 | B93: =$D$1 -> Ghetto Bombers | C93: L-Name | F93: # of AB's | H93: =SUM(J93:AA93) -> 0 | I93: AB's
C94: F-Name | F94: # of Hits | H94: =SUM(J94:AA94) -> 0 | I94: Hits
F95: # of PA | H95: =SUM(J95:AA95) -> 0 | I95: PA
D96: m | F96: Avg | H96: =IF(H93=0,"",H94/H93) ->  | I96: Avg | J96: =IF(J93="","",J94/J93) -> 
A97: 22 | B97: =$D$1 -> Ghetto Bombers | C97: L-Name | F97: # of AB's | H97: =SUM(J97:AA97) -> 0 | I97: AB's
C98: F-Name | F98: # of Hits | H98: =SUM(J98:AA98) -> 0 | I98: Hits
F99: # of PA | H99: =SUM(J99:AA99) -> 0 | I99: PA
D100: f | F100: Avg | H100: =IF(H97=0,"",H98/H97) ->  | I100: Avg | J100: =IF(J97="","",J98/J97) -> 
A101: 23 | B101: =$D$1 -> Ghetto Bombers | C101: L-Name | F101: # of AB's | H101: =SUM(J101:AA101) -> 0 | I101: AB's
C102: F-Name | F102: # of Hits | H102: =SUM(J102:AA102) -> 0 | I102: Hits
F103: # of PA | H103: =SUM(J103:AA103) -> 0 | I103: PA
D104: f | F104: Avg | H104: =IF(H101=0,"",H102/H101) ->  | I104: Avg | J104: =IF(J101="","",J102/J101) -> 
A105: 24 | B105: =$D$1 -> Ghetto Bombers | C105: L-Name | F105: # of AB's | H105: =SUM(J105:AA105) -> 0 | I105: AB's
C106: F-Name | F106: # of Hits | H106: =SUM(J106:AA106) -> 0 | I106: Hits
F107: # of PA | H107: =SUM(J107:AA107) -> 0 | I107: PA
D108: f | F108: Avg | H108: =IF(H105=0,"",H106/H105) ->  | I108: Avg | J108: =IF(J105="","",J106/J105) -> 
A109: 25 | B109: =$D$1 -> Ghetto Bombers | C109: L-Name | F109: # of AB's | H109: =SUM(J109:AA109) -> 0 | I109: AB's
C110: F-Name | F110: # of Hits | H110: =SUM(J110:AA110) -> 0 | I110: Hits
F111: # of PA | H111: =SUM(J111:AA111) -> 0 | I111: PA
D112: f | F112: Avg | H112: =IF(H109=0,"",H110/H109) ->  | I112: Avg | J112: =IF(J109="","",J110/J109) -> 
B113: =$D$1 -> Ghetto Bombers | D113: TEAM | F113: # of AB's | H113: =SUM(J113:AA113) -> 155 | I113: AB's | J113: =IF(SUM(J109,J105,J101,J97,J93,J89,J85,J81,J77,J73,J69,J65,J61,J57,J53,J49,J45,J41,J37,J33,J29,J25,J21,J17,J13)=0,"",SUM(J13,J17,J21,J25,J29,J33,J37,J41,J45,J49,J53,J57,J61,J65,J69,J73,J77,J81,J85,J89,J93,J97,J101,J105,J109)) -> 38 | K113: 42 | L113: 37 | M113: 38
D114: Summary | F114: # of Hits | H114: =SUM(J114:AA114) -> 78 | I114: Hits | J114: =IF(SUM(J110,J106,J102,J98,J94,J90,J86,J82,J78,J74,J70,J66,J62,J58,J54,J50,J46,J42,J38,J34,J30,J26,J22,J18,J14)=0,"",SUM(J14,J18,J22,J26,J30,J34,J38,J42,J46,J50,J54,J58,J62,J66,J70,J74,J78,J82,J86,J90,J94,J98,J102,J106,J110)) -> 16 | K114: 26 | L114: 19 | M114: 17
F115: Avg | H115: =IF(H113=0,"N/A",H114/H113) -> 0.5032258065 | I115: Avg | J115: =IF(J113="","",J114/J113) -> 0.4210526316 | K115: 0.619047619 | L115: 0.5135135135 | M115: 0.4473684211

Sheet Hit Squad
C1: Team Name | D1: Hit Squad | I1: Score | J1: 4 | K1: 2 | L1: 11
I2: Opponents Score | J2: 20 | K2: 17 | L2: 28
D3: Wins | F3: =SUM(J6:AA6) -> 0 | I3: W or L | J3: =IF(SUM(J1,J2)=0,"",IF(J1<J2,"L","W")) -> L | K3: L | L3: L | Q3: =IF(SUM(Q1,Q2)=0,"",IF(Q1<Q2,"L","W")) -> 
D4: Losses | F4: =SUM(J7:AA7) -> 3 | H4: Forfeit | I4: FW or FL
E5: games played excluding Forfeit Wins | J5: =IF(J3="","",IF(J4="FW","",1)) -> 1 | K5: 1 | L5: 1 | Q5: =IF(Q3="","",IF(Q4="FW","",1)) -> 
H6: =IF(H4="w",1,"") ->  | I6: win | J6: =IF(J3="w",1,"") ->  | Q6: =IF(Q3="w",1,"") -> 
H7: =IF(H4="l",1,"") ->  | I7: loss | J7: =IF(J3="l",1,"") -> 1 | K7: 1 | L7: 1 | Q7: =IF(Q3="l",1,"") -> 
D8: Games Played Excluding Forfeit Wins | F8: =SUM(J5:AA5) -> 3 | H8: Opponents Team Name | J8: Sticks | K8: Getto Bombers | L8: BCBC | O8: No Games | Q8: No Games
D9: League Run Diff | F9: =SUM(J9:AA9) -> -48 | I9: Game Run Diff | J9: =IF(J1="","",J1-J2) -> -16 | K9: -15 | L9: -17 | Q9: =IF(Q1="","",Q1-Q2) -> 
D10: Team Batting Avg | F10: =$H$115 -> 0.3975903614 | I10: Game Date | J10: 2023-04-20 | K10: 2023-04-27 | L10: 2023-05-04 | M10: 2023-05-11 | N10: 2023-05-11 | O10: 2023-05-18 | P10: 2023-05-25 | Q10: 2023-06-01 | R10: 2023-06-08 | S10: 2023-06-08
H12: STATS | J12: 1 | K12: 2 | L12: 3 | M12: 4 | N12: 5 | O12: 6 | P12: 7 | Q12: 8 | R12: 9 | S12: 10 | T12: 11 | U12: 12 | V12: 13 | W12: 14 | X12: 15 | Y12: 16 | Z12: 17 | AA12: 18
A13: 1 | B13: =$D$1 -> Hit Squad | C13: L-Name | D13: Ryan | F13: # of AB's | H13: =SUM(J13:AA13) -> 8 | I13: AB's | J13: 3 | K13: 2 | L13: 3
C14: F-Name | D14: Cusick | F14: # of Hits | H14: =SUM(J14:AA14) -> 7 | I14: Hits | J14: 3 | K14: 2 | L14: 2
F15: # of PA | H15: =SUM(J15:AA15) -> 8 | I15: PA | J15: 3 | K15: 2 | L15: 3
D16: m | F16: Avg | H16: =IF(H13=0,"",(H14/H13)) -> 0.875 | I16: Avg | J16: =IF(J13="","",J14/J13) -> 1 | K16: 1 | L16: 0.6666666667 | Q16: =IF(Q13="","",Q14/Q13) -> 
A17: 2 | B17: =$D$1 -> Hit Squad | C17: L-Name | D17: Miche | F17: # of AB's | H17: =SUM(J17:AA17) -> 7 | I17: AB's | J17: 3 | K17: 2 | L17: 2
C18: F-Name | D18: Ferrin | F18: # of Hits | H18: =SUM(J18:AA18) -> 1 | I18: Hits | J18: 0 | K18: 1 | L18: 0
F19: # of PA | H19: =SUM(J19:AA19) -> 7 | I19: PA | J19: 3 | K19: 2 | L19: 2
D20: f | F20: Avg | H20: =IF(H17=0,"",H18/H17) -> 0.1428571429 | I20: Avg | J20: =IF(J17="","",J18/J17) -> 0 | K20: 0.5 | L20: 0 | Q20: =IF(Q17="","",Q18/Q17) -> 
A21: 3 | B21: =$D$1 -> Hit Squad | C21: L-Name | D21: David | F21: # of AB's | H21: =SUM(J21:AA21) -> 7 | I21: AB's | J21: 2 | K21: 2 | L21: 3
C22: F-Name | D22: Stevens | F22: # of Hits | H22: =SUM(J22:AA22) -> 5 | I22: Hits | J22: 2 | K22: 2 | L22: 1
F23: # of PA | H23: =SUM(J23:AA23) -> 7 | I23: PA | J23: 2 | K23: 2 | L23: 3
D24: m | F24: Avg | H24: =IF(H21=0,"",H22/H21) -> 0.7142857143 | I24: Avg | J24: =IF(J21="","",J22/J21) -> 1 | K24: 1 | L24: 0.3333333333 | Q24: =IF(Q21="","",Q22/Q21) -> 
A25: 4 | B25: =$D$1 -> Hit Squad | C25: L-Name | D25: Amber | F25: # of AB's | H25: =SUM(J25:AA25) -> 7 | I25: AB's | J25: 2 | K25: 2 | L25: 3
C26: F-Name | D26: Romero | F26: # of Hits | H26: =SUM(J26:AA26) -> 2 | I26: Hits | J26: 1 | K26: 0 | L26: 1
F27: # of PA | H27: =SUM(J27:AA27) -> 7 | I27: PA | J27: 2 | K27: 2 | L27: 3
D28: f | F28: Avg | H28: =IF(H25=0,"",H26/H25) -> 0.2857142857 | I28: Avg | J28: =IF(J25="","",J26/J25) -> 0.5 | K28: 0 | L28: 0.3333333333 | Q28: =IF(Q25="","",Q26/Q25) -> 
A29: 5 | B29: =$D$1 -> Hit Squad | C29: L-Name | D29: Jeff | F29: # of AB's | H29: =SUM(J29:AA29) -> 5 | I29: AB's | J29: 2 | K29: 3
C30: F-Name | D30: Snedekar | F30: # of Hits | H30: =SUM(J30:AA30) -> 2 | I30: Hits | J30: 2 | K30: 0
F31: # of PA | H31: =SUM(J31:AA31) -> 5 | I31: PA | J31: 2 | K31: 3
D32: m | F32: Avg | H32: =IF(H29=0,"",H30/H29) -> 0.4 | I32: Avg | J32: =IF(J29="","",J30/J29) -> 1 | K32: 0 | Q32: =IF(Q29="","",Q30/Q29) -> 
A33: 6 | B33: =$D$1 -> Hit Squad | C33: L-Name | D33: Michelle | F33: # of AB's | H33: =SUM(J33:AA33) -> 7 | I33: AB's | J33: 2 | K33: 2 | L33: 3
C34: F-Name | D34: Mears | F34: # of Hits | H34: =SUM(J34:AA34) -> 0 | I34: Hits | J34: 0 | K34: 0 | L34: 0
F35: # of PA | H35: =SUM(J35:AA35) -> 7 | I35: PA | J35: 2 | K35: 2 | L35: 3
D36: f | F36: Avg | H36: =IF(H33=0,"",H34/H33) -> 0 | I36: Avg | J36: =IF(J33="","",J34/J33) -> 0 | K36: 0 | L36: 0 | Q36: =IF(Q33="","",Q34/Q33) -> 
A37: 7 | B37: =$D$1 -> Hit Squad | C37: L-Name | D37: Dusty | F37: # of AB's | H37: =SUM(J37:AA37) -> 7 | I37: AB's | J37: 2 | K37: 2 | L37: 3
C38: F-Name | D38: Jorgenson | F38: # of Hits | H38: =SUM(J38:AA38) -> 1 | I38: Hits | J38: 1 | K38: 0 | L38: 0
F39: # of PA | H39: =SUM(J39:AA39) -> 7 | I39: PA | J39: 2 | K39: 2 | L39: 3
D40: m | F40: Avg | H40: =IF(H37=0,"",H38/H37) -> 0.1428571429 | I40: Avg | J40: =IF(J37="","",J38/J37) -> 0.5 | K40: 0 | L40: 0 | Q40: =IF(Q37="","",Q38/Q37) -> 
A41: 8 | B41: =$D$1 -> Hit Squad | C41: L-Name | D41: Kelly | F41: # of AB's | H41: =SUM(J41:AA41) -> 5 | I41: AB's | J41: 2 | K41: 3
C42: F-Name | D42: Noakes | F42: # of Hits | H42: =SUM(J42:AA42) -> 1 | I42: Hits | J42: 0 | K42: 1
F43: # of PA | H43: =SUM(J43:AA43) -> 5 | I43: PA | J43: 2 | K43: 3
D44: f | F44: Avg | H44: =IF(H41=0,"",H42/H41) -> 0.2 | I44: Avg | J44: =IF(J41="","",J42/J41) -> 0 | K44: 0.3333333333 | Q44: =IF(Q41="","",Q42/Q41) -> 
A45: 9 | B45: =$D$1 -> Hit Squad | C45: L-Name | D45: Chris | F45: # of AB's | H45: =SUM(J45:AA45) -> 7 | I45: AB's | J45: 2 | K45: 2 | L45: 3
C46: F-Name | D46: Schippers | F46: # of Hits | H46: =SUM(J46:AA46) -> 5 | I46: Hits | J46: 1 | K46: 2 | L46: 2
F47: # of PA | H47: =SUM(J47:AA47) -> 7 | I47: PA | J47: 2 | K47: 2 | L47: 3
D48: m | F48: Avg | H48: =IF(H45=0,"",H46/H45) -> 0.7142857143 | I48: Avg | J48: =IF(J45="","",J46/J45) -> 0.5 | K48: 1 | L48: 0.6666666667 | Q48: =IF(Q45="","",Q46/Q45) -> 
A49: 10 | B49: =$D$1 -> Hit Squad | C49: L-Name | D49: Tasha | F49: # of AB's | H49: =SUM(J49:AA49) -> 7 | I49: AB's | J49: 2 | K49: 2 | L49: 3
C50: F-Name | D50: Harbaugh | F50: # of Hits | H50: =SUM(J50:AA50) -> 3 | I50: Hits | J50: 1 | K50: 0 | L50: 2
F51: # of PA | H51: =SUM(J51:AA51) -> 7 | I51: PA | J51: 2 | K51: 2 | L51: 3
D52: f | F52: Avg | H52: =IF(H49=0,"",H50/H49) -> 0.4285714286 | I52: Avg | J52: =IF(J49="","",J50/J49) -> 0.5 | K52: =IF(K49="","",K50/K49) -> 0 | L52: 0.6666666667 | Q52: =IF(Q49="","",Q50/Q49) -> 
A53: 11 | B53: =$D$1 -> Hit Squad | C53: L-Name | D53: Dan | F53: # of AB's | H53: =SUM(J53:AA53) -> 6 | I53: AB's | J53: 2 | K53: 2 | L53: 2
C54: F-Name | D54: Stevens | F54: # of Hits | H54: =SUM(J54:AA54) -> 2 | I54: Hits | J54: 0 | K54: 1 | L54: 1
F55: # of PA | H55: =SUM(J55:AA55) -> 6 | I55: PA | J55: 2 | K55: 2 | L55: 2
D56: m | F56: Avg | H56: =IF(H53=0,"",H54/H53) -> 0.3333333333 | I56: Avg | J56: =IF(J53="","",J54/J53) -> 0 | K56: =IF(K53="","",K54/K53) -> 0.5 | L56: 0.5 | Q56: =IF(Q53="","",Q54/Q53) -> 
A57: 12 | B57: =$D$1 -> Hit Squad | C57: L-Name | D57: Kelli | F57: # of AB's | H57: =SUM(J57:AA57) -> 2 | I57: AB's | J57: 2
C58: F-Name | D58: Hansen | F58: # of Hits | H58: =SUM(J58:AA58) -> 0 | I58: Hits | J58: 0
F59: # of PA | H59: =SUM(J59:AA59) -> 2 | I59: PA | J59: 2
D60: f | F60: Avg | H60: =IF(H57=0,"",H58/H57) -> 0 | I60: Avg | J60: =IF(J57="","",J58/J57) -> 0 | Q60: =IF(Q57="","",Q58/Q57) -> 
A61: 13 | B61: =$D$1 -> Hit Squad | C61: L-Name | D61: Kellie | F61: # of AB's | H61: =SUM(J61:AA61) -> 1 | I61: AB's | K61: 1
C62: F-Name | D62: Molis | F62: # of Hits | H62: =SUM(J62:AA62) -> 0 | I62: Hits | K62: 0
F63: # of PA | H63: =SUM(J63:AA63) -> 1 | I63: PA | K63: 1
D64: f | F64: Avg | H64: =IF(H61=0,"",H62/H61) -> 0 | I64: Avg | J64: =IF(J61="","",J62/J61) ->  | K64: 0 | Q64: =IF(Q61="","",Q62/Q61) -> 
A65: 14 | B65: =$D$1 -> Hit Squad | C65: L-Name | D65: Shannon | F65: # of AB's | H65: =SUM(J65:AA65) -> 3 | I65: AB's | L65: 3
C66: F-Name | D66: Adair | F66: # of Hits | H66: =SUM(J66:AA66) -> 2 | I66: Hits | L66: 2
F67: # of PA | H67: =SUM(J67:AA67) -> 3 | I67: PA | L67: 3
D68: f | F68: Avg | H68: =IF(H65=0,"",H66/H65) -> 0.6666666667 | I68: Avg | J68: =IF(J65="","",J66/J65) ->  | L68: 0.6666666667 | Q68: =IF(Q65="","",Q66/Q65) -> 
A69: 15 | B69: =$D$1 -> Hit Squad | C69: L-Name | D69: Rachel | F69: # of AB's | H69: =SUM(J69:AA69) -> 2 | I69: AB's | L69: 2
C70: F-Name | D70: Russell | F70: # of Hits | H70: =SUM(J70:AA70) -> 0 | I70: Hits | L70: 0
F71: # of PA | H71: =SUM(J71:AA71) -> 2 | I71: PA | L71: 2
D72: f | F72: Avg | H72: =IF(H69=0,"",H70/H69) -> 0 | I72: Avg | J72: =IF(J69="","",J70/J69) ->  | L72: 0 | Q72: =IF(Q69="","",Q70/Q69) -> 
A73: 16 | B73: =$D$1 -> Hit Squad | C73: L-Name | D73: Lars | F73: # of AB's | H73: =SUM(J73:AA73) -> 2 | I73: AB's | L73: 2
C74: F-Name | D74: Peterson | F74: # of Hits | H74: =SUM(J74:AA74) -> 2 | I74: Hits | L74: 2
F75: # of PA | H75: =SUM(J75:AA75) -> 2 | I75: PA | L75: 2
D76: m | F76: Avg | H76: =IF(H73=0,"",H74/H73) -> 1 | I76: Avg | J76: =IF(J73="","",J74/J73) ->  | L76: 1 | Q76: =IF(Q73="","",Q74/Q73) ->  | X76: =IF(X73="","",X74/X73) ->  | Y76: =IF(Y73="","",Y74/Y73) ->  | Z76: =IF(Z73="","",Z74/Z73) ->  | AA76: =IF(AA73="","",AA74/AA73) -> 
A77: 17 | B77: =$D$1 -> Hit Squad | C77: L-Name | F77: # of AB's | H77: =SUM(J77:AA77) -> 0 | I77: AB's
C78: F-Name | F78: # of Hits | H78: =SUM(J78:AA78) -> 0 | I78: Hits
F79: # of PA | H79: =SUM(J79:AA79) -> 0 | I79: PA
D80: m | F80: Avg | H80: =IF(H77=0,"",H78/H77) ->  | I80: Avg | J80: =IF(J77="","",J78/J77) ->  | Q80: =IF(Q77="","",Q78/Q77) -> 
A81: 18 | B81: =$D$1 -> Hit Squad | C81: L-Name | F81: # of AB's | H81: =SUM(J81:AA81) -> 0 | I81: AB's
C82: F-Name | F82: # of Hits | H82: =SUM(J82:AA82) -> 0 | I82: Hits
F83: # of PA | H83: =SUM(J83:AA83) -> 0 | I83: PA
D84: m | F84: Avg | H84: =IF(H81=0,"",H82/H81) ->  | I84: Avg | J84: =IF(J81="","",J82/J81) ->  | Q84: =IF(Q81="","",Q82/Q81) -> 
A85: 19 | B85: =$D$1 -> Hit Squad | C85: L-Name | F85: # of AB's | H85: =SUM(J85:AA85) -> 0 | I85: AB's
C86: F-Name | F86: # of Hits | H86: =SUM(J86:AA86) -> 0 | I86: Hits
F87: # of PA | H87: =SUM(J87:AA87) -> 0 | I87: PA
D88: f | F88: Avg | H88: =IF(H85=0,"",H86/H85) ->  | I88: Avg | J88: =IF(J85="","",J86/J85) ->  | Q88: =IF(Q85="","",Q86/Q85) -> 
A89: 20 | B89: =$D$1 -> Hit Squad | C89: L-Name | F89: # of AB's | H89: =SUM(J89:AA89) -> 0 | I89: AB's
C90: F-Name | F90: # of Hits | H90: =SUM(J90:AA90) -> 0 | I90: Hits
F91: # of PA | H91: =SUM(J91:AA91) -> 0 | I91: PA
D92: f | F92: Avg | H92: =IF(H89=0,"",H90/H89) ->  | I92: Avg | J92: =IF(J89="","",J90/J89) ->  | Q92: =IF(Q89="","",Q90/Q89) -> 
A93: 21 | B93: =$D$1 -> Hit Squad | C93: L-Name | F93: # of AB's | H93: =SUM(J93:AA93) -> 0 | I93: AB's
C94: F-Name | F94: # of Hits | H94: =SUM(J94:AA94) -> 0 | I94: Hits
F95: # of PA | H95: =SUM(J95:AA95) -> 0 | I95: PA
D96: f | F96: Avg | H96: =IF(H93=0,"",H94/H93) ->  | I96: Avg | J96: =IF(J93="","",J94/J93) ->  | Q96: =IF(Q93="","",Q94/Q93) -> 
A97: 22 | B97: =$D$1 -> Hit Squad | C97: L-Name | F97: # of AB's | H97: =SUM(J97:AA97) -> 0 | I97: AB's
C98: F-Name | F98: # of Hits | H98: =SUM(J98:AA98) -> 0 | I98: Hits
F99: # of PA | H99: =SUM(J99:AA99) -> 0 | I99: PA
D100: f | F100: Avg | H100: =IF(H97=0,"",H98/H97) ->  | I100: Avg | J100: =IF(J97="","",J98/J97) ->  | Q100: =IF(Q97="","",Q98/Q97) -> 
A101: 23 | B101: =$D$1 -> Hit Squad | C101: L-Name | F101: # of AB's | H101: =SUM(J101:AA101) -> 0 | I101: AB's
C102: F-Name | F102: # of Hits | H102: =SUM(J102:AA102) -> 0 | I102: Hits
F103: # of PA | H103: =SUM(J103:AA103) -> 0 | I103: PA
D104: f | F104: Avg | H104: =IF(H101=0,"",H102/H101) ->  | I104: Avg | J104: =IF(J101="","",J102/J101) ->  | Q104: =IF(Q101="","",Q102/Q101) -> 
A105: 24 | B105: =$D$1 -> Hit Squad | C105: L-Name | F105: # of AB's | H105: =SUM(J105:AA105) -> 0 | I105: AB's
C106: F-Name | F106: # of Hits | H106: =SUM(J106:AA106) -> 0 | I106: Hits
F107: # of PA | H107: =SUM(J107:AA107) -> 0 | I107: PA
D108: f | F108: Avg | H108: =IF(H105=0,"",H106/H105) ->  | I108: Avg | J108: =IF(J105="","",J106/J105) ->  | Q108: =IF(Q105="","",Q106/Q105) -> 
A109: 25 | B109: =$D$1 -> Hit Squad | C109: L-Name | F109: # of AB's | H109: =SUM(J109:AA109) -> 0 | I109: AB's
C110: F-Name | F110: # of Hits | H110: =SUM(J110:AA110) -> 0 | I110: Hits
F111: # of PA | H111: =SUM(J111:AA111) -> 0 | I111: PA
D112: f | F112: Avg | H112: =IF(H109=0,"",H110/H109) ->  | I112: Avg | J112: =IF(J109="","",J110/J109) ->  | Q112: =IF(Q109="","",Q110/Q109) -> 
B113: =$D$1 -> Hit Squad | D113: TEAM | F113: # of AB's | H113: =SUM(J113:AA113) -> 83 | I113: AB's | J113: =IF(SUM(J109,J105,J101,J97,J93,J89,J85,J81,J77,J73,J69,J65,J61,J57,J53,J49,J45,J41,J37,J33,J29,J25,J21,J17,J13)=0,"",SUM(J13,J17,J21,J25,J29,J33,J37,J41,J45,J49,J53,J57,J61,J65,J69,J73,J77,J81,J85,J89,J93,J97,J101,J105,J109)) -> 26 | K113: 25 | L113: 32 | Q113: =IF(SUM(Q109,Q105,Q101,Q97,Q93,Q89,Q85,Q81,Q77,Q73,Q69,Q65,Q61,Q57,Q53,Q49,Q45,Q41,Q37,Q33,Q29,Q25,Q21,Q17,Q13)=0,"",SUM(Q13,Q17,Q21,Q25,Q29,Q33,Q37,Q41,Q45,Q49,Q53,Q57,Q61,Q65,Q69,Q73,Q77,Q81,Q85,Q89,Q93,Q97,Q101,Q105,Q109)) -> 
D114: Summary | F114: # of Hits | H114: =SUM(J114:AA114) -> 33 | I114: Hits | J114: =IF(SUM(J110,J106,J102,J98,J94,J90,J86,J82,J78,J74,J70,J66,J62,J58,J54,J50,J46,J42,J38,J34,J30,J26,J22,J18,J14)=0,"",SUM(J14,J18,J22,J26,J30,J34,J38,J42,J46,J50,J54,J58,J62,J66,J70,J74,J78,J82,J86,J90,J94,J98,J102,J106,J110)) -> 11 | K114: 9 | L114: 13 | Q114: =IF(SUM(Q110,Q106,Q102,Q98,Q94,Q90,Q86,Q82,Q78,Q74,Q70,Q66,Q62,Q58,Q54,Q50,Q46,Q42,Q38,Q34,Q30,Q26,Q22,Q18,Q14)=0,"",SUM(Q14,Q18,Q22,Q26,Q30,Q34,Q38,Q42,Q46,Q50,Q54,Q58,Q62,Q66,Q70,Q74,Q78,Q82,Q86,Q90,Q94,Q98,Q102,Q106,Q110)) -> 
F115: Avg | H115: =IF(H113=0,"N/A",H114/H113) -> 0.3975903614 | I115: Avg | J115: =IF(J113="","",J114/J113) -> 0.4230769231 | K115: 0.36 | L115: 0.40625 | Q115: =IF(Q113="","",Q114/Q113) -> 

Sheet Sticks
C1: Team Name | D1: Sticks | I1: Score | J1: 11 | K1: 20 | L1: 14 | M1: 15
I2: Opponents Score | J2: 14 | K2: 4 | L2: 15 | M2: 14
D3: Wins | F3: =SUM(J6:AA6) -> 2 | I3: W or L | J3: =IF(SUM(J1,J2)=0,"",IF(J1<J2,"L","W")) -> L | K3: W | L3: L | M3: W
D4: Losses | F4: =SUM(J7:AA7) -> 2 | H4: Forfeit | I4: FW or FL
E5: games played excluding Forfeit Wins | J5: =IF(J3="","",IF(J4="FW","",1)) -> 1 | K5: 1 | L5: 1 | M5: 1
H6: =IF(H4="w",1,"") ->  | I6: win | J6: =IF(J3="w",1,"") ->  | K6: 1 | M6: 1
H7: =IF(H4="l",1,"") ->  | I7: loss | J7: =IF(J3="l",1,"") -> 1 | L7: 1
D8: Games Played Excluding Forfeit Wins | F8: =SUM(J5:AA5) -> 4 | H8: Opponents Team Name | J8: Bad Pitches | K8: Hit Squad | L8: BCBC | M8: Geto Bombers | O8: No Games | Q8: No Games
D9: League Run Diff | F9: =SUM(J9:AA9) -> 13 | I9: Game Run Diff | J9: =IF(J1="","",J1-J2) -> -3 | K9: 16 | L9: -1 | M9: 1
D10: Team Batting Avg | F10: =$H$115 -> 0.5342465753 | I10: Game Date | J10: 2023-04-20 | K10: 2023-04-20 | L10: 2023-04-27 | M10: 2023-05-04 | N10: 2023-05-11 | O10: 2023-05-18 | P10: 2023-05-25 | Q10: 2023-06-01 | R10: 2023-06-08 | S10: 2023-06-08
H12: STATS | J12: 1 | K12: 2 | L12: 3 | M12: 4 | N12: 5 | O12: 6 | P12: 7 | Q12: 8 | R12: 9 | S12: 10 | T12: 11 | U12: 12 | V12: 13 | W12: 14 | X12: 15 | Y12: 16 | Z12: 17 | AA12: 18
A13: 1 | B13: =$D$1 -> Sticks | C13: L-Name | D13: Kacee | F13: # of AB's | H13: =SUM(J13:AA13) -> 15 | I13: AB's | J13: 4 | K13: 4 | L13: 3 | M13: 4
C14: F-Name | D14: Robinson | F14: # of Hits | H14: =SUM(J14:AA14) -> 7 | I14: Hits | J14: 2 | K14: 1 | L14: 1 | M14: 3
F15: # of PA | H15: =SUM(J15:AA15) -> 16 | I15: PA | J15: 4 | K15: 4 | L15: 4 | M15: 4
D16: f | F16: Avg | H16: =IF(H13=0,"",(H14/H13)) -> 0.4666666667 | I16: Avg | J16: =IF(J13="","",J14/J13) -> 0.5 | K16: 0.25 | L16: 0.3333333333 | M16: 0.75
A17: 2 | B17: =$D$1 -> Sticks | C17: L-Name | D17: Tommy | F17: # of AB's | H17: =SUM(J17:AA17) -> 14 | I17: AB's | J17: 3 | K17: 4 | L17: 4 | M17: 3
C18: F-Name | D18: Gonzales | F18: # of Hits | H18: =SUM(J18:AA18) -> 12 | I18: Hits | J18: 2 | K18: 4 | L18: 3 | M18: 3
F19: # of PA | H19: =SUM(J19:AA19) -> 14 | I19: PA | J19: 3 | K19: 4 | L19: 4 | M19: 3
D20: m | F20: Avg | H20: =IF(H17=0,"",H18/H17) -> 0.8571428571 | I20: Avg | J20: =IF(J17="","",J18/J17) -> 0.6666666667 | K20: 1 | L20: 0.75 | M20: 1
A21: 3 | B21: =$D$1 -> Sticks | C21: L-Name | D21: Whitney | F21: # of AB's | H21: =SUM(J21:AA21) -> 12 | I21: AB's | J21: 2 | K21: 4 | L21: 3 | M21: 3
C22: F-Name | D22: Larson | F22: # of Hits | H22: =SUM(J22:AA22) -> 3 | I22: Hits | J22: 0 | K22: 2 | L22: 0 | M22: 1
F23: # of PA | H23: =SUM(J23:AA23) -> 12 | I23: Avg | J23: 2 | K23: 4 | L23: 3 | M23: 3
D24: f | F24: Avg | H24: =IF(H21=0,"",H22/H21) -> 0.25 | I24: Avg | J24: =IF(J21="","",J22/J21) -> 0 | K24: 0.5 | L24: 0 | M24: 0.3333333333
A25: 4 | B25: =$D$1 -> Sticks | C25: L-Name | D25: Nic | F25: # of AB's | H25: =SUM(J25:AA25) -> 12 | I25: AB's | J25: 3 | K25: 4 | L25: 3 | M25: 2
C26: F-Name | D26: Johnston | F26: # of Hits | H26: =SUM(J26:AA26) -> 8 | I26: Hits | J26: 3 | K26: 1 | L26: 2 | M26: 2
F27: # of PA | H27: =SUM(J27:AA27) -> 12 | I27: PA | J27: 3 | K27: 4 | L27: 3 | M27: 2
D28: m | F28: Avg | H28: =IF(H25=0,"",H26/H25) -> 0.6666666667 | I28: Avg | J28: =IF(J25="","",J26/J25) -> 1 | K28: 0.25 | L28: 0.6666666667 | M28: 1
A29: 5 | B29: =$D$1 -> Sticks | C29: L-Name | D29: Taylor | F29: # of AB's | H29: =SUM(J29:AA29) -> 6 | I29: AB's | J29: 3 | K29: 3
C30: F-Name | D30: Hensley | F30: # of Hits | H30: =SUM(J30:AA30) -> 4 | I30: Hits | J30: 2 | K30: 2
F31: # of PA | H31: =SUM(J31:AA31) -> 7 | I31: PA | J31: 3 | K31: 4
D32: f | F32: Avg | H32: =IF(H29=0,"",H30/H29) -> 0.6666666667 | I32: Avg | J32: =IF(J29="","",J30/J29) -> 0.6666666667 | K32: 0.6666666667
A33: 6 | B33: =$D$1 -> Sticks | C33: L-Name | D33: Sean | F33: # of AB's | H33: =SUM(J33:AA33) -> 12 | I33: AB's | J33: 3 | K33: 4 | L33: 3 | M33: 2
C34: F-Name | D34: Adams | F34: # of Hits | H34: =SUM(J34:AA34) -> 10 | I34: Hits | J34: 2 | K34: 3 | L34: 3 | M34: 2
F35: # of PA | H35: =SUM(J35:AA35) -> 13 | I35: PA | J35: 3 | K35: 4 | L35: 3 | M35: 3
D36: m | F36: Avg | H36: =IF(H33=0,"",H34/H33) -> 0.8333333333 | I36: Avg | J36: =IF(J33="","",J34/J33) -> 0.6666666667 | K36: 0.75 | L36: 1 | M36: 1
A37: 7 | B37: =$D$1 -> Sticks | C37: L-Name | D37: Shar | F37: # of AB's | H37: =SUM(J37:AA37) -> 12 | I37: AB's | J37: 3 | K37: 3 | L37: 3 | M37: 3
C38: F-Name | D38: Norton | F38: # of Hits | H38: =SUM(J38:AA38) -> 4 | I38: Hits | J38: 0 | K38: 1 | L38: 1 | M38: 2
F39: # of PA | H39: =SUM(J39:AA39) -> 13 | I39: PA | J39: 3 | K39: 4 | L39: 3 | M39: 3
D40: f | F40: Avg | H40: =IF(H37=0,"",H38/H37) -> 0.3333333333 | I40: Avg | J40: =IF(J37="","",J38/J37) -> 0 | K40: 0.3333333333 | L40: 0.3333333333 | M40: 0.6666666667
A41: 8 | B41: =$D$1 -> Sticks | C41: L-Name | D41: Tim | F41: # of AB's | H41: =SUM(J41:AA41) -> 12 | I41: AB's | J41: 3 | K41: 3 | L41: 2 | M41: 4
C42: F-Name | D42: Arnold | F42: # of Hits | H42: =SUM(J42:AA42) -> 10 | I42: Hits | J42: 2 | K42: 3 | L42: 1 | M42: 4
F43: # of PA | H43: =SUM(J43:AA43) -> 13 | I43: PA | J43: 3 | K43: 3 | L43: 3 | M43: 4
D44: m | F44: Avg | H44: =IF(H41=0,"",H42/H41) -> 0.8333333333 | I44: Avg | J44: =IF(J41="","",J42/J41) -> 0.6666666667 | K44: 1 | L44: 0.5 | M44: 1
A45: 9 | B45: =$D$1 -> Sticks | C45: L-Name | D45: Whitney | F45: # of AB's | H45: =SUM(J45:AA45) -> 9 | I45: AB's | J45: 3 | K45: 3 | L45: 3
C46: F-Name | D46: Bean | F46: # of Hits | H46: =SUM(J46:AA46) -> 4 | I46: Hits | J46: 1 | K46: 2 | L46: 1
F47: # of PA | H47: =SUM(J47:AA47) -> 9 | I47: PA | J47: 3 | K47: 3 | L47: 3
D48: f | F48: Avg | H48: =IF(H45=0,"",H46/H45) -> 0.4444444444 | I48: Avg | J48: =IF(J45="","",J46/J45) -> 0.3333333333 | K48: 0.6666666667 | L48: 0.3333333333
A49: 10 | B49: =$D$1 -> Sticks | C49: L-Name | D49: Tyler | F49: # of AB's | H49: =SUM(J49:AA49) -> 11 | I49: AB's | J49: 3 | K49: 3 | L49: 3 | M49: 2
C50: F-Name | D50: Wardle | F50: # of Hits | H50: =SUM(J50:AA50) -> 7 | I50: Hits | J50: 2 | K50: 2 | L50: 2 | M50: 1
F51: # of PA | H51: =SUM(J51:AA51) -> 12 | I51: PA | J51: 3 | K51: 3 | L51: 3 | M51: 3
D52: m | F52: Avg | H52: =IF(H49=0,"",H50/H49) -> 0.6363636364 | I52: Avg | J52: =IF(J49="","",J50/J49) -> 0.6666666667 | K52: 0.6666666667 | L52: 0.6666666667 | M52: 0.5
A53: 11 | B53: =$D$1 -> Sticks | C53: L-Name | D53: Melinda | F53: # of AB's | H53: =SUM(J53:AA53) -> 10 | I53: AB's | J53: 2 | K53: 2 | L53: 3 | M53: 3
C54: F-Name | D54: Adams | F54: # of Hits | H54: =SUM(J54:AA54) -> 2 | I54: Hits | J54: 0 | K54: 0 | L54: 1 | M54: 1
F55: # of PA | H55: =SUM(J55:AA55) -> 12 | I55: PA | J55: 3 | K55: 3 | L55: 3 | M55: 3
D56: f | F56: Avg | H56: =IF(H53=0,"",H54/H53) -> 0.2 | I56: Avg | J56: =IF(J53="","",J54/J53) -> 0 | K56: 0 | L56: 0.3333333333 | M56: 0.3333333333
A57: 12 | B57: =$D$1 -> Sticks | C57: L-Name | D57: Troy | F57: # of AB's | H57: =SUM(J57:AA57) -> 11 | I57: AB's | J57: 3 | K57: 3 | L57: 2 | M57: 3
C58: F-Name | D58: Horne | F58: # of Hits | H58: =SUM(J58:AA58) -> 5 | I58: Hits | J58: 1 | K58: 0 | L58: 2 | M58: 2
F59: # of PA | H59: =SUM(J59:AA59) -> 12 | I59: PA | J59: 3 | K59: 3 | L59: 3 | M59: 3
D60: m | F60: Avg | H60: =IF(H57=0,"",H58/H57) -> 0.4545454545 | I60: Avg | J60: =IF(J57="","",J58/J57) -> 0.3333333333 | K60: 0 | L60: 1 | M60: 0.6666666667
A61: 13 | B61: =$D$1 -> Sticks | C61: L-Name | D61: Kate | F61: # of AB's | H61: =SUM(J61:AA61) -> 7 | I61: AB's | L61: 4 | M61: 3
C62: F-Name | D62: Nygaard | F62: # of Hits | H62: =SUM(J62:AA62) -> 2 | I62: Hits | L62: 0 | M62: 2
F63: # of PA | H63: =SUM(J63:AA63) -> 7 | I63: PA | L63: 4 | M63: 3
D64: f | F64: Avg | H64: =IF(H61=0,"",H62/H61) -> 0.2857142857 | I64: Avg | J64: =IF(J61="","",J62/J61) ->  | L64: 0 | M64: 0.6666666667
A65: 14 | B65: =$D$1 -> Sticks | C65: L-Name | D65: Jaime | F65: # of AB's | H65: =SUM(J65:AA65) -> 3 | I65: AB's | M65: 3
C66: F-Name | D66: Holdaway | F66: # of Hits | H66: =SUM(J66:AA66) -> 0 | I66: Hits | M66: 0
F67: # of PA | H67: =SUM(J67:AA67) -> 3 | I67: PA | M67: 3
D68: f | F68: Avg | H68: =IF(H65=0,"",H66/H65) -> 0 | I68: Avg | J68: =IF(J65="","",J66/J65) ->  | M68: 0
A69: 15 | B69: =$D$1 -> Sticks | C69: L-Name | F69: # of AB's | H69: =SUM(J69:AA69) -> 0 | I69: AB's
C70: F-Name | F70: # of Hits | H70: =SUM(J70:AA70) -> 0 | I70: Hits
F71: # of PA | H71: =SUM(J71:AA71) -> 0 | I71: PA
D72: f | F72: Avg | H72: =IF(H69=0,"",H70/H69) ->  | I72: Avg | J72: =IF(J69="","",J70/J69) -> 
A73: 16 | B73: =$D$1 -> Sticks | C73: L-Name | F73: # of AB's | H73: =SUM(J73:AA73) -> 0 | I73: AB's
C74: F-Name | F74: # of Hits | H74: =SUM(J74:AA74) -> 0 | I74: Hits
F75: # of PA | H75: =SUM(J75:AA75) -> 0 | I75: PA
D76: m | F76: Avg | H76: =IF(H73=0,"",H74/H73) ->  | I76: Avg | J76: =IF(J73="","",J74/J73) -> 
A77: 17 | B77: =$D$1 -> Sticks | C77: L-Name | F77: # of AB's | H77: =SUM(J77:AA77) -> 0 | I77: AB's
C78: F-Name | F78: # of Hits | H78: =SUM(J78:AA78) -> 0 | I78: Hits
F79: # of PA | H79: =SUM(J79:AA79) -> 0 | I79: PA
D80: f | F80: Avg | H80: =IF(H77=0,"",H78/H77) ->  | I80: Avg | J80: =IF(J77="","",J78/J77) -> 
A81: 18 | B81: =$D$1 -> Sticks | C81: L-Name | F81: # of AB's | H81: =SUM(J81:AA81) -> 0 | I81: AB's
C82: F-Name | F82: # of Hits | H82: =SUM(J82:AA82) -> 0 | I82: Hits
F83: # of PA | H83: =SUM(J83:AA83) -> 0 | I83: PA
D84: f | F84: Avg | H84: =IF(H81=0,"",H82/H81) ->  | I84: Avg | J84: =IF(J81="","",J82/J81) -> 
A85: 19 | B85: =$D$1 -> Sticks | C85: L-Name | F85: # of AB's | H85: =SUM(J85:AA85) -> 0 | I85: AB's
C86: F-Name | F86: # of Hits | H86: =SUM(J86:AA86) -> 0 | I86: Hits
F87: # of PA | H87: =SUM(J87:AA87) -> 0 | I87: PA
D88: m | F88: Avg | H88: =IF(H85=0,"",H86/H85) ->  | I88: Avg | J88: =IF(J85="","",J86/J85) -> 
A89: 20 | B89: =$D$1 -> Sticks | C89: L-Name | F89: # of AB's | H89: =SUM(J89:AA89) -> 0 | I89: AB's
C90: F-Name | F90: # of Hits | H90: =SUM(J90:AA90) -> 0 | I90: Hits
F91: # of PA | H91: =SUM(J91:AA91) -> 0 | I91: PA
D92: f | F92: Avg | H92: =IF(H89=0,"",H90/H89) ->  | I92: Avg | J92: =IF(J89="","",J90/J89) -> 
A93: 21 | B93: =$D$1 -> Sticks | C93: L-Name | F93: # of AB's | H93: =SUM(J93:AA93) -> 0 | I93: AB's
C94: F-Name | F94: # of Hits | H94: =SUM(J94:AA94) -> 0 | I94: Hits
F95: # of PA | H95: =SUM(J95:AA95) -> 0 | I95: PA
D96: m | F96: Avg | H96: =IF(H93=0,"",H94/H93) ->  | I96: Avg | J96: =IF(J93="","",J94/J93) -> 
A97: 22 | B97: =$D$1 -> Sticks | C97: L-Name | F97: # of AB's | H97: =SUM(J97:AA97) -> 0 | I97: AB's
C98: F-Name | F98: # of Hits | H98: =SUM(J98:AA98) -> 0 | I98: Hits
F99: # of PA | H99: =SUM(J99:AA99) -> 0 | I99: PA
D100: f | F100: Avg | H100: =IF(H97=0,"",H98/H97) ->  | I100: Avg | J100: =IF(J97="","",J98/J97) -> 
A101: 23 | B101: =$D$1 -> Sticks | C101: L-Name | F101: # of AB's | H101: =SUM(J101:AA101) -> 0 | I101: AB's
C102: F-Name | F102: # of Hits | H102: =SUM(J102:AA102) -> 0 | I102: Hits
F103: # of PA | H103: =SUM(J103:AA103) -> 0 | I103: PA
D104: f | F104: Avg | H104: =IF(H101=0,"",H102/H101) ->  | I104: Avg | J104: =IF(J101="","",J102/J101) -> 
A105: 24 | B105: =$D$1 -> Sticks | C105: L-Name | F105: # of AB's | H105: =SUM(J105:AA105) -> 0 | I105: AB's
C106: F-Name | F106: # of Hits | H106: =SUM(J106:AA106) -> 0 | I106: Hits
F107: # of PA | H107: =SUM(J107:AA107) -> 0 | I107: PA
D108: f | F108: Avg | H108: =IF(H105=0,"",H106/H105) ->  | I108: Avg | J108: =IF(J105="","",J106/J105) -> 
A109: 25 | B109: =$D$1 -> Sticks | C109: L-Name | F109: # of AB's | H109: =SUM(J109:AA109) -> 0 | I109: AB's
C110: F-Name | F110: # of Hits | H110: =SUM(J110:AA110) -> 0 | I110: Hits
F111: # of PA | H111: =SUM(J111:AA111) -> 0 | I111: PA
D112: f | F112: Avg | H112: =IF(H109=0,"",H110/H109) ->  | I112: Avg | J112: =IF(J109="","",J110/J109) -> 
B113: =$D$1 -> Sticks | D113: TEAM | F113: # of AB's | H113: =SUM(J113:AA113) -> 146 | I113: AB's | J113: =IF(SUM(J109,J105,J101,J97,J93,J89,J85,J81,J77,J73,J69,J65,J61,J57,J53,J49,J45,J41,J37,J33,J29,J25,J21,J17,J13)=0,"",SUM(J13,J17,J21,J25,J29,J33,J37,J41,J45,J49,J53,J57,J61,J65,J69,J73,J77,J81,J85,J89,J93,J97,J101,J105,J109)) -> 35 | K113: 40 | L113: 36 | M113: 35
D114: Summary | F114: # of Hits | H114: =SUM(J114:AA114) -> 78 | I114: Hits | J114: =IF(SUM(J110,J106,J102,J98,J94,J90,J86,J82,J78,J74,J70,J66,J62,J58,J54,J50,J46,J42,J38,J34,J30,J26,J22,J18,J14)=0,"",SUM(J14,J18,J22,J26,J30,J34,J38,J42,J46,J50,J54,J58,J62,J66,J70,J74,J78,J82,J86,J90,J94,J98,J102,J106,J110)) -> 17 | K114: 21 | L114: 17 | M114: 23
F115: Avg | H115: =IF(H113=0,"N/A",H114/H113) -> 0.5342465753 | I115: Avg | J115: =IF(J113="","",J114/J113) -> 0.4857142857 | K115: 0.525 | L115: 0.4722222222 | M115: 0.6571428571

Sheet Team 6
C1: Team Name | D1: Team 6 | I1: Score | J1: 1 | K1: 1 | L1: 1 | M1: 1 | O1: 1 | P1: 1 | R1: 1 | S1: 1
I2: Opponents Score | J2: 7 | K2: 7 | L2: 7 | M2: 7 | O2: 7 | P2: 7 | R2: 7 | S2: 7
D3: Wins | F3: =SUM(J6:AA6) -> 0 | I3: W or L | J3: =IF(SUM(J1,J2)=0,"",IF(J1<J2,"L","W")) -> L | K3: L | L3: L | M3: L | O3: L | P3: L | R3: L | S3: L
D4: Losses | F4: =SUM(J7:AA7) -> 8 | H4: Forfeit | I4: FW or FL
E5: games played excluding Forfeit Wins | J5: =IF(J3="","",IF(J4="FW","",1)) -> 1 | K5: 1 | L5: 1 | M5: 1 | O5: 1 | P5: 1 | R5: 1 | S5: 1
H6: =IF(H4="w",1,"") ->  | I6: win | J6: =IF(J3="w",1,"") -> 
H7: =IF(H4="l",1,"") ->  | I7: loss | J7: =IF(J3="l",1,"") -> 1 | K7: 1 | L7: 1 | M7: 1 | O7: 1 | P7: 1 | R7: 1 | S7: 1
D8: Games Played Excluding Forfeit Wins | F8: =SUM(J5:AA5) -> 8 | H8: Opponents Team Name | N8: No Games | Q8: No Games
D9: League Run Diff | F9: =SUM(J9:AA9) -> -48 | I9: Game Run Diff | J9: =IF(J1="","",J1-J2) -> -6 | K9: -6 | L9: -6 | M9: -6 | O9: -6 | P9: -6 | R9: -6 | S9: -6
D10: Team Batting Avg | F10: =$H$115 -> 0 | I10: Game Date
H12: STATS | J12: 1 | K12: 2 | L12: 3 | M12: 4 | N12: 5 | O12: 6 | P12: 7 | Q12: 8 | R12: 9 | S12: 10 | T12: 11 | U12: 12 | V12: 13 | W12: 14 | X12: 15 | Y12: 16 | Z12: 17 | AA12: 18
A13: 1 | B13: =$D$1 -> Team 6 | C13: L-Name | D13: John | F13: # of AB's | H13: =SUM(J13:AA13) -> 10 | I13: AB's | J13: 1 | K13: 1 | L13: 1 | M13: 1 | N13: 1 | O13: 1 | P13: 1 | Q13: 1 | R13: 1 | S13: 1
C14: F-Name | F14: # of Hits | H14: =SUM(J14:AA14) -> 0 | I14: Hits | J14: 0 | K14: 0 | L14: 0 | M14: 0 | N14: 0 | O14: 0 | P14: 0 | Q14: 0 | R14: 0 | S14: 0
F15: # of PA | H15: =SUM(J15:AA15) -> 10 | I15: PA | J15: 1 | K15: 1 | L15: 1 | M15: 1 | N15: 1 | O15: 1 | P15: 1 | Q15: 1 | R15: 1 | S15: 1
D16: m | F16: Avg | H16: =IF(H13=0,"",(H14/H13)) -> 0 | I16: Avg | J16: =IF(J13="","",J14/J13) -> 0 | K16: 0 | L16: 0 | M16: 0 | N16: 0 | O16: 0 | P16: 0 | Q16: 0 | R16: 0 | S16: 0
A17: 2 | B17: =$D$1 -> Team 6 | C17: L-Name | D17: Mary | F17: # of AB's | H17: =SUM(J17:AA17) -> 10 | I17: AB's | J17: 1 | K17: 1 | L17: 1 | M17: 1 | N17: 1 | O17: 1 | P17: 1 | Q17: 1 | R17: 1 | S17: 1
C18: F-Name | F18: # of Hits | H18: =SUM(J18:AA18) -> 0 | I18: Hits | J18: 0 | K18: 0 | L18: 0 | M18: 0 | N18: 0 | O18: 0 | P18: 0 | Q18: 0 | R18: 0 | S18: 0
F19: # of PA | H19: =SUM(J19:AA19) -> 10 | I19: PA | J19: 1 | K19: 1 | L19: 1 | M19: 1 | N19: 1 | O19: 1 | P19: 1 | Q19: 1 | R19: 1 | S19: 1
D20: f | F20: Avg | H20: =IF(H17=0,"",H18/H17) -> 0 | I20: Avg | J20: =IF(J17="","",J18/J17) -> 0 | K20: 0 | L20: 0 | M20: 0 | N20: 0 | O20: 0 | P20: 0 | Q20: 0 | R20: 0 | S20: 0
A21: 3 | B21: =$D$1 -> Team 6 | C21: L-Name | D21: Ron | F21: # of AB's | H21: =SUM(J21:AA21) -> 10 | I21: AB's | J21: 1 | K21: 1 | L21: 1 | M21: 1 | N21: 1 | O21: 1 | P21: 1 | Q21: 1 | R21: 1 | S21: 1
C22: F-Name | F22: # of Hits | H22: =SUM(J22:AA22) -> 0 | I22: Hits | J22: 0 | K22: 0 | L22: 0 | M22: 0 | N22: 0 | O22: 0 | P22: 0 | Q22: 0 | R22: 0 | S22: 0
F23: # of PA | H23: =SUM(J23:AA23) -> 10 | I23: PA | J23: 1 | K23: 1 | L23: 1 | M23: 1 | N23: 1 | O23: 1 | P23: 1 | Q23: 1 | R23: 1 | S23: 1
D24: m | F24: Avg | H24: =IF(H21=0,"",H22/H21) -> 0 | I24: Avg | J24: =IF(J21="","",J22/J21) -> 0 | K24: 0 | L24: 0 | M24: 0 | N24: 0 | O24: 0 | P24: 0 | Q24: 0 | R24: 0 | S24: 0
A25: 4 | B25: =$D$1 -> Team 6 | C25: L-Name | D25: Pat | F25: # of AB's | H25: =SUM(J25:AA25) -> 10 | I25: AB's | J25: 1 | K25: 1 | L25: 1 | M25: 1 | N25: 1 | O25: 1 | P25: 1 | Q25: 1 | R25: 1 | S25: 1
C26: F-Name | F26: # of Hits | H26: =SUM(J26:AA26) -> 0 | I26: Hits | J26: 0 | K26: 0 | L26: 0 | M26: 0 | N26: 0 | O26: 0 | P26: 0 | Q26: 0 | R26: 0 | S26: 0
F27: # of PA | H27: =SUM(J27:AA27) -> 10 | I27: PA | J27: 1 | K27: 1 | L27: 1 | M27: 1 | N27: 1 | O27: 1 | P27: 1 | Q27: 1 | R27: 1 | S27: 1
D28: f | F28: Avg | H28: =IF(H25=0,"",H26/H25) -> 0 | I28: Avg | J28: =IF(J25="","",J26/J25) -> 0 | K28: =IF(K25="","",K26/K25) -> 0 | L28: 0 | M28: 0 | N28: 0 | O28: 0 | P28: 0 | Q28: 0 | R28: 0 | S28: 0
A29: 5 | B29: =$D$1 -> Team 6 | C29: L-Name | D29: Mike | F29: # of AB's | H29: =SUM(J29:AA29) -> 10 | I29: AB's | J29: 1 | K29: 1 | L29: 1 | M29: 1 | N29: 1 | O29: 1 | P29: 1 | Q29: 1 | R29: 1 | S29: 1
C30: F-Name | F30: # of Hits | H30: =SUM(J30:AA30) -> 0 | I30: Hits | J30: 0 | K30: 0 | L30: 0 | M30: 0 | N30: 0 | O30: 0 | P30: 0 | Q30: 0 | R30: 0 | S30: 0
F31: # of PA | H31: =SUM(J31:AA31) -> 10 | I31: PA | J31: 1 | K31: 1 | L31: 1 | M31: 1 | N31: 1 | O31: 1 | P31: 1 | Q31: 1 | R31: 1 | S31: 1
D32: m | F32: Avg | H32: =IF(H29=0,"",H30/H29) -> 0 | I32: Avg | J32: =IF(J29="","",J30/J29) -> 0 | K32: =IF(K29="","",K30/K29) -> 0 | L32: 0 | M32: 0 | N32: 0 | O32: 0 | P32: 0 | Q32: 0 | R32: 0 | S32: 0
A33: 6 | B33: =$D$1 -> Team 6 | C33: L-Name | D33: Heidi | F33: # of AB's | H33: =SUM(J33:AA33) -> 10 | I33: AB's | J33: 1 | K33: 1 | L33: 1 | M33: 1 | N33: 1 | O33: 1 | P33: 1 | Q33: 1 | R33: 1 | S33: 1
C34: F-Name | F34: # of Hits | H34: =SUM(J34:AA34) -> 0 | I34: Hits | J34: 0 | K34: 0 | L34: 0 | M34: 0 | N34: 0 | O34: 0 | P34: 0 | Q34: 0 | R34: 0 | S34: 0
F35: # of PA | H35: =SUM(J35:AA35) -> 10 | I35: PA | J35: 1 | K35: 1 | L35: 1 | M35: 1 | N35: 1 | O35: 1 | P35: 1 | Q35: 1 | R35: 1 | S35: 1
D36: f | F36: Avg | H36: =IF(H33=0,"",H34/H33) -> 0 | I36: Avg | J36: =IF(J33="","",J34/J33) -> 0 | K36: =IF(K33="","",K34/K33) -> 0 | L36: 0 | M36: 0 | N36: 0 | O36: 0 | P36: 0 | Q36: 0 | R36: 0 | S36: 0
A37: 7 | B37: =$D$1 -> Team 6 | C37: L-Name | D37: Trent | F37: # of AB's | H37: =SUM(J37:AA37) -> 10 | I37: AB's | J37: 1 | K37: 1 | L37: 1 | M37: 1 | N37: 1 | O37: 1 | P37: 1 | Q37: 1 | R37: 1 | S37: 1
C38: F-Name | F38: # of Hits | H38: =SUM(J38:AA38) -> 0 | I38: Hits | J38: 0 | K38: 0 | L38: 0 | M38: 0 | N38: 0 | O38: 0 | P38: 0 | Q38: 0 | R38: 0 | S38: 0
F39: # of PA | H39: =SUM(J39:AA39) -> 10 | I39: PA | J39: 1 | K39: 1 | L39: 1 | M39: 1 | N39: 1 | O39: 1 | P39: 1 | Q39: 1 | R39: 1 | S39: 1
D40: m | F40: Avg | H40: =IF(H37=0,"",H38/H37) -> 0 | I40: Avg | J40: =IF(J37="","",J38/J37) -> 0 | K40: =IF(K37="","",K38/K37) -> 0 | L40: 0 | M40: 0 | N40: 0 | O40: 0 | P40: 0 | Q40: 0 | R40: 0 | S40: 0
A41: 8 | B41: =$D$1 -> Team 6 | C41: L-Name | D41: Christine | F41: # of AB's | H41: =SUM(J41:AA41) -> 10 | I41: AB's | J41: 1 | K41: 1 | L41: 1 | M41: 1 | N41: 1 | O41: 1 | P41: 1 | Q41: 1 | R41: 1 | S41: 1
C42: F-Name | F42: # of Hits | H42: =SUM(J42:AA42) -> 0 | I42: Hits | J42: 0 | K42: 0 | L42: 0 | M42: 0 | N42: 0 | O42: 0 | P42: 0 | Q42: 0 | R42: 0 | S42: 0
F43: # of PA | H43: =SUM(J43:AA43) -> 10 | I43: PA | J43: 1 | K43: 1 | L43: 1 | M43: 1 | N43: 1 | O43: 1 | P43: 1 | Q43: 1 | R43: 1 | S43: 1
D44: f | F44: Avg | H44: =IF(H41=0,"",H42/H41) -> 0 | I44: Avg | J44: =IF(J41="","",J42/J41) -> 0 | K44: =IF(K41="","",K42/K41) -> 0 | L44: 0 | M44: 0 | N44: 0 | O44: 0 | P44: 0 | Q44: 0 | R44: 0 | S44: 0
A45: 9 | B45: =$D$1 -> Team 6 | C45: L-Name | D45: Isaac | F45: # of AB's | H45: =SUM(J45:AA45) -> 10 | I45: AB's | J45: 1 | K45: 1 | L45: 1 | M45: 1 | N45: 1 | O45: 1 | P45: 1 | Q45: 1 | R45: 1 | S45: 1
C46: F-Name | F46: # of Hits | H46: =SUM(J46:AA46) -> 0 | I46: Hits | J46: 0 | K46: 0 | L46: 0 | M46: 0 | N46: 0 | O46: 0 | P46: 0 | Q46: 0 | R46: 0 | S46: 0
F47: # of PA | H47: =SUM(J47:AA47) -> 10 | I47: PA | J47: 1 | K47: 1 | L47: 1 | M47: 1 | N47: 1 | O47: 1 | P47: 1 | Q47: 1 | R47: 1 | S47: 1
D48: m | F48: Avg | H48: =IF(H45=0,"",H46/H45) -> 0 | I48: Avg | J48: =IF(J45="","",J46/J45) -> 0 | K48: =IF(K45="","",K46/K45) -> 0 | L48: 0 | M48: 0 | N48: 0 | O48: 0 | P48: 0 | Q48: 0 | R48: 0 | S48: 0
A49: 10 | B49: =$D$1 -> Team 6 | C49: L-Name | D49: Laurie | F49: # of AB's | H49: =SUM(J49:AA49) -> 10 | I49: AB's | J49: 1 | K49: 1 | L49: 1 | M49: 1 | N49: 1 | O49: 1 | P49: 1 | Q49: 1 | R49: 1 | S49: 1
C50: F-Name | F50: # of Hits | H50: =SUM(J50:AA50) -> 0 | I50: Hits | J50: 0 | K50: 0 | L50: 0 | M50: 0 | N50: 0 | O50: 0 | P50: 0 | Q50: 0 | R50: 0 | S50: 0
F51: # of PA | H51: =SUM(J51:AA51) -> 10 | I51: PA | J51: 1 | K51: 1 | L51: 1 | M51: 1 | N51: 1 | O51: 1 | P51: 1 | Q51: 1 | R51: 1 | S51: 1
D52: f | F52: Avg | H52: =IF(H49=0,"",H50/H49) -> 0 | I52: Avg | J52: =IF(J49="","",J50/J49) -> 0 | K52: 0 | L52: 0 | M52: 0 | N52: 0 | O52: 0 | P52: 0 | Q52: 0 | R52: 0 | S52: 0
A53: 11 | B53: =$D$1 -> Team 6 | C53: L-Name | F53: # of AB's | H53: =SUM(J53:AA53) -> 0 | I53: AB's
C54: F-Name | F54: # of Hits | H54: =SUM(J54:AA54) -> 0 | I54: Hits
F55: # of PA | H55: =SUM(J55:AA55) -> 0 | I55: PA
D56: m | F56: Avg | H56: =IF(H53=0,"",H54/H53) ->  | I56: Avg | J56: =IF(J53="","",J54/J53) -> 
A57: 12 | B57: =$D$1 -> Team 6 | C57: L-Name | F57: # of AB's | H57: =SUM(J57:AA57) -> 0 | I57: AB's
C58: F-Name | F58: # of Hits | H58: =SUM(J58:AA58) -> 0 | I58: Hits
F59: # of PA | H59: =SUM(J59:AA59) -> 0 | I59: PA
D60: f | F60: Avg | H60: =IF(H57=0,"",H58/H57) ->  | I60: Avg | J60: =IF(J57="","",J58/J57) -> 
A61: 13 | B61: =$D$1 -> Team 6 | C61: L-Name | F61: # of AB's | H61: =SUM(J61:AA61) -> 0 | I61: AB's
C62: F-Name | F62: # of Hits | H62: =SUM(J62:AA62) -> 0 | I62: Hits
F63: # of PA | H63: =SUM(J63:AA63) -> 0 | I63: PA
D64: m | F64: Avg | H64: =IF(H61=0,"",H62/H61) ->  | I64: Avg | J64: =IF(J61="","",J62/J61) -> 
A65: 14 | B65: =$D$1 -> Team 6 | C65: L-Name | F65: # of AB's | H65: =SUM(J65:AA65) -> 0 | I65: AB's
C66: F-Name | F66: # of Hits | H66: =SUM(J66:AA66) -> 0 | I66: Hits
F67: # of PA | H67: =SUM(J67:AA67) -> 0 | I67: PA
D68: m | F68: Avg | H68: =IF(H65=0,"",H66/H65) ->  | I68: Avg | J68: =IF(J65="","",J66/J65) -> 
A69: 15 | B69: =$D$1 -> Team 6 | C69: L-Name | F69: # of AB's | H69: =SUM(J69:AA69) -> 0 | I69: AB's
C70: F-Name | F70: # of Hits | H70: =SUM(J70:AA70) -> 0 | I70: Hits
F71: # of PA | H71: =SUM(J71:AA71) -> 0 | I71: PA
D72: m | F72: Avg | H72: =IF(H69=0,"",H70/H69) ->  | I72: Avg | J72: =IF(J69="","",J70/J69) -> 
A73: 16 | B73: =$D$1 -> Team 6 | C73: B | F73: # of AB's | H73: =SUM(J73:AA73) -> 0 | I73: AB's
C74: F-Name | F74: # of Hits | H74: =SUM(J74:AA74) -> 0 | I74: Hits
F75: # of PA | H75: =SUM(J75:AA75) -> 0 | I75: PA
D76: f | F76: Avg | H76: =IF(H73=0,"",H74/H73) ->  | I76: Avg | J76: =IF(J73="","",J74/J73) -> 
A77: 17 | B77: =$D$1 -> Team 6 | C77: L-Name | F77: # of AB's | H77: =SUM(J77:AA77) -> 0 | I77: AB's
C78: F-Name | F78: # of Hits | H78: =SUM(J78:AA78) -> 0 | I78: Hits
F79: # of PA | H79: =SUM(J79:AA79) -> 0 | I79: PA
D80: m | F80: Avg | H80: =IF(H77=0,"",H78/H77) ->  | I80: Avg | J80: =IF(J77="","",J78/J77) -> 
A81: 18 | B81: =$D$1 -> Team 6 | C81: L-Name | F81: # of AB's | H81: =SUM(J81:AA81) -> 0 | I81: AB's
C82: F-Name | F82: # of Hits | H82: =SUM(J82:AA82) -> 0 | I82: Hits
F83: # of PA | H83: =SUM(J83:AA83) -> 0 | I83: PA
D84: f | F84: Avg | H84: =IF(H81=0,"",H82/H81) ->  | I84: Avg | J84: =IF(J81="","",J82/J81) -> 
A85: 19 | B85: =$D$1 -> Team 6 | C85: L-Name | F85: # of AB's | H85: =SUM(J85:AA85) -> 0 | I85: AB's
C86: F-Name | F86: # of Hits | H86: =SUM(J86:AA86) -> 0 | I86: Hits
F87: # of PA | H87: =SUM(J87:AA87) -> 0 | I87: PA
D88: m | F88: Avg | H88: =IF(H85=0,"",H86/H85) ->  | I88: Avg | J88: =IF(J85="","",J86/J85) -> 
A89: 20 | B89: =$D$1 -> Team 6 | C89: L-Name | F89: # of AB's | H89: =SUM(J89:AA89) -> 0 | I89: AB's
C90: F-Name | F90: # of Hits | H90: =SUM(J90:AA90) -> 0 | I90: Hits
F91: # of PA | H91: =SUM(J91:AA91) -> 0 | I91: PA
D92: f | F92: Avg | H92: =IF(H89=0,"",H90/H89) ->  | I92: Avg | J92: =IF(J89="","",J90/J89) -> 
A93: 21 | B93: =$D$1 -> Team 6 | C93: L-Name | F93: # of AB's | H93: =SUM(J93:AA93) -> 0 | I93: AB's
C94: F-Name | F94: # of Hits | H94: =SUM(J94:AA94) -> 0 | I94: Hits
F95: # of PA | H95: =SUM(J95:AA95) -> 0 | I95: PA
D96: m | F96: Avg | H96: =IF(H93=0,"",H94/H93) ->  | I96: Avg | J96: =IF(J93="","",J94/J93) -> 
A97: 22 | B97: =$D$1 -> Team 6 | C97: L-Name | F97: # of AB's | H97: =SUM(J97:AA97) -> 0 | I97: AB's
C98: F-Name | F98: # of Hits | H98: =SUM(J98:AA98) -> 0 | I98: Hits
F99: # of PA | H99: =SUM(J99:AA99) -> 0 | I99: PA
D100: m | F100: Avg | H100: =IF(H97=0,"",H98/H97) ->  | I100: Avg | J100: =IF(J97="","",J98/J97) -> 
A101: 23 | B101: =$D$1 -> Team 6 | C101: L-Name | F101: # of AB's | H101: =SUM(J101:AA101) -> 0 | I101: AB's
C102: F-Name | F102: # of Hits | H102: =SUM(J102:AA102) -> 0 | I102: Hits
F103: # of PA | H103: =SUM(J103:AA103) -> 0 | I103: PA
D104: f | F104: Avg | H104: =IF(H101=0,"",H102/H101) ->  | I104: Avg | J104: =IF(J101="","",J102/J101) -> 
A105: 24 | B105: =$D$1 -> Team 6 | C105: L-Name | F105: # of AB's | H105: =SUM(J105:AA105) -> 0 | I105: AB's
C106: F-Name | F106: # of Hits | H106: =SUM(J106:AA106) -> 0 | I106: Hits
F107: # of PA | H107: =SUM(J107:AA107) -> 0 | I107: PA
D108: m | F108: Avg | H108: =IF(H105=0,"",H106/H105) ->  | I108: Avg | J108: =IF(J105="","",J106/J105) -> 
A109: 25 | B109: =$D$1 -> Team 6 | C109: L-Name | F109: # of AB's | H109: =SUM(J109:AA109) -> 0 | I109: AB's
C110: F-Name | F110: # of Hits | H110: =SUM(J110:AA110) -> 0 | I110: Hits
F111: # of PA | H111: =SUM(J111:AA111) -> 0 | I111: PA
D112: f | F112: Avg | H112: =IF(H109=0,"",H110/H109) ->  | I112: Avg | J112: =IF(J109="","",J110/J109) -> 
B113: =$D$1 -> Team 6 | D113: TEAM | F113: # of AB's | H113: =SUM(J113:AA113) -> 100 | I113: AB's | J113: =IF(SUM(J109,J105,J101,J97,J93,J89,J85,J81,J77,J73,J69,J65,J61,J57,J53,J49,J45,J41,J37,J33,J29,J25,J21,J17,J13)=0,"",SUM(J13,J17,J21,J25,J29,J33,J37,J41,J45,J49,J53,J57,J61,J65,J69,J73,J77,J81,J85,J89,J93,J97,J101,J105,J109)) -> 10 | K113: 10 | L113: 10 | M113: 10 | N113: 10 | O113: 10 | P113: 10 | Q113: 10 | R113: 10 | S113: 10
D114: Summary | F114: # of Hits | H114: =SUM(J114:AA114) -> 0 | I114: Hits | J114: =IF(SUM(J110,J106,J102,J98,J94,J90,J86,J82,J78,J74,J70,J66,J62,J58,J54,J50,J46,J42,J38,J34,J30,J26,J22,J18,J14)=0,"",SUM(J14,J18,J22,J26,J30,J34,J38,J42,J46,J50,J54,J58,J62,J66,J70,J74,J78,J82,J86,J90,J94,J98,J102,J106,J110)) -> 
F115: Avg | H115: =IF(H113=0,"N/A",H114/H113) -> 0 | I115: Avg | J115: =IF(J113="","",J114/J113) -> 

Sheet Team 7
C1: Team Name | I1: Score | J1: 2 | K1: 2 | L1: 2 | M1: 2 | N1: 2 | P1: 2 | Q1: 2 | S1: 2
I2: Opponents Score | J2: 7 | K2: 7 | L2: 7 | M2: 7 | N2: 7 | P2: 7 | Q2: 7 | S2: 7
D3: Wins | F3: =SUM(J6:AA6) -> 0 | I3: W or L | J3: =IF(SUM(J1,J2)=0,"",IF(J1<J2,"L","W")) -> L | K3: L | L3: L | M3: L | N3: L | P3: L | Q3: L | S3: L
D4: Losses | F4: =SUM(J7:AA7) -> 8 | H4: Forfeit | I4: FW or FL
E5: games played excluding Forfeit Wins | J5: =IF(J3="","",IF(J4="FW","",1)) -> 1 | K5: 1 | L5: 1 | M5: 1 | N5: 1 | P5: 1 | Q5: 1 | S5: 1
H6: =IF(H4="w",1,"") ->  | I6: win | J6: =IF(J3="w",1,"") -> 
H7: =IF(H4="l",1,"") ->  | I7: loss | J7: =IF(J3="l",1,"") -> 1 | K7: 1 | L7: 1 | M7: 1 | N7: 1 | P7: 1 | Q7: 1 | S7: 1
D8: Games Played Excluding Forfeit Wins | F8: =SUM(J5:AA5) -> 8 | H8: Opponents Team Name | O8: No Games | R8: No Games
D9: League Run Diff | F9: =SUM(J9:AA9) -> -40 | I9: Game Run Diff | J9: =IF(J1="","",J1-J2) -> -5 | K9: -5 | L9: -5 | M9: -5 | N9: -5 | P9: -5 | Q9: -5 | S9: -5
D10: Team Batting Avg | F10: =$H$115 -> 0 | I10: Game Date
H12: STATS | J12: 1 | K12: 2 | L12: 3 | M12: 4 | N12: 5 | O12: 6 | P12: 7 | Q12: 8 | R12: 9 | S12: 10 | T12: 11 | U12: 12 | V12: 13 | W12: 14 | X12: 15 | Y12: 16 | Z12: 17 | AA12: 18
A13: 1 | B13: =$D$1 ->  | C13: L-Name | D13: Bob | F13: # of AB's | H13: =SUM(J13:AA13) -> 10 | I13: AB's | J13: 1 | K13: 1 | L13: 1 | M13: 1 | N13: 1 | O13: 1 | P13: 1 | Q13: 1 | R13: 1 | S13: 1
C14: F-Name | F14: # of Hits | H14: =SUM(J14:AA14) -> 0 | I14: Hits | J14: 0 | K14: 0 | L14: 0 | M14: 0 | N14: 0 | O14: 0 | P14: 0 | Q14: 0 | R14: 0 | S14: 0
F15: # of PA | H15: =SUM(J15:AA15) -> 10 | I15: PA | J15: 1 | K15: 1 | L15: 1 | M15: 1 | N15: 1 | O15: 1 | P15: 1 | Q15: 1 | R15: 1 | S15: 1
D16: m | F16: Avg | H16: =IF(H13=0,"",(H14/H13)) -> 0 | I16: Avg | J16: =IF(J13="","",J14/J13) -> 0 | K16: 0 | L16: 0 | M16: 0 | N16: 0 | O16: 0 | P16: 0 | Q16: 0 | R16: 0 | S16: 0
A17: 2 | B17: =$D$1 ->  | C17: L-Name | D17: Dorothy | F17: # of AB's | H17: =SUM(J17:AA17) -> 10 | I17: AB's | J17: 1 | K17: 1 | L17: 1 | M17: 1 | N17: 1 | O17: 1 | P17: 1 | Q17: 1 | R17: 1 | S17: 1
C18: F-Name | F18: # of Hits | H18: =SUM(J18:AA18) -> 0 | I18: Hits | J18: 0 | K18: 0 | L18: 0 | M18: 0 | N18: 0 | O18: 0 | P18: 0 | Q18: 0 | R18: 0 | S18: 0
F19: # of PA | H19: =SUM(J19:AA19) -> 10 | I19: PA | J19: 1 | K19: 1 | L19: 1 | M19: 1 | N19: 1 | O19: 1 | P19: 1 | Q19: 1 | R19: 1 | S19: 1
D20: f | F20: Avg | H20: =IF(H17=0,"",H18/H17) -> 0 | I20: Avg | J20: =IF(J17="","",J18/J17) -> 0 | K20: 0 | L20: 0 | M20: 0 | N20: 0 | O20: 0 | P20: 0 | Q20: 0 | R20: 0 | S20: 0
A21: 3 | B21: =$D$1 ->  | C21: L-Name | D21: Cam | F21: # of AB's | H21: =SUM(J21:AA21) -> 10 | I21: AB's | J21: 1 | K21: 1 | L21: 1 | M21: 1 | N21: 1 | O21: 1 | P21: 1 | Q21: 1 | R21: 1 | S21: 1
C22: F-Name | F22: # of Hits | H22: =SUM(J22:AA22) -> 0 | I22: Hits | J22: 0 | K22: 0 | L22: 0 | M22: 0 | N22: 0 | O22: 0 | P22: 0 | Q22: 0 | R22: 0 | S22: 0
F23: # of PA | H23: =SUM(J23:AA23) -> 10 | I23: PA | J23: 1 | K23: 1 | L23: 1 | M23: 1 | N23: 1 | O23: 1 | P23: 1 | Q23: 1 | R23: 1 | S23: 1
D24: m | F24: Avg | H24: =IF(H21=0,"",H22/H21) -> 0 | I24: Avg | J24: =IF(J21="","",J22/J21) -> 0 | K24: 0 | L24: 0 | M24: 0 | N24: 0 | O24: 0 | P24: 0 | Q24: 0 | R24: 0 | S24: 0
A25: 4 | B25: =$D$1 ->  | C25: L-Name | D25: Jill | F25: # of AB's | H25: =SUM(J25:AA25) -> 10 | I25: AB's | J25: 1 | K25: 1 | L25: 1 | M25: 1 | N25: 1 | O25: 1 | P25: 1 | Q25: 1 | R25: 1 | S25: 1
C26: F-Name | F26: # of Hits | H26: =SUM(J26:AA26) -> 0 | I26: Hits | J26: 0 | K26: 0 | L26: 0 | M26: 0 | N26: 0 | O26: 0 | P26: 0 | Q26: 0 | R26: 0 | S26: 0
F27: # of PA | H27: =SUM(J27:AA27) -> 10 | I27: PA | J27: 1 | K27: 1 | L27: 1 | M27: 1 | N27: 1 | O27: 1 | P27: 1 | Q27: 1 | R27: 1 | S27: 1
D28: f | F28: Avg | H28: =IF(H25=0,"",H26/H25) -> 0 | I28: Avg | J28: =IF(J25="","",J26/J25) -> 0 | K28: 0 | L28: 0 | M28: 0 | N28: 0 | O28: 0 | P28: 0 | Q28: 0 | R28: 0 | S28: 0
A29: 5 | B29: =$D$1 ->  | C29: L-Name | D29: Mark | F29: # of AB's | H29: =SUM(J29:AA29) -> 10 | I29: AB's | J29: 1 | K29: 1 | L29: 1 | M29: 1 | N29: 1 | O29: 1 | P29: 1 | Q29: 1 | R29: 1 | S29: 1
C30: F-Name | F30: # of Hits | H30: =SUM(J30:AA30) -> 0 | I30: Hits | J30: 0 | K30: 0 | L30: 0 | M30: 0 | N30: 0 | O30: 0 | P30: 0 | Q30: 0 | R30: 0 | S30: 0
F31: # of PA | H31: =SUM(J31:AA31) -> 10 | I31: PA | J31: 1 | K31: 1 | L31: 1 | M31: 1 | N31: 1 | O31: 1 | P31: 1 | Q31: 1 | R31: 1 | S31: 1
D32: m | F32: Avg | H32: =IF(H29=0,"",H30/H29) -> 0 | I32: Avg | J32: =IF(J29="","",J30/J29) -> 0 | K32: 0 | L32: 0 | M32: 0 | N32: 0 | O32: 0 | P32: 0 | Q32: 0 | R32: 0 | S32: 0
A33: 6 | B33: =$D$1 ->  | C33: L-Name | D33: Julie | F33: # of AB's | H33: =SUM(J33:AA33) -> 10 | I33: AB's | J33: 1 | K33: 1 | L33: 1 | M33: 1 | N33: 1 | O33: 1 | P33: 1 | Q33: 1 | R33: 1 | S33: 1
C34: F-Name | F34: # of Hits | H34: =SUM(J34:AA34) -> 0 | I34: Hits | J34: 0 | K34: 0 | L34: 0 | M34: 0 | N34: 0 | O34: 0 | P34: 0 | Q34: 0 | R34: 0 | S34: 0
F35: # of PA | H35: =SUM(J35:AA35) -> 10 | I35: PA | J35: 1 | K35: 1 | L35: 1 | M35: 1 | N35: 1 | O35: 1 | P35: 1 | Q35: 1 | R35: 1 | S35: 1
D36: f | F36: Avg | H36: =IF(H33=0,"",H34/H33) -> 0 | I36: Avg | J36: =IF(J33="","",J34/J33) -> 0 | K36: 0 | L36: 0 | M36: 0 | N36: 0 | O36: 0 | P36: 0 | Q36: 0 | R36: 0 | S36: 0
A37: 7 | B37: =$D$1 ->  | C37: L-Name | D37: Kent | F37: # of AB's | H37: =SUM(J37:AA37) -> 10 | I37: AB's | J37: 1 | K37: 1 | L37: 1 | M37: 1 | N37: 1 | O37: 1 | P37: 1 | Q37: 1 | R37: 1 | S37: 1
C38: F-Name | F38: # of Hits | H38: =SUM(J38:AA38) -> 0 | I38: Hits | J38: 0 | K38: 0 | L38: 0 | M38: 0 | N38: 0 | O38: 0 | P38: 0 | Q38: 0 | R38: 0 | S38: 0
F39: # of PA | H39: =SUM(J39:AA39) -> 10 | I39: PA | J39: 1 | K39: 1 | L39: 1 | M39: 1 | N39: 1 | O39: 1 | P39: 1 | Q39: 1 | R39: 1 | S39: 1
D40: m | F40: Avg | H40: =IF(H37=0,"",H38/H37) -> 0 | I40: Avg | J40: =IF(J37="","",J38/J37) -> 0 | K40: 0 | L40: 0 | M40: 0 | N40: 0 | O40: 0 | P40: 0 | Q40: 0 | R40: 0 | S40: 0
A41: 8 | B41: =$D$1 ->  | C41: L-Name | D41: Sheri | F41: # of AB's | H41: =SUM(J41:AA41) -> 10 | I41: AB's | J41: 1 | K41: 1 | L41: 1 | M41: 1 | N41: 1 | O41: 1 | P41: 1 | Q41: 1 | R41: 1 | S41: 1
C42: F-Name | F42: # of Hits | H42: =SUM(J42:AA42) -> 0 | I42: Hits | J42: 0 | K42: 0 | L42: 0 | M42: 0 | N42: 0 | O42: 0 | P42: 0 | Q42: 0 | R42: 0 | S42: 0
F43: # of PA | H43: =SUM(J43:AA43) -> 10 | I43: PA | J43: 1 | K43: 1 | L43: 1 | M43: 1 | N43: 1 | O43: 1 | P43: 1 | Q43: 1 | R43: 1 | S43: 1
D44: f | F44: Avg | H44: =IF(H41=0,"",H42/H41) -> 0 | I44: Avg | J44: =IF(J41="","",J42/J41) -> 0 | K44: 0 | L44: 0 | M44: 0 | N44: 0 | O44: 0 | P44: 0 | Q44: 0 | R44: 0 | S44: 0
A45: 9 | B45: =$D$1 ->  | C45: L-Name | D45: George | F45: # of AB's | H45: =SUM(J45:AA45) -> 10 | I45: AB's | J45: 1 | K45: 1 | L45: 1 | M45: 1 | N45: 1 | O45: 1 | P45: 1 | Q45: 1 | R45: 1 | S45: 1
C46: F-Name | F46: # of Hits | H46: =SUM(J46:AA46) -> 0 | I46: Hits | J46: 0 | K46: 0 | L46: 0 | M46: 0 | N46: 0 | O46: 0 | P46: 0 | Q46: 0 | R46: 0 | S46: 0
F47: # of PA | H47: =SUM(J47:AA47) -> 10 | I47: PA | J47: 1 | K47: 1 | L47: 1 | M47: 1 | N47: 1 | O47: 1 | P47: 1 | Q47: 1 | R47: 1 | S47: 1
D48: m | F48: Avg | H48: =IF(H45=0,"",H46/H45) -> 0 | I48: Avg | J48: =IF(J45="","",J46/J45) -> 0 | K48: 0 | L48: 0 | M48: 0 | N48: 0 | O48: 0 | P48: 0 | Q48: 0 | R48: 0 | S48: 0
A49: 10 | B49: =$D$1 ->  | C49: L-Name | D49: Trish | F49: # of AB's | H49: =SUM(J49:AA49) -> 10 | I49: AB's | J49: 1 | K49: 1 | L49: 1 | M49: 1 | N49: 1 | O49: 1 | P49: 1 | Q49: 1 | R49: 1 | S49: 1
C50: F-Name | F50: # of Hits | H50: =SUM(J50:AA50) -> 0 | I50: Hits | J50: 0 | K50: 0 | L50: 0 | M50: 0 | N50: 0 | O50: 0 | P50: 0 | Q50: 0 | R50: 0 | S50: 0
F51: # of PA | H51: =SUM(J51:AA51) -> 10 | I51: PA | J51: 1 | K51: 1 | L51: 1 | M51: 1 | N51: 1 | O51: 1 | P51: 1 | Q51: 1 | R51: 1 | S51: 1
D52: f | F52: Avg | H52: =IF(H49=0,"",H50/H49) -> 0 | I52: Avg | J52: =IF(J49="","",J50/J49) -> 0 | K52: 0 | L52: 0 | M52: 0 | N52: 0 | O52: 0 | P52: 0 | Q52: 0 | R52: 0 | S52: 0
A53: 11 | B53: =$D$1 ->  | C53: L-Name | F53: # of AB's | H53: =SUM(J53:AA53) -> 10 | I53: AB's | J53: 1 | K53: 1 | L53: 1 | M53: 1 | N53: 1 | O53: 1 | P53: 1 | Q53: 1 | R53: 1 | S53: 1
C54: F-Name | F54: # of Hits | H54: =SUM(J54:AA54) -> 0 | I54: Hits | J54: 0 | K54: 0 | L54: 0 | M54: 0 | N54: 0 | O54: 0 | P54: 0 | Q54: 0 | R54: 0 | S54: 0
F55: # of PA | H55: =SUM(J55:AA55) -> 10 | I55: PA | J55: 1 | K55: 1 | L55: 1 | M55: 1 | N55: 1 | O55: 1 | P55: 1 | Q55: 1 | R55: 1 | S55: 1
D56: f | F56: Avg | H56: =IF(H53=0,"",H54/H53) -> 0 | I56: Avg | J56: =IF(J53="","",J54/J53) -> 0 | K56: 0 | L56: 0 | M56: 0 | N56: 0 | O56: 0 | P56: 0 | Q56: 0 | R56: 0 | S56: 0
A57: 12 | B57: =$D$1 ->  | C57: L-Name | F57: # of AB's | H57: =SUM(J57:AA57) -> 0 | I57: AB's
C58: F-Name | F58: # of Hits | H58: =SUM(J58:AA58) -> 0 | I58: Hits
F59: # of PA | H59: =SUM(J59:AA59) -> 0 | I59: PA
D60: f | F60: Avg | H60: =IF(H57=0,"",H58/H57) ->  | I60: Avg | J60: =IF(J57="","",J58/J57) ->  | Q60: =IF(Q57="","",Q58/Q57) -> 
A61: 13 | B61: =$D$1 ->  | C61: B | F61: # of AB's | H61: =SUM(J61:AA61) -> 0 | I61: AB's
C62: F-Name | F62: # of Hits | H62: =SUM(J62:AA62) -> 0 | I62: Hits
F63: # of PA | H63: =SUM(J63:AA63) -> 0 | I63: PA
D64: f | F64: Avg | H64: =IF(H61=0,"",H62/H61) ->  | I64: Avg | J64: =IF(J61="","",J62/J61) -> 
A65: 14 | B65: =$D$1 ->  | C65: L-Name | F65: # of AB's | H65: =SUM(J65:AA65) -> 0 | I65: AB's
C66: F-Name | F66: # of Hits | H66: =SUM(J66:AA66) -> 0 | I66: Hits
F67: # of PA | H67: =SUM(J67:AA67) -> 0 | I67: PA
D68: f | F68: Avg | H68: =IF(H65=0,"",H66/H65) ->  | I68: Avg | J68: =IF(J65="","",J66/J65) -> 
A69: 15 | B69: =$D$1 ->  | C69: L-Name | F69: # of AB's | H69: =SUM(J69:AA69) -> 0 | I69: AB's
C70: F-Name | F70: # of Hits | H70: =SUM(J70:AA70) -> 0 | I70: Hits
F71: # of PA | H71: =SUM(J71:AA71) -> 0 | I71: PA
D72: f | F72: Avg | H72: =IF(H69=0,"",H70/H69) ->  | I72: Avg | J72: =IF(J69="","",J70/J69) ->  | T72: =IF(T69="","",T70/T69) -> 
A73: 16 | B73: =$D$1 ->  | C73: R | F73: # of AB's | H73: =SUM(J73:AA73) -> 0 | I73: AB's
C74: F-Name | F74: # of Hits | H74: =SUM(J74:AA74) -> 0 | I74: Hits
F75: # of PA | H75: =SUM(J75:AA75) -> 0 | I75: PA
D76: f | F76: Avg | H76: =IF(H73=0,"",H74/H73) ->  | I76: Avg | J76: =IF(J73="","",J74/J73) -> 
A77: 17 | B77: =$D$1 ->  | C77: L-Name | F77: # of AB's | H77: =SUM(J77:AA77) -> 0 | I77: AB's
C78: F-Name | F78: # of Hits | H78: =SUM(J78:AA78) -> 0 | I78: Hits
F79: # of PA | H79: =SUM(J79:AA79) -> 0 | I79: PA
D80: f | F80: Avg | H80: =IF(H77=0,"",H78/H77) ->  | I80: Avg | J80: =IF(J77="","",J78/J77) -> 
A81: 18 | B81: =$D$1 ->  | C81: L-Name | F81: # of AB's | H81: =SUM(J81:AA81) -> 0 | I81: AB's
C82: F-Name | F82: # of Hits | H82: =SUM(J82:AA82) -> 0 | I82: Hits
F83: # of PA | H83: =SUM(J83:AA83) -> 0 | I83: PA
D84: f | F84: Avg | H84: =IF(H81=0,"",H82/H81) ->  | I84: Avg | J84: =IF(J81="","",J82/J81) -> 
A85: 19 | B85: =$D$1 ->  | C85: L-Name | F85: # of AB's | H85: =SUM(J85:AA85) -> 0 | I85: AB's
C86: F-Name | F86: # of Hits | H86: =SUM(J86:AA86) -> 0 | I86: Hits
F87: # of PA | H87: =SUM(J87:AA87) -> 0 | I87: PA
D88: f | F88: Avg | H88: =IF(H85=0,"",H86/H85) ->  | I88: Avg | J88: =IF(J85="","",J86/J85) -> 
A89: 20 | B89: =$D$1 ->  | C89: L-Name | F89: # of AB's | H89: =SUM(J89:AA89) -> 0 | I89: AB's
C90: F-Name | F90: # of Hits | H90: =SUM(J90:AA90) -> 0 | I90: Hits
F91: # of PA | H91: =SUM(J91:AA91) -> 0 | I91: PA
D92: f | F92: Avg | H92: =IF(H89=0,"",H90/H89) ->  | I92: Avg | J92: =IF(J89="","",J90/J89) -> 
A93: 21 | B93: =$D$1 ->  | C93: L-Name | F93: # of AB's | H93: =SUM(J93:AA93) -> 0 | I93: AB's
C94: F-Name | F94: # of Hits | H94: =SUM(J94:AA94) -> 0 | I94: Hits
F95: # of PA | H95: =SUM(J95:AA95) -> 0 | I95: PA
D96: f | F96: Avg | H96: =IF(H93=0,"",H94/H93) ->  | I96: Avg | J96: =IF(J93="","",J94/J93) -> 
A97: 22 | B97: =$D$1 ->  | C97: L-Name | F97: # of AB's | H97: =SUM(J97:AA97) -> 0 | I97: AB's
C98: F-Name | F98: # of Hits | H98: =SUM(J98:AA98) -> 0 | I98: Hits
F99: # of PA | H99: =SUM(J99:AA99) -> 0 | I99: PA
D100: f | F100: Avg | H100: =IF(H97=0,"",H98/H97) ->  | I100: Avg | J100: =IF(J97="","",J98/J97) -> 
A101: 23 | B101: =$D$1 ->  | C101: L-Name | F101: # of AB's | H101: =SUM(J101:AA101) -> 0 | I101: AB's
C102: F-Name | F102: # of Hits | H102: =SUM(J102:AA102) -> 0 | I102: Hits
F103: # of PA | H103: =SUM(J103:AA103) -> 0 | I103: PA
D104: f | F104: Avg | H104: =IF(H101=0,"",H102/H101) ->  | I104: Avg | J104: =IF(J101="","",J102/J101) -> 
A105: 24 | B105: =$D$1 ->  | C105: L-Name | F105: # of AB's | H105: =SUM(J105:AA105) -> 0 | I105: AB's
C106: F-Name | F106: # of Hits | H106: =SUM(J106:AA106) -> 0 | I106: Hits
F107: # of PA | H107: =SUM(J107:AA107) -> 0 | I107: PA
D108: f | F108: Avg | H108: =IF(H105=0,"",H106/H105) ->  | I108: Avg | J108: =IF(J105="","",J106/J105) -> 
A109: 25 | B109: =$D$1 ->  | C109: L-Name | F109: # of AB's | H109: =SUM(J109:AA109) -> 0 | I109: AB's
C110: F-Name | F110: # of Hits | H110: =SUM(J110:AA110) -> 0 | I110: Hits
F111: # of PA | H111: =SUM(J111:AA111) -> 0 | I111: PA
D112: f | F112: Avg | H112: =IF(H109=0,"",H110/H109) ->  | I112: Avg | J112: =IF(J109="","",J110/J109) -> 
B113: =$D$1 ->  | D113: TEAM | F113: # of AB's | H113: =SUM(J113:AA113) -> 110 | I113: AB's | J113: =IF(SUM(J109,J105,J101,J97,J93,J89,J85,J81,J77,J73,J69,J65,J61,J57,J53,J49,J45,J41,J37,J33,J29,J25,J21,J17,J13)=0,"",SUM(J13,J17,J21,J25,J29,J33,J37,J41,J45,J49,J53,J57,J61,J65,J69,J73,J77,J81,J85,J89,J93,J97,J101,J105,J109)) -> 11 | K113: 11 | L113: 11 | M113: 11 | N113: 11 | O113: 11 | P113: 11 | Q113: 11 | R113: 11 | S113: 11
D114: Summary | F114: # of Hits | H114: =SUM(J114:AA114) -> 0 | I114: Hits | J114: =IF(SUM(J110,J106,J102,J98,J94,J90,J86,J82,J78,J74,J70,J66,J62,J58,J54,J50,J46,J42,J38,J34,J30,J26,J22,J18,J14)=0,"",SUM(J14,J18,J22,J26,J30,J34,J38,J42,J46,J50,J54,J58,J62,J66,J70,J74,J78,J82,J86,J90,J94,J98,J102,J106,J110)) -> 
F115: Avg | H115: =IF(H113=0,"N/A",H114/H113) -> 0 | I115: Avg | J115: =IF(J113="","",J114/J113) -> 

Sheet Team 8
C1: Team Name | I1: Score | J1: 0 | K1: 0 | L1: 0 | M1: 0 | N1: 0 | P1: 0 | R1: 0 | S1: 0
I2: Opponents Score | J2: 7 | K2: 7 | L2: 7 | M2: 7 | N2: 7 | P2: 7 | R2: 7 | S2: 7
D3: Wins | F3: =SUM(J6:AA6) -> 0 | I3: W or L | J3: =IF(SUM(J1,J2)=0,"",IF(J1<J2,"L","W")) -> L | K3: L | L3: L | M3: L | N3: L | P3: L | R3: L | S3: L
D4: Losses | F4: =SUM(J7:AA7) -> 8 | H4: Forfeit | I4: FW or FL
E5: games played excluding Forfeit Wins | J5: =IF(J3="","",IF(J4="FW","",1)) -> 1 | K5: 1 | L5: 1 | M5: 1 | N5: 1 | P5: 1 | R5: 1 | S5: 1
H6: =IF(H4="w",1,"") ->  | I6: win | J6: =IF(J3="w",1,"") -> 
H7: =IF(H4="l",1,"") ->  | I7: loss | J7: =IF(J3="l",1,"") -> 1 | K7: 1 | L7: 1 | M7: 1 | N7: 1 | P7: 1 | R7: 1 | S7: 1
D8: Games Played Excluding Forfeit Wins | F8: =SUM(J5:AA5) -> 8 | H8: Opponents Team Name | O8: No Games | Q8: No Games
D9: League Run Diff | F9: =SUM(J9:AA9) -> -56 | I9: Game Run Diff | J9: =IF(J1="","",J1-J2) -> -7 | K9: -7 | L9: -7 | M9: -7 | N9: -7 | P9: -7 | R9: -7 | S9: -7
D10: Team Batting Avg | F10: =$H$115 -> 0 | I10: Game Date
H12: STATS | J12: 1 | K12: 2 | L12: 3 | M12: 4 | N12: 5 | O12: 6 | P12: 7 | Q12: 8 | R12: 9 | S12: 10 | T12: 11 | U12: 12 | V12: 13 | W12: 14 | X12: 15 | Y12: 16 | Z12: 17 | AA12: 18
A13: 1 | B13: =$D$1 ->  | C13: L-Name | D13: Linda | F13: # of AB's | H13: =SUM(J13:AA13) -> 10 | I13: AB's | J13: 1 | K13: 1 | L13: 1 | M13: 1 | N13: 1 | O13: 1 | P13: 1 | Q13: 1 | R13: 1 | S13: 1
C14: F-Name | F14: # of Hits | H14: =SUM(J14:AA14) -> 0 | I14: Hits | J14: 0 | K14: 0 | L14: 0 | M14: 0 | N14: 0 | O14: 0 | P14: 0 | Q14: 0 | R14: 0 | S14: 0
F15: # of PA | H15: =SUM(J15:AA15) -> 10 | I15: PA | J15: 1 | K15: 1 | L15: 1 | M15: 1 | N15: 1 | O15: 1 | P15: 1 | Q15: 1 | R15: 1 | S15: 1
D16: f | F16: Avg | H16: =IF(H13=0,"",(H14/H13)) -> 0 | I16: Avg | J16: =IF(J13="","",J14/J13) -> 0 | K16: 0 | L16: 0 | M16: 0 | N16: 0 | O16: 0 | P16: 0 | Q16: 0 | R16: 0 | S16: 0
A17: 2 | B17: =$D$1 ->  | C17: L-Name | D17: David | F17: # of AB's | H17: =SUM(J17:AA17) -> 10 | I17: AB's | J17: 1 | K17: 1 | L17: 1 | M17: 1 | N17: 1 | O17: 1 | P17: 1 | Q17: 1 | R17: 1 | S17: 1
C18: F-Name | F18: # of Hits | H18: =SUM(J18:AA18) -> 0 | I18: Hits | J18: 0 | K18: 0 | L18: 0 | M18: 0 | N18: 0 | O18: 0 | P18: 0 | Q18: 0 | R18: 0 | S18: 0
F19: # of PA | H19: =SUM(J19:AA19) -> 10 | I19: PA | J19: 1 | K19: 1 | L19: 1 | M19: 1 | N19: 1 | O19: 1 | P19: 1 | Q19: 1 | R19: 1 | S19: 1
D20: m | F20: Avg | H20: =IF(H17=0,"",H18/H17) -> 0 | I20: Avg | J20: =IF(J17="","",J18/J17) -> 0 | K20: 0 | L20: 0 | M20: 0 | N20: 0 | O20: 0 | P20: 0 | Q20: 0 | R20: 0 | S20: 0
A21: 3 | B21: =$D$1 ->  | C21: L-Name | D21: Kylie | F21: # of AB's | H21: =SUM(J21:AA21) -> 10 | I21: AB's | J21: 1 | K21: 1 | L21: 1 | M21: 1 | N21: 1 | O21: 1 | P21: 1 | Q21: 1 | R21: 1 | S21: 1
C22: F-Name | F22: # of Hits | H22: =SUM(J22:AA22) -> 0 | I22: Hits | J22: 0 | K22: 0 | L22: 0 | M22: 0 | N22: 0 | O22: 0 | P22: 0 | Q22: 0 | R22: 0 | S22: 0
F23: # of PA | H23: =SUM(J23:AA23) -> 10 | I23: PA | J23: 1 | K23: 1 | L23: 1 | M23: 1 | N23: 1 | O23: 1 | P23: 1 | Q23: 1 | R23: 1 | S23: 1
D24: f | F24: Avg | H24: =IF(H21=0,"",H22/H21) -> 0 | I24: Avg | J24: =IF(J21="","",J22/J21) -> 0 | K24: 0 | L24: 0 | M24: 0 | N24: 0 | O24: 0 | P24: 0 | Q24: 0 | R24: 0 | S24: 0
A25: 4 | B25: =$D$1 ->  | C25: L-Name | D25: Dallen | F25: # of AB's | H25: =SUM(J25:AA25) -> 10 | I25: AB's | J25: 1 | K25: 1 | L25: 1 | M25: 1 | N25: 1 | O25: 1 | P25: 1 | Q25: 1 | R25: 1 | S25: 1
C26: F-Name | F26: # of Hits | H26: =SUM(J26:AA26) -> 0 | I26: Hits | J26: 0 | K26: 0 | L26: 0 | M26: 0 | N26: 0 | O26: 0 | P26: 0 | Q26: 0 | R26: 0 | S26: 0
F27: # of PA | H27: =SUM(J27:AA27) -> 10 | I27: PA | J27: 1 | K27: 1 | L27: 1 | M27: 1 | N27: 1 | O27: 1 | P27: 1 | Q27: 1 | R27: 1 | S27: 1
D28: m | F28: Avg | H28: =IF(H25=0,"",H26/H25) -> 0 | I28: Avg | J28: =IF(J25="","",J26/J25) -> 0 | K28: 0 | L28: 0 | M28: 0 | N28: 0 | O28: 0 | P28: 0 | Q28: 0 | R28: 0 | S28: 0
A29: 5 | B29: =$D$1 ->  | C29: L-Name | D29: Lori | F29: # of AB's | H29: =SUM(J29:AA29) -> 10 | I29: AB's | J29: 1 | K29: 1 | L29: 1 | M29: 1 | N29: 1 | O29: 1 | P29: 1 | Q29: 1 | R29: 1 | S29: 1
C30: F-Name | F30: # of Hits | H30: =SUM(J30:AA30) -> 0 | I30: Hits | J30: 0 | K30: 0 | L30: 0 | M30: 0 | N30: 0 | O30: 0 | P30: 0 | Q30: 0 | R30: 0 | S30: 0
F31: # of PA | H31: =SUM(J31:AA31) -> 10 | I31: PA | J31: 1 | K31: 1 | L31: 1 | M31: 1 | N31: 1 | O31: 1 | P31: 1 | Q31: 1 | R31: 1 | S31: 1
D32: f | F32: Avg | H32: =IF(H29=0,"",H30/H29) -> 0 | I32: Avg | J32: =IF(J29="","",J30/J29) -> 0 | K32: 0 | L32: 0 | M32: 0 | N32: 0 | O32: 0 | P32: 0 | Q32: 0 | R32: 0 | S32: 0
A33: 6 | B33: =$D$1 ->  | C33: L-Name | D33: Jack | F33: # of AB's | H33: =SUM(J33:AA33) -> 10 | I33: AB's | J33: 1 | K33: 1 | L33: 1 | M33: 1 | N33: 1 | O33: 1 | P33: 1 | Q33: 1 | R33: 1 | S33: 1
C34: F-Name | F34: # of Hits | H34: =SUM(J34:AA34) -> 0 | I34: Hits | J34: 0 | K34: 0 | L34: 0 | M34: 0 | N34: 0 | O34: 0 | P34: 0 | Q34: 0 | R34: 0 | S34: 0
F35: # of PA | H35: =SUM(J35:AA35) -> 10 | I35: PA | J35: 1 | K35: 1 | L35: 1 | M35: 1 | N35: 1 | O35: 1 | P35: 1 | Q35: 1 | R35: 1 | S35: 1
D36: m | F36: Avg | H36: =IF(H33=0,"",H34/H33) -> 0 | I36: Avg | J36: =IF(J33="","",J34/J33) -> 0 | K36: 0 | L36: 0 | M36: 0 | N36: 0 | O36: 0 | P36: 0 | Q36: 0 | R36: 0 | S36: 0
A37: 7 | B37: =$D$1 ->  | C37: L-Name | D37: Kim | F37: # of AB's | H37: =SUM(J37:AA37) -> 10 | I37: AB's | J37: 1 | K37: 1 | L37: 1 | M37: 1 | N37: 1 | O37: 1 | P37: 1 | Q37: 1 | R37: 1 | S37: 1
C38: F-Name | F38: # of Hits | H38: =SUM(J38:AA38) -> 0 | I38: Hits | J38: 0 | K38: 0 | L38: 0 | M38: 0 | N38: 0 | O38: 0 | P38: 0 | Q38: 0 | R38: 0 | S38: 0
F39: # of PA | H39: =SUM(J39:AA39) -> 10 | I39: PA | J39: 1 | K39: 1 | L39: 1 | M39: 1 | N39: 1 | O39: 1 | P39: 1 | Q39: 1 | R39: 1 | S39: 1
D40: f | F40: Avg | H40: =IF(H37=0,"",H38/H37) -> 0 | I40: Avg | J40: =IF(J37="","",J38/J37) -> 0 | K40: 0 | L40: 0 | M40: 0 | N40: 0 | O40: 0 | P40: 0 | Q40: 0 | R40: 0 | S40: 0
A41: 8 | B41: =$D$1 ->  | C41: L-Name | D41: Jeff | F41: # of AB's | H41: =SUM(J41:AA41) -> 10 | I41: AB's | J41: 1 | K41: 1 | L41: 1 | M41: 1 | N41: 1 | O41: 1 | P41: 1 | Q41: 1 | R41: 1 | S41: 1
C42: F-Name | F42: # of Hits | H42: =SUM(J42:AA42) -> 0 | I42: Hits | J42: 0 | K42: 0 | L42: 0 | M42: 0 | N42: 0 | O42: 0 | P42: 0 | Q42: 0 | R42: 0 | S42: 0
F43: # of PA | H43: =SUM(J43:AA43) -> 10 | I43: PA | J43: 1 | K43: 1 | L43: 1 | M43: 1 | N43: 1 | O43: 1 | P43: 1 | Q43: 1 | R43: 1 | S43: 1
D44: m | F44: Avg | H44: =IF(H41=0,"",H42/H41) -> 0 | I44: Avg | J44: =IF(J41="","",J42/J41) -> 0 | K44: 0 | L44: 0 | M44: 0 | N44: 0 | O44: 0 | P44: 0 | Q44: 0 | R44: 0 | S44: 0
A45: 9 | B45: =$D$1 ->  | C45: L-Name | D45: Kenzie | F45: # of AB's | H45: =SUM(J45:AA45) -> 10 | I45: AB's | J45: 1 | K45: 1 | L45: 1 | M45: 1 | N45: 1 | O45: 1 | P45: 1 | Q45: 1 | R45: 1 | S45: 1
C46: F-Name | F46: # of Hits | H46: =SUM(J46:AA46) -> 0 | I46: Hits | J46: 0 | K46: 0 | L46: 0 | M46: 0 | N46: 0 | O46: 0 | P46: 0 | Q46: 0 | R46: 0 | S46: 0
F47: # of PA | H47: =SUM(J47:AA47) -> 10 | I47: PA | J47: 1 | K47: 1 | L47: 1 | M47: 1 | N47: 1 | O47: 1 | P47: 1 | Q47: 1 | R47: 1 | S47: 1
D48: f | F48: Avg | H48: =IF(H45=0,"",H46/H45) -> 0 | I48: Avg | J48: =IF(J45="","",J46/J45) -> 0 | K48: 0 | L48: 0 | M48: 0 | N48: 0 | O48: 0 | P48: 0 | Q48: 0 | R48: 0 | S48: 0
A49: 10 | B49: =$D$1 ->  | C49: L-Name | D49: Paul | F49: # of AB's | H49: =SUM(J49:AA49) -> 10 | I49: AB's | J49: 1 | K49: 1 | L49: 1 | M49: 1 | N49: 1 | O49: 1 | P49: 1 | Q49: 1 | R49: 1 | S49: 1
C50: F-Name | F50: # of Hits | H50: =SUM(J50:AA50) -> 0 | I50: Hits | J50: 0 | K50: 0 | L50: 0 | M50: 0 | N50: 0 | O50: 0 | P50: 0 | Q50: 0 | R50: 0 | S50: 0
F51: # of PA | H51: =SUM(J51:AA51) -> 10 | I51: PA | J51: 1 | K51: 1 | L51: 1 | M51: 1 | N51: 1 | O51: 1 | P51: 1 | Q51: 1 | R51: 1 | S51: 1
D52: m | F52: Avg | H52: =IF(H49=0,"",H50/H49) -> 0 | I52: Avg | J52: =IF(J49="","",J50/J49) -> 0 | K52: 0 | L52: 0 | M52: 0 | N52: 0 | O52: 0 | P52: 0 | Q52: 0 | R52: 0 | S52: 0
A53: 11 | B53: =$D$1 ->  | C53: L-Name | F53: # of AB's | H53: =SUM(J53:AA53) -> 0 | I53: AB's
C54: F-Name | F54: # of Hits | H54: =SUM(J54:AA54) -> 0 | I54: Hits
F55: # of PA | H55: =SUM(J55:AA55) -> 0 | I55: PA
D56: f | F56: Avg | H56: =IF(H53=0,"",H54/H53) ->  | I56: Avg | J56: =IF(J53="","",J54/J53) -> 
A57: 12 | B57: =$D$1 ->  | C57: L-Name | F57: # of AB's | H57: =SUM(J57:AA57) -> 0 | I57: AB's
C58: F-Name | F58: # of Hits | H58: =SUM(J58:AA58) -> 0 | I58: Hits
F59: # of PA | H59: =SUM(J59:AA59) -> 0 | I59: PA
D60: f | F60: Avg | H60: =IF(H57=0,"",H58/H57) ->  | I60: Avg | J60: =IF(J57="","",J58/J57) -> 
A61: 13 | B61: =$D$1 ->  | C61: L-Name | F61: # of AB's | H61: =SUM(J61:AA61) -> 0 | I61: AB's
C62: F-Name | F62: # of Hits | H62: =SUM(J62:AA62) -> 0 | I62: Hits
F63: # of PA | H63: =SUM(J63:AA63) -> 0 | I63: PA
D64: f | F64: Avg | H64: =IF(H61=0,"",H62/H61) ->  | I64: Avg | J64: =IF(J61="","",J62/J61) -> 
A65: 14 | B65: =$D$1 ->  | C65: L-Name | F65: # of AB's | H65: =SUM(J65:AA65) -> 0 | I65: AB's
C66: F-Name | F66: # of Hits | H66: =SUM(J66:AA66) -> 0 | I66: Hits
F67: # of PA | H67: =SUM(J67:AA67) -> 0 | I67: PA
D68: f | F68: Avg | H68: =IF(H65=0,"",H66/H65) ->  | I68: Avg | J68: =IF(J65="","",J66/J65) -> 
A69: 15 | B69: =$D$1 ->  | C69: L-Name | F69: # of AB's | H69: =SUM(J69:AA69) -> 0 | I69: AB's
C70: F-Name | F70: # of Hits | H70: =SUM(J70:AA70) -> 0 | I70: Hits
F71: # of PA | H71: =SUM(J71:AA71) -> 0 | I71: PA
D72: f | F72: Avg | H72: =IF(H69=0,"",H70/H69) ->  | I72: Avg | J72: =IF(J69="","",J70/J69) -> 
A73: 16 | B73: =$D$1 ->  | C73: L-Name | F73: # of AB's | H73: =SUM(J73:AA73) -> 0 | I73: AB's
C74: F-Name | F74: # of Hits | H74: =SUM(J74:AA74) -> 0 | I74: Hits
F75: # of PA | H75: =SUM(J75:AA75) -> 0 | I75: PA
D76: f | F76: Avg | H76: =IF(H73=0,"",H74/H73) ->  | I76: Avg | J76: =IF(J73="","",J74/J73) -> 
A77: 17 | B77: =$D$1 ->  | C77: L-Name | F77: # of AB's | H77: =SUM(J77:AA77) -> 0 | I77: AB's
C78: F-Name | F78: # of Hits | H78: =SUM(J78:AA78) -> 0 | I78: Hits
F79: # of PA | H79: =SUM(J79:AA79) -> 0 | I79: PA
D80: f | F80: Avg | H80: =IF(H77=0,"",H78/H77) ->  | I80: Avg | J80: =IF(J77="","",J78/J77) -> 
A81: 18 | B81: =$D$1 ->  | C81: L-Name | F81: # of AB's | H81: =SUM(J81:AA81) -> 0 | I81: AB's
C82: F-Name | F82: # of Hits | H82: =SUM(J82:AA82) -> 0 | I82: Hits
F83: # of PA | H83: =SUM(J83:AA83) -> 0 | I83: PA
D84: f | F84: Avg | H84: =IF(H81=0,"",H82/H81) ->  | I84: Avg | J84: =IF(J81="","",J82/J81) -> 
A85: 19 | B85: =$D$1 ->  | C85: L-Name | F85: # of AB's | H85: =SUM(J85:AA85) -> 0 | I85: AB's
C86: F-Name | F86: # of Hits | H86: =SUM(J86:AA86) -> 0 | I86: Hits
F87: # of PA | H87: =SUM(J87:AA87) -> 0 | I87: PA
D88: f | F88: Avg | H88: =IF(H85=0,"",H86/H85) ->  | I88: Avg | J88: =IF(J85="","",J86/J85) -> 
A89: 20 | B89: =$D$1 ->  | C89: L-Name | F89: # of AB's | H89: =SUM(J89:AA89) -> 0 | I89: AB's
C90: F-Name | F90: # of Hits | H90: =SUM(J90:AA90) -> 0 | I90: Hits
F91: # of PA | H91: =SUM(J91:AA91) -> 0 | I91: PA
D92: f | F92: Avg | H92: =IF(H89=0,"",H90/H89) ->  | I92: Avg | J92: =IF(J89="","",J90/J89) -> 
A93: 21 | B93: =$D$1 ->  | C93: L-Name | F93: # of AB's | H93: =SUM(J93:AA93) -> 0 | I93: AB's
C94: F-Name | F94: # of Hits | H94: =SUM(J94:AA94) -> 0 | I94: Hits
F95: # of PA | H95: =SUM(J95:AA95) -> 0 | I95: PA
D96: f | F96: Avg | H96: =IF(H93=0,"",H94/H93) ->  | I96: Avg | J96: =IF(J93="","",J94/J93) -> 
A97: 22 | B97: =$D$1 ->  | C97: L-Name | F97: # of AB's | H97: =SUM(J97:AA97) -> 0 | I97: AB's
C98: F-Name | F98: # of Hits | H98: =SUM(J98:AA98) -> 0 | I98: Hits
F99: # of PA | H99: =SUM(J99:AA99) -> 0 | I99: PA
D100: f | F100: Avg | H100: =IF(H97=0,"",H98/H97) ->  | I100: Avg | J100: =IF(J97="","",J98/J97) -> 
A101: 23 | B101: =$D$1 ->  | C101: L-Name | F101: # of AB's | H101: =SUM(J101:AA101) -> 0 | I101: AB's
C102: F-Name | F102: # of Hits | H102: =SUM(J102:AA102) -> 0 | I102: Hits
F103: # of PA | H103: =SUM(J103:AA103) -> 0 | I103: PA
D104: f | F104: Avg | H104: =IF(H101=0,"",H102/H101) ->  | I104: Avg | J104: =IF(J101="","",J102/J101) -> 
A105: 24 | B105: =$D$1 ->  | C105: L-Name | F105: # of AB's | H105: =SUM(J105:AA105) -> 0 | I105: AB's
C106: F-Name | F106: # of Hits | H106: =SUM(J106:AA106) -> 0 | I106: Hits
F107: # of PA | H107: =SUM(J107:AA107) -> 0 | I107: PA
D108: f | F108: Avg | H108: =IF(H105=0,"",H106/H105) ->  | I108: Avg | J108: =IF(J105="","",J106/J105) -> 
A109: 25 | B109: =$D$1 ->  | C109: L-Name | F109: # of AB's | H109: =SUM(J109:AA109) -> 0 | I109: AB's
C110: F-Name | F110: # of Hits | H110: =SUM(J110:AA110) -> 0 | I110: Hits
F111: # of PA | H111: =SUM(J111:AA111) -> 0 | I111: PA
D112: f | F112: Avg | H112: =IF(H109=0,"",H110/H109) ->  | I112: Avg | J112: =IF(J109="","",J110/J109) -> 
B113: =$D$1 ->  | D113: TEAM | F113: # of AB's | H113: =SUM(J113:AA113) -> 100 | I113: AB's | J113: =IF(SUM(J109,J105,J101,J97,J93,J89,J85,J81,J77,J73,J69,J65,J61,J57,J53,J49,J45,J41,J37,J33,J29,J25,J21,J17,J13)=0,"",SUM(J13,J17,J21,J25,J29,J33,J37,J41,J45,J49,J53,J57,J61,J65,J69,J73,J77,J81,J85,J89,J93,J97,J101,J105,J109)) -> 10 | K113: 10 | L113: 10 | M113: 10 | N113: 10 | O113: 10 | P113: 10 | Q113: 10 | R113: 10 | S113: 10
D114: Summary | F114: # of Hits | H114: =SUM(J114:AA114) -> 0 | I114: Hits | J114: =IF(SUM(J110,J106,J102,J98,J94,J90,J86,J82,J78,J74,J70,J66,J62,J58,J54,J50,J46,J42,J38,J34,J30,J26,J22,J18,J14)=0,"",SUM(J14,J18,J22,J26,J30,J34,J38,J42,J46,J50,J54,J58,J62,J66,J70,J74,J78,J82,J86,J90,J94,J98,J102,J106,J110)) -> 
F115: Avg | H115: =IF(H113=0,"N/A",H114/H113) -> 0 | I115: Avg | J115: =IF(J113="","",J114/J113) -> 

Sheet Female
A1: counter | B1: roster # | C1: Team Name | D1: L-Name | E1: F-Name | F1: Batting Avg | G1: # of AB's | H1: # of Games | I1: Enough pa's | J1: HITS | K1: # of PA | L1: Male/Female
A2: 8 | B2: ='Bad Pitches'!$A$41 -> 8 | C2: ='Bad Pitches'!$D$1 -> Bad Pitches | D2: ='Bad Pitches'!$D$41 -> Calliane | E2: ='Bad Pitches'!$D$42 -> Hodson | F2: ='Bad Pitches'!$H$44 -> 0.875 | G2: ='Bad Pitches'!$H$41 -> 8 | H2: ='Bad Pitches'!$F$8 -> 3 | I2: =IF(K2<(H2*2.5),"N","Y") -> Y | J2: ='Bad Pitches'!$H$42 -> 7 | K2: ='Bad Pitches'!$H$43 -> 8 | L2: ='Bad Pitches'!$D$44 -> f
A3: 52 | B3: ='Ghetto Bombers'!$A$17 -> 2 | C3: ='Ghetto Bombers'!$D$1 -> Ghetto Bombers | D3: ='Ghetto Bombers'!$D$17 -> Calleigh | E3: ='Ghetto Bombers'!$D$18 -> DeYoung | F3: ='Ghetto Bombers'!$H$20 -> 0.875 | G3: ='Ghetto Bombers'!$H$17 -> 8 | H3: ='Ghetto Bombers'!$F$8 -> 4 | I3: Y | J3: ='Ghetto Bombers'!$H$18 -> 7 | K3: ='Ghetto Bombers'!$H$19 -> 12 | L3: ='Ghetto Bombers'!$D$20 -> f
A4: 29 | B4: =BCBC!$A$25 -> 4 | C4: =BCBC!$D$1 -> BCBC | D4: =BCBC!$D$25 -> Maree | E4: =BCBC!$D$26 -> Achermann | F4: =BCBC!$H$28 -> 0.625 | G4: =BCBC!$H$25 -> 16 | H4: =BCBC!$F$8 -> 4 | I4: Y | J4: =BCBC!$H$26 -> 10 | K4: =BCBC!$H$27 -> 16 | L4: =BCBC!$D$28 -> f
A5: 31 | B5: =BCBC!$A$33 -> 6 | C5: =BCBC!$D$1 -> BCBC | D5: =BCBC!$D$33 -> Sunni | E5: =BCBC!$D$34 -> Jackson | F5: =BCBC!$H$36 -> 0.5714285714 | G5: =BCBC!$H$33 -> 14 | H5: =BCBC!$F$8 -> 4 | I5: Y | J5: =BCBC!$H$34 -> 8 | K5: =BCBC!$H$35 -> 15 | L5: =BCBC!$D$36 -> f
A6: 37 | B6: =BCBC!$A$57 -> 12 | C6: =BCBC!$D$1 -> BCBC | D6: =BCBC!$D$57 -> Mel | E6: =BCBC!$D$58 -> Maile | F6: =BCBC!$H$60 -> 0.5384615385 | G6: =BCBC!$H$57 -> 13 | H6: =BCBC!$F$8 -> 4 | I6: Y | J6: =BCBC!$H$58 -> 7 | K6: =BCBC!$H$59 -> 13 | L6: =BCBC!$D$60 -> f
A7: 33 | B7: =BCBC!$A$41 -> 8 | C7: =BCBC!$D$1 -> BCBC | D7: =BCBC!$D$41 -> Casey | E7: =BCBC!$D$42 -> Velarde | F7: =BCBC!$H$44 -> 0.5 | G7: =BCBC!$H$41 -> 10 | H7: =BCBC!$F$8 -> 4 | I7: Y | J7: =BCBC!$H$42 -> 5 | K7: =BCBC!$H$43 -> 10 | L7: =BCBC!$D$44 -> f
A8: 101 | B8: =Sticks!$A$13 -> 1 | C8: =Sticks!$D$1 -> Sticks | D8: =Sticks!$D$13 -> Kacee | E8: =Sticks!$D$14 -> Robinson | F8: =Sticks!$H$16 -> 0.4666666667 | G8: =Sticks!$H$13 -> 15 | H8: =Sticks!$F$8 -> 4 | I8: Y | J8: =Sticks!$H$14 -> 7 | K8: =Sticks!$H$15 -> 16 | L8: =Sticks!$D$16 -> f
A9: 58 | B9: ='Ghetto Bombers'!$A$41 -> 8 | C9: ='Ghetto Bombers'!$D$1 -> Ghetto Bombers | D9: ='Ghetto Bombers'!$D$41 -> Brandi | E9: ='Ghetto Bombers'!$D$42 -> Hall | F9: ='Ghetto Bombers'!$H$44 -> 0.4615384615 | G9: ='Ghetto Bombers'!$H$41 -> 13 | H9: ='Ghetto Bombers'!$F$8 -> 4 | I9: Y | J9: ='Ghetto Bombers'!$H$42 -> 6 | K9: ='Ghetto Bombers'!$H$43 -> 13 | L9: ='Ghetto Bombers'!$D$44 -> f
A10: 39 | B10: =BCBC!$A$65 -> 14 | C10: =BCBC!$D$1 -> BCBC | D10: =BCBC!$D$65 -> Tiffany | E10: =BCBC!$D$66 -> Morton | F10: =BCBC!$H$68 -> 0.3636363636 | G10: =BCBC!$H$65 -> 11 | H10: =BCBC!$F$8 -> 4 | I10: Y | J10: =BCBC!$H$66 -> 4 | K10: =BCBC!$H$67 -> 11 | L10: =BCBC!$D$68 -> f
A11: 35 | B11: =BCBC!$A$49 -> 10 | C11: =BCBC!$D$1 -> BCBC | D11: =BCBC!$D$49 -> Robyne | E11: =BCBC!$D$50 -> Oostveen | F11: =BCBC!$H$52 -> 0.3571428571 | G11: =BCBC!$H$49 -> 14 | H11: =BCBC!$F$8 -> 4 | I11: Y | J11: =BCBC!$H$50 -> 5 | K11: =BCBC!$H$51 -> 14 | L11: =BCBC!$D$52 -> f
A12: 6 | B12: ='Bad Pitches'!$A$33 -> 6 | C12: ='Bad Pitches'!$D$1 -> Bad Pitches | D12: ='Bad Pitches'!$D$33 -> Paige | E12: ='Bad Pitches'!$D$34 -> Reynolds | F12: ='Bad Pitches'!$H$36 -> 0.3333333333 | G12: ='Bad Pitches'!$H$33 -> 12 | H12: ='Bad Pitches'!$F$8 -> 3 | I12: Y | J12: ='Bad Pitches'!$H$34 -> 4 | K12: ='Bad Pitches'!$H$35 -> 12 | L12: ='Bad Pitches'!$D$36 -> f
A13: 107 | B13: =Sticks!$A$37 -> 7 | C13: =Sticks!$D$1 -> Sticks | D13: =Sticks!$D$37 -> Shar | E13: =Sticks!$D$38 -> Norton | F13: =Sticks!$H$40 -> 0.3333333333 | G13: =Sticks!$H$37 -> 12 | H13: =Sticks!$F$8 -> 4 | I13: Y | J13: =Sticks!$H$38 -> 4 | K13: =Sticks!$H$39 -> 13 | L13: =Sticks!$D$40 -> f
A14: 54 | B14: ='Ghetto Bombers'!$A$25 -> 4 | C14: ='Ghetto Bombers'!$D$1 -> Ghetto Bombers | D14: ='Ghetto Bombers'!$D$25 -> JoJo | E14: ='Ghetto Bombers'!$D$26 -> Carlson | F14: ='Ghetto Bombers'!$H$28 -> 0.3125 | G14: ='Ghetto Bombers'!$H$25 -> 16 | H14: ='Ghetto Bombers'!$F$8 -> 4 | I14: Y | J14: ='Ghetto Bombers'!$H$26 -> 5 | K14: ='Ghetto Bombers'!$H$27 -> 16 | L14: ='Ghetto Bombers'!$D$28 -> f
A15: 2 | B15: ='Bad Pitches'!$A$17 -> 2 | C15: ='Bad Pitches'!$D$1 -> Bad Pitches | D15: ='Bad Pitches'!$D$17 -> Tayce | E15: ='Bad Pitches'!$D$18 -> Shamo | F15: ='Bad Pitches'!$H$20 -> 0.3076923077 | G15: ='Bad Pitches'!$H$17 -> 13 | H15: ='Bad Pitches'!$F$8 -> 3 | I15: Y | J15: ='Bad Pitches'!$H$18 -> 4 | K15: ='Bad Pitches'!$H$19 -> 13 | L15: ='Bad Pitches'!$D$20 -> f
A16: 62 | B16: ='Ghetto Bombers'!$A$57 -> 12 | C16: ='Ghetto Bombers'!$D$1 -> Ghetto Bombers | D16: ='Ghetto Bombers'!$D$57 -> Ali | E16: ='Ghetto Bombers'!$D$58 -> Smith | F16: ='Ghetto Bombers'!$H$60 -> 0.2727272727 | G16: ='Ghetto Bombers'!$H$57 -> 11 | H16: ='Ghetto Bombers'!$F$8 -> 4 | I16: Y | J16: ='Ghetto Bombers'!$H$58 -> 3 | K16: ='Ghetto Bombers'!$H$59 -> 13 | L16: ='Ghetto Bombers'!$D$60 -> f
A17: 103 | B17: =Sticks!$A$21 -> 3 | C17: =Sticks!$D$1 -> Sticks | D17: =Sticks!$D$21 -> Whitney | E17: =Sticks!$D$22 -> Larson | F17: =Sticks!$H$24 -> 0.25 | G17: =Sticks!$H$21 -> 12 | H17: =Sticks!$F$8 -> 4 | I17: Y | J17: =Sticks!$H$22 -> 3 | K17: =Sticks!$H$23 -> 12 | L17: =Sticks!$D$24 -> f
A18: 4 | B18: ='Bad Pitches'!$A$25 -> 4 | C18: ='Bad Pitches'!$D$1 -> Bad Pitches | D18: ='Bad Pitches'!$D$25 -> Stephanie | E18: ='Bad Pitches'!$D$26 -> Bonham | F18: ='Bad Pitches'!$H$28 -> 0.25 | G18: ='Bad Pitches'!$H$25 -> 12 | H18: ='Bad Pitches'!$F$8 -> 3 | I18: Y | J18: ='Bad Pitches'!$H$26 -> 3 | K18: ='Bad Pitches'!$H$27 -> 12 | L18: ='Bad Pitches'!$D$28 -> f
A19: 111 | B19: =Sticks!$A$53 -> 11 | C19: =Sticks!$D$1 -> Sticks | D19: =Sticks!$D$53 -> Melinda | E19: =Sticks!$D$54 -> Adams | F19: =Sticks!$H$56 -> 0.2 | G19: =Sticks!$H$53 -> 10 | H19: =Sticks!$F$8 -> 4 | I19: Y | J19: =Sticks!$H$54 -> 2 | K19: =Sticks!$H$55 -> 12 | L19: =Sticks!$D$56 -> f
A20: 56 | B20: ='Ghetto Bombers'!$A$33 -> 6 | C20: ='Ghetto Bombers'!$D$1 -> Ghetto Bombers | D20: ='Ghetto Bombers'!$D$33 -> Angela | E20: ='Ghetto Bombers'!$D$34 -> Ahmadpour | F20: ='Ghetto Bombers'!$H$36 -> 0.1 | G20: ='Ghetto Bombers'!$H$33 -> 10 | H20: ='Ghetto Bombers'!$F$8 -> 4 | I20: Y | J20: ='Ghetto Bombers'!$H$34 -> 1 | K20: ='Ghetto Bombers'!$H$35 -> 10 | L20: ='Ghetto Bombers'!$D$36 -> f
A21: 45 | B21: =BCBC!$A$89 -> 20 | C21: =BCBC!$D$1 -> BCBC | D21: =BCBC!$D$89 -> 0 | E21: =BCBC!$D$90 -> 0 | F21: =BCBC!$H$92 ->  | G21: =BCBC!$H$89 -> 0 | H21: =BCBC!$F$8 -> 4 | I21: N | J21: =BCBC!$H$90 -> 0 | K21: =BCBC!$H$91 -> 0 | L21: =BCBC!$D$92 -> f
A22: 47 | B22: =BCBC!$A$97 -> 22 | C22: =BCBC!$D$1 -> BCBC | D22: =BCBC!$D$97 -> 0 | E22: =BCBC!$D$98 -> 0 | F22: =BCBC!$H$100 ->  | G22: =BCBC!$H$97 -> 0 | H22: =BCBC!$F$8 -> 4 | I22: N | J22: =BCBC!$H$98 -> 0 | K22: =BCBC!$H$99 -> 0 | L22: =BCBC!$D$100 -> f
A23: 49 | B23: =BCBC!$A$105 -> 24 | C23: =BCBC!$D$1 -> BCBC | D23: =BCBC!$D$105 -> 0 | E23: =BCBC!$D$106 -> 0 | F23: =BCBC!$H$108 ->  | G23: =BCBC!$H$105 -> 0 | H23: =BCBC!$F$8 -> 4 | I23: N | J23: =BCBC!$H$106 -> 0 | K23: =BCBC!$H$107 -> 0 | L23: =BCBC!$D$108 -> f
A24: 70 | B24: ='Ghetto Bombers'!$A$89 -> 20 | C24: ='Ghetto Bombers'!$D$1 -> Ghetto Bombers | D24: ='Ghetto Bombers'!$D$89 -> 0 | E24: ='Ghetto Bombers'!$D$90 -> 0 | F24: ='Ghetto Bombers'!$H$92 ->  | G24: ='Ghetto Bombers'!$H$89 -> 0 | H24: ='Ghetto Bombers'!$F$8 -> 4 | I24: N | J24: ='Ghetto Bombers'!$H$90 -> 0 | K24: ='Ghetto Bombers'!$H$91 -> 0 | L24: ='Ghetto Bombers'!$D$92 -> f
A25: 43 | B25: =BCBC!$A$81 -> 18 | C25: =BCBC!$D$1 -> BCBC | D25: =BCBC!$D$81 -> 0 | E25: =BCBC!$D$82 -> 0 | F25: =BCBC!$H$84 ->  | G25: =BCBC!$H$81 -> 0 | H25: =BCBC!$F$8 -> 4 | I25: N | J25: =BCBC!$H$82 -> 0 | K25: =BCBC!$H$83 -> 0 | L25: =BCBC!$D$84 -> f
A26: 41 | B26: =BCBC!$A$73 -> 16 | C26: =BCBC!$D$1 -> BCBC | D26: =BCBC!$D$73 -> 0 | E26: =BCBC!$D$74 -> 0 | F26: =BCBC!$H$76 ->  | G26: =BCBC!$H$73 -> 0 | H26: =BCBC!$F$8 -> 4 | I26: N | J26: =BCBC!$H$74 -> 0 | K26: =BCBC!$H$75 -> 0 | L26: =BCBC!$D$76 -> f
A27: 68 | B27: ='Ghetto Bombers'!$A$81 -> 18 | C27: ='Ghetto Bombers'!$D$1 -> Ghetto Bombers | D27: ='Ghetto Bombers'!$D$81 -> 0 | E27: ='Ghetto Bombers'!$D$82 -> 0 | F27: ='Ghetto Bombers'!$H$84 ->  | G27: ='Ghetto Bombers'!$H$81 -> 0 | H27: ='Ghetto Bombers'!$F$8 -> 4 | I27: N | J27: ='Ghetto Bombers'!$H$82 -> 0 | K27: ='Ghetto Bombers'!$H$83 -> 0 | L27: ='Ghetto Bombers'!$D$84 -> f
A28: 137 | B28: ='Team 6'!$A$57 -> 12 | C28: ='Team 6'!$D$1 -> Team 6 | D28: ='Team 6'!$D$57 -> 0 | E28: ='Team 6'!$D$58 -> 0 | F28: ='Team 6'!$H$60 ->  | G28: ='Team 6'!$H$57 -> 0 | H28: ='Team 6'!$F$8 -> 8 | I28: N | J28: ='Team 6'!$H$58 -> 0 | K28: ='Team 6'!$H$59 -> 0 | L28: ='Team 6'!$D$60 -> f
A29: 21 | B29: ='Bad Pitches'!$A$93 -> 21 | C29: ='Bad Pitches'!$D$1 -> Bad Pitches | D29: ='Bad Pitches'!$D$93 -> 0 | E29: ='Bad Pitches'!$D$94 -> 0 | F29: ='Bad Pitches'!$H$96 ->  | G29: ='Bad Pitches'!$H$93 -> 0 | H29: ='Bad Pitches'!$F$8 -> 3 | I29: N | J29: ='Bad Pitches'!$H$94 -> 0 | K29: ='Bad Pitches'!$H$95 -> 0 | L29: ='Bad Pitches'!$D$96 -> f
A30: 22 | B30: ='Bad Pitches'!$A$97 -> 22 | C30: ='Bad Pitches'!$D$1 -> Bad Pitches | D30: ='Bad Pitches'!$D$97 -> 0 | E30: ='Bad Pitches'!$D$98 -> 0 | F30: ='Bad Pitches'!$H$100 ->  | G30: ='Bad Pitches'!$H$97 -> 0 | H30: ='Bad Pitches'!$F$8 -> 3 | I30: N | J30: ='Bad Pitches'!$H$98 -> 0 | K30: ='Bad Pitches'!$H$99 -> 0 | L30: ='Bad Pitches'!$D$100 -> f
A31: 23 | B31: ='Bad Pitches'!$A$101 -> 23 | C31: ='Bad Pitches'!$D$1 -> Bad Pitches | D31: ='Bad Pitches'!$D$101 -> 0 | E31: ='Bad Pitches'!$D$102 -> 0 | F31: ='Bad Pitches'!$H$104 ->  | G31: ='Bad Pitches'!$H$101 -> 0 | H31: ='Bad Pitches'!$F$8 -> 3 | I31: N | J31: ='Bad Pitches'!$H$102 -> 0 | K31: ='Bad Pitches'!$H$103 -> 0 | L31: ='Bad Pitches'!$D$104 -> f
A32: 24 | B32: ='Bad Pitches'!$A$105 -> 24 | C32: ='Bad Pitches'!$D$1 -> Bad Pitches | D32: ='Bad Pitches'!$D$105 -> 0 | E32: ='Bad Pitches'!$D$106 -> 0 | F32: ='Bad Pitches'!$H$108 ->  | G32: ='Bad Pitches'!$H$105 -> 0 | H32: ='Bad Pitches'!$F$8 -> 3 | I32: N | J32: ='Bad Pitches'!$H$106 -> 0 | K32: ='Bad Pitches'!$H$107 -> 0 | L32: ='Bad Pitches'!$D$108 -> f
A33: 25 | B33: ='Bad Pitches'!$A$109 -> 25 | C33: ='Bad Pitches'!$D$1 -> Bad Pitches | D33: ='Bad Pitches'!$D$109 -> 0 | E33: ='Bad Pitches'!$D$110 -> 0 | F33: ='Bad Pitches'!$H$112 ->  | G33: ='Bad Pitches'!$H$109 -> 0 | H33: ='Bad Pitches'!$F$8 -> 3 | I33: N | J33: ='Bad Pitches'!$H$110 -> 0 | K33: ='Bad Pitches'!$H$111 -> 0 | L33: ='Bad Pitches'!$D$112 -> f
A34: 72 | B34: ='Ghetto Bombers'!$A$97 -> 22 | C34: ='Ghetto Bombers'!$D$1 -> Ghetto Bombers | D34: ='Ghetto Bombers'!$D$97 -> 0 | E34: ='Ghetto Bombers'!$D$98 -> 0 | F34: ='Ghetto Bombers'!$H$100 ->  | G34: ='Ghetto Bombers'!$H$97 -> 0 | H34: ='Ghetto Bombers'!$F$8 -> 4 | I34: =IF(K34<(H34*2.5),"N","Y") -> N | J34: ='Ghetto Bombers'!$H$98 -> 0 | K34: ='Ghetto Bombers'!$H$99 -> 0 | L34: ='Ghetto Bombers'!$D$100 -> f
A35: 73 | B35: ='Ghetto Bombers'!$A$101 -> 23 | C35: ='Ghetto Bombers'!$D$1 -> Ghetto Bombers | D35: ='Ghetto Bombers'!$D$101 -> 0 | E35: ='Ghetto Bombers'!$D$102 -> 0 | F35: ='Ghetto Bombers'!$H$104 ->  | G35: ='Ghetto Bombers'!$H$101 -> 0 | H35: ='Ghetto Bombers'!$F$8 -> 4 | I35: N | J35: ='Ghetto Bombers'!$H$102 -> 0 | K35: ='Ghetto Bombers'!$H$103 -> 0 | L35: ='Ghetto Bombers'!$D$104 -> f
A36: 74 | B36: ='Ghetto Bombers'!$A$105 -> 24 | C36: ='Ghetto Bombers'!$D$1 -> Ghetto Bombers | D36: ='Ghetto Bombers'!$D$105 -> 0 | E36: ='Ghetto Bombers'!$D$106 -> 0 | F36: ='Ghetto Bombers'!$H$108 ->  | G36: ='Ghetto Bombers'!$H$105 -> 0 | H36: ='Ghetto Bombers'!$F$8 -> 4 | I36: N | J36: ='Ghetto Bombers'!$H$106 -> 0 | K36: ='Ghetto Bombers'!$H$107 -> 0 | L36: ='Ghetto Bombers'!$D$108 -> f
A37: 75 | B37: ='Ghetto Bombers'!$A$109 -> 25 | C37: ='Ghetto Bombers'!$D$1 -> Ghetto Bombers | D37: ='Ghetto Bombers'!$D$109 -> 0 | E37: ='Ghetto Bombers'!$D$110 -> 0 | F37: ='Ghetto Bombers'!$H$112 ->  | G37: ='Ghetto Bombers'!$H$109 -> 0 | H37: ='Ghetto Bombers'!$F$8 -> 4 | I37: N | J37: ='Ghetto Bombers'!$H$110 -> 0 | K37: ='Ghetto Bombers'!$H$111 -> 0 | L37: ='Ghetto Bombers'!$D$112 -> f
A38: 95 | B38: ='Hit Squad'!$A$89 -> 20 | C38: ='Hit Squad'!$D$1 -> Hit Squad | D38: ='Hit Squad'!$D$89 -> 0 | E38: ='Hit Squad'!$D$90 -> 0 | F38: ='Hit Squad'!$H$92 ->  | G38: ='Hit Squad'!$H$89 -> 0 | H38: ='Hit Squad'!$F$8 -> 3 | I38: N | J38: ='Hit Squad'!$H$90 -> 0 | K38: ='Hit Squad'!$H$91 -> 0 | L38: ='Hit Squad'!$D$92 -> f
A39: 96 | B39: ='Hit Squad'!$A$93 -> 21 | C39: ='Hit Squad'!$D$1 -> Hit Squad | D39: ='Hit Squad'!$D$93 -> 0 | E39: ='Hit Squad'!$D$94 -> 0 | F39: ='Hit Squad'!$H$96 ->  | G39: ='Hit Squad'!$H$93 -> 0 | H39: ='Hit Squad'!$F$8 -> 3 | I39: N | J39: ='Hit Squad'!$H$94 -> 0 | K39: ='Hit Squad'!$H$95 -> 0 | L39: ='Hit Squad'!$D$96 -> f
A40: 97 | B40: ='Hit Squad'!$A$97 -> 22 | C40: ='Hit Squad'!$D$1 -> Hit Squad | D40: ='Hit Squad'!$D$97 -> 0 | E40: ='Hit Squad'!$D$98 -> 0 | F40: ='Hit Squad'!$H$100 ->  | G40: ='Hit Squad'!$H$97 -> 0 | H40: ='Hit Squad'!$F$8 -> 3 | I40: N | J40: ='Hit Squad'!$H$98 -> 0 | K40: ='Hit Squad'!$H$99 -> 0 | L40: ='Hit Squad'!$D$100 -> f
A41: 98 | B41: ='Hit Squad'!$A$101 -> 23 | C41: ='Hit Squad'!$D$1 -> Hit Squad | D41: ='Hit Squad'!$D$101 -> 0 | E41: ='Hit Squad'!$D$102 -> 0 | F41: ='Hit Squad'!$H$104 ->  | G41: ='Hit Squad'!$H$101 -> 0 | H41: ='Hit Squad'!$F$8 -> 3 | I41: N | J41: ='Hit Squad'!$H$102 -> 0 | K41: ='Hit Squad'!$H$103 -> 0 | L41: ='Hit Squad'!$D$104 -> f
A42: 99 | B42: ='Hit Squad'!$A$105 -> 24 | C42: ='Hit Squad'!$D$1 -> Hit Squad | D42: ='Hit Squad'!$D$105 -> 0 | E42: ='Hit Squad'!$D$106 -> 0 | F42: ='Hit Squad'!$H$108 ->  | G42: ='Hit Squad'!$H$105 -> 0 | H42: ='Hit Squad'!$F$8 -> 3 | I42: N | J42: ='Hit Squad'!$H$106 -> 0 | K42: ='Hit Squad'!$H$107 -> 0 | L42: ='Hit Squad'!$D$108 -> f
A43: 100 | B43: ='Hit Squad'!$A$109 -> 25 | C43: ='Hit Squad'!$D$1 -> Hit Squad | D43: ='Hit Squad'!$D$109 -> 0 | E43: ='Hit Squad'!$D$110 -> 0 | F43: ='Hit Squad'!$H$112 ->  | G43: ='Hit Squad'!$H$109 -> 0 | H43: ='Hit Squad'!$F$8 -> 3 | I43: N | J43: ='Hit Squad'!$H$110 -> 0 | K43: ='Hit Squad'!$H$111 -> 0 | L43: ='Hit Squad'!$D$112 -> f
A44: 122 | B44: =Sticks!$A$97 -> 22 | C44: =Sticks!$D$1 -> Sticks | D44: =Sticks!$D$97 -> 0 | E44: =Sticks!$D$98 -> 0 | F44: =Sticks!$H$100 ->  | G44: =Sticks!$H$97 -> 0 | H44: =Sticks!$F$8 -> 4 | I44: N | J44: =Sticks!$H$98 -> 0 | K44: =Sticks!$H$99 -> 0 | L44: =Sticks!$D$100 -> f
A45: 123 | B45: =Sticks!$A$101 -> 23 | C45: =Sticks!$D$1 -> Sticks | D45: =Sticks!$D$101 -> 0 | E45: =Sticks!$D$102 -> 0 | F45: =Sticks!$H$104 ->  | G45: =Sticks!$H$101 -> 0 | H45: =Sticks!$F$8 -> 4 | I45: N | J45: =Sticks!$H$102 -> 0 | K45: =Sticks!$H$103 -> 0 | L45: =Sticks!$D$104 -> f
A46: 124 | B46: =Sticks!$A$105 -> 24 | C46: =Sticks!$D$1 -> Sticks | D46: =Sticks!$D$105 -> 0 | E46: =Sticks!$D$106 -> 0 | F46: =Sticks!$H$108 ->  | G46: =Sticks!$H$105 -> 0 | H46: =Sticks!$F$8 -> 4 | I46: N | J46: =Sticks!$H$106 -> 0 | K46: =Sticks!$H$107 -> 0 | L46: =Sticks!$D$108 -> f
A47: 125 | B47: =Sticks!$A$109 -> 25 | C47: =Sticks!$D$1 -> Sticks | D47: =Sticks!$D$109 -> 0 | E47: =Sticks!$D$110 -> 0 | F47: =Sticks!$H$112 ->  | G47: =Sticks!$H$109 -> 0 | H47: =Sticks!$F$8 -> 4 | I47: N | J47: =Sticks!$H$110 -> 0 | K47: =Sticks!$H$111 -> 0 | L47: =Sticks!$D$112 -> f
A48: 150 | B48: ='Team 6'!$A$109 -> 25 | C48: ='Team 6'!$D$1 -> Team 6 | D48: ='Team 6'!$D$109 -> 0 | E48: ='Team 6'!$D$110 -> 0 | F48: ='Team 6'!$H$112 ->  | G48: ='Team 6'!$H$109 -> 0 | H48: ='Team 6'!$F$8 -> 8 | I48: N | J48: ='Team 6'!$H$110 -> 0 | K48: ='Team 6'!$H$111 -> 0 | L48: ='Team 6'!$D$112 -> f
A49: 189 | B49: ='Team 8'!$A$65 -> 14 | C49: ='Team 8'!$D$1 ->  | D49: ='Team 8'!$D$65 -> 0 | E49: ='Team 8'!$D$66 -> 0 | F49: ='Team 8'!$H$68 ->  | G49: ='Team 8'!$H$65 -> 0 | H49: ='Team 8'!$F$8 -> 8 | I49: N | J49: ='Team 8'!$H$66 -> 0 | K49: ='Team 8'!$H$67 -> 0 | L49: ='Team 8'!$D$68 -> f
A50: 190 | B50: ='Team 8'!$A$69 -> 15 | C50: ='Team 8'!$D$1 ->  | D50: ='Team 8'!$D$69 -> 0 | E50: ='Team 8'!$D$70 -> 0 | F50: ='Team 8'!$H$72 ->  | G50: ='Team 8'!$H$69 -> 0 | H50: ='Team 8'!$F$8 -> 8 | I50: N | J50: ='Team 8'!$H$70 -> 0 | K50: ='Team 8'!$H$71 -> 0 | L50: ='Team 8'!$D$72 -> f
A51: 191 | B51: ='Team 8'!$A$73 -> 16 | C51: ='Team 8'!$D$1 ->  | D51: ='Team 8'!$D$73 -> 0 | E51: ='Team 8'!$D$74 -> 0 | F51: ='Team 8'!$H$76 ->  | G51: ='Team 8'!$H$73 -> 0 | H51: ='Team 8'!$F$8 -> 8 | I51: N | J51: ='Team 8'!$H$74 -> 0 | K51: ='Team 8'!$H$75 -> 0 | L51: ='Team 8'!$D$76 -> f
A52: 192 | B52: ='Team 8'!$A$77 -> 17 | C52: ='Team 8'!$D$1 ->  | D52: ='Team 8'!$D$77 -> 0 | E52: ='Team 8'!$D$78 -> 0 | F52: ='Team 8'!$H$80 ->  | G52: ='Team 8'!$H$77 -> 0 | H52: ='Team 8'!$F$8 -> 8 | I52: N | J52: ='Team 8'!$H$78 -> 0 | K52: ='Team 8'!$H$79 -> 0 | L52: ='Team 8'!$D$80 -> f
A53: 193 | B53: ='Team 8'!$A$81 -> 18 | C53: ='Team 8'!$D$1 ->  | D53: ='Team 8'!$D$81 -> 0 | E53: ='Team 8'!$D$82 -> 0 | F53: ='Team 8'!$H$84 ->  | G53: ='Team 8'!$H$81 -> 0 | H53: ='Team 8'!$F$8 -> 8 | I53: N | J53: ='Team 8'!$H$82 -> 0 | K53: ='Team 8'!$H$83 -> 0 | L53: ='Team 8'!$D$84 -> f
A54: 194 | B54: ='Team 8'!$A$85 -> 19 | C54: ='Team 8'!$D$1 ->  | D54: ='Team 8'!$D$85 -> 0 | E54: ='Team 8'!$D$86 -> 0 | F54: ='Team 8'!$H$88 ->  | G54: ='Team 8'!$H$85 -> 0 | H54: ='Team 8'!$F$8 -> 8 | I54: N | J54: ='Team 8'!$H$86 -> 0 | K54: ='Team 8'!$H$87 -> 0 | L54: ='Team 8'!$D$88 -> f
A55: 195 | B55: ='Team 8'!$A$89 -> 20 | C55: ='Team 8'!$D$1 ->  | D55: ='Team 8'!$D$89 -> 0 | E55: ='Team 8'!$D$90 -> 0 | F55: ='Team 8'!$H$92 ->  | G55: ='Team 8'!$H$89 -> 0 | H55: ='Team 8'!$F$8 -> 8 | I55: N | J55: ='Team 8'!$H$90 -> 0 | K55: ='Team 8'!$H$91 -> 0 | L55: ='Team 8'!$D$92 -> f
A56: 196 | B56: ='Team 8'!$A$93 -> 21 | C56: ='Team 8'!$D$1 ->  | D56: ='Team 8'!$D$93 -> 0 | E56: ='Team 8'!$D$94 -> 0 | F56: ='Team 8'!$H$96 ->  | G56: ='Team 8'!$H$93 -> 0 | H56: ='Team 8'!$F$8 -> 8 | I56: N | J56: ='Team 8'!$H$94 -> 0 | K56: ='Team 8'!$H$95 -> 0 | L56: ='Team 8'!$D$96 -> f
A57: 197 | B57: ='Team 8'!$A$97 -> 22 | C57: ='Team 8'!$D$1 ->  | D57: ='Team 8'!$D$97 -> 0 | E57: ='Team 8'!$D$98 -> 0 | F57: ='Team 8'!$H$100 ->  | G57: ='Team 8'!$H$97 -> 0 | H57: ='Team 8'!$F$8 -> 8 | I57: N | J57: ='Team 8'!$H$98 -> 0 | K57: ='Team 8'!$H$99 -> 0 | L57: ='Team 8'!$D$100 -> f
A58: 198 | B58: ='Team 8'!$A$101 -> 23 | C58: ='Team 8'!$D$1 ->  | D58: ='Team 8'!$D$101 -> 0 | E58: ='Team 8'!$D$102 -> 0 | F58: ='Team 8'!$H$104 ->  | G58: ='Team 8'!$H$101 -> 0 | H58: ='Team 8'!$F$8 -> 8 | I58: N | J58: ='Team 8'!$H$102 -> 0 | K58: ='Team 8'!$H$103 -> 0 | L58: ='Team 8'!$D$104 -> f
A59: 199 | B59: ='Team 8'!$A$105 -> 24 | C59: ='Team 8'!$D$1 ->  | D59: ='Team 8'!$D$105 -> 0 | E59: ='Team 8'!$D$106 -> 0 | F59: ='Team 8'!$H$108 ->  | G59: ='Team 8'!$H$105 -> 0 | H59: ='Team 8'!$F$8 -> 8 | I59: N | J59: ='Team 8'!$H$106 -> 0 | K59: ='Team 8'!$H$107 -> 0 | L59: ='Team 8'!$D$108 -> f
A60: 200 | B60: ='Team 8'!$A$109 -> 25 | C60: ='Team 8'!$D$1 ->  | D60: ='Team 8'!$D$109 -> 0 | E60: ='Team 8'!$D$110 -> 0 | F60: ='Team 8'!$H$112 ->  | G60: ='Team 8'!$H$109 -> 0 | H60: ='Team 8'!$F$8 -> 8 | I60: N | J60: ='Team 8'!$H$110 -> 0 | K60: ='Team 8'!$H$111 -> 0 | L60: ='Team 8'!$D$112 -> f
A61: 218 | B61: ='Team 7'!$A$81 -> 18 | C61: ='Team 7'!$D$1 ->  | D61: ='Team 7'!$D$81 -> 0 | E61: ='Team 7'!$D$82 -> 0 | F61: ='Team 7'!$H$84 ->  | G61: ='Team 7'!$H$81 -> 0 | H61: ='Team 7'!$F$8 -> 8 | I61: N | J61: ='Team 7'!$H$82 -> 0 | K61: ='Team 7'!$H$83 -> 0 | L61: ='Team 7'!$D$84 -> f
A62: 219 | B62: ='Team 7'!$A$85 -> 19 | C62: ='Team 7'!$D$1 ->  | D62: ='Team 7'!$D$85 -> 0 | E62: ='Team 7'!$D$86 -> 0 | F62: ='Team 7'!$H$88 ->  | G62: ='Team 7'!$H$85 -> 0 | H62: ='Team 7'!$F$8 -> 8 | I62: N | J62: ='Team 7'!$H$86 -> 0 | K62: ='Team 7'!$H$87 -> 0 | L62: ='Team 7'!$D$88 -> f
A63: 220 | B63: ='Team 7'!$A$89 -> 20 | C63: ='Team 7'!$D$1 ->  | D63: ='Team 7'!$D$89 -> 0 | E63: ='Team 7'!$D$90 -> 0 | F63: ='Team 7'!$H$92 ->  | G63: ='Team 7'!$H$89 -> 0 | H63: ='Team 7'!$F$8 -> 8 | I63: N | J63: ='Team 7'!$H$90 -> 0 | K63: ='Team 7'!$H$91 -> 0 | L63: ='Team 7'!$D$92 -> f
A64: 221 | B64: ='Team 7'!$A$93 -> 21 | C64: ='Team 7'!$D$1 ->  | D64: ='Team 7'!$D$93 -> 0 | E64: ='Team 7'!$D$94 -> 0 | F64: ='Team 7'!$H$96 ->  | G64: ='Team 7'!$H$93 -> 0 | H64: ='Team 7'!$F$8 -> 8 | I64: N | J64: ='Team 7'!$H$94 -> 0 | K64: ='Team 7'!$H$95 -> 0 | L64: ='Team 7'!$D$96 -> f
A65: 222 | B65: ='Team 7'!$A$97 -> 22 | C65: ='Team 7'!$D$1 ->  | D65: ='Team 7'!$D$97 -> 0 | E65: ='Team 7'!$D$98 -> 0 | F65: ='Team 7'!$H$100 ->  | G65: ='Team 7'!$H$97 -> 0 | H65: ='Team 7'!$F$8 -> 8 | I65: N | J65: ='Team 7'!$H$98 -> 0 | K65: ='Team 7'!$H$99 -> 0 | L65: ='Team 7'!$D$100 -> f
A66: 223 | B66: ='Team 7'!$A$101 -> 23 | C66: ='Team 7'!$D$1 ->  | D66: ='Team 7'!$D$101 -> 0 | E66: ='Team 7'!$D$102 -> 0 | F66: ='Team 7'!$H$104 ->  | G66: ='Team 7'!$H$101 -> 0 | H66: ='Team 7'!$F$8 -> 8 | I66: =IF(K66<(H66*2.5),"N","Y") -> N | J66: ='Team 7'!$H$102 -> 0 | K66: ='Team 7'!$H$103 -> 0 | L66: ='Team 7'!$D$104 -> f
A67: 224 | B67: ='Team 7'!$A$105 -> 24 | C67: ='Team 7'!$D$1 ->  | D67: ='Team 7'!$D$105 -> 0 | E67: ='Team 7'!$D$106 -> 0 | F67: ='Team 7'!$H$108 ->  | G67: ='Team 7'!$H$105 -> 0 | H67: ='Team 7'!$F$8 -> 8 | I67: N | J67: ='Team 7'!$H$106 -> 0 | K67: ='Team 7'!$H$107 -> 0 | L67: ='Team 7'!$D$108 -> f
A68: 225 | B68: ='Team 7'!$A$109 -> 25 | C68: ='Team 7'!$D$1 ->  | D68: ='Team 7'!$D$109 -> 0 | E68: ='Team 7'!$D$110 -> 0 | F68: ='Team 7'!$H$112 ->  | G68: ='Team 7'!$H$109 -> 0 | H68: ='Team 7'!$F$8 -> 8 | I68: N | J68: ='Team 7'!$H$110 -> 0 | K68: ='Team 7'!$H$111 -> 0 | L68: ='Team 7'!$D$112 -> f
A69: 187 | B69: ='Team 8'!$A$57 -> 12 | C69: ='Team 8'!$D$1 ->  | D69: ='Team 8'!$D$57 -> 0 | E69: ='Team 8'!$D$58 -> 0 | F69: ='Team 8'!$H$60 ->  | G69: ='Team 8'!$H$57 -> 0 | H69: ='Team 8'!$F$8 -> 8 | I69: N | J69: ='Team 8'!$H$58 -> 0 | K69: ='Team 8'!$H$59 -> 0 | L69: ='Team 8'!$D$60 -> f
A70: 188 | B70: ='Team 8'!$A$61 -> 13 | C70: ='Team 8'!$D$1 ->  | D70: ='Team 8'!$D$61 -> 0 | E70: ='Team 8'!$D$62 -> 0 | F70: ='Team 8'!$H$64 ->  | G70: ='Team 8'!$H$61 -> 0 | H70: ='Team 8'!$F$8 -> 8 | I70: N | J70: ='Team 8'!$H$62 -> 0 | K70: ='Team 8'!$H$63 -> 0 | L70: ='Team 8'!$D$64 -> f
A71: 213 | B71: ='Team 7'!$A$61 -> 13 | C71: ='Team 7'!$D$1 ->  | D71: ='Team 7'!$D$61 -> 0 | E71: ='Team 7'!$D$62 -> 0 | F71: ='Team 7'!$H$64 ->  | G71: ='Team 7'!$H$61 -> 0 | H71: ='Team 7'!$F$8 -> 8 | I71: N | J71: ='Team 7'!$H$62 -> 0 | K71: ='Team 7'!$H$63 -> 0 | L71: ='Team 7'!$D$64 -> f
A72: 215 | B72: ='Team 7'!$A$69 -> 15 | C72: ='Team 7'!$D$1 ->  | D72: ='Team 7'!$D$69 -> 0 | E72: ='Team 7'!$D$70 -> 0 | F72: ='Team 7'!$H$72 ->  | G72: ='Team 7'!$H$69 -> 0 | H72: ='Team 7'!$F$8 -> 8 | I72: N | J72: ='Team 7'!$H$70 -> 0 | K72: ='Team 7'!$H$71 -> 0 | L72: ='Team 7'!$D$72 -> f
A73: 217 | B73: ='Team 7'!$A$77 -> 17 | C73: ='Team 7'!$D$1 ->  | D73: ='Team 7'!$D$77 -> 0 | E73: ='Team 7'!$D$78 -> 0 | F73: ='Team 7'!$H$80 ->  | G73: ='Team 7'!$H$77 -> 0 | H73: ='Team 7'!$F$8 -> 8 | I73: N | J73: ='Team 7'!$H$78 -> 0 | K73: ='Team 7'!$H$79 -> 0 | L73: ='Team 7'!$D$80 -> f
A74: 216 | B74: ='Team 7'!$A$73 -> 16 | C74: ='Team 7'!$D$1 ->  | D74: ='Team 7'!$D$73 -> 0 | E74: ='Team 7'!$D$74 -> 0 | F74: ='Team 7'!$H$76 ->  | G74: ='Team 7'!$H$73 -> 0 | H74: ='Team 7'!$F$8 -> 8 | I74: N | J74: ='Team 7'!$H$74 -> 0 | K74: ='Team 7'!$H$75 -> 0 | L74: ='Team 7'!$D$76 -> f
A75: 214 | B75: ='Team 7'!$A$65 -> 14 | C75: ='Team 7'!$D$1 ->  | D75: ='Team 7'!$D$65 -> 0 | E75: ='Team 7'!$D$66 -> 0 | F75: ='Team 7'!$H$68 ->  | G75: ='Team 7'!$H$65 -> 0 | H75: ='Team 7'!$F$8 -> 8 | I75: N | J75: ='Team 7'!$H$66 -> 0 | K75: ='Team 7'!$H$67 -> 0 | L75: ='Team 7'!$D$68 -> f
A76: 186 | B76: ='Team 8'!$A$53 -> 11 | C76: ='Team 8'!$D$1 ->  | D76: ='Team 8'!$D$53 -> 0 | E76: ='Team 8'!$D$54 -> 0 | F76: ='Team 8'!$H$56 ->  | G76: ='Team 8'!$H$53 -> 0 | H76: ='Team 8'!$F$8 -> 8 | I76: N | J76: ='Team 8'!$H$54 -> 0 | K76: ='Team 8'!$H$55 -> 0 | L76: ='Team 8'!$D$56 -> f
A77: 118 | B77: =Sticks!$A$81 -> 18 | C77: =Sticks!$D$1 -> Sticks | D77: =Sticks!$D$81 -> 0 | E77: =Sticks!$D$82 -> 0 | F77: =Sticks!$H$84 ->  | G77: =Sticks!$H$81 -> 0 | H77: =Sticks!$F$8 -> 4 | I77: N | J77: =Sticks!$H$82 -> 0 | K77: =Sticks!$H$83 -> 0 | L77: =Sticks!$D$84 -> f
A78: 17 | B78: ='Bad Pitches'!$A$77 -> 17 | C78: ='Bad Pitches'!$D$1 -> Bad Pitches | D78: ='Bad Pitches'!$D$77 -> 0 | E78: ='Bad Pitches'!$D$78 -> 0 | F78: ='Bad Pitches'!$H$80 ->  | G78: ='Bad Pitches'!$H$77 -> 0 | H78: ='Bad Pitches'!$F$8 -> 3 | I78: N | J78: ='Bad Pitches'!$H$78 -> 0 | K78: ='Bad Pitches'!$H$79 -> 0 | L78: ='Bad Pitches'!$D$80 -> f
A79: 120 | B79: =Sticks!$A$89 -> 20 | C79: =Sticks!$D$1 -> Sticks | D79: =Sticks!$D$89 -> 0 | E79: =Sticks!$D$90 -> 0 | F79: =Sticks!$H$92 ->  | G79: =Sticks!$H$89 -> 0 | H79: =Sticks!$F$8 -> 4 | I79: N | J79: =Sticks!$H$90 -> 0 | K79: =Sticks!$H$91 -> 0 | L79: =Sticks!$D$92 -> f
A80: 117 | B80: =Sticks!$A$77 -> 17 | C80: =Sticks!$D$1 -> Sticks | D80: =Sticks!$D$77 -> 0 | E80: =Sticks!$D$78 -> 0 | F80: =Sticks!$H$80 ->  | G80: =Sticks!$H$77 -> 0 | H80: =Sticks!$F$8 -> 4 | I80: N | J80: =Sticks!$H$78 -> 0 | K80: =Sticks!$H$79 -> 0 | L80: =Sticks!$D$80 -> f
A81: 20 | B81: ='Bad Pitches'!$A$89 -> 20 | C81: ='Bad Pitches'!$D$1 -> Bad Pitches | D81: ='Bad Pitches'!$D$89 -> 0 | E81: ='Bad Pitches'!$D$90 -> 0 | F81: ='Bad Pitches'!$H$92 ->  | G81: ='Bad Pitches'!$H$89 -> 0 | H81: ='Bad Pitches'!$F$8 -> 3 | I81: N | J81: ='Bad Pitches'!$H$90 -> 0 | K81: ='Bad Pitches'!$H$91 -> 0 | L81: ='Bad Pitches'!$D$92 -> f
A82: 94 | B82: ='Hit Squad'!$A$85 -> 19 | C82: ='Hit Squad'!$D$1 -> Hit Squad | D82: ='Hit Squad'!$D$85 -> 0 | E82: ='Hit Squad'!$D$86 -> 0 | F82: ='Hit Squad'!$H$88 ->  | G82: ='Hit Squad'!$H$85 -> 0 | H82: ='Hit Squad'!$F$8 -> 3 | I82: N | J82: ='Hit Squad'!$H$86 -> 0 | K82: ='Hit Squad'!$H$87 -> 0 | L82: ='Hit Squad'!$D$88 -> f
A83: 16 | B83: ='Bad Pitches'!$A$73 -> 16 | C83: ='Bad Pitches'!$D$1 -> Bad Pitches | D83: ='Bad Pitches'!$D$73 -> 0 | E83: ='Bad Pitches'!$D$74 -> 0 | F83: ='Bad Pitches'!$H$76 ->  | G83: ='Bad Pitches'!$H$73 -> 0 | H83: ='Bad Pitches'!$F$8 -> 3 | I83: N | J83: ='Bad Pitches'!$H$74 -> 0 | K83: ='Bad Pitches'!$H$75 -> 0 | L83: ='Bad Pitches'!$D$76 -> f
A84: 143 | B84: ='Team 6'!$A$81 -> 18 | C84: ='Team 6'!$D$1 -> Team 6 | D84: ='Team 6'!$D$81 -> 0 | E84: ='Team 6'!$D$82 -> 0 | F84: ='Team 6'!$H$84 ->  | G84: ='Team 6'!$H$81 -> 0 | H84: ='Team 6'!$F$8 -> 8 | I84: N | J84: ='Team 6'!$H$82 -> 0 | K84: ='Team 6'!$H$83 -> 0 | L84: ='Team 6'!$D$84 -> f
A85: 212 | B85: ='Team 7'!$A$57 -> 12 | C85: ='Team 7'!$D$1 ->  | D85: ='Team 7'!$D$57 -> 0 | E85: ='Team 7'!$D$58 -> 0 | F85: ='Team 7'!$H$60 ->  | G85: ='Team 7'!$H$57 -> 0 | H85: ='Team 7'!$F$8 -> 8 | I85: N | J85: ='Team 7'!$H$58 -> 0 | K85: ='Team 7'!$H$59 -> 0 | L85: ='Team 7'!$D$60 -> f
A86: 148 | B86: ='Team 6'!$A$101 -> 23 | C86: ='Team 6'!$D$1 -> Team 6 | D86: ='Team 6'!$D$101 -> 0 | E86: ='Team 6'!$D$102 -> 0 | F86: ='Team 6'!$H$104 ->  | G86: ='Team 6'!$H$101 -> 0 | H86: ='Team 6'!$F$8 -> 8 | I86: N | J86: ='Team 6'!$H$102 -> 0 | K86: ='Team 6'!$H$103 -> 0 | L86: ='Team 6'!$D$104 -> f
A87: 145 | B87: ='Team 6'!$A$89 -> 20 | C87: ='Team 6'!$D$1 -> Team 6 | D87: ='Team 6'!$D$89 -> 0 | E87: ='Team 6'!$D$90 -> 0 | F87: ='Team 6'!$H$92 ->  | G87: ='Team 6'!$H$89 -> 0 | H87: ='Team 6'!$F$8 -> 8 | I87: N | J87: ='Team 6'!$H$90 -> 0 | K87: ='Team 6'!$H$91 -> 0 | L87: ='Team 6'!$D$92 -> f
A88: 115 | B88: =Sticks!$A$69 -> 15 | C88: =Sticks!$D$1 -> Sticks | D88: =Sticks!$D$69 -> 0 | E88: =Sticks!$D$70 -> 0 | F88: =Sticks!$H$72 ->  | G88: =Sticks!$H$69 -> 0 | H88: =Sticks!$F$8 -> 4 | I88: N | J88: =Sticks!$H$70 -> 0 | K88: =Sticks!$H$71 -> 0 | L88: =Sticks!$D$72 -> f
A89: 141 | B89: ='Team 6'!$A$73 -> 16 | C89: ='Team 6'!$D$1 -> Team 6 | D89: ='Team 6'!$D$73 -> 0 | E89: ='Team 6'!$D$74 -> 0 | F89: ='Team 6'!$H$76 ->  | G89: ='Team 6'!$H$73 -> 0 | H89: ='Team 6'!$F$8 -> 8 | I89: N | J89: ='Team 6'!$H$74 -> 0 | K89: ='Team 6'!$H$75 -> 0 | L89: ='Team 6'!$D$76 -> f
A90: 15 | B90: ='Bad Pitches'!$A$69 -> 15 | C90: ='Bad Pitches'!$D$1 -> Bad Pitches | D90: ='Bad Pitches'!$D$69 -> 0 | E90: ='Bad Pitches'!$D$70 -> 0 | F90: ='Bad Pitches'!$H$72 ->  | G90: ='Bad Pitches'!$H$69 -> 0 | H90: ='Bad Pitches'!$F$8 -> 3 | I90: N | J90: ='Bad Pitches'!$H$70 -> 0 | K90: ='Bad Pitches'!$H$71 -> 0 | L90: ='Bad Pitches'!$D$72 -> f
A91: 89 | B91: ='Hit Squad'!$A$65 -> 14 | C91: ='Hit Squad'!$D$1 -> Hit Squad | D91: ='Hit Squad'!$D$65 -> Shannon | E91: ='Hit Squad'!$D$66 -> Adair | F91: ='Hit Squad'!$H$68 -> 0.6666666667 | G91: ='Hit Squad'!$H$65 -> 3 | H91: ='Hit Squad'!$F$8 -> 3 | I91: N | J91: ='Hit Squad'!$H$66 -> 2 | K91: ='Hit Squad'!$H$67 -> 3 | L91: ='Hit Squad'!$D$68 -> f
A92: 105 | B92: =Sticks!$A$29 -> 5 | C92: =Sticks!$D$1 -> Sticks | D92: =Sticks!$D$29 -> Taylor | E92: =Sticks!$D$30 -> Hensley | F92: =Sticks!$H$32 -> 0.6666666667 | G92: =Sticks!$H$29 -> 6 | H92: =Sticks!$F$8 -> 4 | I92: N | J92: =Sticks!$H$30 -> 4 | K92: =Sticks!$H$31 -> 7 | L92: =Sticks!$D$32 -> f
A93: 109 | B93: =Sticks!$A$45 -> 9 | C93: =Sticks!$D$1 -> Sticks | D93: =Sticks!$D$45 -> Whitney | E93: =Sticks!$D$46 -> Bean | F93: =Sticks!$H$48 -> 0.4444444444 | G93: =Sticks!$H$45 -> 9 | H93: =Sticks!$F$8 -> 4 | I93: N | J93: =Sticks!$H$46 -> 4 | K93: =Sticks!$H$47 -> 9 | L93: =Sticks!$D$48 -> f
A94: 85 | B94: ='Hit Squad'!$A$49 -> 10 | C94: ='Hit Squad'!$D$1 -> Hit Squad | D94: ='Hit Squad'!$D$49 -> Tasha | E94: ='Hit Squad'!$D$50 -> Harbaugh | F94: ='Hit Squad'!$H$52 -> 0.4285714286 | G94: ='Hit Squad'!$H$49 -> 7 | H94: ='Hit Squad'!$F$8 -> 3 | I94: N | J94: ='Hit Squad'!$H$50 -> 3 | K94: ='Hit Squad'!$H$51 -> 7 | L94: ='Hit Squad'!$D$52 -> f
A95: 27 | B95: =BCBC!$A$17 -> 2 | C95: =BCBC!$D$1 -> BCBC | D95: =BCBC!$D$17 -> Karen | E95: =BCBC!$D$18 -> Springer | F95: =BCBC!$H$20 -> 0.4 | G95: =BCBC!$H$17 -> 5 | H95: =BCBC!$F$8 -> 4 | I95: N | J95: =BCBC!$H$18 -> 2 | K95: =BCBC!$H$19 -> 5 | L95: =BCBC!$D$20 -> f
A96: 12 | B96: ='Bad Pitches'!$A$57 -> 12 | C96: ='Bad Pitches'!$D$1 -> Bad Pitches | D96: ='Bad Pitches'!$D$57 -> Sandra | E96: ='Bad Pitches'!$D$58 -> Chavez | F96: ='Bad Pitches'!$H$60 -> 0.3333333333 | G96: ='Bad Pitches'!$H$57 -> 3 | H96: ='Bad Pitches'!$F$8 -> 3 | I96: N | J96: ='Bad Pitches'!$H$58 -> 1 | K96: ='Bad Pitches'!$H$59 -> 3 | L96: ='Bad Pitches'!$D$60 -> f
A97: 113 | B97: =Sticks!$A$61 -> 13 | C97: =Sticks!$D$1 -> Sticks | D97: =Sticks!$D$61 -> Kate | E97: =Sticks!$D$62 -> Nygaard | F97: =Sticks!$H$64 -> 0.2857142857 | G97: =Sticks!$H$61 -> 7 | H97: =Sticks!$F$8 -> 4 | I97: N | J97: =Sticks!$H$62 -> 2 | K97: =Sticks!$H$63 -> 7 | L97: =Sticks!$D$64 -> f
A98: 79 | B98: ='Hit Squad'!$A$25 -> 4 | C98: ='Hit Squad'!$D$1 -> Hit Squad | D98: ='Hit Squad'!$D$25 -> Amber | E98: ='Hit Squad'!$D$26 -> Romero | F98: ='Hit Squad'!$H$28 -> 0.2857142857 | G98: ='Hit Squad'!$H$25 -> 7 | H98: ='Hit Squad'!$F$8 -> 3 | I98: =IF(K98<(H98*2.5),"N","Y") -> N | J98: ='Hit Squad'!$H$26 -> 2 | K98: ='Hit Squad'!$H$27 -> 7 | L98: ='Hit Squad'!$D$28 -> f
A99: 13 | B99: ='Bad Pitches'!$A$61 -> 13 | C99: ='Bad Pitches'!$D$1 -> Bad Pitches | D99: ='Bad Pitches'!$D$61 -> Britt | E99: ='Bad Pitches'!$D$62 -> Call | F99: ='Bad Pitches'!$H$64 -> 0.25 | G99: ='Bad Pitches'!$H$61 -> 4 | H99: ='Bad Pitches'!$F$8 -> 3 | I99: N | J99: ='Bad Pitches'!$H$62 -> 1 | K99: ='Bad Pitches'!$H$63 -> 4 | L99: ='Bad Pitches'!$D$64 -> f
A100: 65 | B100: ='Ghetto Bombers'!$A$69 -> 15 | C100: ='Ghetto Bombers'!$D$1 -> Ghetto Bombers | D100: ='Ghetto Bombers'!$D$69 -> Heidi | E100: ='Ghetto Bombers'!$D$70 -> Talor | F100: ='Ghetto Bombers'!$H$72 -> 0.2222222222 | G100: ='Ghetto Bombers'!$H$69 -> 9 | H100: ='Ghetto Bombers'!$F$8 -> 4 | I100: N | J100: ='Ghetto Bombers'!$H$70 -> 2 | K100: ='Ghetto Bombers'!$H$71 -> 9 | L100: ='Ghetto Bombers'!$D$72 -> f
A101: 83 | B101: ='Hit Squad'!$A$41 -> 8 | C101: ='Hit Squad'!$D$1 -> Hit Squad | D101: ='Hit Squad'!$D$41 -> Kelly | E101: ='Hit Squad'!$D$42 -> Noakes | F101: ='Hit Squad'!$H$44 -> 0.2 | G101: ='Hit Squad'!$H$41 -> 5 | H101: ='Hit Squad'!$F$8 -> 3 | I101: N | J101: ='Hit Squad'!$H$42 -> 1 | K101: ='Hit Squad'!$H$43 -> 5 | L101: ='Hit Squad'!$D$44 -> f
A102: 77 | B102: ='Hit Squad'!$A$17 -> 2 | C102: ='Hit Squad'!$D$1 -> Hit Squad | D102: ='Hit Squad'!$D$17 -> Miche | E102: ='Hit Squad'!$D$18 -> Ferrin | F102: ='Hit Squad'!$H$20 -> 0.1428571429 | G102: ='Hit Squad'!$H$17 -> 7 | H102: ='Hit Squad'!$F$8 -> 3 | I102: N | J102: ='Hit Squad'!$H$18 -> 1 | K102: ='Hit Squad'!$H$19 -> 7 | L102: ='Hit Squad'!$D$20 -> f
A103: 60 | B103: ='Ghetto Bombers'!$A$49 -> 10 | C103: ='Ghetto Bombers'!$D$1 -> Ghetto Bombers | D103: ='Ghetto Bombers'!$D$49 -> Hope | E103: ='Ghetto Bombers'!$D$50 -> Curtis | F103: ='Ghetto Bombers'!$H$52 -> 0 | G103: ='Ghetto Bombers'!$H$49 -> 1 | H103: ='Ghetto Bombers'!$F$8 -> 4 | I103: N | J103: ='Ghetto Bombers'!$H$50 -> 0 | K103: ='Ghetto Bombers'!$H$51 -> 3 | L103: ='Ghetto Bombers'!$D$52 -> f
A104: 10 | B104: ='Bad Pitches'!$A$49 -> 10 | C104: ='Bad Pitches'!$D$1 -> Bad Pitches | D104: ='Bad Pitches'!$D$49 -> Emma | E104: ='Bad Pitches'!$D$50 -> Larsen | F104: ='Bad Pitches'!$H$52 -> 0 | G104: ='Bad Pitches'!$H$49 -> 4 | H104: ='Bad Pitches'!$F$8 -> 3 | I104: N | J104: ='Bad Pitches'!$H$50 -> 0 | K104: ='Bad Pitches'!$H$51 -> 4 | L104: ='Bad Pitches'!$D$52 -> f
A105: 206 | B105: ='Team 7'!$A$33 -> 6 | C105: ='Team 7'!$D$1 ->  | D105: ='Team 7'!$D$33 -> Julie | E105: ='Team 7'!$D$34 -> 0 | F105: ='Team 7'!$H$36 -> 0 | G105: ='Team 7'!$H$33 -> 10 | H105: ='Team 7'!$F$8 -> 8 | I105: N | J105: ='Team 7'!$H$34 -> 0 | K105: ='Team 7'!$H$35 -> 10 | L105: ='Team 7'!$D$36 -> f
A106: 202 | B106: ='Team 7'!$A$17 -> 2 | C106: ='Team 7'!$D$1 ->  | D106: ='Team 7'!$D$17 -> Dorothy | E106: ='Team 7'!$D$18 -> 0 | F106: ='Team 7'!$H$20 -> 0 | G106: ='Team 7'!$H$17 -> 10 | H106: ='Team 7'!$F$8 -> 8 | I106: N | J106: ='Team 7'!$H$18 -> 0 | K106: ='Team 7'!$H$19 -> 10 | L106: ='Team 7'!$D$20 -> f
A107: 208 | B107: ='Team 7'!$A$41 -> 8 | C107: ='Team 7'!$D$1 ->  | D107: ='Team 7'!$D$41 -> Sheri | E107: ='Team 7'!$D$42 -> 0 | F107: ='Team 7'!$H$44 -> 0 | G107: ='Team 7'!$H$41 -> 10 | H107: ='Team 7'!$F$8 -> 8 | I107: N | J107: ='Team 7'!$H$42 -> 0 | K107: ='Team 7'!$H$43 -> 10 | L107: ='Team 7'!$D$44 -> f
A108: 127 | B108: ='Team 6'!$A$17 -> 2 | C108: ='Team 6'!$D$1 -> Team 6 | D108: ='Team 6'!$D$17 -> Mary | E108: ='Team 6'!$D$18 -> 0 | F108: ='Team 6'!$H$20 -> 0 | G108: ='Team 6'!$H$17 -> 10 | H108: ='Team 6'!$F$8 -> 8 | I108: N | J108: ='Team 6'!$H$18 -> 0 | K108: ='Team 6'!$H$19 -> 10 | L108: ='Team 6'!$D$20 -> f
A109: 211 | B109: ='Team 7'!$A$53 -> 11 | C109: ='Team 7'!$D$1 ->  | D109: ='Team 7'!$D$53 -> 0 | E109: ='Team 7'!$D$54 -> 0 | F109: ='Team 7'!$H$56 -> 0 | G109: ='Team 7'!$H$53 -> 10 | H109: ='Team 7'!$F$8 -> 8 | I109: N | J109: ='Team 7'!$H$54 -> 0 | K109: ='Team 7'!$H$55 -> 10 | L109: ='Team 7'!$D$56 -> f
A110: 204 | B110: ='Team 7'!$A$25 -> 4 | C110: ='Team 7'!$D$1 ->  | D110: ='Team 7'!$D$25 -> Jill | E110: ='Team 7'!$D$26 -> 0 | F110: ='Team 7'!$H$28 -> 0 | G110: ='Team 7'!$H$25 -> 10 | H110: ='Team 7'!$F$8 -> 8 | I110: N | J110: ='Team 7'!$H$26 -> 0 | K110: ='Team 7'!$H$27 -> 10 | L110: ='Team 7'!$D$28 -> f
A111: 131 | B111: ='Team 6'!$A$33 -> 6 | C111: ='Team 6'!$D$1 -> Team 6 | D111: ='Team 6'!$D$33 -> Heidi | E111: ='Team 6'!$D$34 -> 0 | F111: ='Team 6'!$H$36 -> 0 | G111: ='Team 6'!$H$33 -> 10 | H111: ='Team 6'!$F$8 -> 8 | I111: N | J111: ='Team 6'!$H$34 -> 0 | K111: ='Team 6'!$H$35 -> 10 | L111: ='Team 6'!$D$36 -> f
A112: 133 | B112: ='Team 6'!$A$41 -> 8 | C112: ='Team 6'!$D$1 -> Team 6 | D112: ='Team 6'!$D$41 -> Christine | E112: ='Team 6'!$D$42 -> 0 | F112: ='Team 6'!$H$44 -> 0 | G112: ='Team 6'!$H$41 -> 10 | H112: ='Team 6'!$F$8 -> 8 | I112: N | J112: ='Team 6'!$H$42 -> 0 | K112: ='Team 6'!$H$43 -> 10 | L112: ='Team 6'!$D$44 -> f
A113: 184 | B113: ='Team 8'!$A$45 -> 9 | C113: ='Team 8'!$D$1 ->  | D113: ='Team 8'!$D$45 -> Kenzie | E113: ='Team 8'!$D$46 -> 0 | F113: ='Team 8'!$H$48 -> 0 | G113: ='Team 8'!$H$45 -> 10 | H113: ='Team 8'!$F$8 -> 8 | I113: N | J113: ='Team 8'!$H$46 -> 0 | K113: ='Team 8'!$H$47 -> 10 | L113: ='Team 8'!$D$48 -> f
A114: 180 | B114: ='Team 8'!$A$29 -> 5 | C114: ='Team 8'!$D$1 ->  | D114: ='Team 8'!$D$29 -> Lori | E114: ='Team 8'!$D$30 -> 0 | F114: ='Team 8'!$H$32 -> 0 | G114: ='Team 8'!$H$29 -> 10 | H114: ='Team 8'!$F$8 -> 8 | I114: N | J114: ='Team 8'!$H$30 -> 0 | K114: ='Team 8'!$H$31 -> 10 | L114: ='Team 8'!$D$32 -> f
A115: 178 | B115: ='Team 8'!$A$21 -> 3 | C115: ='Team 8'!$D$1 ->  | D115: ='Team 8'!$D$21 -> Kylie | E115: ='Team 8'!$D$22 -> 0 | F115: ='Team 8'!$H$24 -> 0 | G115: ='Team 8'!$H$21 -> 10 | H115: ='Team 8'!$F$8 -> 8 | I115: N | J115: ='Team 8'!$H$22 -> 0 | K115: ='Team 8'!$H$23 -> 10 | L115: ='Team 8'!$D$24 -> f
A116: 176 | B116: ='Team 8'!$A$13 -> 1 | C116: ='Team 8'!$D$1 ->  | D116: ='Team 8'!$D$13 -> Linda | E116: ='Team 8'!$D$14 -> 0 | F116: ='Team 8'!$H$16 -> 0 | G116: ='Team 8'!$H$13 -> 10 | H116: ='Team 8'!$F$8 -> 8 | I116: N | J116: ='Team 8'!$H$14 -> 0 | K116: ='Team 8'!$H$15 -> 10 | L116: ='Team 8'!$D$16 -> f
A117: 182 | B117: ='Team 8'!$A$37 -> 7 | C117: ='Team 8'!$D$1 ->  | D117: ='Team 8'!$D$37 -> Kim | E117: ='Team 8'!$D$38 -> 0 | F117: ='Team 8'!$H$40 -> 0 | G117: ='Team 8'!$H$37 -> 10 | H117: ='Team 8'!$F$8 -> 8 | I117: N | J117: ='Team 8'!$H$38 -> 0 | K117: ='Team 8'!$H$39 -> 10 | L117: ='Team 8'!$D$40 -> f
A118: 135 | B118: ='Team 6'!$A$49 -> 10 | C118: ='Team 6'!$D$1 -> Team 6 | D118: ='Team 6'!$D$49 -> Laurie | E118: ='Team 6'!$D$50 -> 0 | F118: ='Team 6'!$H$52 -> 0 | G118: ='Team 6'!$H$49 -> 10 | H118: ='Team 6'!$F$8 -> 8 | I118: N | J118: ='Team 6'!$H$50 -> 0 | K118: ='Team 6'!$H$51 -> 10 | L118: ='Team 6'!$D$52 -> f
A119: 129 | B119: ='Team 6'!$A$25 -> 4 | C119: ='Team 6'!$D$1 -> Team 6 | D119: ='Team 6'!$D$25 -> Pat | E119: ='Team 6'!$D$26 -> 0 | F119: ='Team 6'!$H$28 -> 0 | G119: ='Team 6'!$H$25 -> 10 | H119: ='Team 6'!$F$8 -> 8 | I119: N | J119: ='Team 6'!$H$26 -> 0 | K119: ='Team 6'!$H$27 -> 10 | L119: ='Team 6'!$D$28 -> f
A120: 81 | B120: ='Hit Squad'!$A$33 -> 6 | C120: ='Hit Squad'!$D$1 -> Hit Squad | D120: ='Hit Squad'!$D$33 -> Michelle | E120: ='Hit Squad'!$D$34 -> Mears | F120: ='Hit Squad'!$H$36 -> 0 | G120: ='Hit Squad'!$H$33 -> 7 | H120: ='Hit Squad'!$F$8 -> 3 | I120: N | J120: ='Hit Squad'!$H$34 -> 0 | K120: ='Hit Squad'!$H$35 -> 7 | L120: ='Hit Squad'!$D$36 -> f
A121: 87 | B121: ='Hit Squad'!$A$57 -> 12 | C121: ='Hit Squad'!$D$1 -> Hit Squad | D121: ='Hit Squad'!$D$57 -> Kelli | E121: ='Hit Squad'!$D$58 -> Hansen | F121: ='Hit Squad'!$H$60 -> 0 | G121: ='Hit Squad'!$H$57 -> 2 | H121: ='Hit Squad'!$F$8 -> 3 | I121: N | J121: ='Hit Squad'!$H$58 -> 0 | K121: ='Hit Squad'!$H$59 -> 2 | L121: ='Hit Squad'!$D$60 -> f
A122: 210 | B122: ='Team 7'!$A$49 -> 10 | C122: ='Team 7'!$D$1 ->  | D122: ='Team 7'!$D$49 -> Trish | E122: ='Team 7'!$D$50 -> 0 | F122: ='Team 7'!$H$52 -> 0 | G122: ='Team 7'!$H$49 -> 10 | H122: ='Team 7'!$F$8 -> 8 | I122: N | J122: ='Team 7'!$H$50 -> 0 | K122: ='Team 7'!$H$51 -> 10 | L122: ='Team 7'!$D$52 -> f
A123: 88 | B123: ='Hit Squad'!$A$61 -> 13 | C123: ='Hit Squad'!$D$1 -> Hit Squad | D123: ='Hit Squad'!$D$61 -> Kellie | E123: ='Hit Squad'!$D$62 -> Molis | F123: ='Hit Squad'!$H$64 -> 0 | G123: ='Hit Squad'!$H$61 -> 1 | H123: ='Hit Squad'!$F$8 -> 3 | I123: N | J123: ='Hit Squad'!$H$62 -> 0 | K123: ='Hit Squad'!$H$63 -> 1 | L123: ='Hit Squad'!$D$64 -> f
A124: 114 | B124: =Sticks!$A$65 -> 14 | C124: =Sticks!$D$1 -> Sticks | D124: =Sticks!$D$65 -> Jaime | E124: =Sticks!$D$66 -> Holdaway | F124: =Sticks!$H$68 -> 0 | G124: =Sticks!$H$65 -> 3 | H124: =Sticks!$F$8 -> 4 | I124: N | J124: =Sticks!$H$66 -> 0 | K124: =Sticks!$H$67 -> 3 | L124: =Sticks!$D$68 -> f
A125: 90 | B125: ='Hit Squad'!$A$69 -> 15 | C125: ='Hit Squad'!$D$1 -> Hit Squad | D125: ='Hit Squad'!$D$69 -> Rachel | E125: ='Hit Squad'!$D$70 -> Russell | F125: ='Hit Squad'!$H$72 -> 0 | G125: ='Hit Squad'!$H$69 -> 2 | H125: ='Hit Squad'!$F$8 -> 3 | I125: N | J125: ='Hit Squad'!$H$70 -> 0 | K125: ='Hit Squad'!$H$71 -> 2 | L125: ='Hit Squad'!$D$72 -> f
A126: 63 | B126: ='Ghetto Bombers'!$A$61 -> 13 | C126: ='Ghetto Bombers'!$D$1 -> Ghetto Bombers | D126: ='Ghetto Bombers'!$D$61 -> Ryan | E126: ='Ghetto Bombers'!$D$62 -> Newbold | F126: ='Ghetto Bombers'!$H$64 -> 0.9090909091 | G126: ='Ghetto Bombers'!$H$61 -> 11 | H126: ='Ghetto Bombers'!$F$8 -> 4 | I126: Y | J126: ='Ghetto Bombers'!$H$62 -> 10 | K126: ='Ghetto Bombers'!$H$63 -> 11 | L126: ='Ghetto Bombers'!$D$64 -> m
A127: 76 | B127: ='Hit Squad'!$A$13 -> 1 | C127: ='Hit Squad'!$D$1 -> Hit Squad | D127: ='Hit Squad'!$D$13 -> Ryan | E127: ='Hit Squad'!$D$14 -> Cusick | F127: ='Hit Squad'!$H$16 -> 0.875 | G127: ='Hit Squad'!$H$13 -> 8 | H127: ='Hit Squad'!$F$8 -> 3 | I127: Y | J127: ='Hit Squad'!$H$14 -> 7 | K127: ='Hit Squad'!$H$15 -> 8 | L127: ='Hit Squad'!$D$16 -> m
A128: 34 | B128: =BCBC!$A$45 -> 9 | C128: =BCBC!$D$1 -> BCBC | D128: =BCBC!$D$45 -> Dustin | E128: =BCBC!$D$46 -> Hunter | F128: =BCBC!$H$48 -> 0.8666666667 | G128: =BCBC!$H$45 -> 15 | H128: =BCBC!$F$8 -> 4 | I128: Y | J128: =BCBC!$H$46 -> 13 | K128: =BCBC!$H$47 -> 15 | L128: =BCBC!$D$48 -> m
A129: 102 | B129: =Sticks!$A$17 -> 2 | C129: =Sticks!$D$1 -> Sticks | D129: =Sticks!$D$17 -> Tommy | E129: =Sticks!$D$18 -> Gonzales | F129: =Sticks!$H$20 -> 0.8571428571 | G129: =Sticks!$H$17 -> 14 | H129: =Sticks!$F$8 -> 4 | I129: Y | J129: =Sticks!$H$18 -> 12 | K129: =Sticks!$H$19 -> 14 | L129: =Sticks!$D$20 -> m
A130: 106 | B130: =Sticks!$A$33 -> 6 | C130: =Sticks!$D$1 -> Sticks | D130: =Sticks!$D$33 -> Sean | E130: =Sticks!$D$34 -> Adams | F130: =Sticks!$H$36 -> 0.8333333333 | G130: =Sticks!$H$33 -> 12 | H130: =Sticks!$F$8 -> 4 | I130: =IF(K130<(H130*2.5),"N","Y") -> Y | J130: =Sticks!$H$34 -> 10 | K130: =Sticks!$H$35 -> 13 | L130: =Sticks!$D$36 -> m
A131: 108 | B131: =Sticks!$A$41 -> 8 | C131: =Sticks!$D$1 -> Sticks | D131: =Sticks!$D$41 -> Tim | E131: =Sticks!$D$42 -> Arnold | F131: =Sticks!$H$44 -> 0.8333333333 | G131: =Sticks!$H$41 -> 12 | H131: =Sticks!$F$8 -> 4 | I131: Y | J131: =Sticks!$H$42 -> 10 | K131: =Sticks!$H$43 -> 13 | L131: =Sticks!$D$44 -> m
A132: 51 | B132: ='Ghetto Bombers'!$A$13 -> 1 | C132: ='Ghetto Bombers'!$D$1 -> Ghetto Bombers | D132: ='Ghetto Bombers'!$D$13 -> Mac | E132: ='Ghetto Bombers'!$D$14 -> Estrada | F132: ='Ghetto Bombers'!$H$16 -> 0.8 | G132: ='Ghetto Bombers'!$H$13 -> 15 | H132: ='Ghetto Bombers'!$F$8 -> 4 | I132: Y | J132: ='Ghetto Bombers'!$H$14 -> 12 | K132: ='Ghetto Bombers'!$H$15 -> 15 | L132: ='Ghetto Bombers'!$D$16 -> m
A133: 28 | B133: =BCBC!$A$21 -> 3 | C133: =BCBC!$D$1 -> BCBC | D133: =BCBC!$D$21 -> Shane | E133: =BCBC!$D$22 -> Singer | F133: =BCBC!$H$24 -> 0.75 | G133: =BCBC!$H$21 -> 16 | H133: =BCBC!$F$8 -> 4 | I133: Y | J133: =BCBC!$H$22 -> 12 | K133: =BCBC!$H$23 -> 16 | L133: =BCBC!$D$24 -> m
A134: 30 | B134: =BCBC!$A$29 -> 5 | C134: =BCBC!$D$1 -> BCBC | D134: =BCBC!$D$29 -> Ben | E134: =BCBC!$D$30 -> Magnum | F134: =BCBC!$H$32 -> 0.6923076923 | G134: =BCBC!$H$29 -> 13 | H134: =BCBC!$F$8 -> 4 | I134: Y | J134: =BCBC!$H$30 -> 9 | K134: =BCBC!$H$31 -> 13 | L134: =BCBC!$D$32 -> m
A135: 53 | B135: ='Ghetto Bombers'!$A$21 -> 3 | C135: ='Ghetto Bombers'!$D$1 -> Ghetto Bombers | D135: ='Ghetto Bombers'!$D$21 -> Chet | E135: ='Ghetto Bombers'!$D$22 -> Wanlass | F135: ='Ghetto Bombers'!$H$24 -> 0.6875 | G135: ='Ghetto Bombers'!$H$21 -> 16 | H135: ='Ghetto Bombers'!$F$8 -> 4 | I135: Y | J135: ='Ghetto Bombers'!$H$22 -> 11 | K135: ='Ghetto Bombers'!$H$23 -> 16 | L135: ='Ghetto Bombers'!$D$24 -> m
A136: 104 | B136: =Sticks!$A$25 -> 4 | C136: =Sticks!$D$1 -> Sticks | D136: =Sticks!$D$25 -> Nic | E136: =Sticks!$D$26 -> Johnston | F136: =Sticks!$H$28 -> 0.6666666667 | G136: =Sticks!$H$25 -> 12 | H136: =Sticks!$F$8 -> 4 | I136: Y | J136: =Sticks!$H$26 -> 8 | K136: =Sticks!$H$27 -> 12 | L136: =Sticks!$D$28 -> m
A137: 110 | B137: =Sticks!$A$49 -> 10 | C137: =Sticks!$D$1 -> Sticks | D137: =Sticks!$D$49 -> Tyler | E137: =Sticks!$D$50 -> Wardle | F137: =Sticks!$H$52 -> 0.6363636364 | G137: =Sticks!$H$49 -> 11 | H137: =Sticks!$F$8 -> 4 | I137: Y | J137: =Sticks!$H$50 -> 7 | K137: =Sticks!$H$51 -> 12 | L137: =Sticks!$D$52 -> m
A138: 26 | B138: =BCBC!$A$13 -> 1 | C138: =BCBC!$D$1 -> BCBC | D138: =BCBC!$D$13 -> Jordan | E138: =BCBC!$D$14 -> Rodgers | F138: =BCBC!$H$16 -> 0.6363636364 | G138: =BCBC!$H$13 -> 11 | H138: =BCBC!$F$8 -> 4 | I138: Y | J138: =BCBC!$H$14 -> 7 | K138: =BCBC!$H$15 -> 11 | L138: =BCBC!$D$16 -> m
A139: 7 | B139: ='Bad Pitches'!$A$37 -> 7 | C139: ='Bad Pitches'!$D$1 -> Bad Pitches | D139: ='Bad Pitches'!$D$37 -> Brian | E139: ='Bad Pitches'!$D$38 -> Godfrey | F139: ='Bad Pitches'!$H$40 -> 0.625 | G139: ='Bad Pitches'!$H$37 -> 8 | H139: ='Bad Pitches'!$F$8 -> 3 | I139: Y | J139: ='Bad Pitches'!$H$38 -> 5 | K139: ='Bad Pitches'!$H$39 -> 8 | L139: ='Bad Pitches'!$D$40 -> m
A140: 1 | B140: ='Bad Pitches'!$A$13 -> 1 | C140: ='Bad Pitches'!$D$1 -> Bad Pitches | D140: ='Bad Pitches'!$D$13 -> Ryan | E140: ='Bad Pitches'!$D$14 -> Watt | F140: ='Bad Pitches'!$H$16 -> 0.6153846154 | G140: ='Bad Pitches'!$H$13 -> 13 | H140: ='Bad Pitches'!$F$8 -> 3 | I140: Y | J140: ='Bad Pitches'!$H$14 -> 8 | K140: ='Bad Pitches'!$H$15 -> 13 | L140: ='Bad Pitches'!$D$16 -> m
A141: 36 | B141: =BCBC!$A$53 -> 11 | C141: =BCBC!$D$1 -> BCBC | D141: =BCBC!$D$53 -> Jace | E141: =BCBC!$D$54 -> Rogers | F141: =BCBC!$H$56 -> 0.6 | G141: =BCBC!$H$53 -> 10 | H141: =BCBC!$F$8 -> 4 | I141: Y | J141: =BCBC!$H$54 -> 6 | K141: =BCBC!$H$55 -> 10 | L141: =BCBC!$D$56 -> m
A142: 55 | B142: ='Ghetto Bombers'!$A$29 -> 5 | C142: ='Ghetto Bombers'!$D$1 -> Ghetto Bombers | D142: ='Ghetto Bombers'!$D$29 -> Jon | E142: ='Ghetto Bombers'!$D$30 -> Staley | F142: ='Ghetto Bombers'!$H$32 -> 0.5714285714 | G142: ='Ghetto Bombers'!$H$29 -> 14 | H142: ='Ghetto Bombers'!$F$8 -> 4 | I142: Y | J142: ='Ghetto Bombers'!$H$30 -> 8 | K142: ='Ghetto Bombers'!$H$31 -> 14 | L142: ='Ghetto Bombers'!$D$32 -> m
A143: 3 | B143: ='Bad Pitches'!$A$21 -> 3 | C143: ='Bad Pitches'!$D$1 -> Bad Pitches | D143: ='Bad Pitches'!$D$21 -> Jeff | E143: ='Bad Pitches'!$D$22 -> Cagle | F143: ='Bad Pitches'!$H$24 -> 0.5454545455 | G143: ='Bad Pitches'!$H$21 -> 11 | H143: ='Bad Pitches'!$F$8 -> 3 | I143: Y | J143: ='Bad Pitches'!$H$22 -> 6 | K143: ='Bad Pitches'!$H$23 -> 11 | L143: ='Bad Pitches'!$D$24 -> m
A144: 9 | B144: ='Bad Pitches'!$A$45 -> 9 | C144: ='Bad Pitches'!$D$1 -> Bad Pitches | D144: ='Bad Pitches'!$D$45 -> Vincente | E144: ='Bad Pitches'!$D$46 -> Herrera | F144: ='Bad Pitches'!$H$48 -> 0.5454545455 | G144: ='Bad Pitches'!$H$45 -> 11 | H144: ='Bad Pitches'!$F$8 -> 3 | I144: Y | J144: ='Bad Pitches'!$H$46 -> 6 | K144: ='Bad Pitches'!$H$47 -> 12 | L144: ='Bad Pitches'!$D$48 -> m
A145: 5 | B145: ='Bad Pitches'!$A$29 -> 5 | C145: ='Bad Pitches'!$D$1 -> Bad Pitches | D145: ='Bad Pitches'!$D$29 -> Aaron | E145: ='Bad Pitches'!$D$30 -> Montgomery | F145: ='Bad Pitches'!$H$32 -> 0.4545454545 | G145: ='Bad Pitches'!$H$29 -> 11 | H145: ='Bad Pitches'!$F$8 -> 3 | I145: Y | J145: ='Bad Pitches'!$H$30 -> 5 | K145: ='Bad Pitches'!$H$31 -> 11 | L145: ='Bad Pitches'!$D$32 -> m
A146: 112 | B146: =Sticks!$A$57 -> 12 | C146: =Sticks!$D$1 -> Sticks | D146: =Sticks!$D$57 -> Troy | E146: =Sticks!$D$58 -> Horne | F146: =Sticks!$H$60 -> 0.4545454545 | G146: =Sticks!$H$57 -> 11 | H146: =Sticks!$F$8 -> 4 | I146: Y | J146: =Sticks!$H$58 -> 5 | K146: =Sticks!$H$59 -> 12 | L146: =Sticks!$D$60 -> m
A147: 59 | B147: ='Ghetto Bombers'!$A$45 -> 9 | C147: ='Ghetto Bombers'!$D$1 -> Ghetto Bombers | D147: ='Ghetto Bombers'!$D$45 -> Dave | E147: ='Ghetto Bombers'!$D$46 -> Vu | F147: ='Ghetto Bombers'!$H$48 -> 0.4444444444 | G147: ='Ghetto Bombers'!$H$45 -> 9 | H147: ='Ghetto Bombers'!$F$8 -> 4 | I147: Y | J147: ='Ghetto Bombers'!$H$46 -> 4 | K147: ='Ghetto Bombers'!$H$47 -> 13 | L147: ='Ghetto Bombers'!$D$48 -> m
A148: 57 | B148: ='Ghetto Bombers'!$A$37 -> 7 | C148: ='Ghetto Bombers'!$D$1 -> Ghetto Bombers | D148: ='Ghetto Bombers'!$D$37 -> Derek | E148: ='Ghetto Bombers'!$D$38 -> Smith | F148: ='Ghetto Bombers'!$H$40 -> 0.4285714286 | G148: ='Ghetto Bombers'!$H$37 -> 14 | H148: ='Ghetto Bombers'!$F$8 -> 4 | I148: Y | J148: ='Ghetto Bombers'!$H$38 -> 6 | K148: ='Ghetto Bombers'!$H$39 -> 14 | L148: ='Ghetto Bombers'!$D$40 -> m
A149: 32 | B149: =BCBC!$A$37 -> 7 | C149: =BCBC!$D$1 -> BCBC | D149: =BCBC!$D$37 -> Jeff | E149: =BCBC!$D$38 -> Nielsen | F149: =BCBC!$H$40 -> 0.3076923077 | G149: =BCBC!$H$37 -> 13 | H149: =BCBC!$F$8 -> 4 | I149: Y | J149: =BCBC!$H$38 -> 4 | K149: =BCBC!$H$39 -> 15 | L149: =BCBC!$D$40 -> m
A150: 46 | B150: =BCBC!$A$93 -> 21 | C150: =BCBC!$D$1 -> BCBC | D150: =BCBC!$D$93 -> 0 | E150: =BCBC!$D$94 -> 0 | F150: =BCBC!$H$96 ->  | G150: =BCBC!$H$93 -> 0 | H150: =BCBC!$F$8 -> 4 | I150: N | J150: =BCBC!$H$94 -> 0 | K150: =BCBC!$H$95 -> 0 | L150: =BCBC!$D$96 -> m
A151: 48 | B151: =BCBC!$A$101 -> 23 | C151: =BCBC!$D$1 -> BCBC | D151: =BCBC!$D$101 -> 0 | E151: =BCBC!$D$102 -> 0 | F151: =BCBC!$H$104 ->  | G151: =BCBC!$H$101 -> 0 | H151: =BCBC!$F$8 -> 4 | I151: N | J151: =BCBC!$H$102 -> 0 | K151: =BCBC!$H$103 -> 0 | L151: =BCBC!$D$104 -> m
A152: 50 | B152: =BCBC!$A$109 -> 25 | C152: =BCBC!$D$1 -> BCBC | D152: =BCBC!$D$109 -> 0 | E152: =BCBC!$D$110 -> 0 | F152: =BCBC!$H$112 ->  | G152: =BCBC!$H$109 -> 0 | H152: =BCBC!$F$8 -> 4 | I152: N | J152: =BCBC!$H$110 -> 0 | K152: =BCBC!$H$111 -> 0 | L152: =BCBC!$D$112 -> m
A153: 69 | B153: ='Ghetto Bombers'!$A$85 -> 19 | C153: ='Ghetto Bombers'!$D$1 -> Ghetto Bombers | D153: ='Ghetto Bombers'!$D$85 -> 0 | E153: ='Ghetto Bombers'!$D$86 -> 0 | F153: ='Ghetto Bombers'!$H$88 ->  | G153: ='Ghetto Bombers'!$H$85 -> 0 | H153: ='Ghetto Bombers'!$F$8 -> 4 | I153: N | J153: ='Ghetto Bombers'!$H$86 -> 0 | K153: ='Ghetto Bombers'!$H$87 -> 0 | L153: ='Ghetto Bombers'!$D$88 -> m
A154: 44 | B154: =BCBC!$A$85 -> 19 | C154: =BCBC!$D$1 -> BCBC | D154: =BCBC!$D$85 -> 0 | E154: =BCBC!$D$86 -> 0 | F154: =BCBC!$H$88 ->  | G154: =BCBC!$H$85 -> 0 | H154: =BCBC!$F$8 -> 4 | I154: N | J154: =BCBC!$H$86 -> 0 | K154: =BCBC!$H$87 -> 0 | L154: =BCBC!$D$88 -> m
A155: 67 | B155: ='Ghetto Bombers'!$A$77 -> 17 | C155: ='Ghetto Bombers'!$D$1 -> Ghetto Bombers | D155: ='Ghetto Bombers'!$D$77 -> 0 | E155: ='Ghetto Bombers'!$D$78 -> 0 | F155: ='Ghetto Bombers'!$H$80 ->  | G155: ='Ghetto Bombers'!$H$77 -> 0 | H155: ='Ghetto Bombers'!$F$8 -> 4 | I155: N | J155: ='Ghetto Bombers'!$H$78 -> 0 | K155: ='Ghetto Bombers'!$H$79 -> 0 | L155: ='Ghetto Bombers'!$D$80 -> m
A156: 42 | B156: =BCBC!$A$77 -> 17 | C156: =BCBC!$D$1 -> BCBC | D156: =BCBC!$D$77 -> 0 | E156: =BCBC!$D$78 -> 0 | F156: =BCBC!$H$80 ->  | G156: =BCBC!$H$77 -> 0 | H156: =BCBC!$F$8 -> 4 | I156: N | J156: =BCBC!$H$78 -> 0 | K156: =BCBC!$H$79 -> 0 | L156: =BCBC!$D$80 -> m
A157: 71 | B157: ='Ghetto Bombers'!$A$93 -> 21 | C157: ='Ghetto Bombers'!$D$1 -> Ghetto Bombers | D157: ='Ghetto Bombers'!$D$93 -> 0 | E157: ='Ghetto Bombers'!$D$94 -> 0 | F157: ='Ghetto Bombers'!$H$96 ->  | G157: ='Ghetto Bombers'!$H$93 -> 0 | H157: ='Ghetto Bombers'!$F$8 -> 4 | I157: N | J157: ='Ghetto Bombers'!$H$94 -> 0 | K157: ='Ghetto Bombers'!$H$95 -> 0 | L157: ='Ghetto Bombers'!$D$96 -> m
A158: 138 | B158: ='Team 6'!$A$61 -> 13 | C158: ='Team 6'!$D$1 -> Team 6 | D158: ='Team 6'!$D$61 -> 0 | E158: ='Team 6'!$D$62 -> 0 | F158: ='Team 6'!$H$64 ->  | G158: ='Team 6'!$H$61 -> 0 | H158: ='Team 6'!$F$8 -> 8 | I158: N | J158: ='Team 6'!$H$62 -> 0 | K158: ='Team 6'!$H$63 -> 0 | L158: ='Team 6'!$D$64 -> m
A159: 19 | B159: ='Bad Pitches'!$A$85 -> 19 | C159: ='Bad Pitches'!$D$1 -> Bad Pitches | D159: ='Bad Pitches'!$D$85 -> 0 | E159: ='Bad Pitches'!$D$86 -> 0 | F159: ='Bad Pitches'!$H$88 ->  | G159: ='Bad Pitches'!$H$85 -> 0 | H159: ='Bad Pitches'!$F$8 -> 3 | I159: N | J159: ='Bad Pitches'!$H$86 -> 0 | K159: ='Bad Pitches'!$H$87 -> 0 | L159: ='Bad Pitches'!$D$88 -> m
A160: 119 | B160: =Sticks!$A$85 -> 19 | C160: =Sticks!$D$1 -> Sticks | D160: =Sticks!$D$85 -> 0 | E160: =Sticks!$D$86 -> 0 | F160: =Sticks!$H$88 ->  | G160: =Sticks!$H$85 -> 0 | H160: =Sticks!$F$8 -> 4 | I160: N | J160: =Sticks!$H$86 -> 0 | K160: =Sticks!$H$87 -> 0 | L160: =Sticks!$D$88 -> m
A161: 18 | B161: ='Bad Pitches'!$A$81 -> 18 | C161: ='Bad Pitches'!$D$1 -> Bad Pitches | D161: ='Bad Pitches'!$D$81 -> 0 | E161: ='Bad Pitches'!$D$82 -> 0 | F161: ='Bad Pitches'!$H$84 ->  | G161: ='Bad Pitches'!$H$81 -> 0 | H161: ='Bad Pitches'!$F$8 -> 3 | I161: N | J161: ='Bad Pitches'!$H$82 -> 0 | K161: ='Bad Pitches'!$H$83 -> 0 | L161: ='Bad Pitches'!$D$84 -> m
A162: 121 | B162: =Sticks!$A$93 -> 21 | C162: =Sticks!$D$1 -> Sticks | D162: =Sticks!$D$93 -> 0 | E162: =Sticks!$D$94 -> 0 | F162: =Sticks!$H$96 ->  | G162: =Sticks!$H$93 -> 0 | H162: =Sticks!$F$8 -> 4 | I162: =IF(K162<(H162*2.5),"N","Y") -> N | J162: =Sticks!$H$94 -> 0 | K162: =Sticks!$H$95 -> 0 | L162: =Sticks!$D$96 -> m
A163: 147 | B163: ='Team 6'!$A$97 -> 22 | C163: ='Team 6'!$D$1 -> Team 6 | D163: ='Team 6'!$D$97 -> 0 | E163: ='Team 6'!$D$98 -> 0 | F163: ='Team 6'!$H$100 ->  | G163: ='Team 6'!$H$97 -> 0 | H163: ='Team 6'!$F$8 -> 8 | I163: N | J163: ='Team 6'!$H$98 -> 0 | K163: ='Team 6'!$H$99 -> 0 | L163: ='Team 6'!$D$100 -> m
A164: 92 | B164: ='Hit Squad'!$A$77 -> 17 | C164: ='Hit Squad'!$D$1 -> Hit Squad | D164: ='Hit Squad'!$D$77 -> 0 | E164: ='Hit Squad'!$D$78 -> 0 | F164: ='Hit Squad'!$H$80 ->  | G164: ='Hit Squad'!$H$77 -> 0 | H164: ='Hit Squad'!$F$8 -> 3 | I164: N | J164: ='Hit Squad'!$H$78 -> 0 | K164: ='Hit Squad'!$H$79 -> 0 | L164: ='Hit Squad'!$D$80 -> m
A165: 144 | B165: ='Team 6'!$A$85 -> 19 | C165: ='Team 6'!$D$1 -> Team 6 | D165: ='Team 6'!$D$85 -> 0 | E165: ='Team 6'!$D$86 -> 0 | F165: ='Team 6'!$H$88 ->  | G165: ='Team 6'!$H$85 -> 0 | H165: ='Team 6'!$F$8 -> 8 | I165: N | J165: ='Team 6'!$H$86 -> 0 | K165: ='Team 6'!$H$87 -> 0 | L165: ='Team 6'!$D$88 -> m
A166: 142 | B166: ='Team 6'!$A$77 -> 17 | C166: ='Team 6'!$D$1 -> Team 6 | D166: ='Team 6'!$D$77 -> 0 | E166: ='Team 6'!$D$78 -> 0 | F166: ='Team 6'!$H$80 ->  | G166: ='Team 6'!$H$77 -> 0 | H166: ='Team 6'!$F$8 -> 8 | I166: N | J166: ='Team 6'!$H$78 -> 0 | K166: ='Team 6'!$H$79 -> 0 | L166: ='Team 6'!$D$80 -> m
A167: 140 | B167: ='Team 6'!$A$69 -> 15 | C167: ='Team 6'!$D$1 -> Team 6 | D167: ='Team 6'!$D$69 -> 0 | E167: ='Team 6'!$D$70 -> 0 | F167: ='Team 6'!$H$72 ->  | G167: ='Team 6'!$H$69 -> 0 | H167: ='Team 6'!$F$8 -> 8 | I167: N | J167: ='Team 6'!$H$70 -> 0 | K167: ='Team 6'!$H$71 -> 0 | L167: ='Team 6'!$D$72 -> m
A168: 146 | B168: ='Team 6'!$A$93 -> 21 | C168: ='Team 6'!$D$1 -> Team 6 | D168: ='Team 6'!$D$93 -> 0 | E168: ='Team 6'!$D$94 -> 0 | F168: ='Team 6'!$H$96 ->  | G168: ='Team 6'!$H$93 -> 0 | H168: ='Team 6'!$F$8 -> 8 | I168: N | J168: ='Team 6'!$H$94 -> 0 | K168: ='Team 6'!$H$95 -> 0 | L168: ='Team 6'!$D$96 -> m
A169: 136 | B169: ='Team 6'!$A$53 -> 11 | C169: ='Team 6'!$D$1 -> Team 6 | D169: ='Team 6'!$D$53 -> 0 | E169: ='Team 6'!$D$54 -> 0 | F169: ='Team 6'!$H$56 ->  | G169: ='Team 6'!$H$53 -> 0 | H169: ='Team 6'!$F$8 -> 8 | I169: N | J169: ='Team 6'!$H$54 -> 0 | K169: ='Team 6'!$H$55 -> 0 | L169: ='Team 6'!$D$56 -> m
A170: 116 | B170: =Sticks!$A$73 -> 16 | C170: =Sticks!$D$1 -> Sticks | D170: =Sticks!$D$73 -> 0 | E170: =Sticks!$D$74 -> 0 | F170: =Sticks!$H$76 ->  | G170: =Sticks!$H$73 -> 0 | H170: =Sticks!$F$8 -> 4 | I170: N | J170: =Sticks!$H$74 -> 0 | K170: =Sticks!$H$75 -> 0 | L170: =Sticks!$D$76 -> m
A171: 93 | B171: ='Hit Squad'!$A$81 -> 18 | C171: ='Hit Squad'!$D$1 -> Hit Squad | D171: ='Hit Squad'!$D$81 -> 0 | E171: ='Hit Squad'!$D$82 -> 0 | F171: ='Hit Squad'!$H$84 ->  | G171: ='Hit Squad'!$H$81 -> 0 | H171: ='Hit Squad'!$F$8 -> 3 | I171: N | J171: ='Hit Squad'!$H$82 -> 0 | K171: ='Hit Squad'!$H$83 -> 0 | L171: ='Hit Squad'!$D$84 -> m
A172: 149 | B172: ='Team 6'!$A$105 -> 24 | C172: ='Team 6'!$D$1 -> Team 6 | D172: ='Team 6'!$D$105 -> 0 | E172: ='Team 6'!$D$106 -> 0 | F172: ='Team 6'!$H$108 ->  | G172: ='Team 6'!$H$105 -> 0 | H172: ='Team 6'!$F$8 -> 8 | I172: N | J172: ='Team 6'!$H$106 -> 0 | K172: ='Team 6'!$H$107 -> 0 | L172: ='Team 6'!$D$108 -> m
A173: 139 | B173: ='Team 6'!$A$65 -> 14 | C173: ='Team 6'!$D$1 -> Team 6 | D173: ='Team 6'!$D$65 -> 0 | E173: ='Team 6'!$D$66 -> 0 | F173: ='Team 6'!$H$68 ->  | G173: ='Team 6'!$H$65 -> 0 | H173: ='Team 6'!$F$8 -> 8 | I173: N | J173: ='Team 6'!$H$66 -> 0 | K173: ='Team 6'!$H$67 -> 0 | L173: ='Team 6'!$D$68 -> m
A174: 14 | B174: ='Bad Pitches'!$A$65 -> 14 | C174: ='Bad Pitches'!$D$1 -> Bad Pitches | D174: ='Bad Pitches'!$D$65 -> 0 | E174: ='Bad Pitches'!$D$66 -> 0 | F174: ='Bad Pitches'!$H$68 ->  | G174: ='Bad Pitches'!$H$65 -> 0 | H174: ='Bad Pitches'!$F$8 -> 3 | I174: N | J174: ='Bad Pitches'!$H$66 -> 0 | K174: ='Bad Pitches'!$H$67 -> 0 | L174: ='Bad Pitches'!$D$68 -> m
A175: 91 | B175: ='Hit Squad'!$A$73 -> 16 | C175: ='Hit Squad'!$D$1 -> Hit Squad | D175: ='Hit Squad'!$D$73 -> Lars | E175: ='Hit Squad'!$D$74 -> Peterson | F175: ='Hit Squad'!$H$76 -> 1 | G175: ='Hit Squad'!$H$73 -> 2 | H175: ='Hit Squad'!$F$8 -> 3 | I175: N | J175: ='Hit Squad'!$H$74 -> 2 | K175: ='Hit Squad'!$H$75 -> 2 | L175: ='Hit Squad'!$D$76 -> m
A176: 40 | B176: =BCBC!$A$69 -> 15 | C176: =BCBC!$D$1 -> BCBC | D176: =BCBC!$D$69 -> Vinnie | E176: =BCBC!$D$70 -> Dilworth | F176: =BCBC!$H$72 -> 1 | G176: =BCBC!$H$69 -> 4 | H176: =BCBC!$F$8 -> 4 | I176: N | J176: =BCBC!$H$70 -> 4 | K176: =BCBC!$H$71 -> 5 | L176: =BCBC!$D$72 -> m
A177: 66 | B177: ='Ghetto Bombers'!$A$73 -> 16 | C177: ='Ghetto Bombers'!$D$1 -> Ghetto Bombers | D177: ='Ghetto Bombers'!$D$73 -> Matt | E177: ='Ghetto Bombers'!$D$74 -> Newbold | F177: ='Ghetto Bombers'!$H$76 -> 1 | G177: ='Ghetto Bombers'!$H$73 -> 1 | H177: ='Ghetto Bombers'!$F$8 -> 4 | I177: N | J177: ='Ghetto Bombers'!$H$74 -> 1 | K177: ='Ghetto Bombers'!$H$75 -> 1 | L177: ='Ghetto Bombers'!$D$76 -> m
A178: 78 | B178: ='Hit Squad'!$A$21 -> 3 | C178: ='Hit Squad'!$D$1 -> Hit Squad | D178: ='Hit Squad'!$D$21 -> David | E178: ='Hit Squad'!$D$22 -> Stevens | F178: ='Hit Squad'!$H$24 -> 0.7142857143 | G178: ='Hit Squad'!$H$21 -> 7 | H178: ='Hit Squad'!$F$8 -> 3 | I178: N | J178: ='Hit Squad'!$H$22 -> 5 | K178: ='Hit Squad'!$H$23 -> 7 | L178: ='Hit Squad'!$D$24 -> m
A179: 84 | B179: ='Hit Squad'!$A$45 -> 9 | C179: ='Hit Squad'!$D$1 -> Hit Squad | D179: ='Hit Squad'!$D$45 -> Chris | E179: ='Hit Squad'!$D$46 -> Schippers | F179: ='Hit Squad'!$H$48 -> 0.7142857143 | G179: ='Hit Squad'!$H$45 -> 7 | H179: ='Hit Squad'!$F$8 -> 3 | I179: N | J179: ='Hit Squad'!$H$46 -> 5 | K179: ='Hit Squad'!$H$47 -> 7 | L179: ='Hit Squad'!$D$48 -> m
A180: 61 | B180: ='Ghetto Bombers'!$A$53 -> 11 | C180: ='Ghetto Bombers'!$D$1 -> Ghetto Bombers | D180: ='Ghetto Bombers'!$D$53 -> Tyler | E180: ='Ghetto Bombers'!$D$54 -> Curtis | F180: ='Ghetto Bombers'!$H$56 -> 0.6666666667 | G180: ='Ghetto Bombers'!$H$53 -> 3 | H180: ='Ghetto Bombers'!$F$8 -> 4 | I180: N | J180: ='Ghetto Bombers'!$H$54 -> 2 | K180: ='Ghetto Bombers'!$H$55 -> 3 | L180: ='Ghetto Bombers'!$D$56 -> m
A181: 38 | B181: =BCBC!$A$61 -> 13 | C181: =BCBC!$D$1 -> BCBC | D181: =BCBC!$D$61 -> Scotty | E181: =BCBC!$D$62 -> Garfield | F181: =BCBC!$H$64 -> 0.5 | G181: =BCBC!$H$61 -> 2 | H181: =BCBC!$F$8 -> 4 | I181: N | J181: =BCBC!$H$62 -> 1 | K181: =BCBC!$H$63 -> 2 | L181: =BCBC!$D$64 -> m
A182: 80 | B182: ='Hit Squad'!$A$29 -> 5 | C182: ='Hit Squad'!$D$1 -> Hit Squad | D182: ='Hit Squad'!$D$29 -> Jeff | E182: ='Hit Squad'!$D$30 -> Snedekar | F182: ='Hit Squad'!$H$32 -> 0.4 | G182: ='Hit Squad'!$H$29 -> 5 | H182: ='Hit Squad'!$F$8 -> 3 | I182: N | J182: ='Hit Squad'!$H$30 -> 2 | K182: ='Hit Squad'!$H$31 -> 5 | L182: ='Hit Squad'!$D$32 -> m
A183: 86 | B183: ='Hit Squad'!$A$53 -> 11 | C183: ='Hit Squad'!$D$1 -> Hit Squad | D183: ='Hit Squad'!$D$53 -> Dan | E183: ='Hit Squad'!$D$54 -> Stevens | F183: ='Hit Squad'!$H$56 -> 0.3333333333 | G183: ='Hit Squad'!$H$53 -> 6 | H183: ='Hit Squad'!$F$8 -> 3 | I183: N | J183: ='Hit Squad'!$H$54 -> 2 | K183: ='Hit Squad'!$H$55 -> 6 | L183: ='Hit Squad'!$D$56 -> m
A184: 82 | B184: ='Hit Squad'!$A$37 -> 7 | C184: ='Hit Squad'!$D$1 -> Hit Squad | D184: ='Hit Squad'!$D$37 -> Dusty | E184: ='Hit Squad'!$D$38 -> Jorgenson | F184: ='Hit Squad'!$H$40 -> 0.1428571429 | G184: ='Hit Squad'!$H$37 -> 7 | H184: ='Hit Squad'!$F$8 -> 3 | I184: N | J184: ='Hit Squad'!$H$38 -> 1 | K184: ='Hit Squad'!$H$39 -> 7 | L184: ='Hit Squad'!$D$40 -> m
A185: 64 | B185: ='Ghetto Bombers'!$A$65 -> 14 | C185: ='Ghetto Bombers'!$D$1 -> Ghetto Bombers | D185: ='Ghetto Bombers'!$D$65 -> Alllie | E185: ='Ghetto Bombers'!$D$66 -> Newbold | F185: ='Ghetto Bombers'!$H$68 -> 0 | G185: ='Ghetto Bombers'!$H$65 -> 4 | H185: ='Ghetto Bombers'!$F$8 -> 4 | I185: N | J185: ='Ghetto Bombers'!$H$66 -> 0 | K185: ='Ghetto Bombers'!$H$67 -> 4 | L185: ='Ghetto Bombers'!$D$68 -> m
A186: 11 | B186: ='Bad Pitches'!$A$53 -> 11 | C186: ='Bad Pitches'!$D$1 -> Bad Pitches | D186: ='Bad Pitches'!$D$53 -> Seth | E186: ='Bad Pitches'!$D$54 -> Kaelin | F186: ='Bad Pitches'!$H$56 -> 0 | G186: ='Bad Pitches'!$H$53 -> 4 | H186: ='Bad Pitches'!$F$8 -> 3 | I186: N | J186: ='Bad Pitches'!$H$54 -> 0 | K186: ='Bad Pitches'!$H$55 -> 4 | L186: ='Bad Pitches'!$D$56 -> m
A187: 201 | B187: ='Team 7'!$A$13 -> 1 | C187: ='Team 7'!$D$1 ->  | D187: ='Team 7'!$D$13 -> Bob | E187: ='Team 7'!$D$14 -> 0 | F187: ='Team 7'!$H$16 -> 0 | G187: ='Team 7'!$H$13 -> 10 | H187: ='Team 7'!$F$8 -> 8 | I187: N | J187: ='Team 7'!$H$14 -> 0 | K187: ='Team 7'!$H$15 -> 10 | L187: ='Team 7'!$D$16 -> m
A188: 205 | B188: ='Team 7'!$A$29 -> 5 | C188: ='Team 7'!$D$1 ->  | D188: ='Team 7'!$D$29 -> Mark | E188: ='Team 7'!$D$30 -> 0 | F188: ='Team 7'!$H$32 -> 0 | G188: ='Team 7'!$H$29 -> 10 | H188: ='Team 7'!$F$8 -> 8 | I188: N | J188: ='Team 7'!$H$30 -> 0 | K188: ='Team 7'!$H$31 -> 10 | L188: ='Team 7'!$D$32 -> m
A189: 126 | B189: ='Team 6'!$A$13 -> 1 | C189: ='Team 6'!$D$1 -> Team 6 | D189: ='Team 6'!$D$13 -> John | E189: ='Team 6'!$D$14 -> 0 | F189: ='Team 6'!$H$16 -> 0 | G189: ='Team 6'!$H$13 -> 10 | H189: ='Team 6'!$F$8 -> 8 | I189: N | J189: ='Team 6'!$H$14 -> 0 | K189: ='Team 6'!$H$15 -> 10 | L189: ='Team 6'!$D$16 -> m
A190: 132 | B190: ='Team 6'!$A$37 -> 7 | C190: ='Team 6'!$D$1 -> Team 6 | D190: ='Team 6'!$D$37 -> Trent | E190: ='Team 6'!$D$38 -> 0 | F190: ='Team 6'!$H$40 -> 0 | G190: ='Team 6'!$H$37 -> 10 | H190: ='Team 6'!$F$8 -> 8 | I190: N | J190: ='Team 6'!$H$38 -> 0 | K190: ='Team 6'!$H$39 -> 10 | L190: ='Team 6'!$D$40 -> m
A191: 209 | B191: ='Team 7'!$A$45 -> 9 | C191: ='Team 7'!$D$1 ->  | D191: ='Team 7'!$D$45 -> George | E191: ='Team 7'!$D$46 -> 0 | F191: ='Team 7'!$H$48 -> 0 | G191: ='Team 7'!$H$45 -> 10 | H191: ='Team 7'!$F$8 -> 8 | I191: N | J191: ='Team 7'!$H$46 -> 0 | K191: ='Team 7'!$H$47 -> 10 | L191: ='Team 7'!$D$48 -> m
A192: 130 | B192: ='Team 6'!$A$29 -> 5 | C192: ='Team 6'!$D$1 -> Team 6 | D192: ='Team 6'!$D$29 -> Mike | E192: ='Team 6'!$D$30 -> 0 | F192: ='Team 6'!$H$32 -> 0 | G192: ='Team 6'!$H$29 -> 10 | H192: ='Team 6'!$F$8 -> 8 | I192: N | J192: ='Team 6'!$H$30 -> 0 | K192: ='Team 6'!$H$31 -> 10 | L192: ='Team 6'!$D$32 -> m
A193: 203 | B193: ='Team 7'!$A$21 -> 3 | C193: ='Team 7'!$D$1 ->  | D193: ='Team 7'!$D$21 -> Cam | E193: ='Team 7'!$D$22 -> 0 | F193: ='Team 7'!$H$24 -> 0 | G193: ='Team 7'!$H$21 -> 10 | H193: ='Team 7'!$F$8 -> 8 | I193: N | J193: ='Team 7'!$H$22 -> 0 | K193: ='Team 7'!$H$23 -> 10 | L193: ='Team 7'!$D$24 -> m
A194: 207 | B194: ='Team 7'!$A$37 -> 7 | C194: ='Team 7'!$D$1 ->  | D194: ='Team 7'!$D$37 -> Kent | E194: ='Team 7'!$D$38 -> 0 | F194: ='Team 7'!$H$40 -> 0 | G194: ='Team 7'!$H$37 -> 10 | H194: ='Team 7'!$F$8 -> 8 | I194: =IF(K194<(H194*2.5),"N","Y") -> N | J194: ='Team 7'!$H$38 -> 0 | K194: ='Team 7'!$H$39 -> 10 | L194: ='Team 7'!$D$40 -> m
A195: 185 | B195: ='Team 8'!$A$49 -> 10 | C195: ='Team 8'!$D$1 ->  | D195: ='Team 8'!$D$49 -> Paul | E195: ='Team 8'!$D$50 -> 0 | F195: ='Team 8'!$H$52 -> 0 | G195: ='Team 8'!$H$49 -> 10 | H195: ='Team 8'!$F$8 -> 8 | I195: N | J195: ='Team 8'!$H$50 -> 0 | K195: ='Team 8'!$H$51 -> 10 | L195: ='Team 8'!$D$52 -> m
A196: 179 | B196: ='Team 8'!$A$25 -> 4 | C196: ='Team 8'!$D$1 ->  | D196: ='Team 8'!$D$25 -> Dallen | E196: ='Team 8'!$D$26 -> 0 | F196: ='Team 8'!$H$28 -> 0 | G196: ='Team 8'!$H$25 -> 10 | H196: ='Team 8'!$F$8 -> 8 | I196: N | J196: ='Team 8'!$H$26 -> 0 | K196: ='Team 8'!$H$27 -> 10 | L196: ='Team 8'!$D$28 -> m
A197: 183 | B197: ='Team 8'!$A$41 -> 8 | C197: ='Team 8'!$D$1 ->  | D197: ='Team 8'!$D$41 -> Jeff | E197: ='Team 8'!$D$42 -> 0 | F197: ='Team 8'!$H$44 -> 0 | G197: ='Team 8'!$H$41 -> 10 | H197: ='Team 8'!$F$8 -> 8 | I197: N | J197: ='Team 8'!$H$42 -> 0 | K197: ='Team 8'!$H$43 -> 10 | L197: ='Team 8'!$D$44 -> m
A198: 181 | B198: ='Team 8'!$A$33 -> 6 | C198: ='Team 8'!$D$1 ->  | D198: ='Team 8'!$D$33 -> Jack | E198: ='Team 8'!$D$34 -> 0 | F198: ='Team 8'!$H$36 -> 0 | G198: ='Team 8'!$H$33 -> 10 | H198: ='Team 8'!$F$8 -> 8 | I198: N | J198: ='Team 8'!$H$34 -> 0 | K198: ='Team 8'!$H$35 -> 10 | L198: ='Team 8'!$D$36 -> m
A199: 177 | B199: ='Team 8'!$A$17 -> 2 | C199: ='Team 8'!$D$1 ->  | D199: ='Team 8'!$D$17 -> David | E199: ='Team 8'!$D$18 -> 0 | F199: ='Team 8'!$H$20 -> 0 | G199: ='Team 8'!$H$17 -> 10 | H199: ='Team 8'!$F$8 -> 8 | I199: N | J199: ='Team 8'!$H$18 -> 0 | K199: ='Team 8'!$H$19 -> 10 | L199: ='Team 8'!$D$20 -> m
A200: 128 | B200: ='Team 6'!$A$21 -> 3 | C200: ='Team 6'!$D$1 -> Team 6 | D200: ='Team 6'!$D$21 -> Ron | E200: ='Team 6'!$D$22 -> 0 | F200: ='Team 6'!$H$24 -> 0 | G200: ='Team 6'!$H$21 -> 10 | H200: ='Team 6'!$F$8 -> 8 | I200: N | J200: ='Team 6'!$H$22 -> 0 | K200: ='Team 6'!$H$23 -> 10 | L200: ='Team 6'!$D$24 -> m
... 1 more rows

Sheet Male
A1: counter | B1: roster # | C1: Team Name | D1: L-Name | E1: F-Name | F1: Batting Avg | G1: # of AB's | H1: # of Games | I1: Enough pa's | J1: HITS | K1: # of PA | L1: Male/Female
A2: 63 | B2: ='Ghetto Bombers'!$A$61 -> 13 | C2: ='Ghetto Bombers'!$D$1 -> Ghetto Bombers | D2: ='Ghetto Bombers'!$D$61 -> Ryan | E2: ='Ghetto Bombers'!$D$62 -> Newbold | F2: ='Ghetto Bombers'!$H$64 -> 0.9090909091 | G2: ='Ghetto Bombers'!$H$61 -> 11 | H2: ='Ghetto Bombers'!$F$8 -> 4 | I2: =IF(K2<(H2*2.5),"N","Y") -> Y | J2: ='Ghetto Bombers'!$H$62 -> 10 | K2: ='Ghetto Bombers'!$H$63 -> 11 | L2: ='Ghetto Bombers'!$D$64 -> m
A3: 76 | B3: ='Hit Squad'!$A$13 -> 1 | C3: ='Hit Squad'!$D$1 -> Hit Squad | D3: ='Hit Squad'!$D$13 -> Ryan | E3: ='Hit Squad'!$D$14 -> Cusick | F3: ='Hit Squad'!$H$16 -> 0.875 | G3: ='Hit Squad'!$H$13 -> 8 | H3: ='Hit Squad'!$F$8 -> 3 | I3: Y | J3: ='Hit Squad'!$H$14 -> 7 | K3: ='Hit Squad'!$H$15 -> 8 | L3: ='Hit Squad'!$D$16 -> m
A4: 34 | B4: =BCBC!$A$45 -> 9 | C4: =BCBC!$D$1 -> BCBC | D4: =BCBC!$D$45 -> Dustin | E4: =BCBC!$D$46 -> Hunter | F4: =BCBC!$H$48 -> 0.8666666667 | G4: =BCBC!$H$45 -> 15 | H4: =BCBC!$F$8 -> 4 | I4: Y | J4: =BCBC!$H$46 -> 13 | K4: =BCBC!$H$47 -> 15 | L4: =BCBC!$D$48 -> m
A5: 102 | B5: =Sticks!$A$17 -> 2 | C5: =Sticks!$D$1 -> Sticks | D5: =Sticks!$D$17 -> Tommy | E5: =Sticks!$D$18 -> Gonzales | F5: =Sticks!$H$20 -> 0.8571428571 | G5: =Sticks!$H$17 -> 14 | H5: =Sticks!$F$8 -> 4 | I5: Y | J5: =Sticks!$H$18 -> 12 | K5: =Sticks!$H$19 -> 14 | L5: =Sticks!$D$20 -> m
A6: 106 | B6: =Sticks!$A$33 -> 6 | C6: =Sticks!$D$1 -> Sticks | D6: =Sticks!$D$33 -> Sean | E6: =Sticks!$D$34 -> Adams | F6: =Sticks!$H$36 -> 0.8333333333 | G6: =Sticks!$H$33 -> 12 | H6: =Sticks!$F$8 -> 4 | I6: Y | J6: =Sticks!$H$34 -> 10 | K6: =Sticks!$H$35 -> 13 | L6: =Sticks!$D$36 -> m
A7: 108 | B7: =Sticks!$A$41 -> 8 | C7: =Sticks!$D$1 -> Sticks | D7: =Sticks!$D$41 -> Tim | E7: =Sticks!$D$42 -> Arnold | F7: =Sticks!$H$44 -> 0.8333333333 | G7: =Sticks!$H$41 -> 12 | H7: =Sticks!$F$8 -> 4 | I7: Y | J7: =Sticks!$H$42 -> 10 | K7: =Sticks!$H$43 -> 13 | L7: =Sticks!$D$44 -> m
A8: 51 | B8: ='Ghetto Bombers'!$A$13 -> 1 | C8: ='Ghetto Bombers'!$D$1 -> Ghetto Bombers | D8: ='Ghetto Bombers'!$D$13 -> Mac | E8: ='Ghetto Bombers'!$D$14 -> Estrada | F8: ='Ghetto Bombers'!$H$16 -> 0.8 | G8: ='Ghetto Bombers'!$H$13 -> 15 | H8: ='Ghetto Bombers'!$F$8 -> 4 | I8: Y | J8: ='Ghetto Bombers'!$H$14 -> 12 | K8: ='Ghetto Bombers'!$H$15 -> 15 | L8: ='Ghetto Bombers'!$D$16 -> m
A9: 28 | B9: =BCBC!$A$21 -> 3 | C9: =BCBC!$D$1 -> BCBC | D9: =BCBC!$D$21 -> Shane | E9: =BCBC!$D$22 -> Singer | F9: =BCBC!$H$24 -> 0.75 | G9: =BCBC!$H$21 -> 16 | H9: =BCBC!$F$8 -> 4 | I9: Y | J9: =BCBC!$H$22 -> 12 | K9: =BCBC!$H$23 -> 16 | L9: =BCBC!$D$24 -> m
A10: 30 | B10: =BCBC!$A$29 -> 5 | C10: =BCBC!$D$1 -> BCBC | D10: =BCBC!$D$29 -> Ben | E10: =BCBC!$D$30 -> Magnum | F10: =BCBC!$H$32 -> 0.6923076923 | G10: =BCBC!$H$29 -> 13 | H10: =BCBC!$F$8 -> 4 | I10: Y | J10: =BCBC!$H$30 -> 9 | K10: =BCBC!$H$31 -> 13 | L10: =BCBC!$D$32 -> m
A11: 53 | B11: ='Ghetto Bombers'!$A$21 -> 3 | C11: ='Ghetto Bombers'!$D$1 -> Ghetto Bombers | D11: ='Ghetto Bombers'!$D$21 -> Chet | E11: ='Ghetto Bombers'!$D$22 -> Wanlass | F11: ='Ghetto Bombers'!$H$24 -> 0.6875 | G11: ='Ghetto Bombers'!$H$21 -> 16 | H11: ='Ghetto Bombers'!$F$8 -> 4 | I11: Y | J11: ='Ghetto Bombers'!$H$22 -> 11 | K11: ='Ghetto Bombers'!$H$23 -> 16 | L11: ='Ghetto Bombers'!$D$24 -> m
A12: 104 | B12: =Sticks!$A$25 -> 4 | C12: =Sticks!$D$1 -> Sticks | D12: =Sticks!$D$25 -> Nic | E12: =Sticks!$D$26 -> Johnston | F12: =Sticks!$H$28 -> 0.6666666667 | G12: =Sticks!$H$25 -> 12 | H12: =Sticks!$F$8 -> 4 | I12: Y | J12: =Sticks!$H$26 -> 8 | K12: =Sticks!$H$27 -> 12 | L12: =Sticks!$D$28 -> m
A13: 110 | B13: =Sticks!$A$49 -> 10 | C13: =Sticks!$D$1 -> Sticks | D13: =Sticks!$D$49 -> Tyler | E13: =Sticks!$D$50 -> Wardle | F13: =Sticks!$H$52 -> 0.6363636364 | G13: =Sticks!$H$49 -> 11 | H13: =Sticks!$F$8 -> 4 | I13: Y | J13: =Sticks!$H$50 -> 7 | K13: =Sticks!$H$51 -> 12 | L13: =Sticks!$D$52 -> m
A14: 26 | B14: =BCBC!$A$13 -> 1 | C14: =BCBC!$D$1 -> BCBC | D14: =BCBC!$D$13 -> Jordan | E14: =BCBC!$D$14 -> Rodgers | F14: =BCBC!$H$16 -> 0.6363636364 | G14: =BCBC!$H$13 -> 11 | H14: =BCBC!$F$8 -> 4 | I14: Y | J14: =BCBC!$H$14 -> 7 | K14: =BCBC!$H$15 -> 11 | L14: =BCBC!$D$16 -> m
A15: 7 | B15: ='Bad Pitches'!$A$37 -> 7 | C15: ='Bad Pitches'!$D$1 -> Bad Pitches | D15: ='Bad Pitches'!$D$37 -> Brian | E15: ='Bad Pitches'!$D$38 -> Godfrey | F15: ='Bad Pitches'!$H$40 -> 0.625 | G15: ='Bad Pitches'!$H$37 -> 8 | H15: ='Bad Pitches'!$F$8 -> 3 | I15: Y | J15: ='Bad Pitches'!$H$38 -> 5 | K15: ='Bad Pitches'!$H$39 -> 8 | L15: ='Bad Pitches'!$D$40 -> m
A16: 1 | B16: ='Bad Pitches'!$A$13 -> 1 | C16: ='Bad Pitches'!$D$1 -> Bad Pitches | D16: ='Bad Pitches'!$D$13 -> Ryan | E16: ='Bad Pitches'!$D$14 -> Watt | F16: ='Bad Pitches'!$H$16 -> 0.6153846154 | G16: ='Bad Pitches'!$H$13 -> 13 | H16: ='Bad Pitches'!$F$8 -> 3 | I16: Y | J16: ='Bad Pitches'!$H$14 -> 8 | K16: ='Bad Pitches'!$H$15 -> 13 | L16: ='Bad Pitches'!$D$16 -> m
A17: 36 | B17: =BCBC!$A$53 -> 11 | C17: =BCBC!$D$1 -> BCBC | D17: =BCBC!$D$53 -> Jace | E17: =BCBC!$D$54 -> Rogers | F17: =BCBC!$H$56 -> 0.6 | G17: =BCBC!$H$53 -> 10 | H17: =BCBC!$F$8 -> 4 | I17: Y | J17: =BCBC!$H$54 -> 6 | K17: =BCBC!$H$55 -> 10 | L17: =BCBC!$D$56 -> m
A18: 55 | B18: ='Ghetto Bombers'!$A$29 -> 5 | C18: ='Ghetto Bombers'!$D$1 -> Ghetto Bombers | D18: ='Ghetto Bombers'!$D$29 -> Jon | E18: ='Ghetto Bombers'!$D$30 -> Staley | F18: ='Ghetto Bombers'!$H$32 -> 0.5714285714 | G18: ='Ghetto Bombers'!$H$29 -> 14 | H18: ='Ghetto Bombers'!$F$8 -> 4 | I18: Y | J18: ='Ghetto Bombers'!$H$30 -> 8 | K18: ='Ghetto Bombers'!$H$31 -> 14 | L18: ='Ghetto Bombers'!$D$32 -> m
A19: 3 | B19: ='Bad Pitches'!$A$21 -> 3 | C19: ='Bad Pitches'!$D$1 -> Bad Pitches | D19: ='Bad Pitches'!$D$21 -> Jeff | E19: ='Bad Pitches'!$D$22 -> Cagle | F19: ='Bad Pitches'!$H$24 -> 0.5454545455 | G19: ='Bad Pitches'!$H$21 -> 11 | H19: ='Bad Pitches'!$F$8 -> 3 | I19: Y | J19: ='Bad Pitches'!$H$22 -> 6 | K19: ='Bad Pitches'!$H$23 -> 11 | L19: ='Bad Pitches'!$D$24 -> m
A20: 9 | B20: ='Bad Pitches'!$A$45 -> 9 | C20: ='Bad Pitches'!$D$1 -> Bad Pitches | D20: ='Bad Pitches'!$D$45 -> Vincente | E20: ='Bad Pitches'!$D$46 -> Herrera | F20: ='Bad Pitches'!$H$48 -> 0.5454545455 | G20: ='Bad Pitches'!$H$45 -> 11 | H20: ='Bad Pitches'!$F$8 -> 3 | I20: Y | J20: ='Bad Pitches'!$H$46 -> 6 | K20: ='Bad Pitches'!$H$47 -> 12 | L20: ='Bad Pitches'!$D$48 -> m
A21: 5 | B21: ='Bad Pitches'!$A$29 -> 5 | C21: ='Bad Pitches'!$D$1 -> Bad Pitches | D21: ='Bad Pitches'!$D$29 -> Aaron | E21: ='Bad Pitches'!$D$30 -> Montgomery | F21: ='Bad Pitches'!$H$32 -> 0.4545454545 | G21: ='Bad Pitches'!$H$29 -> 11 | H21: ='Bad Pitches'!$F$8 -> 3 | I21: Y | J21: ='Bad Pitches'!$H$30 -> 5 | K21: ='Bad Pitches'!$H$31 -> 11 | L21: ='Bad Pitches'!$D$32 -> m
A22: 112 | B22: =Sticks!$A$57 -> 12 | C22: =Sticks!$D$1 -> Sticks | D22: =Sticks!$D$57 -> Troy | E22: =Sticks!$D$58 -> Horne | F22: =Sticks!$H$60 -> 0.4545454545 | G22: =Sticks!$H$57 -> 11 | H22: =Sticks!$F$8 -> 4 | I22: Y | J22: =Sticks!$H$58 -> 5 | K22: =Sticks!$H$59 -> 12 | L22: =Sticks!$D$60 -> m
A23: 59 | B23: ='Ghetto Bombers'!$A$45 -> 9 | C23: ='Ghetto Bombers'!$D$1 -> Ghetto Bombers | D23: ='Ghetto Bombers'!$D$45 -> Dave | E23: ='Ghetto Bombers'!$D$46 -> Vu | F23: ='Ghetto Bombers'!$H$48 -> 0.4444444444 | G23: ='Ghetto Bombers'!$H$45 -> 9 | H23: ='Ghetto Bombers'!$F$8 -> 4 | I23: Y | J23: ='Ghetto Bombers'!$H$46 -> 4 | K23: ='Ghetto Bombers'!$H$47 -> 13 | L23: ='Ghetto Bombers'!$D$48 -> m
A24: 57 | B24: ='Ghetto Bombers'!$A$37 -> 7 | C24: ='Ghetto Bombers'!$D$1 -> Ghetto Bombers | D24: ='Ghetto Bombers'!$D$37 -> Derek | E24: ='Ghetto Bombers'!$D$38 -> Smith | F24: ='Ghetto Bombers'!$H$40 -> 0.4285714286 | G24: ='Ghetto Bombers'!$H$37 -> 14 | H24: ='Ghetto Bombers'!$F$8 -> 4 | I24: Y | J24: ='Ghetto Bombers'!$H$38 -> 6 | K24: ='Ghetto Bombers'!$H$39 -> 14 | L24: ='Ghetto Bombers'!$D$40 -> m
A25: 32 | B25: =BCBC!$A$37 -> 7 | C25: =BCBC!$D$1 -> BCBC | D25: =BCBC!$D$37 -> Jeff | E25: =BCBC!$D$38 -> Nielsen | F25: =BCBC!$H$40 -> 0.3076923077 | G25: =BCBC!$H$37 -> 13 | H25: =BCBC!$F$8 -> 4 | I25: Y | J25: =BCBC!$H$38 -> 4 | K25: =BCBC!$H$39 -> 15 | L25: =BCBC!$D$40 -> m
A26: 138 | B26: ='Team 6'!$A$61 -> 13 | C26: ='Team 6'!$D$1 -> Team 6 | D26: ='Team 6'!$D$61 -> 0 | E26: ='Team 6'!$D$62 -> 0 | F26: ='Team 6'!$H$64 ->  | G26: ='Team 6'!$H$61 -> 0 | H26: ='Team 6'!$F$8 -> 8 | I26: N | J26: ='Team 6'!$H$62 -> 0 | K26: ='Team 6'!$H$63 -> 0 | L26: ='Team 6'!$D$64 -> m
A27: 19 | B27: ='Bad Pitches'!$A$85 -> 19 | C27: ='Bad Pitches'!$D$1 -> Bad Pitches | D27: ='Bad Pitches'!$D$85 -> 0 | E27: ='Bad Pitches'!$D$86 -> 0 | F27: ='Bad Pitches'!$H$88 ->  | G27: ='Bad Pitches'!$H$85 -> 0 | H27: ='Bad Pitches'!$F$8 -> 3 | I27: N | J27: ='Bad Pitches'!$H$86 -> 0 | K27: ='Bad Pitches'!$H$87 -> 0 | L27: ='Bad Pitches'!$D$88 -> m
A28: 18 | B28: ='Bad Pitches'!$A$81 -> 18 | C28: ='Bad Pitches'!$D$1 -> Bad Pitches | D28: ='Bad Pitches'!$D$81 -> 0 | E28: ='Bad Pitches'!$D$82 -> 0 | F28: ='Bad Pitches'!$H$84 ->  | G28: ='Bad Pitches'!$H$81 -> 0 | H28: ='Bad Pitches'!$F$8 -> 3 | I28: N | J28: ='Bad Pitches'!$H$82 -> 0 | K28: ='Bad Pitches'!$H$83 -> 0 | L28: ='Bad Pitches'!$D$84 -> m
A29: 119 | B29: =Sticks!$A$85 -> 19 | C29: =Sticks!$D$1 -> Sticks | D29: =Sticks!$D$85 -> 0 | E29: =Sticks!$D$86 -> 0 | F29: =Sticks!$H$88 ->  | G29: =Sticks!$H$85 -> 0 | H29: =Sticks!$F$8 -> 4 | I29: N | J29: =Sticks!$H$86 -> 0 | K29: =Sticks!$H$87 -> 0 | L29: =Sticks!$D$88 -> m
A30: 121 | B30: =Sticks!$A$93 -> 21 | C30: =Sticks!$D$1 -> Sticks | D30: =Sticks!$D$93 -> 0 | E30: =Sticks!$D$94 -> 0 | F30: =Sticks!$H$96 ->  | G30: =Sticks!$H$93 -> 0 | H30: =Sticks!$F$8 -> 4 | I30: N | J30: =Sticks!$H$94 -> 0 | K30: =Sticks!$H$95 -> 0 | L30: =Sticks!$D$96 -> m
A31: 147 | B31: ='Team 6'!$A$97 -> 22 | C31: ='Team 6'!$D$1 -> Team 6 | D31: ='Team 6'!$D$97 -> 0 | E31: ='Team 6'!$D$98 -> 0 | F31: ='Team 6'!$H$100 ->  | G31: ='Team 6'!$H$97 -> 0 | H31: ='Team 6'!$F$8 -> 8 | I31: N | J31: ='Team 6'!$H$98 -> 0 | K31: ='Team 6'!$H$99 -> 0 | L31: ='Team 6'!$D$100 -> m
A32: 92 | B32: ='Hit Squad'!$A$77 -> 17 | C32: ='Hit Squad'!$D$1 -> Hit Squad | D32: ='Hit Squad'!$D$77 -> 0 | E32: ='Hit Squad'!$D$78 -> 0 | F32: ='Hit Squad'!$H$80 ->  | G32: ='Hit Squad'!$H$77 -> 0 | H32: ='Hit Squad'!$F$8 -> 3 | I32: N | J32: ='Hit Squad'!$H$78 -> 0 | K32: ='Hit Squad'!$H$79 -> 0 | L32: ='Hit Squad'!$D$80 -> m
A33: 144 | B33: ='Team 6'!$A$85 -> 19 | C33: ='Team 6'!$D$1 -> Team 6 | D33: ='Team 6'!$D$85 -> 0 | E33: ='Team 6'!$D$86 -> 0 | F33: ='Team 6'!$H$88 ->  | G33: ='Team 6'!$H$85 -> 0 | H33: ='Team 6'!$F$8 -> 8 | I33: N | J33: ='Team 6'!$H$86 -> 0 | K33: ='Team 6'!$H$87 -> 0 | L33: ='Team 6'!$D$88 -> m
A34: 142 | B34: ='Team 6'!$A$77 -> 17 | C34: ='Team 6'!$D$1 -> Team 6 | D34: ='Team 6'!$D$77 -> 0 | E34: ='Team 6'!$D$78 -> 0 | F34: ='Team 6'!$H$80 ->  | G34: ='Team 6'!$H$77 -> 0 | H34: ='Team 6'!$F$8 -> 8 | I34: =IF(K34<(H34*2.5),"N","Y") -> N | J34: ='Team 6'!$H$78 -> 0 | K34: ='Team 6'!$H$79 -> 0 | L34: ='Team 6'!$D$80 -> m
A35: 140 | B35: ='Team 6'!$A$69 -> 15 | C35: ='Team 6'!$D$1 -> Team 6 | D35: ='Team 6'!$D$69 -> 0 | E35: ='Team 6'!$D$70 -> 0 | F35: ='Team 6'!$H$72 ->  | G35: ='Team 6'!$H$69 -> 0 | H35: ='Team 6'!$F$8 -> 8 | I35: N | J35: ='Team 6'!$H$70 -> 0 | K35: ='Team 6'!$H$71 -> 0 | L35: ='Team 6'!$D$72 -> m
A36: 146 | B36: ='Team 6'!$A$93 -> 21 | C36: ='Team 6'!$D$1 -> Team 6 | D36: ='Team 6'!$D$93 -> 0 | E36: ='Team 6'!$D$94 -> 0 | F36: ='Team 6'!$H$96 ->  | G36: ='Team 6'!$H$93 -> 0 | H36: ='Team 6'!$F$8 -> 8 | I36: N | J36: ='Team 6'!$H$94 -> 0 | K36: ='Team 6'!$H$95 -> 0 | L36: ='Team 6'!$D$96 -> m
A37: 136 | B37: ='Team 6'!$A$53 -> 11 | C37: ='Team 6'!$D$1 -> Team 6 | D37: ='Team 6'!$D$53 -> 0 | E37: ='Team 6'!$D$54 -> 0 | F37: ='Team 6'!$H$56 ->  | G37: ='Team 6'!$H$53 -> 0 | H37: ='Team 6'!$F$8 -> 8 | I37: N | J37: ='Team 6'!$H$54 -> 0 | K37: ='Team 6'!$H$55 -> 0 | L37: ='Team 6'!$D$56 -> m
A38: 116 | B38: =Sticks!$A$73 -> 16 | C38: =Sticks!$D$1 -> Sticks | D38: =Sticks!$D$73 -> 0 | E38: =Sticks!$D$74 -> 0 | F38: =Sticks!$H$76 ->  | G38: =Sticks!$H$73 -> 0 | H38: =Sticks!$F$8 -> 4 | I38: N | J38: =Sticks!$H$74 -> 0 | K38: =Sticks!$H$75 -> 0 | L38: =Sticks!$D$76 -> m
A39: 93 | B39: ='Hit Squad'!$A$81 -> 18 | C39: ='Hit Squad'!$D$1 -> Hit Squad | D39: ='Hit Squad'!$D$81 -> 0 | E39: ='Hit Squad'!$D$82 -> 0 | F39: ='Hit Squad'!$H$84 ->  | G39: ='Hit Squad'!$H$81 -> 0 | H39: ='Hit Squad'!$F$8 -> 3 | I39: N | J39: ='Hit Squad'!$H$82 -> 0 | K39: ='Hit Squad'!$H$83 -> 0 | L39: ='Hit Squad'!$D$84 -> m
A40: 149 | B40: ='Team 6'!$A$105 -> 24 | C40: ='Team 6'!$D$1 -> Team 6 | D40: ='Team 6'!$D$105 -> 0 | E40: ='Team 6'!$D$106 -> 0 | F40: ='Team 6'!$H$108 ->  | G40: ='Team 6'!$H$105 -> 0 | H40: ='Team 6'!$F$8 -> 8 | I40: N | J40: ='Team 6'!$H$106 -> 0 | K40: ='Team 6'!$H$107 -> 0 | L40: ='Team 6'!$D$108 -> m
A41: 139 | B41: ='Team 6'!$A$65 -> 14 | C41: ='Team 6'!$D$1 -> Team 6 | D41: ='Team 6'!$D$65 -> 0 | E41: ='Team 6'!$D$66 -> 0 | F41: ='Team 6'!$H$68 ->  | G41: ='Team 6'!$H$65 -> 0 | H41: ='Team 6'!$F$8 -> 8 | I41: N | J41: ='Team 6'!$H$66 -> 0 | K41: ='Team 6'!$H$67 -> 0 | L41: ='Team 6'!$D$68 -> m
A42: 14 | B42: ='Bad Pitches'!$A$65 -> 14 | C42: ='Bad Pitches'!$D$1 -> Bad Pitches | D42: ='Bad Pitches'!$D$65 -> 0 | E42: ='Bad Pitches'!$D$66 -> 0 | F42: ='Bad Pitches'!$H$68 ->  | G42: ='Bad Pitches'!$H$65 -> 0 | H42: ='Bad Pitches'!$F$8 -> 3 | I42: N | J42: ='Bad Pitches'!$H$66 -> 0 | K42: ='Bad Pitches'!$H$67 -> 0 | L42: ='Bad Pitches'!$D$68 -> m
A43: 71 | B43: ='Ghetto Bombers'!$A$93 -> 21 | C43: ='Ghetto Bombers'!$D$1 -> Ghetto Bombers | D43: ='Ghetto Bombers'!$D$93 -> 0 | E43: ='Ghetto Bombers'!$D$94 -> 0 | F43: ='Ghetto Bombers'!$H$96 ->  | G43: ='Ghetto Bombers'!$H$93 -> 0 | H43: ='Ghetto Bombers'!$F$8 -> 4 | I43: N | J43: ='Ghetto Bombers'!$H$94 -> 0 | K43: ='Ghetto Bombers'!$H$95 -> 0 | L43: ='Ghetto Bombers'!$D$96 -> m
A44: 42 | B44: =BCBC!$A$77 -> 17 | C44: =BCBC!$D$1 -> BCBC | D44: =BCBC!$D$77 -> 0 | E44: =BCBC!$D$78 -> 0 | F44: =BCBC!$H$80 ->  | G44: =BCBC!$H$77 -> 0 | H44: =BCBC!$F$8 -> 4 | I44: N | J44: =BCBC!$H$78 -> 0 | K44: =BCBC!$H$79 -> 0 | L44: =BCBC!$D$80 -> m
A45: 46 | B45: =BCBC!$A$93 -> 21 | C45: =BCBC!$D$1 -> BCBC | D45: =BCBC!$D$93 -> 0 | E45: =BCBC!$D$94 -> 0 | F45: =BCBC!$H$96 ->  | G45: =BCBC!$H$93 -> 0 | H45: =BCBC!$F$8 -> 4 | I45: N | J45: =BCBC!$H$94 -> 0 | K45: =BCBC!$H$95 -> 0 | L45: =BCBC!$D$96 -> m
A46: 48 | B46: =BCBC!$A$101 -> 23 | C46: =BCBC!$D$1 -> BCBC | D46: =BCBC!$D$101 -> 0 | E46: =BCBC!$D$102 -> 0 | F46: =BCBC!$H$104 ->  | G46: =BCBC!$H$101 -> 0 | H46: =BCBC!$F$8 -> 4 | I46: N | J46: =BCBC!$H$102 -> 0 | K46: =BCBC!$H$103 -> 0 | L46: =BCBC!$D$104 -> m
A47: 50 | B47: =BCBC!$A$109 -> 25 | C47: =BCBC!$D$1 -> BCBC | D47: =BCBC!$D$109 -> 0 | E47: =BCBC!$D$110 -> 0 | F47: =BCBC!$H$112 ->  | G47: =BCBC!$H$109 -> 0 | H47: =BCBC!$F$8 -> 4 | I47: N | J47: =BCBC!$H$110 -> 0 | K47: =BCBC!$H$111 -> 0 | L47: =BCBC!$D$112 -> m
A48: 69 | B48: ='Ghetto Bombers'!$A$85 -> 19 | C48: ='Ghetto Bombers'!$D$1 -> Ghetto Bombers | D48: ='Ghetto Bombers'!$D$85 -> 0 | E48: ='Ghetto Bombers'!$D$86 -> 0 | F48: ='Ghetto Bombers'!$H$88 ->  | G48: ='Ghetto Bombers'!$H$85 -> 0 | H48: ='Ghetto Bombers'!$F$8 -> 4 | I48: N | J48: ='Ghetto Bombers'!$H$86 -> 0 | K48: ='Ghetto Bombers'!$H$87 -> 0 | L48: ='Ghetto Bombers'!$D$88 -> m
A49: 44 | B49: =BCBC!$A$85 -> 19 | C49: =BCBC!$D$1 -> BCBC | D49: =BCBC!$D$85 -> 0 | E49: =BCBC!$D$86 -> 0 | F49: =BCBC!$H$88 ->  | G49: =BCBC!$H$85 -> 0 | H49: =BCBC!$F$8 -> 4 | I49: N | J49: =BCBC!$H$86 -> 0 | K49: =BCBC!$H$87 -> 0 | L49: =BCBC!$D$88 -> m
A50: 67 | B50: ='Ghetto Bombers'!$A$77 -> 17 | C50: ='Ghetto Bombers'!$D$1 -> Ghetto Bombers | D50: ='Ghetto Bombers'!$D$77 -> 0 | E50: ='Ghetto Bombers'!$D$78 -> 0 | F50: ='Ghetto Bombers'!$H$80 ->  | G50: ='Ghetto Bombers'!$H$77 -> 0 | H50: ='Ghetto Bombers'!$F$8 -> 4 | I50: N | J50: ='Ghetto Bombers'!$H$78 -> 0 | K50: ='Ghetto Bombers'!$H$79 -> 0 | L50: ='Ghetto Bombers'!$D$80 -> m
A51: 40 | B51: =BCBC!$A$69 -> 15 | C51: =BCBC!$D$1 -> BCBC | D51: =BCBC!$D$69 -> Vinnie | E51: =BCBC!$D$70 -> Dilworth | F51: =BCBC!$H$72 -> 1 | G51: =BCBC!$H$69 -> 4 | H51: =BCBC!$F$8 -> 4 | I51: N | J51: =BCBC!$H$70 -> 4 | K51: =BCBC!$H$71 -> 5 | L51: =BCBC!$D$72 -> m
A52: 66 | B52: ='Ghetto Bombers'!$A$73 -> 16 | C52: ='Ghetto Bombers'!$D$1 -> Ghetto Bombers | D52: ='Ghetto Bombers'!$D$73 -> Matt | E52: ='Ghetto Bombers'!$D$74 -> Newbold | F52: ='Ghetto Bombers'!$H$76 -> 1 | G52: ='Ghetto Bombers'!$H$73 -> 1 | H52: ='Ghetto Bombers'!$F$8 -> 4 | I52: N | J52: ='Ghetto Bombers'!$H$74 -> 1 | K52: ='Ghetto Bombers'!$H$75 -> 1 | L52: ='Ghetto Bombers'!$D$76 -> m
A53: 91 | B53: ='Hit Squad'!$A$73 -> 16 | C53: ='Hit Squad'!$D$1 -> Hit Squad | D53: ='Hit Squad'!$D$73 -> Lars | E53: ='Hit Squad'!$D$74 -> Peterson | F53: ='Hit Squad'!$H$76 -> 1 | G53: ='Hit Squad'!$H$73 -> 2 | H53: ='Hit Squad'!$F$8 -> 3 | I53: N | J53: ='Hit Squad'!$H$74 -> 2 | K53: ='Hit Squad'!$H$75 -> 2 | L53: ='Hit Squad'!$D$76 -> m
A54: 78 | B54: ='Hit Squad'!$A$21 -> 3 | C54: ='Hit Squad'!$D$1 -> Hit Squad | D54: ='Hit Squad'!$D$21 -> David | E54: ='Hit Squad'!$D$22 -> Stevens | F54: ='Hit Squad'!$H$24 -> 0.7142857143 | G54: ='Hit Squad'!$H$21 -> 7 | H54: ='Hit Squad'!$F$8 -> 3 | I54: N | J54: ='Hit Squad'!$H$22 -> 5 | K54: ='Hit Squad'!$H$23 -> 7 | L54: ='Hit Squad'!$D$24 -> m
A55: 84 | B55: ='Hit Squad'!$A$45 -> 9 | C55: ='Hit Squad'!$D$1 -> Hit Squad | D55: ='Hit Squad'!$D$45 -> Chris | E55: ='Hit Squad'!$D$46 -> Schippers | F55: ='Hit Squad'!$H$48 -> 0.7142857143 | G55: ='Hit Squad'!$H$45 -> 7 | H55: ='Hit Squad'!$F$8 -> 3 | I55: N | J55: ='Hit Squad'!$H$46 -> 5 | K55: ='Hit Squad'!$H$47 -> 7 | L55: ='Hit Squad'!$D$48 -> m
A56: 61 | B56: ='Ghetto Bombers'!$A$53 -> 11 | C56: ='Ghetto Bombers'!$D$1 -> Ghetto Bombers | D56: ='Ghetto Bombers'!$D$53 -> Tyler | E56: ='Ghetto Bombers'!$D$54 -> Curtis | F56: ='Ghetto Bombers'!$H$56 -> 0.6666666667 | G56: ='Ghetto Bombers'!$H$53 -> 3 | H56: ='Ghetto Bombers'!$F$8 -> 4 | I56: N | J56: ='Ghetto Bombers'!$H$54 -> 2 | K56: ='Ghetto Bombers'!$H$55 -> 3 | L56: ='Ghetto Bombers'!$D$56 -> m
A57: 38 | B57: =BCBC!$A$61 -> 13 | C57: =BCBC!$D$1 -> BCBC | D57: =BCBC!$D$61 -> Scotty | E57: =BCBC!$D$62 -> Garfield | F57: =BCBC!$H$64 -> 0.5 | G57: =BCBC!$H$61 -> 2 | H57: =BCBC!$F$8 -> 4 | I57: N | J57: =BCBC!$H$62 -> 1 | K57: =BCBC!$H$63 -> 2 | L57: =BCBC!$D$64 -> m
A58: 80 | B58: ='Hit Squad'!$A$29 -> 5 | C58: ='Hit Squad'!$D$1 -> Hit Squad | D58: ='Hit Squad'!$D$29 -> Jeff | E58: ='Hit Squad'!$D$30 -> Snedekar | F58: ='Hit Squad'!$H$32 -> 0.4 | G58: ='Hit Squad'!$H$29 -> 5 | H58: ='Hit Squad'!$F$8 -> 3 | I58: N | J58: ='Hit Squad'!$H$30 -> 2 | K58: ='Hit Squad'!$H$31 -> 5 | L58: ='Hit Squad'!$D$32 -> m
A59: 86 | B59: ='Hit Squad'!$A$53 -> 11 | C59: ='Hit Squad'!$D$1 -> Hit Squad | D59: ='Hit Squad'!$D$53 -> Dan | E59: ='Hit Squad'!$D$54 -> Stevens | F59: ='Hit Squad'!$H$56 -> 0.3333333333 | G59: ='Hit Squad'!$H$53 -> 6 | H59: ='Hit Squad'!$F$8 -> 3 | I59: N | J59: ='Hit Squad'!$H$54 -> 2 | K59: ='Hit Squad'!$H$55 -> 6 | L59: ='Hit Squad'!$D$56 -> m
A60: 82 | B60: ='Hit Squad'!$A$37 -> 7 | C60: ='Hit Squad'!$D$1 -> Hit Squad | D60: ='Hit Squad'!$D$37 -> Dusty | E60: ='Hit Squad'!$D$38 -> Jorgenson | F60: ='Hit Squad'!$H$40 -> 0.1428571429 | G60: ='Hit Squad'!$H$37 -> 7 | H60: ='Hit Squad'!$F$8 -> 3 | I60: N | J60: ='Hit Squad'!$H$38 -> 1 | K60: ='Hit Squad'!$H$39 -> 7 | L60: ='Hit Squad'!$D$40 -> m
A61: 201 | B61: ='Team 7'!$A$13 -> 1 | C61: ='Team 7'!$D$1 ->  | D61: ='Team 7'!$D$13 -> Bob | E61: ='Team 7'!$D$14 -> 0 | F61: ='Team 7'!$H$16 -> 0 | G61: ='Team 7'!$H$13 -> 10 | H61: ='Team 7'!$F$8 -> 8 | I61: N | J61: ='Team 7'!$H$14 -> 0 | K61: ='Team 7'!$H$15 -> 10 | L61: ='Team 7'!$D$16 -> m
A62: 205 | B62: ='Team 7'!$A$29 -> 5 | C62: ='Team 7'!$D$1 ->  | D62: ='Team 7'!$D$29 -> Mark | E62: ='Team 7'!$D$30 -> 0 | F62: ='Team 7'!$H$32 -> 0 | G62: ='Team 7'!$H$29 -> 10 | H62: ='Team 7'!$F$8 -> 8 | I62: N | J62: ='Team 7'!$H$30 -> 0 | K62: ='Team 7'!$H$31 -> 10 | L62: ='Team 7'!$D$32 -> m
A63: 126 | B63: ='Team 6'!$A$13 -> 1 | C63: ='Team 6'!$D$1 -> Team 6 | D63: ='Team 6'!$D$13 -> John | E63: ='Team 6'!$D$14 -> 0 | F63: ='Team 6'!$H$16 -> 0 | G63: ='Team 6'!$H$13 -> 10 | H63: ='Team 6'!$F$8 -> 8 | I63: N | J63: ='Team 6'!$H$14 -> 0 | K63: ='Team 6'!$H$15 -> 10 | L63: ='Team 6'!$D$16 -> m
A64: 132 | B64: ='Team 6'!$A$37 -> 7 | C64: ='Team 6'!$D$1 -> Team 6 | D64: ='Team 6'!$D$37 -> Trent | E64: ='Team 6'!$D$38 -> 0 | F64: ='Team 6'!$H$40 -> 0 | G64: ='Team 6'!$H$37 -> 10 | H64: ='Team 6'!$F$8 -> 8 | I64: N | J64: ='Team 6'!$H$38 -> 0 | K64: ='Team 6'!$H$39 -> 10 | L64: ='Team 6'!$D$40 -> m
A65: 209 | B65: ='Team 7'!$A$45 -> 9 | C65: ='Team 7'!$D$1 ->  | D65: ='Team 7'!$D$45 -> George | E65: ='Team 7'!$D$46 -> 0 | F65: ='Team 7'!$H$48 -> 0 | G65: ='Team 7'!$H$45 -> 10 | H65: ='Team 7'!$F$8 -> 8 | I65: N | J65: ='Team 7'!$H$46 -> 0 | K65: ='Team 7'!$H$47 -> 10 | L65: ='Team 7'!$D$48 -> m
A66: 130 | B66: ='Team 6'!$A$29 -> 5 | C66: ='Team 6'!$D$1 -> Team 6 | D66: ='Team 6'!$D$29 -> Mike | E66: ='Team 6'!$D$30 -> 0 | F66: ='Team 6'!$H$32 -> 0 | G66: ='Team 6'!$H$29 -> 10 | H66: ='Team 6'!$F$8 -> 8 | I66: =IF(K66<(H66*2.5),"N","Y") -> N | J66: ='Team 6'!$H$30 -> 0 | K66: ='Team 6'!$H$31 -> 10 | L66: ='Team 6'!$D$32 -> m
A67: 203 | B67: ='Team 7'!$A$21 -> 3 | C67: ='Team 7'!$D$1 ->  | D67: ='Team 7'!$D$21 -> Cam | E67: ='Team 7'!$D$22 -> 0 | F67: ='Team 7'!$H$24 -> 0 | G67: ='Team 7'!$H$21 -> 10 | H67: ='Team 7'!$F$8 -> 8 | I67: N | J67: ='Team 7'!$H$22 -> 0 | K67: ='Team 7'!$H$23 -> 10 | L67: ='Team 7'!$D$24 -> m
A68: 207 | B68: ='Team 7'!$A$37 -> 7 | C68: ='Team 7'!$D$1 ->  | D68: ='Team 7'!$D$37 -> Kent | E68: ='Team 7'!$D$38 -> 0 | F68: ='Team 7'!$H$40 -> 0 | G68: ='Team 7'!$H$37 -> 10 | H68: ='Team 7'!$F$8 -> 8 | I68: N | J68: ='Team 7'!$H$38 -> 0 | K68: ='Team 7'!$H$39 -> 10 | L68: ='Team 7'!$D$40 -> m
A69: 185 | B69: ='Team 8'!$A$49 -> 10 | C69: ='Team 8'!$D$1 ->  | D69: ='Team 8'!$D$49 -> Paul | E69: ='Team 8'!$D$50 -> 0 | F69: ='Team 8'!$H$52 -> 0 | G69: ='Team 8'!$H$49 -> 10 | H69: ='Team 8'!$F$8 -> 8 | I69: N | J69: ='Team 8'!$H$50 -> 0 | K69: ='Team 8'!$H$51 -> 10 | L69: ='Team 8'!$D$52 -> m
A70: 179 | B70: ='Team 8'!$A$25 -> 4 | C70: ='Team 8'!$D$1 ->  | D70: ='Team 8'!$D$25 -> Dallen | E70: ='Team 8'!$D$26 -> 0 | F70: ='Team 8'!$H$28 -> 0 | G70: ='Team 8'!$H$25 -> 10 | H70: ='Team 8'!$F$8 -> 8 | I70: N | J70: ='Team 8'!$H$26 -> 0 | K70: ='Team 8'!$H$27 -> 10 | L70: ='Team 8'!$D$28 -> m
A71: 183 | B71: ='Team 8'!$A$41 -> 8 | C71: ='Team 8'!$D$1 ->  | D71: ='Team 8'!$D$41 -> Jeff | E71: ='Team 8'!$D$42 -> 0 | F71: ='Team 8'!$H$44 -> 0 | G71: ='Team 8'!$H$41 -> 10 | H71: ='Team 8'!$F$8 -> 8 | I71: N | J71: ='Team 8'!$H$42 -> 0 | K71: ='Team 8'!$H$43 -> 10 | L71: ='Team 8'!$D$44 -> m
A72: 181 | B72: ='Team 8'!$A$33 -> 6 | C72: ='Team 8'!$D$1 ->  | D72: ='Team 8'!$D$33 -> Jack | E72: ='Team 8'!$D$34 -> 0 | F72: ='Team 8'!$H$36 -> 0 | G72: ='Team 8'!$H$33 -> 10 | H72: ='Team 8'!$F$8 -> 8 | I72: N | J72: ='Team 8'!$H$34 -> 0 | K72: ='Team 8'!$H$35 -> 10 | L72: ='Team 8'!$D$36 -> m
A73: 177 | B73: ='Team 8'!$A$17 -> 2 | C73: ='Team 8'!$D$1 ->  | D73: ='Team 8'!$D$17 -> David | E73: ='Team 8'!$D$18 -> 0 | F73: ='Team 8'!$H$20 -> 0 | G73: ='Team 8'!$H$17 -> 10 | H73: ='Team 8'!$F$8 -> 8 | I73: N | J73: ='Team 8'!$H$18 -> 0 | K73: ='Team 8'!$H$19 -> 10 | L73: ='Team 8'!$D$20 -> m
A74: 128 | B74: ='Team 6'!$A$21 -> 3 | C74: ='Team 6'!$D$1 -> Team 6 | D74: ='Team 6'!$D$21 -> Ron | E74: ='Team 6'!$D$22 -> 0 | F74: ='Team 6'!$H$24 -> 0 | G74: ='Team 6'!$H$21 -> 10 | H74: ='Team 6'!$F$8 -> 8 | I74: N | J74: ='Team 6'!$H$22 -> 0 | K74: ='Team 6'!$H$23 -> 10 | L74: ='Team 6'!$D$24 -> m
A75: 134 | B75: ='Team 6'!$A$45 -> 9 | C75: ='Team 6'!$D$1 -> Team 6 | D75: ='Team 6'!$D$45 -> Isaac | E75: ='Team 6'!$D$46 -> 0 | F75: ='Team 6'!$H$48 -> 0 | G75: ='Team 6'!$H$45 -> 10 | H75: ='Team 6'!$F$8 -> 8 | I75: N | J75: ='Team 6'!$H$46 -> 0 | K75: ='Team 6'!$H$47 -> 10 | L75: ='Team 6'!$D$48 -> m
A76: 11 | B76: ='Bad Pitches'!$A$53 -> 11 | C76: ='Bad Pitches'!$D$1 -> Bad Pitches | D76: ='Bad Pitches'!$D$53 -> Seth | E76: ='Bad Pitches'!$D$54 -> Kaelin | F76: ='Bad Pitches'!$H$56 -> 0 | G76: ='Bad Pitches'!$H$53 -> 4 | H76: ='Bad Pitches'!$F$8 -> 3 | I76: N | J76: ='Bad Pitches'!$H$54 -> 0 | K76: ='Bad Pitches'!$H$55 -> 4 | L76: ='Bad Pitches'!$D$56 -> m
A77: 64 | B77: ='Ghetto Bombers'!$A$65 -> 14 | C77: ='Ghetto Bombers'!$D$1 -> Ghetto Bombers | D77: ='Ghetto Bombers'!$D$65 -> Alllie | E77: ='Ghetto Bombers'!$D$66 -> Newbold | F77: ='Ghetto Bombers'!$H$68 -> 0 | G77: ='Ghetto Bombers'!$H$65 -> 4 | H77: ='Ghetto Bombers'!$F$8 -> 4 | I77: N | J77: ='Ghetto Bombers'!$H$66 -> 0 | K77: ='Ghetto Bombers'!$H$67 -> 4 | L77: ='Ghetto Bombers'!$D$68 -> m
A78: 8 | B78: ='Bad Pitches'!$A$41 -> 8 | C78: ='Bad Pitches'!$D$1 -> Bad Pitches | D78: ='Bad Pitches'!$D$41 -> Calliane | E78: ='Bad Pitches'!$D$42 -> Hodson | F78: ='Bad Pitches'!$H$44 -> 0.875 | G78: ='Bad Pitches'!$H$41 -> 8 | H78: ='Bad Pitches'!$F$8 -> 3 | I78: Y | J78: ='Bad Pitches'!$H$42 -> 7 | K78: ='Bad Pitches'!$H$43 -> 8 | L78: ='Bad Pitches'!$D$44 -> f
A79: 52 | B79: ='Ghetto Bombers'!$A$17 -> 2 | C79: ='Ghetto Bombers'!$D$1 -> Ghetto Bombers | D79: ='Ghetto Bombers'!$D$17 -> Calleigh | E79: ='Ghetto Bombers'!$D$18 -> DeYoung | F79: ='Ghetto Bombers'!$H$20 -> 0.875 | G79: ='Ghetto Bombers'!$H$17 -> 8 | H79: ='Ghetto Bombers'!$F$8 -> 4 | I79: Y | J79: ='Ghetto Bombers'!$H$18 -> 7 | K79: ='Ghetto Bombers'!$H$19 -> 12 | L79: ='Ghetto Bombers'!$D$20 -> f
A80: 29 | B80: =BCBC!$A$25 -> 4 | C80: =BCBC!$D$1 -> BCBC | D80: =BCBC!$D$25 -> Maree | E80: =BCBC!$D$26 -> Achermann | F80: =BCBC!$H$28 -> 0.625 | G80: =BCBC!$H$25 -> 16 | H80: =BCBC!$F$8 -> 4 | I80: Y | J80: =BCBC!$H$26 -> 10 | K80: =BCBC!$H$27 -> 16 | L80: =BCBC!$D$28 -> f
A81: 31 | B81: =BCBC!$A$33 -> 6 | C81: =BCBC!$D$1 -> BCBC | D81: =BCBC!$D$33 -> Sunni | E81: =BCBC!$D$34 -> Jackson | F81: =BCBC!$H$36 -> 0.5714285714 | G81: =BCBC!$H$33 -> 14 | H81: =BCBC!$F$8 -> 4 | I81: Y | J81: =BCBC!$H$34 -> 8 | K81: =BCBC!$H$35 -> 15 | L81: =BCBC!$D$36 -> f
A82: 37 | B82: =BCBC!$A$57 -> 12 | C82: =BCBC!$D$1 -> BCBC | D82: =BCBC!$D$57 -> Mel | E82: =BCBC!$D$58 -> Maile | F82: =BCBC!$H$60 -> 0.5384615385 | G82: =BCBC!$H$57 -> 13 | H82: =BCBC!$F$8 -> 4 | I82: Y | J82: =BCBC!$H$58 -> 7 | K82: =BCBC!$H$59 -> 13 | L82: =BCBC!$D$60 -> f
A83: 33 | B83: =BCBC!$A$41 -> 8 | C83: =BCBC!$D$1 -> BCBC | D83: =BCBC!$D$41 -> Casey | E83: =BCBC!$D$42 -> Velarde | F83: =BCBC!$H$44 -> 0.5 | G83: =BCBC!$H$41 -> 10 | H83: =BCBC!$F$8 -> 4 | I83: Y | J83: =BCBC!$H$42 -> 5 | K83: =BCBC!$H$43 -> 10 | L83: =BCBC!$D$44 -> f
A84: 101 | B84: =Sticks!$A$13 -> 1 | C84: =Sticks!$D$1 -> Sticks | D84: =Sticks!$D$13 -> Kacee | E84: =Sticks!$D$14 -> Robinson | F84: =Sticks!$H$16 -> 0.4666666667 | G84: =Sticks!$H$13 -> 15 | H84: =Sticks!$F$8 -> 4 | I84: Y | J84: =Sticks!$H$14 -> 7 | K84: =Sticks!$H$15 -> 16 | L84: =Sticks!$D$16 -> f
A85: 58 | B85: ='Ghetto Bombers'!$A$41 -> 8 | C85: ='Ghetto Bombers'!$D$1 -> Ghetto Bombers | D85: ='Ghetto Bombers'!$D$41 -> Brandi | E85: ='Ghetto Bombers'!$D$42 -> Hall | F85: ='Ghetto Bombers'!$H$44 -> 0.4615384615 | G85: ='Ghetto Bombers'!$H$41 -> 13 | H85: ='Ghetto Bombers'!$F$8 -> 4 | I85: Y | J85: ='Ghetto Bombers'!$H$42 -> 6 | K85: ='Ghetto Bombers'!$H$43 -> 13 | L85: ='Ghetto Bombers'!$D$44 -> f
A86: 39 | B86: =BCBC!$A$65 -> 14 | C86: =BCBC!$D$1 -> BCBC | D86: =BCBC!$D$65 -> Tiffany | E86: =BCBC!$D$66 -> Morton | F86: =BCBC!$H$68 -> 0.3636363636 | G86: =BCBC!$H$65 -> 11 | H86: =BCBC!$F$8 -> 4 | I86: Y | J86: =BCBC!$H$66 -> 4 | K86: =BCBC!$H$67 -> 11 | L86: =BCBC!$D$68 -> f
A87: 35 | B87: =BCBC!$A$49 -> 10 | C87: =BCBC!$D$1 -> BCBC | D87: =BCBC!$D$49 -> Robyne | E87: =BCBC!$D$50 -> Oostveen | F87: =BCBC!$H$52 -> 0.3571428571 | G87: =BCBC!$H$49 -> 14 | H87: =BCBC!$F$8 -> 4 | I87: Y | J87: =BCBC!$H$50 -> 5 | K87: =BCBC!$H$51 -> 14 | L87: =BCBC!$D$52 -> f
A88: 6 | B88: ='Bad Pitches'!$A$33 -> 6 | C88: ='Bad Pitches'!$D$1 -> Bad Pitches | D88: ='Bad Pitches'!$D$33 -> Paige | E88: ='Bad Pitches'!$D$34 -> Reynolds | F88: ='Bad Pitches'!$H$36 -> 0.3333333333 | G88: ='Bad Pitches'!$H$33 -> 12 | H88: ='Bad Pitches'!$F$8 -> 3 | I88: Y | J88: ='Bad Pitches'!$H$34 -> 4 | K88: ='Bad Pitches'!$H$35 -> 12 | L88: ='Bad Pitches'!$D$36 -> f
A89: 107 | B89: =Sticks!$A$37 -> 7 | C89: =Sticks!$D$1 -> Sticks | D89: =Sticks!$D$37 -> Shar | E89: =Sticks!$D$38 -> Norton | F89: =Sticks!$H$40 -> 0.3333333333 | G89: =Sticks!$H$37 -> 12 | H89: =Sticks!$F$8 -> 4 | I89: Y | J89: =Sticks!$H$38 -> 4 | K89: =Sticks!$H$39 -> 13 | L89: =Sticks!$D$40 -> f
A90: 54 | B90: ='Ghetto Bombers'!$A$25 -> 4 | C90: ='Ghetto Bombers'!$D$1 -> Ghetto Bombers | D90: ='Ghetto Bombers'!$D$25 -> JoJo | E90: ='Ghetto Bombers'!$D$26 -> Carlson | F90: ='Ghetto Bombers'!$H$28 -> 0.3125 | G90: ='Ghetto Bombers'!$H$25 -> 16 | H90: ='Ghetto Bombers'!$F$8 -> 4 | I90: Y | J90: ='Ghetto Bombers'!$H$26 -> 5 | K90: ='Ghetto Bombers'!$H$27 -> 16 | L90: ='Ghetto Bombers'!$D$28 -> f
A91: 2 | B91: ='Bad Pitches'!$A$17 -> 2 | C91: ='Bad Pitches'!$D$1 -> Bad Pitches | D91: ='Bad Pitches'!$D$17 -> Tayce | E91: ='Bad Pitches'!$D$18 -> Shamo | F91: ='Bad Pitches'!$H$20 -> 0.3076923077 | G91: ='Bad Pitches'!$H$17 -> 13 | H91: ='Bad Pitches'!$F$8 -> 3 | I91: Y | J91: ='Bad Pitches'!$H$18 -> 4 | K91: ='Bad Pitches'!$H$19 -> 13 | L91: ='Bad Pitches'!$D$20 -> f
A92: 62 | B92: ='Ghetto Bombers'!$A$57 -> 12 | C92: ='Ghetto Bombers'!$D$1 -> Ghetto Bombers | D92: ='Ghetto Bombers'!$D$57 -> Ali | E92: ='Ghetto Bombers'!$D$58 -> Smith | F92: ='Ghetto Bombers'!$H$60 -> 0.2727272727 | G92: ='Ghetto Bombers'!$H$57 -> 11 | H92: ='Ghetto Bombers'!$F$8 -> 4 | I92: Y | J92: ='Ghetto Bombers'!$H$58 -> 3 | K92: ='Ghetto Bombers'!$H$59 -> 13 | L92: ='Ghetto Bombers'!$D$60 -> f
A93: 103 | B93: =Sticks!$A$21 -> 3 | C93: =Sticks!$D$1 -> Sticks | D93: =Sticks!$D$21 -> Whitney | E93: =Sticks!$D$22 -> Larson | F93: =Sticks!$H$24 -> 0.25 | G93: =Sticks!$H$21 -> 12 | H93: =Sticks!$F$8 -> 4 | I93: Y | J93: =Sticks!$H$22 -> 3 | K93: =Sticks!$H$23 -> 12 | L93: =Sticks!$D$24 -> f
A94: 4 | B94: ='Bad Pitches'!$A$25 -> 4 | C94: ='Bad Pitches'!$D$1 -> Bad Pitches | D94: ='Bad Pitches'!$D$25 -> Stephanie | E94: ='Bad Pitches'!$D$26 -> Bonham | F94: ='Bad Pitches'!$H$28 -> 0.25 | G94: ='Bad Pitches'!$H$25 -> 12 | H94: ='Bad Pitches'!$F$8 -> 3 | I94: Y | J94: ='Bad Pitches'!$H$26 -> 3 | K94: ='Bad Pitches'!$H$27 -> 12 | L94: ='Bad Pitches'!$D$28 -> f
A95: 111 | B95: =Sticks!$A$53 -> 11 | C95: =Sticks!$D$1 -> Sticks | D95: =Sticks!$D$53 -> Melinda | E95: =Sticks!$D$54 -> Adams | F95: =Sticks!$H$56 -> 0.2 | G95: =Sticks!$H$53 -> 10 | H95: =Sticks!$F$8 -> 4 | I95: Y | J95: =Sticks!$H$54 -> 2 | K95: =Sticks!$H$55 -> 12 | L95: =Sticks!$D$56 -> f
A96: 56 | B96: ='Ghetto Bombers'!$A$33 -> 6 | C96: ='Ghetto Bombers'!$D$1 -> Ghetto Bombers | D96: ='Ghetto Bombers'!$D$33 -> Angela | E96: ='Ghetto Bombers'!$D$34 -> Ahmadpour | F96: ='Ghetto Bombers'!$H$36 -> 0.1 | G96: ='Ghetto Bombers'!$H$33 -> 10 | H96: ='Ghetto Bombers'!$F$8 -> 4 | I96: Y | J96: ='Ghetto Bombers'!$H$34 -> 1 | K96: ='Ghetto Bombers'!$H$35 -> 10 | L96: ='Ghetto Bombers'!$D$36 -> f
A97: 137 | B97: ='Team 6'!$A$57 -> 12 | C97: ='Team 6'!$D$1 -> Team 6 | D97: ='Team 6'!$D$57 -> 0 | E97: ='Team 6'!$D$58 -> 0 | F97: ='Team 6'!$H$60 ->  | G97: ='Team 6'!$H$57 -> 0 | H97: ='Team 6'!$F$8 -> 8 | I97: N | J97: ='Team 6'!$H$58 -> 0 | K97: ='Team 6'!$H$59 -> 0 | L97: ='Team 6'!$D$60 -> f
A98: 216 | B98: ='Team 7'!$A$73 -> 16 | C98: ='Team 7'!$D$1 ->  | D98: ='Team 7'!$D$73 -> 0 | E98: ='Team 7'!$D$74 -> 0 | F98: ='Team 7'!$H$76 ->  | G98: ='Team 7'!$H$73 -> 0 | H98: ='Team 7'!$F$8 -> 8 | I98: =IF(K98<(H98*2.5),"N","Y") -> N | J98: ='Team 7'!$H$74 -> 0 | K98: ='Team 7'!$H$75 -> 0 | L98: ='Team 7'!$D$76 -> f
A99: 214 | B99: ='Team 7'!$A$65 -> 14 | C99: ='Team 7'!$D$1 ->  | D99: ='Team 7'!$D$65 -> 0 | E99: ='Team 7'!$D$66 -> 0 | F99: ='Team 7'!$H$68 ->  | G99: ='Team 7'!$H$65 -> 0 | H99: ='Team 7'!$F$8 -> 8 | I99: N | J99: ='Team 7'!$H$66 -> 0 | K99: ='Team 7'!$H$67 -> 0 | L99: ='Team 7'!$D$68 -> f
A100: 186 | B100: ='Team 8'!$A$53 -> 11 | C100: ='Team 8'!$D$1 ->  | D100: ='Team 8'!$D$53 -> 0 | E100: ='Team 8'!$D$54 -> 0 | F100: ='Team 8'!$H$56 ->  | G100: ='Team 8'!$H$53 -> 0 | H100: ='Team 8'!$F$8 -> 8 | I100: N | J100: ='Team 8'!$H$54 -> 0 | K100: ='Team 8'!$H$55 -> 0 | L100: ='Team 8'!$D$56 -> f
A101: 21 | B101: ='Bad Pitches'!$A$93 -> 21 | C101: ='Bad Pitches'!$D$1 -> Bad Pitches | D101: ='Bad Pitches'!$D$93 -> 0 | E101: ='Bad Pitches'!$D$94 -> 0 | F101: ='Bad Pitches'!$H$96 ->  | G101: ='Bad Pitches'!$H$93 -> 0 | H101: ='Bad Pitches'!$F$8 -> 3 | I101: N | J101: ='Bad Pitches'!$H$94 -> 0 | K101: ='Bad Pitches'!$H$95 -> 0 | L101: ='Bad Pitches'!$D$96 -> f
A102: 22 | B102: ='Bad Pitches'!$A$97 -> 22 | C102: ='Bad Pitches'!$D$1 -> Bad Pitches | D102: ='Bad Pitches'!$D$97 -> 0 | E102: ='Bad Pitches'!$D$98 -> 0 | F102: ='Bad Pitches'!$H$100 ->  | G102: ='Bad Pitches'!$H$97 -> 0 | H102: ='Bad Pitches'!$F$8 -> 3 | I102: N | J102: ='Bad Pitches'!$H$98 -> 0 | K102: ='Bad Pitches'!$H$99 -> 0 | L102: ='Bad Pitches'!$D$100 -> f
A103: 23 | B103: ='Bad Pitches'!$A$101 -> 23 | C103: ='Bad Pitches'!$D$1 -> Bad Pitches | D103: ='Bad Pitches'!$D$101 -> 0 | E103: ='Bad Pitches'!$D$102 -> 0 | F103: ='Bad Pitches'!$H$104 ->  | G103: ='Bad Pitches'!$H$101 -> 0 | H103: ='Bad Pitches'!$F$8 -> 3 | I103: N | J103: ='Bad Pitches'!$H$102 -> 0 | K103: ='Bad Pitches'!$H$103 -> 0 | L103: ='Bad Pitches'!$D$104 -> f
A104: 24 | B104: ='Bad Pitches'!$A$105 -> 24 | C104: ='Bad Pitches'!$D$1 -> Bad Pitches | D104: ='Bad Pitches'!$D$105 -> 0 | E104: ='Bad Pitches'!$D$106 -> 0 | F104: ='Bad Pitches'!$H$108 ->  | G104: ='Bad Pitches'!$H$105 -> 0 | H104: ='Bad Pitches'!$F$8 -> 3 | I104: N | J104: ='Bad Pitches'!$H$106 -> 0 | K104: ='Bad Pitches'!$H$107 -> 0 | L104: ='Bad Pitches'!$D$108 -> f
A105: 25 | B105: ='Bad Pitches'!$A$109 -> 25 | C105: ='Bad Pitches'!$D$1 -> Bad Pitches | D105: ='Bad Pitches'!$D$109 -> 0 | E105: ='Bad Pitches'!$D$110 -> 0 | F105: ='Bad Pitches'!$H$112 ->  | G105: ='Bad Pitches'!$H$109 -> 0 | H105: ='Bad Pitches'!$F$8 -> 3 | I105: N | J105: ='Bad Pitches'!$H$110 -> 0 | K105: ='Bad Pitches'!$H$111 -> 0 | L105: ='Bad Pitches'!$D$112 -> f
A106: 72 | B106: ='Ghetto Bombers'!$A$97 -> 22 | C106: ='Ghetto Bombers'!$D$1 -> Ghetto Bombers | D106: ='Ghetto Bombers'!$D$97 -> 0 | E106: ='Ghetto Bombers'!$D$98 -> 0 | F106: ='Ghetto Bombers'!$H$100 ->  | G106: ='Ghetto Bombers'!$H$97 -> 0 | H106: ='Ghetto Bombers'!$F$8 -> 4 | I106: N | J106: ='Ghetto Bombers'!$H$98 -> 0 | K106: ='Ghetto Bombers'!$H$99 -> 0 | L106: ='Ghetto Bombers'!$D$100 -> f
A107: 73 | B107: ='Ghetto Bombers'!$A$101 -> 23 | C107: ='Ghetto Bombers'!$D$1 -> Ghetto Bombers | D107: ='Ghetto Bombers'!$D$101 -> 0 | E107: ='Ghetto Bombers'!$D$102 -> 0 | F107: ='Ghetto Bombers'!$H$104 ->  | G107: ='Ghetto Bombers'!$H$101 -> 0 | H107: ='Ghetto Bombers'!$F$8 -> 4 | I107: N | J107: ='Ghetto Bombers'!$H$102 -> 0 | K107: ='Ghetto Bombers'!$H$103 -> 0 | L107: ='Ghetto Bombers'!$D$104 -> f
A108: 74 | B108: ='Ghetto Bombers'!$A$105 -> 24 | C108: ='Ghetto Bombers'!$D$1 -> Ghetto Bombers | D108: ='Ghetto Bombers'!$D$105 -> 0 | E108: ='Ghetto Bombers'!$D$106 -> 0 | F108: ='Ghetto Bombers'!$H$108 ->  | G108: ='Ghetto Bombers'!$H$105 -> 0 | H108: ='Ghetto Bombers'!$F$8 -> 4 | I108: N | J108: ='Ghetto Bombers'!$H$106 -> 0 | K108: ='Ghetto Bombers'!$H$107 -> 0 | L108: ='Ghetto Bombers'!$D$108 -> f
A109: 75 | B109: ='Ghetto Bombers'!$A$109 -> 25 | C109: ='Ghetto Bombers'!$D$1 -> Ghetto Bombers | D109: ='Ghetto Bombers'!$D$109 -> 0 | E109: ='Ghetto Bombers'!$D$110 -> 0 | F109: ='Ghetto Bombers'!$H$112 ->  | G109: ='Ghetto Bombers'!$H$109 -> 0 | H109: ='Ghetto Bombers'!$F$8 -> 4 | I109: N | J109: ='Ghetto Bombers'!$H$110 -> 0 | K109: ='Ghetto Bombers'!$H$111 -> 0 | L109: ='Ghetto Bombers'!$D$112 -> f
A110: 95 | B110: ='Hit Squad'!$A$89 -> 20 | C110: ='Hit Squad'!$D$1 -> Hit Squad | D110: ='Hit Squad'!$D$89 -> 0 | E110: ='Hit Squad'!$D$90 -> 0 | F110: ='Hit Squad'!$H$92 ->  | G110: ='Hit Squad'!$H$89 -> 0 | H110: ='Hit Squad'!$F$8 -> 3 | I110: N | J110: ='Hit Squad'!$H$90 -> 0 | K110: ='Hit Squad'!$H$91 -> 0 | L110: ='Hit Squad'!$D$92 -> f
A111: 96 | B111: ='Hit Squad'!$A$93 -> 21 | C111: ='Hit Squad'!$D$1 -> Hit Squad | D111: ='Hit Squad'!$D$93 -> 0 | E111: ='Hit Squad'!$D$94 -> 0 | F111: ='Hit Squad'!$H$96 ->  | G111: ='Hit Squad'!$H$93 -> 0 | H111: ='Hit Squad'!$F$8 -> 3 | I111: N | J111: ='Hit Squad'!$H$94 -> 0 | K111: ='Hit Squad'!$H$95 -> 0 | L111: ='Hit Squad'!$D$96 -> f
A112: 97 | B112: ='Hit Squad'!$A$97 -> 22 | C112: ='Hit Squad'!$D$1 -> Hit Squad | D112: ='Hit Squad'!$D$97 -> 0 | E112: ='Hit Squad'!$D$98 -> 0 | F112: ='Hit Squad'!$H$100 ->  | G112: ='Hit Squad'!$H$97 -> 0 | H112: ='Hit Squad'!$F$8 -> 3 | I112: N | J112: ='Hit Squad'!$H$98 -> 0 | K112: ='Hit Squad'!$H$99 -> 0 | L112: ='Hit Squad'!$D$100 -> f
A113: 98 | B113: ='Hit Squad'!$A$101 -> 23 | C113: ='Hit Squad'!$D$1 -> Hit Squad | D113: ='Hit Squad'!$D$101 -> 0 | E113: ='Hit Squad'!$D$102 -> 0 | F113: ='Hit Squad'!$H$104 ->  | G113: ='Hit Squad'!$H$101 -> 0 | H113: ='Hit Squad'!$F$8 -> 3 | I113: N | J113: ='Hit Squad'!$H$102 -> 0 | K113: ='Hit Squad'!$H$103 -> 0 | L113: ='Hit Squad'!$D$104 -> f
A114: 99 | B114: ='Hit Squad'!$A$105 -> 24 | C114: ='Hit Squad'!$D$1 -> Hit Squad | D114: ='Hit Squad'!$D$105 -> 0 | E114: ='Hit Squad'!$D$106 -> 0 | F114: ='Hit Squad'!$H$108 ->  | G114: ='Hit Squad'!$H$105 -> 0 | H114: ='Hit Squad'!$F$8 -> 3 | I114: N | J114: ='Hit Squad'!$H$106 -> 0 | K114: ='Hit Squad'!$H$107 -> 0 | L114: ='Hit Squad'!$D$108 -> f
A115: 100 | B115: ='Hit Squad'!$A$109 -> 25 | C115: ='Hit Squad'!$D$1 -> Hit Squad | D115: ='Hit Squad'!$D$109 -> 0 | E115: ='Hit Squad'!$D$110 -> 0 | F115: ='Hit Squad'!$H$112 ->  | G115: ='Hit Squad'!$H$109 -> 0 | H115: ='Hit Squad'!$F$8 -> 3 | I115: N | J115: ='Hit Squad'!$H$110 -> 0 | K115: ='Hit Squad'!$H$111 -> 0 | L115: ='Hit Squad'!$D$112 -> f
A116: 122 | B116: =Sticks!$A$97 -> 22 | C116: =Sticks!$D$1 -> Sticks | D116: =Sticks!$D$97 -> 0 | E116: =Sticks!$D$98 -> 0 | F116: =Sticks!$H$100 ->  | G116: =Sticks!$H$97 -> 0 | H116: =Sticks!$F$8 -> 4 | I116: N | J116: =Sticks!$H$98 -> 0 | K116: =Sticks!$H$99 -> 0 | L116: =Sticks!$D$100 -> f
A117: 123 | B117: =Sticks!$A$101 -> 23 | C117: =Sticks!$D$1 -> Sticks | D117: =Sticks!$D$101 -> 0 | E117: =Sticks!$D$102 -> 0 | F117: =Sticks!$H$104 ->  | G117: =Sticks!$H$101 -> 0 | H117: =Sticks!$F$8 -> 4 | I117: N | J117: =Sticks!$H$102 -> 0 | K117: =Sticks!$H$103 -> 0 | L117: =Sticks!$D$104 -> f
A118: 124 | B118: =Sticks!$A$105 -> 24 | C118: =Sticks!$D$1 -> Sticks | D118: =Sticks!$D$105 -> 0 | E118: =Sticks!$D$106 -> 0 | F118: =Sticks!$H$108 ->  | G118: =Sticks!$H$105 -> 0 | H118: =Sticks!$F$8 -> 4 | I118: N | J118: =Sticks!$H$106 -> 0 | K118: =Sticks!$H$107 -> 0 | L118: =Sticks!$D$108 -> f
A119: 125 | B119: =Sticks!$A$109 -> 25 | C119: =Sticks!$D$1 -> Sticks | D119: =Sticks!$D$109 -> 0 | E119: =Sticks!$D$110 -> 0 | F119: =Sticks!$H$112 ->  | G119: =Sticks!$H$109 -> 0 | H119: =Sticks!$F$8 -> 4 | I119: N | J119: =Sticks!$H$110 -> 0 | K119: =Sticks!$H$111 -> 0 | L119: =Sticks!$D$112 -> f
A120: 150 | B120: ='Team 6'!$A$109 -> 25 | C120: ='Team 6'!$D$1 -> Team 6 | D120: ='Team 6'!$D$109 -> 0 | E120: ='Team 6'!$D$110 -> 0 | F120: ='Team 6'!$H$112 ->  | G120: ='Team 6'!$H$109 -> 0 | H120: ='Team 6'!$F$8 -> 8 | I120: N | J120: ='Team 6'!$H$110 -> 0 | K120: ='Team 6'!$H$111 -> 0 | L120: ='Team 6'!$D$112 -> f
A121: 189 | B121: ='Team 8'!$A$65 -> 14 | C121: ='Team 8'!$D$1 ->  | D121: ='Team 8'!$D$65 -> 0 | E121: ='Team 8'!$D$66 -> 0 | F121: ='Team 8'!$H$68 ->  | G121: ='Team 8'!$H$65 -> 0 | H121: ='Team 8'!$F$8 -> 8 | I121: N | J121: ='Team 8'!$H$66 -> 0 | K121: ='Team 8'!$H$67 -> 0 | L121: ='Team 8'!$D$68 -> f
A122: 190 | B122: ='Team 8'!$A$69 -> 15 | C122: ='Team 8'!$D$1 ->  | D122: ='Team 8'!$D$69 -> 0 | E122: ='Team 8'!$D$70 -> 0 | F122: ='Team 8'!$H$72 ->  | G122: ='Team 8'!$H$69 -> 0 | H122: ='Team 8'!$F$8 -> 8 | I122: N | J122: ='Team 8'!$H$70 -> 0 | K122: ='Team 8'!$H$71 -> 0 | L122: ='Team 8'!$D$72 -> f
A123: 191 | B123: ='Team 8'!$A$73 -> 16 | C123: ='Team 8'!$D$1 ->  | D123: ='Team 8'!$D$73 -> 0 | E123: ='Team 8'!$D$74 -> 0 | F123: ='Team 8'!$H$76 ->  | G123: ='Team 8'!$H$73 -> 0 | H123: ='Team 8'!$F$8 -> 8 | I123: N | J123: ='Team 8'!$H$74 -> 0 | K123: ='Team 8'!$H$75 -> 0 | L123: ='Team 8'!$D$76 -> f
A124: 192 | B124: ='Team 8'!$A$77 -> 17 | C124: ='Team 8'!$D$1 ->  | D124: ='Team 8'!$D$77 -> 0 | E124: ='Team 8'!$D$78 -> 0 | F124: ='Team 8'!$H$80 ->  | G124: ='Team 8'!$H$77 -> 0 | H124: ='Team 8'!$F$8 -> 8 | I124: N | J124: ='Team 8'!$H$78 -> 0 | K124: ='Team 8'!$H$79 -> 0 | L124: ='Team 8'!$D$80 -> f
A125: 193 | B125: ='Team 8'!$A$81 -> 18 | C125: ='Team 8'!$D$1 ->  | D125: ='Team 8'!$D$81 -> 0 | E125: ='Team 8'!$D$82 -> 0 | F125: ='Team 8'!$H$84 ->  | G125: ='Team 8'!$H$81 -> 0 | H125: ='Team 8'!$F$8 -> 8 | I125: N | J125: ='Team 8'!$H$82 -> 0 | K125: ='Team 8'!$H$83 -> 0 | L125: ='Team 8'!$D$84 -> f
A126: 194 | B126: ='Team 8'!$A$85 -> 19 | C126: ='Team 8'!$D$1 ->  | D126: ='Team 8'!$D$85 -> 0 | E126: ='Team 8'!$D$86 -> 0 | F126: ='Team 8'!$H$88 ->  | G126: ='Team 8'!$H$85 -> 0 | H126: ='Team 8'!$F$8 -> 8 | I126: N | J126: ='Team 8'!$H$86 -> 0 | K126: ='Team 8'!$H$87 -> 0 | L126: ='Team 8'!$D$88 -> f
A127: 195 | B127: ='Team 8'!$A$89 -> 20 | C127: ='Team 8'!$D$1 ->  | D127: ='Team 8'!$D$89 -> 0 | E127: ='Team 8'!$D$90 -> 0 | F127: ='Team 8'!$H$92 ->  | G127: ='Team 8'!$H$89 -> 0 | H127: ='Team 8'!$F$8 -> 8 | I127: N | J127: ='Team 8'!$H$90 -> 0 | K127: ='Team 8'!$H$91 -> 0 | L127: ='Team 8'!$D$92 -> f
A128: 196 | B128: ='Team 8'!$A$93 -> 21 | C128: ='Team 8'!$D$1 ->  | D128: ='Team 8'!$D$93 -> 0 | E128: ='Team 8'!$D$94 -> 0 | F128: ='Team 8'!$H$96 ->  | G128: ='Team 8'!$H$93 -> 0 | H128: ='Team 8'!$F$8 -> 8 | I128: N | J128: ='Team 8'!$H$94 -> 0 | K128: ='Team 8'!$H$95 -> 0 | L128: ='Team 8'!$D$96 -> f
A129: 197 | B129: ='Team 8'!$A$97 -> 22 | C129: ='Team 8'!$D$1 ->  | D129: ='Team 8'!$D$97 -> 0 | E129: ='Team 8'!$D$98 -> 0 | F129: ='Team 8'!$H$100 ->  | G129: ='Team 8'!$H$97 -> 0 | H129: ='Team 8'!$F$8 -> 8 | I129: N | J129: ='Team 8'!$H$98 -> 0 | K129: ='Team 8'!$H$99 -> 0 | L129: ='Team 8'!$D$100 -> f
A130: 198 | B130: ='Team 8'!$A$101 -> 23 | C130: ='Team 8'!$D$1 ->  | D130: ='Team 8'!$D$101 -> 0 | E130: ='Team 8'!$D$102 -> 0 | F130: ='Team 8'!$H$104 ->  | G130: ='Team 8'!$H$101 -> 0 | H130: ='Team 8'!$F$8 -> 8 | I130: =IF(K130<(H130*2.5),"N","Y") -> N | J130: ='Team 8'!$H$102 -> 0 | K130: ='Team 8'!$H$103 -> 0 | L130: ='Team 8'!$D$104 -> f
A131: 199 | B131: ='Team 8'!$A$105 -> 24 | C131: ='Team 8'!$D$1 ->  | D131: ='Team 8'!$D$105 -> 0 | E131: ='Team 8'!$D$106 -> 0 | F131: ='Team 8'!$H$108 ->  | G131: ='Team 8'!$H$105 -> 0 | H131: ='Team 8'!$F$8 -> 8 | I131: N | J131: ='Team 8'!$H$106 -> 0 | K131: ='Team 8'!$H$107 -> 0 | L131: ='Team 8'!$D$108 -> f
A132: 200 | B132: ='Team 8'!$A$109 -> 25 | C132: ='Team 8'!$D$1 ->  | D132: ='Team 8'!$D$109 -> 0 | E132: ='Team 8'!$D$110 -> 0 | F132: ='Team 8'!$H$112 ->  | G132: ='Team 8'!$H$109 -> 0 | H132: ='Team 8'!$F$8 -> 8 | I132: N | J132: ='Team 8'!$H$110 -> 0 | K132: ='Team 8'!$H$111 -> 0 | L132: ='Team 8'!$D$112 -> f
A133: 218 | B133: ='Team 7'!$A$81 -> 18 | C133: ='Team 7'!$D$1 ->  | D133: ='Team 7'!$D$81 -> 0 | E133: ='Team 7'!$D$82 -> 0 | F133: ='Team 7'!$H$84 ->  | G133: ='Team 7'!$H$81 -> 0 | H133: ='Team 7'!$F$8 -> 8 | I133: N | J133: ='Team 7'!$H$82 -> 0 | K133: ='Team 7'!$H$83 -> 0 | L133: ='Team 7'!$D$84 -> f
A134: 219 | B134: ='Team 7'!$A$85 -> 19 | C134: ='Team 7'!$D$1 ->  | D134: ='Team 7'!$D$85 -> 0 | E134: ='Team 7'!$D$86 -> 0 | F134: ='Team 7'!$H$88 ->  | G134: ='Team 7'!$H$85 -> 0 | H134: ='Team 7'!$F$8 -> 8 | I134: N | J134: ='Team 7'!$H$86 -> 0 | K134: ='Team 7'!$H$87 -> 0 | L134: ='Team 7'!$D$88 -> f
A135: 220 | B135: ='Team 7'!$A$89 -> 20 | C135: ='Team 7'!$D$1 ->  | D135: ='Team 7'!$D$89 -> 0 | E135: ='Team 7'!$D$90 -> 0 | F135: ='Team 7'!$H$92 ->  | G135: ='Team 7'!$H$89 -> 0 | H135: ='Team 7'!$F$8 -> 8 | I135: N | J135: ='Team 7'!$H$90 -> 0 | K135: ='Team 7'!$H$91 -> 0 | L135: ='Team 7'!$D$92 -> f
A136: 221 | B136: ='Team 7'!$A$93 -> 21 | C136: ='Team 7'!$D$1 ->  | D136: ='Team 7'!$D$93 -> 0 | E136: ='Team 7'!$D$94 -> 0 | F136: ='Team 7'!$H$96 ->  | G136: ='Team 7'!$H$93 -> 0 | H136: ='Team 7'!$F$8 -> 8 | I136: N | J136: ='Team 7'!$H$94 -> 0 | K136: ='Team 7'!$H$95 -> 0 | L136: ='Team 7'!$D$96 -> f
A137: 222 | B137: ='Team 7'!$A$97 -> 22 | C137: ='Team 7'!$D$1 ->  | D137: ='Team 7'!$D$97 -> 0 | E137: ='Team 7'!$D$98 -> 0 | F137: ='Team 7'!$H$100 ->  | G137: ='Team 7'!$H$97 -> 0 | H137: ='Team 7'!$F$8 -> 8 | I137: N | J137: ='Team 7'!$H$98 -> 0 | K137: ='Team 7'!$H$99 -> 0 | L137: ='Team 7'!$D$100 -> f
A138: 223 | B138: ='Team 7'!$A$101 -> 23 | C138: ='Team 7'!$D$1 ->  | D138: ='Team 7'!$D$101 -> 0 | E138: ='Team 7'!$D$102 -> 0 | F138: ='Team 7'!$H$104 ->  | G138: ='Team 7'!$H$101 -> 0 | H138: ='Team 7'!$F$8 -> 8 | I138: N | J138: ='Team 7'!$H$102 -> 0 | K138: ='Team 7'!$H$103 -> 0 | L138: ='Team 7'!$D$104 -> f
A139: 224 | B139: ='Team 7'!$A$105 -> 24 | C139: ='Team 7'!$D$1 ->  | D139: ='Team 7'!$D$105 -> 0 | E139: ='Team 7'!$D$106 -> 0 | F139: ='Team 7'!$H$108 ->  | G139: ='Team 7'!$H$105 -> 0 | H139: ='Team 7'!$F$8 -> 8 | I139: N | J139: ='Team 7'!$H$106 -> 0 | K139: ='Team 7'!$H$107 -> 0 | L139: ='Team 7'!$D$108 -> f
A140: 225 | B140: ='Team 7'!$A$109 -> 25 | C140: ='Team 7'!$D$1 ->  | D140: ='Team 7'!$D$109 -> 0 | E140: ='Team 7'!$D$110 -> 0 | F140: ='Team 7'!$H$112 ->  | G140: ='Team 7'!$H$109 -> 0 | H140: ='Team 7'!$F$8 -> 8 | I140: N | J140: ='Team 7'!$H$110 -> 0 | K140: ='Team 7'!$H$111 -> 0 | L140: ='Team 7'!$D$112 -> f
A141: 187 | B141: ='Team 8'!$A$57 -> 12 | C141: ='Team 8'!$D$1 ->  | D141: ='Team 8'!$D$57 -> 0 | E141: ='Team 8'!$D$58 -> 0 | F141: ='Team 8'!$H$60 ->  | G141: ='Team 8'!$H$57 -> 0 | H141: ='Team 8'!$F$8 -> 8 | I141: N | J141: ='Team 8'!$H$58 -> 0 | K141: ='Team 8'!$H$59 -> 0 | L141: ='Team 8'!$D$60 -> f
A142: 188 | B142: ='Team 8'!$A$61 -> 13 | C142: ='Team 8'!$D$1 ->  | D142: ='Team 8'!$D$61 -> 0 | E142: ='Team 8'!$D$62 -> 0 | F142: ='Team 8'!$H$64 ->  | G142: ='Team 8'!$H$61 -> 0 | H142: ='Team 8'!$F$8 -> 8 | I142: N | J142: ='Team 8'!$H$62 -> 0 | K142: ='Team 8'!$H$63 -> 0 | L142: ='Team 8'!$D$64 -> f
A143: 213 | B143: ='Team 7'!$A$61 -> 13 | C143: ='Team 7'!$D$1 ->  | D143: ='Team 7'!$D$61 -> 0 | E143: ='Team 7'!$D$62 -> 0 | F143: ='Team 7'!$H$64 ->  | G143: ='Team 7'!$H$61 -> 0 | H143: ='Team 7'!$F$8 -> 8 | I143: N | J143: ='Team 7'!$H$62 -> 0 | K143: ='Team 7'!$H$63 -> 0 | L143: ='Team 7'!$D$64 -> f
A144: 215 | B144: ='Team 7'!$A$69 -> 15 | C144: ='Team 7'!$D$1 ->  | D144: ='Team 7'!$D$69 -> 0 | E144: ='Team 7'!$D$70 -> 0 | F144: ='Team 7'!$H$72 ->  | G144: ='Team 7'!$H$69 -> 0 | H144: ='Team 7'!$F$8 -> 8 | I144: N | J144: ='Team 7'!$H$70 -> 0 | K144: ='Team 7'!$H$71 -> 0 | L144: ='Team 7'!$D$72 -> f
A145: 217 | B145: ='Team 7'!$A$77 -> 17 | C145: ='Team 7'!$D$1 ->  | D145: ='Team 7'!$D$77 -> 0 | E145: ='Team 7'!$D$78 -> 0 | F145: ='Team 7'!$H$80 ->  | G145: ='Team 7'!$H$77 -> 0 | H145: ='Team 7'!$F$8 -> 8 | I145: N | J145: ='Team 7'!$H$78 -> 0 | K145: ='Team 7'!$H$79 -> 0 | L145: ='Team 7'!$D$80 -> f
A146: 118 | B146: =Sticks!$A$81 -> 18 | C146: =Sticks!$D$1 -> Sticks | D146: =Sticks!$D$81 -> 0 | E146: =Sticks!$D$82 -> 0 | F146: =Sticks!$H$84 ->  | G146: =Sticks!$H$81 -> 0 | H146: =Sticks!$F$8 -> 4 | I146: N | J146: =Sticks!$H$82 -> 0 | K146: =Sticks!$H$83 -> 0 | L146: =Sticks!$D$84 -> f
A147: 17 | B147: ='Bad Pitches'!$A$77 -> 17 | C147: ='Bad Pitches'!$D$1 -> Bad Pitches | D147: ='Bad Pitches'!$D$77 -> 0 | E147: ='Bad Pitches'!$D$78 -> 0 | F147: ='Bad Pitches'!$H$80 ->  | G147: ='Bad Pitches'!$H$77 -> 0 | H147: ='Bad Pitches'!$F$8 -> 3 | I147: N | J147: ='Bad Pitches'!$H$78 -> 0 | K147: ='Bad Pitches'!$H$79 -> 0 | L147: ='Bad Pitches'!$D$80 -> f
A148: 120 | B148: =Sticks!$A$89 -> 20 | C148: =Sticks!$D$1 -> Sticks | D148: =Sticks!$D$89 -> 0 | E148: =Sticks!$D$90 -> 0 | F148: =Sticks!$H$92 ->  | G148: =Sticks!$H$89 -> 0 | H148: =Sticks!$F$8 -> 4 | I148: N | J148: =Sticks!$H$90 -> 0 | K148: =Sticks!$H$91 -> 0 | L148: =Sticks!$D$92 -> f
A149: 117 | B149: =Sticks!$A$77 -> 17 | C149: =Sticks!$D$1 -> Sticks | D149: =Sticks!$D$77 -> 0 | E149: =Sticks!$D$78 -> 0 | F149: =Sticks!$H$80 ->  | G149: =Sticks!$H$77 -> 0 | H149: =Sticks!$F$8 -> 4 | I149: N | J149: =Sticks!$H$78 -> 0 | K149: =Sticks!$H$79 -> 0 | L149: =Sticks!$D$80 -> f
A150: 20 | B150: ='Bad Pitches'!$A$89 -> 20 | C150: ='Bad Pitches'!$D$1 -> Bad Pitches | D150: ='Bad Pitches'!$D$89 -> 0 | E150: ='Bad Pitches'!$D$90 -> 0 | F150: ='Bad Pitches'!$H$92 ->  | G150: ='Bad Pitches'!$H$89 -> 0 | H150: ='Bad Pitches'!$F$8 -> 3 | I150: N | J150: ='Bad Pitches'!$H$90 -> 0 | K150: ='Bad Pitches'!$H$91 -> 0 | L150: ='Bad Pitches'!$D$92 -> f
A151: 94 | B151: ='Hit Squad'!$A$85 -> 19 | C151: ='Hit Squad'!$D$1 -> Hit Squad | D151: ='Hit Squad'!$D$85 -> 0 | E151: ='Hit Squad'!$D$86 -> 0 | F151: ='Hit Squad'!$H$88 ->  | G151: ='Hit Squad'!$H$85 -> 0 | H151: ='Hit Squad'!$F$8 -> 3 | I151: N | J151: ='Hit Squad'!$H$86 -> 0 | K151: ='Hit Squad'!$H$87 -> 0 | L151: ='Hit Squad'!$D$88 -> f
A152: 16 | B152: ='Bad Pitches'!$A$73 -> 16 | C152: ='Bad Pitches'!$D$1 -> Bad Pitches | D152: ='Bad Pitches'!$D$73 -> 0 | E152: ='Bad Pitches'!$D$74 -> 0 | F152: ='Bad Pitches'!$H$76 ->  | G152: ='Bad Pitches'!$H$73 -> 0 | H152: ='Bad Pitches'!$F$8 -> 3 | I152: N | J152: ='Bad Pitches'!$H$74 -> 0 | K152: ='Bad Pitches'!$H$75 -> 0 | L152: ='Bad Pitches'!$D$76 -> f
A153: 143 | B153: ='Team 6'!$A$81 -> 18 | C153: ='Team 6'!$D$1 -> Team 6 | D153: ='Team 6'!$D$81 -> 0 | E153: ='Team 6'!$D$82 -> 0 | F153: ='Team 6'!$H$84 ->  | G153: ='Team 6'!$H$81 -> 0 | H153: ='Team 6'!$F$8 -> 8 | I153: N | J153: ='Team 6'!$H$82 -> 0 | K153: ='Team 6'!$H$83 -> 0 | L153: ='Team 6'!$D$84 -> f
A154: 212 | B154: ='Team 7'!$A$57 -> 12 | C154: ='Team 7'!$D$1 ->  | D154: ='Team 7'!$D$57 -> 0 | E154: ='Team 7'!$D$58 -> 0 | F154: ='Team 7'!$H$60 ->  | G154: ='Team 7'!$H$57 -> 0 | H154: ='Team 7'!$F$8 -> 8 | I154: N | J154: ='Team 7'!$H$58 -> 0 | K154: ='Team 7'!$H$59 -> 0 | L154: ='Team 7'!$D$60 -> f
A155: 148 | B155: ='Team 6'!$A$101 -> 23 | C155: ='Team 6'!$D$1 -> Team 6 | D155: ='Team 6'!$D$101 -> 0 | E155: ='Team 6'!$D$102 -> 0 | F155: ='Team 6'!$H$104 ->  | G155: ='Team 6'!$H$101 -> 0 | H155: ='Team 6'!$F$8 -> 8 | I155: N | J155: ='Team 6'!$H$102 -> 0 | K155: ='Team 6'!$H$103 -> 0 | L155: ='Team 6'!$D$104 -> f
A156: 145 | B156: ='Team 6'!$A$89 -> 20 | C156: ='Team 6'!$D$1 -> Team 6 | D156: ='Team 6'!$D$89 -> 0 | E156: ='Team 6'!$D$90 -> 0 | F156: ='Team 6'!$H$92 ->  | G156: ='Team 6'!$H$89 -> 0 | H156: ='Team 6'!$F$8 -> 8 | I156: N | J156: ='Team 6'!$H$90 -> 0 | K156: ='Team 6'!$H$91 -> 0 | L156: ='Team 6'!$D$92 -> f
A157: 115 | B157: =Sticks!$A$69 -> 15 | C157: =Sticks!$D$1 -> Sticks | D157: =Sticks!$D$69 -> 0 | E157: =Sticks!$D$70 -> 0 | F157: =Sticks!$H$72 ->  | G157: =Sticks!$H$69 -> 0 | H157: =Sticks!$F$8 -> 4 | I157: N | J157: =Sticks!$H$70 -> 0 | K157: =Sticks!$H$71 -> 0 | L157: =Sticks!$D$72 -> f
A158: 141 | B158: ='Team 6'!$A$73 -> 16 | C158: ='Team 6'!$D$1 -> Team 6 | D158: ='Team 6'!$D$73 -> 0 | E158: ='Team 6'!$D$74 -> 0 | F158: ='Team 6'!$H$76 ->  | G158: ='Team 6'!$H$73 -> 0 | H158: ='Team 6'!$F$8 -> 8 | I158: N | J158: ='Team 6'!$H$74 -> 0 | K158: ='Team 6'!$H$75 -> 0 | L158: ='Team 6'!$D$76 -> f
A159: 15 | B159: ='Bad Pitches'!$A$69 -> 15 | C159: ='Bad Pitches'!$D$1 -> Bad Pitches | D159: ='Bad Pitches'!$D$69 -> 0 | E159: ='Bad Pitches'!$D$70 -> 0 | F159: ='Bad Pitches'!$H$72 ->  | G159: ='Bad Pitches'!$H$69 -> 0 | H159: ='Bad Pitches'!$F$8 -> 3 | I159: N | J159: ='Bad Pitches'!$H$70 -> 0 | K159: ='Bad Pitches'!$H$71 -> 0 | L159: ='Bad Pitches'!$D$72 -> f
A160: 68 | B160: ='Ghetto Bombers'!$A$81 -> 18 | C160: ='Ghetto Bombers'!$D$1 -> Ghetto Bombers | D160: ='Ghetto Bombers'!$D$81 -> 0 | E160: ='Ghetto Bombers'!$D$82 -> 0 | F160: ='Ghetto Bombers'!$H$84 ->  | G160: ='Ghetto Bombers'!$H$81 -> 0 | H160: ='Ghetto Bombers'!$F$8 -> 4 | I160: N | J160: ='Ghetto Bombers'!$H$82 -> 0 | K160: ='Ghetto Bombers'!$H$83 -> 0 | L160: ='Ghetto Bombers'!$D$84 -> f
A161: 43 | B161: =BCBC!$A$81 -> 18 | C161: =BCBC!$D$1 -> BCBC | D161: =BCBC!$D$81 -> 0 | E161: =BCBC!$D$82 -> 0 | F161: =BCBC!$H$84 ->  | G161: =BCBC!$H$81 -> 0 | H161: =BCBC!$F$8 -> 4 | I161: N | J161: =BCBC!$H$82 -> 0 | K161: =BCBC!$H$83 -> 0 | L161: =BCBC!$D$84 -> f
A162: 45 | B162: =BCBC!$A$89 -> 20 | C162: =BCBC!$D$1 -> BCBC | D162: =BCBC!$D$89 -> 0 | E162: =BCBC!$D$90 -> 0 | F162: =BCBC!$H$92 ->  | G162: =BCBC!$H$89 -> 0 | H162: =BCBC!$F$8 -> 4 | I162: =IF(K162<(H162*2.5),"N","Y") -> N | J162: =BCBC!$H$90 -> 0 | K162: =BCBC!$H$91 -> 0 | L162: =BCBC!$D$92 -> f
A163: 47 | B163: =BCBC!$A$97 -> 22 | C163: =BCBC!$D$1 -> BCBC | D163: =BCBC!$D$97 -> 0 | E163: =BCBC!$D$98 -> 0 | F163: =BCBC!$H$100 ->  | G163: =BCBC!$H$97 -> 0 | H163: =BCBC!$F$8 -> 4 | I163: N | J163: =BCBC!$H$98 -> 0 | K163: =BCBC!$H$99 -> 0 | L163: =BCBC!$D$100 -> f
A164: 49 | B164: =BCBC!$A$105 -> 24 | C164: =BCBC!$D$1 -> BCBC | D164: =BCBC!$D$105 -> 0 | E164: =BCBC!$D$106 -> 0 | F164: =BCBC!$H$108 ->  | G164: =BCBC!$H$105 -> 0 | H164: =BCBC!$F$8 -> 4 | I164: N | J164: =BCBC!$H$106 -> 0 | K164: =BCBC!$H$107 -> 0 | L164: =BCBC!$D$108 -> f
A165: 70 | B165: ='Ghetto Bombers'!$A$89 -> 20 | C165: ='Ghetto Bombers'!$D$1 -> Ghetto Bombers | D165: ='Ghetto Bombers'!$D$89 -> 0 | E165: ='Ghetto Bombers'!$D$90 -> 0 | F165: ='Ghetto Bombers'!$H$92 ->  | G165: ='Ghetto Bombers'!$H$89 -> 0 | H165: ='Ghetto Bombers'!$F$8 -> 4 | I165: N | J165: ='Ghetto Bombers'!$H$90 -> 0 | K165: ='Ghetto Bombers'!$H$91 -> 0 | L165: ='Ghetto Bombers'!$D$92 -> f
A166: 41 | B166: =BCBC!$A$73 -> 16 | C166: =BCBC!$D$1 -> BCBC | D166: =BCBC!$D$73 -> 0 | E166: =BCBC!$D$74 -> 0 | F166: =BCBC!$H$76 ->  | G166: =BCBC!$H$73 -> 0 | H166: =BCBC!$F$8 -> 4 | I166: N | J166: =BCBC!$H$74 -> 0 | K166: =BCBC!$H$75 -> 0 | L166: =BCBC!$D$76 -> f
A167: 89 | B167: ='Hit Squad'!$A$65 -> 14 | C167: ='Hit Squad'!$D$1 -> Hit Squad | D167: ='Hit Squad'!$D$65 -> Shannon | E167: ='Hit Squad'!$D$66 -> Adair | F167: ='Hit Squad'!$H$68 -> 0.6666666667 | G167: ='Hit Squad'!$H$65 -> 3 | H167: ='Hit Squad'!$F$8 -> 3 | I167: N | J167: ='Hit Squad'!$H$66 -> 2 | K167: ='Hit Squad'!$H$67 -> 3 | L167: ='Hit Squad'!$D$68 -> f
A168: 105 | B168: =Sticks!$A$29 -> 5 | C168: =Sticks!$D$1 -> Sticks | D168: =Sticks!$D$29 -> Taylor | E168: =Sticks!$D$30 -> Hensley | F168: =Sticks!$H$32 -> 0.6666666667 | G168: =Sticks!$H$29 -> 6 | H168: =Sticks!$F$8 -> 4 | I168: N | J168: =Sticks!$H$30 -> 4 | K168: =Sticks!$H$31 -> 7 | L168: =Sticks!$D$32 -> f
A169: 109 | B169: =Sticks!$A$45 -> 9 | C169: =Sticks!$D$1 -> Sticks | D169: =Sticks!$D$45 -> Whitney | E169: =Sticks!$D$46 -> Bean | F169: =Sticks!$H$48 -> 0.4444444444 | G169: =Sticks!$H$45 -> 9 | H169: =Sticks!$F$8 -> 4 | I169: N | J169: =Sticks!$H$46 -> 4 | K169: =Sticks!$H$47 -> 9 | L169: =Sticks!$D$48 -> f
A170: 85 | B170: ='Hit Squad'!$A$49 -> 10 | C170: ='Hit Squad'!$D$1 -> Hit Squad | D170: ='Hit Squad'!$D$49 -> Tasha | E170: ='Hit Squad'!$D$50 -> Harbaugh | F170: ='Hit Squad'!$H$52 -> 0.4285714286 | G170: ='Hit Squad'!$H$49 -> 7 | H170: ='Hit Squad'!$F$8 -> 3 | I170: N | J170: ='Hit Squad'!$H$50 -> 3 | K170: ='Hit Squad'!$H$51 -> 7 | L170: ='Hit Squad'!$D$52 -> f
A171: 27 | B171: =BCBC!$A$17 -> 2 | C171: =BCBC!$D$1 -> BCBC | D171: =BCBC!$D$17 -> Karen | E171: =BCBC!$D$18 -> Springer | F171: =BCBC!$H$20 -> 0.4 | G171: =BCBC!$H$17 -> 5 | H171: =BCBC!$F$8 -> 4 | I171: N | J171: =BCBC!$H$18 -> 2 | K171: =BCBC!$H$19 -> 5 | L171: =BCBC!$D$20 -> f
A172: 12 | B172: ='Bad Pitches'!$A$57 -> 12 | C172: ='Bad Pitches'!$D$1 -> Bad Pitches | D172: ='Bad Pitches'!$D$57 -> Sandra | E172: ='Bad Pitches'!$D$58 -> Chavez | F172: ='Bad Pitches'!$H$60 -> 0.3333333333 | G172: ='Bad Pitches'!$H$57 -> 3 | H172: ='Bad Pitches'!$F$8 -> 3 | I172: N | J172: ='Bad Pitches'!$H$58 -> 1 | K172: ='Bad Pitches'!$H$59 -> 3 | L172: ='Bad Pitches'!$D$60 -> f
A173: 113 | B173: =Sticks!$A$61 -> 13 | C173: =Sticks!$D$1 -> Sticks | D173: =Sticks!$D$61 -> Kate | E173: =Sticks!$D$62 -> Nygaard | F173: =Sticks!$H$64 -> 0.2857142857 | G173: =Sticks!$H$61 -> 7 | H173: =Sticks!$F$8 -> 4 | I173: N | J173: =Sticks!$H$62 -> 2 | K173: =Sticks!$H$63 -> 7 | L173: =Sticks!$D$64 -> f
A174: 79 | B174: ='Hit Squad'!$A$25 -> 4 | C174: ='Hit Squad'!$D$1 -> Hit Squad | D174: ='Hit Squad'!$D$25 -> Amber | E174: ='Hit Squad'!$D$26 -> Romero | F174: ='Hit Squad'!$H$28 -> 0.2857142857 | G174: ='Hit Squad'!$H$25 -> 7 | H174: ='Hit Squad'!$F$8 -> 3 | I174: N | J174: ='Hit Squad'!$H$26 -> 2 | K174: ='Hit Squad'!$H$27 -> 7 | L174: ='Hit Squad'!$D$28 -> f
A175: 13 | B175: ='Bad Pitches'!$A$61 -> 13 | C175: ='Bad Pitches'!$D$1 -> Bad Pitches | D175: ='Bad Pitches'!$D$61 -> Britt | E175: ='Bad Pitches'!$D$62 -> Call | F175: ='Bad Pitches'!$H$64 -> 0.25 | G175: ='Bad Pitches'!$H$61 -> 4 | H175: ='Bad Pitches'!$F$8 -> 3 | I175: N | J175: ='Bad Pitches'!$H$62 -> 1 | K175: ='Bad Pitches'!$H$63 -> 4 | L175: ='Bad Pitches'!$D$64 -> f
A176: 65 | B176: ='Ghetto Bombers'!$A$69 -> 15 | C176: ='Ghetto Bombers'!$D$1 -> Ghetto Bombers | D176: ='Ghetto Bombers'!$D$69 -> Heidi | E176: ='Ghetto Bombers'!$D$70 -> Talor | F176: ='Ghetto Bombers'!$H$72 -> 0.2222222222 | G176: ='Ghetto Bombers'!$H$69 -> 9 | H176: ='Ghetto Bombers'!$F$8 -> 4 | I176: N | J176: ='Ghetto Bombers'!$H$70 -> 2 | K176: ='Ghetto Bombers'!$H$71 -> 9 | L176: ='Ghetto Bombers'!$D$72 -> f
A177: 83 | B177: ='Hit Squad'!$A$41 -> 8 | C177: ='Hit Squad'!$D$1 -> Hit Squad | D177: ='Hit Squad'!$D$41 -> Kelly | E177: ='Hit Squad'!$D$42 -> Noakes | F177: ='Hit Squad'!$H$44 -> 0.2 | G177: ='Hit Squad'!$H$41 -> 5 | H177: ='Hit Squad'!$F$8 -> 3 | I177: N | J177: ='Hit Squad'!$H$42 -> 1 | K177: ='Hit Squad'!$H$43 -> 5 | L177: ='Hit Squad'!$D$44 -> f
A178: 77 | B178: ='Hit Squad'!$A$17 -> 2 | C178: ='Hit Squad'!$D$1 -> Hit Squad | D178: ='Hit Squad'!$D$17 -> Miche | E178: ='Hit Squad'!$D$18 -> Ferrin | F178: ='Hit Squad'!$H$20 -> 0.1428571429 | G178: ='Hit Squad'!$H$17 -> 7 | H178: ='Hit Squad'!$F$8 -> 3 | I178: N | J178: ='Hit Squad'!$H$18 -> 1 | K178: ='Hit Squad'!$H$19 -> 7 | L178: ='Hit Squad'!$D$20 -> f
A179: 90 | B179: ='Hit Squad'!$A$69 -> 15 | C179: ='Hit Squad'!$D$1 -> Hit Squad | D179: ='Hit Squad'!$D$69 -> Rachel | E179: ='Hit Squad'!$D$70 -> Russell | F179: ='Hit Squad'!$H$72 -> 0 | G179: ='Hit Squad'!$H$69 -> 2 | H179: ='Hit Squad'!$F$8 -> 3 | I179: N | J179: ='Hit Squad'!$H$70 -> 0 | K179: ='Hit Squad'!$H$71 -> 2 | L179: ='Hit Squad'!$D$72 -> f
A180: 114 | B180: =Sticks!$A$65 -> 14 | C180: =Sticks!$D$1 -> Sticks | D180: =Sticks!$D$65 -> Jaime | E180: =Sticks!$D$66 -> Holdaway | F180: =Sticks!$H$68 -> 0 | G180: =Sticks!$H$65 -> 3 | H180: =Sticks!$F$8 -> 4 | I180: N | J180: =Sticks!$H$66 -> 0 | K180: =Sticks!$H$67 -> 3 | L180: =Sticks!$D$68 -> f
A181: 88 | B181: ='Hit Squad'!$A$61 -> 13 | C181: ='Hit Squad'!$D$1 -> Hit Squad | D181: ='Hit Squad'!$D$61 -> Kellie | E181: ='Hit Squad'!$D$62 -> Molis | F181: ='Hit Squad'!$H$64 -> 0 | G181: ='Hit Squad'!$H$61 -> 1 | H181: ='Hit Squad'!$F$8 -> 3 | I181: N | J181: ='Hit Squad'!$H$62 -> 0 | K181: ='Hit Squad'!$H$63 -> 1 | L181: ='Hit Squad'!$D$64 -> f
A182: 60 | B182: ='Ghetto Bombers'!$A$49 -> 10 | C182: ='Ghetto Bombers'!$D$1 -> Ghetto Bombers | D182: ='Ghetto Bombers'!$D$49 -> Hope | E182: ='Ghetto Bombers'!$D$50 -> Curtis | F182: ='Ghetto Bombers'!$H$52 -> 0 | G182: ='Ghetto Bombers'!$H$49 -> 1 | H182: ='Ghetto Bombers'!$F$8 -> 4 | I182: N | J182: ='Ghetto Bombers'!$H$50 -> 0 | K182: ='Ghetto Bombers'!$H$51 -> 3 | L182: ='Ghetto Bombers'!$D$52 -> f
A183: 10 | B183: ='Bad Pitches'!$A$49 -> 10 | C183: ='Bad Pitches'!$D$1 -> Bad Pitches | D183: ='Bad Pitches'!$D$49 -> Emma | E183: ='Bad Pitches'!$D$50 -> Larsen | F183: ='Bad Pitches'!$H$52 -> 0 | G183: ='Bad Pitches'!$H$49 -> 4 | H183: ='Bad Pitches'!$F$8 -> 3 | I183: N | J183: ='Bad Pitches'!$H$50 -> 0 | K183: ='Bad Pitches'!$H$51 -> 4 | L183: ='Bad Pitches'!$D$52 -> f
A184: 206 | B184: ='Team 7'!$A$33 -> 6 | C184: ='Team 7'!$D$1 ->  | D184: ='Team 7'!$D$33 -> Julie | E184: ='Team 7'!$D$34 -> 0 | F184: ='Team 7'!$H$36 -> 0 | G184: ='Team 7'!$H$33 -> 10 | H184: ='Team 7'!$F$8 -> 8 | I184: N | J184: ='Team 7'!$H$34 -> 0 | K184: ='Team 7'!$H$35 -> 10 | L184: ='Team 7'!$D$36 -> f
A185: 202 | B185: ='Team 7'!$A$17 -> 2 | C185: ='Team 7'!$D$1 ->  | D185: ='Team 7'!$D$17 -> Dorothy | E185: ='Team 7'!$D$18 -> 0 | F185: ='Team 7'!$H$20 -> 0 | G185: ='Team 7'!$H$17 -> 10 | H185: ='Team 7'!$F$8 -> 8 | I185: N | J185: ='Team 7'!$H$18 -> 0 | K185: ='Team 7'!$H$19 -> 10 | L185: ='Team 7'!$D$20 -> f
A186: 208 | B186: ='Team 7'!$A$41 -> 8 | C186: ='Team 7'!$D$1 ->  | D186: ='Team 7'!$D$41 -> Sheri | E186: ='Team 7'!$D$42 -> 0 | F186: ='Team 7'!$H$44 -> 0 | G186: ='Team 7'!$H$41 -> 10 | H186: ='Team 7'!$F$8 -> 8 | I186: N | J186: ='Team 7'!$H$42 -> 0 | K186: ='Team 7'!$H$43 -> 10 | L186: ='Team 7'!$D$44 -> f
A187: 127 | B187: ='Team 6'!$A$17 -> 2 | C187: ='Team 6'!$D$1 -> Team 6 | D187: ='Team 6'!$D$17 -> Mary | E187: ='Team 6'!$D$18 -> 0 | F187: ='Team 6'!$H$20 -> 0 | G187: ='Team 6'!$H$17 -> 10 | H187: ='Team 6'!$F$8 -> 8 | I187: N | J187: ='Team 6'!$H$18 -> 0 | K187: ='Team 6'!$H$19 -> 10 | L187: ='Team 6'!$D$20 -> f
A188: 211 | B188: ='Team 7'!$A$53 -> 11 | C188: ='Team 7'!$D$1 ->  | D188: ='Team 7'!$D$53 -> 0 | E188: ='Team 7'!$D$54 -> 0 | F188: ='Team 7'!$H$56 -> 0 | G188: ='Team 7'!$H$53 -> 10 | H188: ='Team 7'!$F$8 -> 8 | I188: N | J188: ='Team 7'!$H$54 -> 0 | K188: ='Team 7'!$H$55 -> 10 | L188: ='Team 7'!$D$56 -> f
A189: 204 | B189: ='Team 7'!$A$25 -> 4 | C189: ='Team 7'!$D$1 ->  | D189: ='Team 7'!$D$25 -> Jill | E189: ='Team 7'!$D$26 -> 0 | F189: ='Team 7'!$H$28 -> 0 | G189: ='Team 7'!$H$25 -> 10 | H189: ='Team 7'!$F$8 -> 8 | I189: N | J189: ='Team 7'!$H$26 -> 0 | K189: ='Team 7'!$H$27 -> 10 | L189: ='Team 7'!$D$28 -> f
A190: 131 | B190: ='Team 6'!$A$33 -> 6 | C190: ='Team 6'!$D$1 -> Team 6 | D190: ='Team 6'!$D$33 -> Heidi | E190: ='Team 6'!$D$34 -> 0 | F190: ='Team 6'!$H$36 -> 0 | G190: ='Team 6'!$H$33 -> 10 | H190: ='Team 6'!$F$8 -> 8 | I190: N | J190: ='Team 6'!$H$34 -> 0 | K190: ='Team 6'!$H$35 -> 10 | L190: ='Team 6'!$D$36 -> f
A191: 133 | B191: ='Team 6'!$A$41 -> 8 | C191: ='Team 6'!$D$1 -> Team 6 | D191: ='Team 6'!$D$41 -> Christine | E191: ='Team 6'!$D$42 -> 0 | F191: ='Team 6'!$H$44 -> 0 | G191: ='Team 6'!$H$41 -> 10 | H191: ='Team 6'!$F$8 -> 8 | I191: N | J191: ='Team 6'!$H$42 -> 0 | K191: ='Team 6'!$H$43 -> 10 | L191: ='Team 6'!$D$44 -> f
A192: 184 | B192: ='Team 8'!$A$45 -> 9 | C192: ='Team 8'!$D$1 ->  | D192: ='Team 8'!$D$45 -> Kenzie | E192: ='Team 8'!$D$46 -> 0 | F192: ='Team 8'!$H$48 -> 0 | G192: ='Team 8'!$H$45 -> 10 | H192: ='Team 8'!$F$8 -> 8 | I192: N | J192: ='Team 8'!$H$46 -> 0 | K192: ='Team 8'!$H$47 -> 10 | L192: ='Team 8'!$D$48 -> f
A193: 180 | B193: ='Team 8'!$A$29 -> 5 | C193: ='Team 8'!$D$1 ->  | D193: ='Team 8'!$D$29 -> Lori | E193: ='Team 8'!$D$30 -> 0 | F193: ='Team 8'!$H$32 -> 0 | G193: ='Team 8'!$H$29 -> 10 | H193: ='Team 8'!$F$8 -> 8 | I193: N | J193: ='Team 8'!$H$30 -> 0 | K193: ='Team 8'!$H$31 -> 10 | L193: ='Team 8'!$D$32 -> f
A194: 178 | B194: ='Team 8'!$A$21 -> 3 | C194: ='Team 8'!$D$1 ->  | D194: ='Team 8'!$D$21 -> Kylie | E194: ='Team 8'!$D$22 -> 0 | F194: ='Team 8'!$H$24 -> 0 | G194: ='Team 8'!$H$21 -> 10 | H194: ='Team 8'!$F$8 -> 8 | I194: =IF(K194<(H194*2.5),"N","Y") -> N | J194: ='Team 8'!$H$22 -> 0 | K194: ='Team 8'!$H$23 -> 10 | L194: ='Team 8'!$D$24 -> f
A195: 176 | B195: ='Team 8'!$A$13 -> 1 | C195: ='Team 8'!$D$1 ->  | D195: ='Team 8'!$D$13 -> Linda | E195: ='Team 8'!$D$14 -> 0 | F195: ='Team 8'!$H$16 -> 0 | G195: ='Team 8'!$H$13 -> 10 | H195: ='Team 8'!$F$8 -> 8 | I195: N | J195: ='Team 8'!$H$14 -> 0 | K195: ='Team 8'!$H$15 -> 10 | L195: ='Team 8'!$D$16 -> f
A196: 182 | B196: ='Team 8'!$A$37 -> 7 | C196: ='Team 8'!$D$1 ->  | D196: ='Team 8'!$D$37 -> Kim | E196: ='Team 8'!$D$38 -> 0 | F196: ='Team 8'!$H$40 -> 0 | G196: ='Team 8'!$H$37 -> 10 | H196: ='Team 8'!$F$8 -> 8 | I196: N | J196: ='Team 8'!$H$38 -> 0 | K196: ='Team 8'!$H$39 -> 10 | L196: ='Team 8'!$D$40 -> f
A197: 135 | B197: ='Team 6'!$A$49 -> 10 | C197: ='Team 6'!$D$1 -> Team 6 | D197: ='Team 6'!$D$49 -> Laurie | E197: ='Team 6'!$D$50 -> 0 | F197: ='Team 6'!$H$52 -> 0 | G197: ='Team 6'!$H$49 -> 10 | H197: ='Team 6'!$F$8 -> 8 | I197: N | J197: ='Team 6'!$H$50 -> 0 | K197: ='Team 6'!$H$51 -> 10 | L197: ='Team 6'!$D$52 -> f
A198: 129 | B198: ='Team 6'!$A$25 -> 4 | C198: ='Team 6'!$D$1 -> Team 6 | D198: ='Team 6'!$D$25 -> Pat | E198: ='Team 6'!$D$26 -> 0 | F198: ='Team 6'!$H$28 -> 0 | G198: ='Team 6'!$H$25 -> 10 | H198: ='Team 6'!$F$8 -> 8 | I198: N | J198: ='Team 6'!$H$26 -> 0 | K198: ='Team 6'!$H$27 -> 10 | L198: ='Team 6'!$D$28 -> f
A199: 81 | B199: ='Hit Squad'!$A$33 -> 6 | C199: ='Hit Squad'!$D$1 -> Hit Squad | D199: ='Hit Squad'!$D$33 -> Michelle | E199: ='Hit Squad'!$D$34 -> Mears | F199: ='Hit Squad'!$H$36 -> 0 | G199: ='Hit Squad'!$H$33 -> 7 | H199: ='Hit Squad'!$F$8 -> 3 | I199: N | J199: ='Hit Squad'!$H$34 -> 0 | K199: ='Hit Squad'!$H$35 -> 7 | L199: ='Hit Squad'!$D$36 -> f
A200: 87 | B200: ='Hit Squad'!$A$57 -> 12 | C200: ='Hit Squad'!$D$1 -> Hit Squad | D200: ='Hit Squad'!$D$57 -> Kelli | E200: ='Hit Squad'!$D$58 -> Hansen | F200: ='Hit Squad'!$H$60 -> 0 | G200: ='Hit Squad'!$H$57 -> 2 | H200: ='Hit Squad'!$F$8 -> 3 | I200: N | J200: ='Hit Squad'!$H$58 -> 0 | K200: ='Hit Squad'!$H$59 -> 2 | L200: ='Hit Squad'!$D$60 -> f
... 1 more rows

Sheet Sheet1

Sheet STANDINGS
A1: COUNTER | B1: TEAM | C1: WINS | D1: LOSSES | E1: Winning Percentage | F1: TEAM B/A
A2: 2 | B2: =BCBC!$D$1 -> BCBC | C2: =BCBC!$F$3 -> 4 | D2: =BCBC!$F$4 -> 0 | E2: =((C2/(C2+D2))) -> 1 | F2: =BCBC!$F$10 -> 0.5808383234
A3: 1 | B3: ='Bad Pitches'!$D$1 -> Bad Pitches | C3: ='Bad Pitches'!$F$3 -> 2 | D3: ='Bad Pitches'!$F$4 -> 1 | E3: 0.6666666667 | F3: ='Bad Pitches'!$F$10 -> 0.4385964912
A4: 5 | B4: =Sticks!$D$1 -> Sticks | C4: =Sticks!$F$3 -> 2 | D4: =Sticks!$F$4 -> 2 | E4: 0.5 | F4: =Sticks!$F$10 -> 0.5342465753
A5: 3 | B5: ='Ghetto Bombers'!$D$1 -> Ghetto Bombers | C5: ='Ghetto Bombers'!$F$3 -> 1 | D5: ='Ghetto Bombers'!$F$4 -> 3 | E5: 0.25 | F5: ='Ghetto Bombers'!$F$10 -> 0.5032258065
A6: 7 | B6: ='Team 7'!$D$1 ->  | C6: ='Team 7'!$F$3 -> 0 | D6: ='Team 7'!$F$4 -> 8 | E6: 0 | F6: ='Team 7'!$F$10 -> 0
A7: 8 | B7: ='Team 8'!$D$1 ->  | C7: ='Team 8'!$F$3 -> 0 | D7: ='Team 8'!$F$4 -> 8 | E7: 0 | F7: ='Team 8'!$F$10 -> 0
A8: 4 | B8: ='Hit Squad'!$D$1 -> Hit Squad | C8: ='Hit Squad'!$F$3 -> 0 | D8: ='Hit Squad'!$F$4 -> 3 | E8: 0 | F8: ='Hit Squad'!$F$10 -> 0.3975903614
A9: 6 | B9: ='Team 6'!$D$1 -> Team 6 | C9: ='Team 6'!$F$3 -> 0 | D9: ='Team 6'!$F$4 -> 8 | E9: 0 | F9: ='Team 6'!$F$10 -> 0

Sheet print
A1: Statistics as of: | B1: =Start!$A$2 -> 2023-05-04
A3: LEAGUE LEADING HITTERS - Female
A5: Players Name | C5: TEAM | D5: AVG | E5: AB | F5: HITS | G5: PA
A6: =Female!D2 -> Calliane | B6: =Female!E2 -> Hodson | C6: =Female!C2 -> Bad Pitches | D6: =Female!F2 -> 0.875 | E6: =Female!G2 -> 8 | F6: =Female!J2 -> 7 | G6: =Female!K2 -> 8
A7: =Female!D3 -> Calleigh | B7: =Female!E3 -> DeYoung | C7: =Female!C3 -> Ghetto Bombers | D7: =Female!F3 -> 0.875 | E7: =Female!G3 -> 8 | F7: =Female!J3 -> 7 | G7: =Female!K3 -> 12
A8: =Female!D4 -> Maree | B8: =Female!E4 -> Achermann | C8: =Female!C4 -> BCBC | D8: =Female!F4 -> 0.625 | E8: =Female!G4 -> 16 | F8: =Female!J4 -> 10 | G8: =Female!K4 -> 16
A9: =Female!D5 -> Sunni | B9: =Female!E5 -> Jackson | C9: =Female!C5 -> BCBC | D9: =Female!F5 -> 0.5714285714 | E9: =Female!G5 -> 14 | F9: =Female!J5 -> 8 | G9: =Female!K5 -> 15
A10: =Female!D6 -> Mel | B10: =Female!E6 -> Maile | C10: =Female!C6 -> BCBC | D10: =Female!F6 -> 0.5384615385 | E10: =Female!G6 -> 13 | F10: =Female!J6 -> 7 | G10: =Female!K6 -> 13
A11: =Female!D7 -> Casey | B11: =Female!E7 -> Velarde | C11: =Female!C7 -> BCBC | D11: =Female!F7 -> 0.5 | E11: =Female!G7 -> 10 | F11: =Female!J7 -> 5 | G11: =Female!K7 -> 10
A12: =Female!D8 -> Kacee | B12: =Female!E8 -> Robinson | C12: =Female!C8 -> Sticks | D12: =Female!F8 -> 0.4666666667 | E12: =Female!G8 -> 15 | F12: =Female!J8 -> 7 | G12: =Female!K8 -> 16
A13: =Female!D9 -> Brandi | B13: =Female!E9 -> Hall | C13: =Female!C9 -> Ghetto Bombers | D13: =Female!F9 -> 0.4615384615 | E13: =Female!G9 -> 13 | F13: =Female!J9 -> 6 | G13: =Female!K9 -> 13
A14: =Female!D10 -> Tiffany | B14: =Female!E10 -> Morton | C14: =Female!C10 -> BCBC | D14: =Female!F10 -> 0.3636363636 | E14: =Female!G10 -> 11 | F14: =Female!J10 -> 4 | G14: =Female!K10 -> 11
A15: =Female!D11 -> Robyne | B15: =Female!E11 -> Oostveen | C15: =Female!C11 -> BCBC | D15: =Female!F11 -> 0.3571428571 | E15: =Female!G11 -> 14 | F15: =Female!J11 -> 5 | G15: =Female!K11 -> 14
A16: =Female!D12 -> Paige | B16: =Female!E12 -> Reynolds | C16: =Female!C12 -> Bad Pitches | D16: =Female!F12 -> 0.3333333333 | E16: =Female!G12 -> 12 | F16: =Female!J12 -> 4 | G16: =Female!K12 -> 12
A19: LEAGUE LEADING HITTERS - Male
A21: Players Name | C21: TEAM | D21: AVG | E21: AB | F21: HITS | G21: PA
A22: =Male!D2 -> Ryan | B22: =Male!E2 -> Newbold | C22: =Male!C2 -> Ghetto Bombers | D22: =Male!F2 -> 0.9090909091 | E22: =Male!G2 -> 11 | F22: =Male!J2 -> 10 | G22: =Male!K2 -> 11
A23: =Male!D3 -> Ryan | B23: =Male!E3 -> Cusick | C23: =Male!C3 -> Hit Squad | D23: =Male!F3 -> 0.875 | E23: =Male!G3 -> 8 | F23: =Male!J3 -> 7 | G23: =Male!K3 -> 8
A24: =Male!D4 -> Dustin | B24: =Male!E4 -> Hunter | C24: =Male!C4 -> BCBC | D24: =Male!F4 -> 0.8666666667 | E24: =Male!G4 -> 15 | F24: =Male!J4 -> 13 | G24: =Male!K4 -> 15
A25: =Male!D5 -> Tommy | B25: =Male!E5 -> Gonzales | C25: =Male!C5 -> Sticks | D25: =Male!F5 -> 0.8571428571 | E25: =Male!G5 -> 14 | F25: =Male!J5 -> 12 | G25: =Male!K5 -> 14
A26: =Male!D6 -> Sean | B26: =Male!E6 -> Adams | C26: =Male!C6 -> Sticks | D26: =Male!F6 -> 0.8333333333 | E26: =Male!G6 -> 12 | F26: =Male!J6 -> 10 | G26: =Male!K6 -> 13
A27: =Male!D7 -> Tim | B27: =Male!E7 -> Arnold | C27: =Male!C7 -> Sticks | D27: =Male!F7 -> 0.8333333333 | E27: =Male!G7 -> 12 | F27: =Male!J7 -> 10 | G27: =Male!K7 -> 13
A28: =Male!D8 -> Mac | B28: =Male!E8 -> Estrada | C28: =Male!C8 -> Ghetto Bombers | D28: =Male!F8 -> 0.8 | E28: =Male!G8 -> 15 | F28: =Male!J8 -> 12 | G28: =Male!K8 -> 15
A29: =Male!D9 -> Shane | B29: =Male!E9 -> Singer | C29: =Male!C9 -> BCBC | D29: =Male!F9 -> 0.75 | E29: =Male!G9 -> 16 | F29: =Male!J9 -> 12 | G29: =Male!K9 -> 16
A30: =Male!D10 -> Ben | B30: =Male!E10 -> Magnum | C30: =Male!C10 -> BCBC | D30: =Male!F10 -> 0.6923076923 | E30: =Male!G10 -> 13 | F30: =Male!J10 -> 9 | G30: =Male!K10 -> 13
A31: =Male!D11 -> Chet | B31: =Male!E11 -> Wanlass | C31: =Male!C11 -> Ghetto Bombers | D31: =Male!F11 -> 0.6875 | E31: =Male!G11 -> 16 | F31: =Male!J11 -> 11 | G31: =Male!K11 -> 16
A32: =Male!D12 -> Nic | B32: =Male!E12 -> Johnston | C32: =Male!C12 -> Sticks | D32: =Male!F12 -> 0.6666666667 | E32: =Male!G12 -> 12 | F32: =Male!J12 -> 8 | G32: =Male!K12 -> 12
A38: STANDINGS
A39: TEAMS NAME | D39: WINS | E39: LOSSES | F39: TEAM BATTING AVG
A40: =STANDINGS!$B2 -> BCBC | D40: =STANDINGS!$C2 -> 4 | E40: =STANDINGS!$D2 -> 0 | F40: =STANDINGS!$F2 -> 0.5808383234
A41: =STANDINGS!$B3 -> Bad Pitches | D41: =STANDINGS!$C3 -> 2 | E41: =STANDINGS!$D3 -> 1 | F41: =STANDINGS!$F3 -> 0.4385964912
A42: =STANDINGS!$B4 -> Sticks | D42: =STANDINGS!$C4 -> 2 | E42: =STANDINGS!$D4 -> 2 | F42: =STANDINGS!$F4 -> 0.5342465753
A43: =STANDINGS!$B5 -> Ghetto Bombers | D43: =STANDINGS!$C5 -> 1 | E43: =STANDINGS!$D5 -> 3 | F43: =STANDINGS!$F5 -> 0.5032258065
A44: =STANDINGS!$B6 ->  | D44: =STANDINGS!$C6 -> 0 | E44: =STANDINGS!$D6 -> 8 | F44: =STANDINGS!$F6 -> 0
A45: =STANDINGS!$B7 ->  | D45: =STANDINGS!$C7 -> 0 | E45: =STANDINGS!$D7 -> 8 | F45: =STANDINGS!$F7 -> 0
A46: =STANDINGS!$B8 -> Hit Squad | D46: =STANDINGS!$C8 -> 0 | E46: =STANDINGS!$D8 -> 3 | F46: =STANDINGS!$F8 -> 0.3975903614
A47: =STANDINGS!$B9 -> Team 6 | D47: =STANDINGS!$C9 -> 0 | E47: =STANDINGS!$D9 -> 8 | F47: =STANDINGS!$F9 -> 0
A48: =STANDINGS!#REF! ->  | D48: =STANDINGS!#REF! ->  | E48: =STANDINGS!#REF! ->  | F48: =STANDINGS!#REF! -> 
A49: =STANDINGS!#REF! ->  | D49: =STANDINGS!#REF! ->  | E49: =STANDINGS!#REF! ->  | F49: =STANDINGS!#REF! -> 

Sheet Sheet2
